{"text_format":"1","workbook":"xlsx","n_sheets":10,"sheets":["INTRO","COUNTRY_INFO","DEC","ALB_MBD","PZQ","IVM","IVM+","SUMMARY","SHIPMENT","DATA_POLICY"],"not_rendered":{"charts":0,"images":4,"macros":1,"external_links":0,"defined_names":10,"comments":9,"pivot_tables":0},"unopened":[],"bounds":{"document_bytes":16777216,"sheet_cells":100000,"rows_first":2000,"rows_last":500,"rows_between":2000,"halvings":0,"cell_chars":16384,"cell_head_chars":4096},"cells_cut":0,"cells_raw":0,"read":"whole","date_system":"1900"}

{"sheet":"INTRO","index":0,"n_rows":51,"n_cols":5,"rows_kept":51,"cut":false,"hidden":false,"merged":[[21,1,21,4],[46,1,46,4],[38,1,38,2],[40,1,40,2],[42,1,42,2],[44,1,44,2],[36,1,36,2],[22,2,23,4],[25,2,26,4],[27,1,27,4],[32,1,32,2],[29,1,29,4],[30,1,30,4],[28,2,28,4],[24,1,24,4],[34,1,34,2],[0,1,0,4],[2,1,2,4],[1,1,1,4],[5,1,5,4],[3,1,3,4],[7,2,7,4],[11,1,11,4],[4,1,4,4],[10,2,10,4],[20,2,20,4],[17,1,17,4],[13,1,13,4],[18,2,18,4],[8,2,8,4],[9,2,9,4],[19,1,19,4],[12,1,12,4],[16,1,16,4],[14,1,14,4],[15,1,15,4]]}
[]
[null,"Joint request for selected PC medicines v.4.1"]
[]
[null,"As part of global efforts to accelerate expansion of preventive chemotherapy (PC) for control and elimination of lymphatic filariasis, schistosomiasis and soil-transmitted helminthiases, the World Health Organization (WHO) facilitates the supply of albendazole 400 mg tablets (GSK) to national lymphatic filariasis elimination programmes and national soil-transmitted helminth control programmes; diethylcarbamazine citrate 100 mg tablets (Eisai) to national lymphatic filariasis elimination programmes; mebendazole 500 mg tablets (J&J) for national soil-transmitted helminth control programmes; and praziquantel 600 mg tablets (Merck KGaA)  for school-age children to national schistosomiasis control programmes. WHO also collaborates to supply ivermectin 3 mg tablets (Merck) for onchocerciasis and lymphatic filariasis donation programmes.  \nThis Excel-based tool is designed to assist countries in quantifying the number of tablets of relevant PC medicines required to reach the planned target population and districts for the year of request. Output of the tool is a joint request for PC medicines, which can be printed, signed and submitted to WHO to request these medicines."]
[]
[null,"Structure of the application (worksheets):"]
[]
[null,"INTRO","This worksheet includes guides on how to complete the joint request for selected PC medicines and information about the status of PC for endemic diseases in the country."]
[null,"COUNTRY_INFO","This worksheet includes information about administrative structure of the country, population by age group, status of endemicity for each disease, population requiring PC and planned interventions."]
[null,"DEC, ALB_MBD, PZQ and IVM","These worksheets include information about endemic districts targeted for treatment with specified PC medicines, treatment plan, and number of tablets required and requested. "]
[null,"SUMMARY","This worksheet includes summary of number of tablets requested, information about stock, and date for submission of requested medicines. Before generating the report (run macros) please select the medicine for which the report is needed. Follow the same rule to see the number of people to be treated for the specific disease. \nThis worksheet should be printed and submitted as a joint request for selected PC medicines (see the instruction for submission in the SUMMARY worksheet)."]
[]
[null,"Instruction for data entry"]
[]
[null,"Most of the cells in the above-mentioned worksheets include formula that are calculated automatically according to the treatment policy recommended by WHO for each disease.\nSee the link https://www.who.int/publications/i/item/9789241599993."]
[]
[null,"Please enter your data into the cells according to their colour code:"]
[]
[null,null,"White - cell is not protected. Please enter the value of the requested indicator."]
[]
[null,null,"Yellow - cell is protected and includes name of indicator. No data entry required."]
[]
[null,null,"Orange - cell is not protected and includes a drop-down menu. Please select the value from the drop-down list."]
[]
[]
[null,null,"Green - cell is not protected and includes formula. Please change the value only if your data are different from those that are calculated automatically."]
[]
[]
[null,null,"Blue - cell is protected and includes formula. No data entry required."]
[]
[null,"Country data"]
[]
[null,"COUNTRY",null,null,"The Gambia"]
[null,null,null,null,5]
[null,"Year for request of the medicine",null,null,2024]
[]
[null,"Is country endemic for lymphatic filariasis (LF)?",null,null,"Non-endemic"]
[]
[null,"Is country endemic for onchocerciasis (ONCHO)?",null,null,"Non-endemic"]
[]
[null,"Is country endemic for soil-transmitted helminthiases (STH)?",null,null,"Endemic"]
[]
[null,"Is country endemic for schistosomiasis (SCH)?",null,null,"Endemic"]
[]
[null,"How many administrative units in the country?",null,null,44]
[]
[null,"If demographical data at the second administrative level are not available by age group, please enter the proportion (%) of population by age group in the country. If data are available, please leave these cells blank."]
[null,"1-4 years age","Preschool-age children (PreSAC)",null,0.124]
[null,"5-14 years age","School-age children (SAC)",null,0.27879999999999999]
[null,"15 years +","Adults",null,0.56499999999999995]
[null,"15-49 years","Women of reproductive age (WRA)",null,0.2387]

{"sheet":"COUNTRY_INFO","index":1,"n_rows":53,"n_cols":38,"rows_kept":53,"cut":false,"hidden":false,"merged":[[3,0,3,2],[3,7,3,10],[3,21,3,24],[5,0,5,2],[3,26,3,29],[5,26,5,29],[5,3,5,6],[5,7,5,10],[5,11,5,20],[5,21,5,24],[6,3,7,3],[6,2,7,2],[6,1,7,1],[6,0,7,0],[6,21,7,21],[6,13,6,16],[6,11,7,11],[6,12,7,12],[6,7,7,7],[6,8,7,8],[6,9,7,9],[6,10,7,10],[6,6,7,6],[6,5,7,5],[6,4,7,4],[6,28,7,28],[6,29,7,29],[6,17,6,20],[6,25,7,25],[6,22,7,22],[6,23,7,23],[6,24,7,24],[6,26,7,26],[6,27,7,27]]}
["COUNTRY INFORMATION"]
["Administrative structure, population by age group, status of endemicity and planned interventions"]
[]
["TOTAL",null,null,{"$f":"SUBTOTAL(9,D$10:D$1010)","v":2254439},{"$f":"SUBTOTAL(9,E$10:E$1010)","v":279549},628536,1273756,null,null,null,null,{"$f":"SUBTOTAL(9,L$10:L$1010)","v":0},0,22009,49485,42367,113861,200050,599703,1215324,2015077]
[]
["Country administrative structure",null,null,"Population",null,null,null,"Endemicity",null,null,null,"Population requiring PC",null,null,null,null,null,null,null,null,null,"Number of treatment rounds planned for the year",null,null,null,"Criteria to apply for \nIVM+DEC+ALB therapy","Epidemiological surveys planned for the year"]
["Country","Province/State","District","Total","PreSAC","SAC","Adults","LF","Oncho","STH","SCH","LF","ONCHO","STH",null,null,null,"SCH",null,null,null,"LF","Oncho","STH","SCH","LF","LF","Oncho","STH","SCH"]
[null,null,null,null,null,null,null,null,null,null,null,null,null,"PreSAC","SAC","WRA","TOTAL","PreSAC","SAC","Adults","TOTAL"]
[null,null,null,null,null,null,null,null,null,null,null,null,null,null,null,null,null,null,null,null,null,null,null,null,null,null,null,null,null,null,null,"IU ID","IU NAME"]
[{"$f":"IF(INTRO!$E$33<>0,INTRO!$E$33, \" \")","v":"The Gambia"},"CRR","Janjanbureh",4184,{"$f":"IF(INTRO!$E$48=\"\",\"\",ROUND($D10*INTRO!$E$48,0))","v":519},{"$f":"IF(INTRO!$E$49=\"\",\"\",ROUND($D10*INTRO!$E$49,0))","v":1166},{"$f":"IF(INTRO!$E$50=\"\",\"\",ROUND($D10*INTRO!$E$50,0))","v":2364},null,null,4,4,{"$f":"IF(INTRO!$E$37=\"Endemic\",IF($H10>0,IF($H10=4,\"Unknown\",IF($H10=99,\"Stopped\",$D10)),0),\"Not required\")","v":"Not required"},{"$f":"IF(INTRO!$E$39=\"Endemic\", IF($I10>0, IF($I10=4,\"Unknown\",IF($I10=99,\"Stopped\",$D10)), 0),\"Not required\")","v":"Not required"},{"$f":"IF(INTRO!$E$41=\"Endemic\", IF($J10>1, IF($J10=4, \"Unknown\", IF($J10=99, \"Surveillance\", E10)), 0),\"Not required\")","v":"Unknown"},{"$f":"IF(INTRO!$E$41=\"Endemic\", IF($J10>1, IF($J10=4, \"Unknown\", IF($J10=99, \"Surveillance\", F10)), 0),\"Not required\")","v":"Unknown"},{"$f":"IF(INTRO!$E$41=\"Endemic\", IF($J10>1, IF($J10=4, \"Unknown\", IF($J10=99, \"Surveillance\", ROUND(D10*INTRO!$E$51,0))), 0),\"Not required\")","v":"Unknown"},{"$f":"IF(INTRO!$E$41=\"Endemic\", IF($J10>1, IF($J10=4, \"Unknown\", IF($J10=99, \"Surveillance\", SUM($N10:$P10))), 0),\"Not required\")","v":"Unknown"},{"$f":"IF(INTRO!$E$43=\"Endemic\", IF($K10>1, IF($K10=4, \"Unknown\", IF($K10=99, \"Surveillance\", ROUND(E10*0.75,0))), 0),\"Not required\")","v":"Unknown"},{"$f":"IF(INTRO!$E$43=\"Endemic\", IF($K10>1, IF($K10=4, \"Unknown\", IF($K10=99, \"Surveillance\", F10)), 0),\"Not required\")","v":"Unknown"},{"$f":"IF(INTRO!$E$43=\"Endemic\", IF($K10>1, IF($K10=4, \"Unknown\", IF($K10=99, \"Surveillance\", G10)), 0),\"Not required\")","v":"Unknown"},{"$f":"IF(INTRO!$E$43=\"Endemic\", IF($K10>1, IF($K10=4, \"Unknown\", IF($K10=99, \"Surveillance\", SUM($R10:$T10))), 0),\"Not required\")","v":"Unknown"},null,null,0,0,null,null,null,null,null,null,47625,"Janjanbureh",null,null,null,null,4081.8290907178944]
[{"$f":"IF(INTRO!$E$33<>0,INTRO!$E$33, \" \")","v":"The Gambia"},"CRR","Lower Fulladou West",46386,{"$f":"IF(INTRO!$E$48=\"\",\"\",ROUND($D11*INTRO!$E$48,0))","v":5752},{"$f":"IF(INTRO!$E$49=\"\",\"\",ROUND($D11*INTRO!$E$49,0))","v":12932},{"$f":"IF(INTRO!$E$50=\"\",\"\",ROUND($D11*INTRO!$E$50,0))","v":26208},null,null,1,2,{"$f":"IF(INTRO!$E$37=\"Endemic\",IF($H11>0,IF($H11=4,\"Unknown\",IF($H11=99,\"Stopped\",$D11)),0),\"Not required\")","v":"Not required"},{"$f":"IF(INTRO!$E$39=\"Endemic\", IF($I11>0, IF($I11=4,\"Unknown\",IF($I11=99,\"Stopped\",$D11)), 0),\"Not required\")","v":"Not required"},{"$f":"IF(INTRO!$E$41=\"Endemic\", IF($J11>1, IF($J11=4, \"Unknown\", IF($J11=99, \"Surveillance\", E11)), 0),\"Not required\")","v":0},{"$f":"IF(INTRO!$E$41=\"Endemic\", IF($J11>1, IF($J11=4, \"Unknown\", IF($J11=99, \"Surveillance\", F11)), 0),\"Not required\")","v":0},{"$f":"IF(INTRO!$E$41=\"Endemic\", IF($J11>1, IF($J11=4, \"Unknown\", IF($J11=99, \"Surveillance\", ROUND(D11*INTRO!$E$51,0))), 0),\"Not required\")","v":0},{"$f":"IF(INTRO!$E$41=\"Endemic\", IF($J11>1, IF($J11=4, \"Unknown\", IF($J11=99, \"Surveillance\", SUM($N11:$P11))), 0),\"Not required\")","v":0},{"$f":"IF(INTRO!$E$43=\"Endemic\", IF($K11>1, IF($K11=4, \"Unknown\", IF($K11=99, \"Surveillance\", ROUND(E11*0.75,0))), 0),\"Not required\")","v":4314},{"$f":"IF(INTRO!$E$43=\"Endemic\", IF($K11>1, IF($K11=4, \"Unknown\", IF($K11=99, \"Surveillance\", F11)), 0),\"Not required\")","v":12932},{"$f":"IF(INTRO!$E$43=\"Endemic\", IF($K11>1, IF($K11=4, \"Unknown\", IF($K11=99, \"Surveillance\", G11)), 0),\"Not required\")","v":26208},{"$f":"IF(INTRO!$E$43=\"Endemic\", IF($K11>1, IF($K11=4, \"Unknown\", IF($K11=99, \"Surveillance\", SUM($R11:$T11))), 0),\"Not required\")","v":43454},null,null,0,1,null,null,null,null,null,null,47649,"Lower Fulladou West",null,null,null,null,45254.682411329813]
[{"$f":"IF(INTRO!$E$33<>0,INTRO!$E$33, \" \")","v":"The Gambia"},"CRR","Lower Saloum",17480,{"$f":"IF(INTRO!$E$48=\"\",\"\",ROUND($D12*INTRO!$E$48,0))","v":2168},{"$f":"IF(INTRO!$E$49=\"\",\"\",ROUND($D12*INTRO!$E$49,0))","v":4873},{"$f":"IF(INTRO!$E$50=\"\",\"\",ROUND($D12*INTRO!$E$50,0))","v":9876},null,null,0,2,{"$f":"IF(INTRO!$E$37=\"Endemic\",IF($H12>0,IF($H12=4,\"Unknown\",IF($H12=99,\"Stopped\",$D12)),0),\"Not required\")","v":"Not required"},{"$f":"IF(INTRO!$E$39=\"Endemic\", IF($I12>0, IF($I12=4,\"Unknown\",IF($I12=99,\"Stopped\",$D12)), 0),\"Not required\")","v":"Not required"},{"$f":"IF(INTRO!$E$41=\"Endemic\", IF($J12>1, IF($J12=4, \"Unknown\", IF($J12=99, \"Surveillance\", E12)), 0),\"Not required\")","v":0},{"$f":"IF(INTRO!$E$41=\"Endemic\", IF($J12>1, IF($J12=4, \"Unknown\", IF($J12=99, \"Surveillance\", F12)), 0),\"Not required\")","v":0},{"$f":"IF(INTRO!$E$41=\"Endemic\", IF($J12>1, IF($J12=4, \"Unknown\", IF($J12=99, \"Surveillance\", ROUND(D12*INTRO!$E$51,0))), 0),\"Not required\")","v":0},{"$f":"IF(INTRO!$E$41=\"Endemic\", IF($J12>1, IF($J12=4, \"Unknown\", IF($J12=99, \"Surveillance\", SUM($N12:$P12))), 0),\"Not required\")","v":0},{"$f":"IF(INTRO!$E$43=\"Endemic\", IF($K12>1, IF($K12=4, \"Unknown\", IF($K12=99, \"Surveillance\", ROUND(E12*0.75,0))), 0),\"Not required\")","v":1626},{"$f":"IF(INTRO!$E$43=\"Endemic\", IF($K12>1, IF($K12=4, \"Unknown\", IF($K12=99, \"Surveillance\", F12)), 0),\"Not required\")","v":4873},{"$f":"IF(INTRO!$E$43=\"Endemic\", IF($K12>1, IF($K12=4, \"Unknown\", IF($K12=99, \"Surveillance\", G12)), 0),\"Not required\")","v":9876},{"$f":"IF(INTRO!$E$43=\"Endemic\", IF($K12>1, IF($K12=4, \"Unknown\", IF($K12=99, \"Surveillance\", SUM($R12:$T12))), 0),\"Not required\")","v":16375},null,null,0,1,null,null,null,null,null,null,47624,"Lower Saloum",null,null,null,null,17053.6320862272]
[{"$f":"IF(INTRO!$E$33<>0,INTRO!$E$33, \" \")","v":"The Gambia"},"CRR","Niamina Dankunku",6717,{"$f":"IF(INTRO!$E$48=\"\",\"\",ROUND($D13*INTRO!$E$48,0))","v":833},{"$f":"IF(INTRO!$E$49=\"\",\"\",ROUND($D13*INTRO!$E$49,0))","v":1873},{"$f":"IF(INTRO!$E$50=\"\",\"\",ROUND($D13*INTRO!$E$50,0))","v":3795},null,null,0,2,{"$f":"IF(INTRO!$E$37=\"Endemic\",IF($H13>0,IF($H13=4,\"Unknown\",IF($H13=99,\"Stopped\",$D13)),0),\"Not required\")","v":"Not required"},{"$f":"IF(INTRO!$E$39=\"Endemic\", IF($I13>0, IF($I13=4,\"Unknown\",IF($I13=99,\"Stopped\",$D13)), 0),\"Not required\")","v":"Not required"},{"$f":"IF(INTRO!$E$41=\"Endemic\", IF($J13>1, IF($J13=4, \"Unknown\", IF($J13=99, \"Surveillance\", E13)), 0),\"Not required\")","v":0},{"$f":"IF(INTRO!$E$41=\"Endemic\", IF($J13>1, IF($J13=4, \"Unknown\", IF($J13=99, \"Surveillance\", F13)), 0),\"Not required\")","v":0},{"$f":"IF(INTRO!$E$41=\"Endemic\", IF($J13>1, IF($J13=4, \"Unknown\", IF($J13=99, \"Surveillance\", ROUND(D13*INTRO!$E$51,0))), 0),\"Not required\")","v":0},{"$f":"IF(INTRO!$E$41=\"Endemic\", IF($J13>1, IF($J13=4, \"Unknown\", IF($J13=99, \"Surveillance\", SUM($N13:$P13))), 0),\"Not required\")","v":0},{"$f":"IF(INTRO!$E$43=\"Endemic\", IF($K13>1, IF($K13=4, \"Unknown\", IF($K13=99, \"Surveillance\", ROUND(E13*0.75,0))), 0),\"Not required\")","v":625},{"$f":"IF(INTRO!$E$43=\"Endemic\", IF($K13>1, IF($K13=4, \"Unknown\", IF($K13=99, \"Surveillance\", F13)), 0),\"Not required\")","v":1873},{"$f":"IF(INTRO!$E$43=\"Endemic\", IF($K13>1, IF($K13=4, \"Unknown\", IF($K13=99, \"Surveillance\", G13)), 0),\"Not required\")","v":3795},{"$f":"IF(INTRO!$E$43=\"Endemic\", IF($K13>1, IF($K13=4, \"Unknown\", IF($K13=99, \"Surveillance\", SUM($R13:$T13))), 0),\"Not required\")","v":6293},null,null,0,1,null,null,null,null,null,null,47626,"Niamina Dankunku",null,null,null,null,6553.118595628649]
[{"$f":"IF(INTRO!$E$33<>0,INTRO!$E$33, \" \")","v":"The Gambia"},"CRR","Niamina East",26877,{"$f":"IF(INTRO!$E$48=\"\",\"\",ROUND($D14*INTRO!$E$48,0))","v":3333},{"$f":"IF(INTRO!$E$49=\"\",\"\",ROUND($D14*INTRO!$E$49,0))","v":7493},{"$f":"IF(INTRO!$E$50=\"\",\"\",ROUND($D14*INTRO!$E$50,0))","v":15186},null,null,1,2,{"$f":"IF(INTRO!$E$37=\"Endemic\",IF($H14>0,IF($H14=4,\"Unknown\",IF($H14=99,\"Stopped\",$D14)),0),\"Not required\")","v":"Not required"},{"$f":"IF(INTRO!$E$39=\"Endemic\", IF($I14>0, IF($I14=4,\"Unknown\",IF($I14=99,\"Stopped\",$D14)), 0),\"Not required\")","v":"Not required"},{"$f":"IF(INTRO!$E$41=\"Endemic\", IF($J14>1, IF($J14=4, \"Unknown\", IF($J14=99, \"Surveillance\", E14)), 0),\"Not required\")","v":0},{"$f":"IF(INTRO!$E$41=\"Endemic\", IF($J14>1, IF($J14=4, \"Unknown\", IF($J14=99, \"Surveillance\", F14)), 0),\"Not required\")","v":0},{"$f":"IF(INTRO!$E$41=\"Endemic\", IF($J14>1, IF($J14=4, \"Unknown\", IF($J14=99, \"Surveillance\", ROUND(D14*INTRO!$E$51,0))), 0),\"Not required\")","v":0},{"$f":"IF(INTRO!$E$41=\"Endemic\", IF($J14>1, IF($J14=4, \"Unknown\", IF($J14=99, \"Surveillance\", SUM($N14:$P14))), 0),\"Not required\")","v":0},{"$f":"IF(INTRO!$E$43=\"Endemic\", IF($K14>1, IF($K14=4, \"Unknown\", IF($K14=99, \"Surveillance\", ROUND(E14*0.75,0))), 0),\"Not required\")","v":2500},{"$f":"IF(INTRO!$E$43=\"Endemic\", IF($K14>1, IF($K14=4, \"Unknown\", IF($K14=99, \"Surveillance\", F14)), 0),\"Not required\")","v":7493},{"$f":"IF(INTRO!$E$43=\"Endemic\", IF($K14>1, IF($K14=4, \"Unknown\", IF($K14=99, \"Surveillance\", G14)), 0),\"Not required\")","v":15186},{"$f":"IF(INTRO!$E$43=\"Endemic\", IF($K14>1, IF($K14=4, \"Unknown\", IF($K14=99, \"Surveillance\", SUM($R14:$T14))), 0),\"Not required\")","v":25179},null,null,0,1,null,null,null,null,null,null,47627,"Niamina East",null,null,null,null,26221.092654545671]
[{"$f":"IF(INTRO!$E$33<>0,INTRO!$E$33, \" \")","v":"The Gambia"},"CRR","Niamina West",7885,{"$f":"IF(INTRO!$E$48=\"\",\"\",ROUND($D15*INTRO!$E$48,0))","v":978},{"$f":"IF(INTRO!$E$49=\"\",\"\",ROUND($D15*INTRO!$E$49,0))","v":2198},{"$f":"IF(INTRO!$E$50=\"\",\"\",ROUND($D15*INTRO!$E$50,0))","v":4455},null,null,0,2,{"$f":"IF(INTRO!$E$37=\"Endemic\",IF($H15>0,IF($H15=4,\"Unknown\",IF($H15=99,\"Stopped\",$D15)),0),\"Not required\")","v":"Not required"},{"$f":"IF(INTRO!$E$39=\"Endemic\", IF($I15>0, IF($I15=4,\"Unknown\",IF($I15=99,\"Stopped\",$D15)), 0),\"Not required\")","v":"Not required"},{"$f":"IF(INTRO!$E$41=\"Endemic\", IF($J15>1, IF($J15=4, \"Unknown\", IF($J15=99, \"Surveillance\", E15)), 0),\"Not required\")","v":0},{"$f":"IF(INTRO!$E$41=\"Endemic\", IF($J15>1, IF($J15=4, \"Unknown\", IF($J15=99, \"Surveillance\", F15)), 0),\"Not required\")","v":0},{"$f":"IF(INTRO!$E$41=\"Endemic\", IF($J15>1, IF($J15=4, \"Unknown\", IF($J15=99, \"Surveillance\", ROUND(D15*INTRO!$E$51,0))), 0),\"Not required\")","v":0},{"$f":"IF(INTRO!$E$41=\"Endemic\", IF($J15>1, IF($J15=4, \"Unknown\", IF($J15=99, \"Surveillance\", SUM($N15:$P15))), 0),\"Not required\")","v":0},{"$f":"IF(INTRO!$E$43=\"Endemic\", IF($K15>1, IF($K15=4, \"Unknown\", IF($K15=99, \"Surveillance\", ROUND(E15*0.75,0))), 0),\"Not required\")","v":734},{"$f":"IF(INTRO!$E$43=\"Endemic\", IF($K15>1, IF($K15=4, \"Unknown\", IF($K15=99, \"Surveillance\", F15)), 0),\"Not required\")","v":2198},{"$f":"IF(INTRO!$E$43=\"Endemic\", IF($K15>1, IF($K15=4, \"Unknown\", IF($K15=99, \"Surveillance\", G15)), 0),\"Not required\")","v":4455},{"$f":"IF(INTRO!$E$43=\"Endemic\", IF($K15>1, IF($K15=4, \"Unknown\", IF($K15=99, \"Surveillance\", SUM($R15:$T15))), 0),\"Not required\")","v":7387},null,null,0,1,null,null,null,null,null,null,47628,"Niamina West",null,null,null,null,7692.8850717383166]
[{"$f":"IF(INTRO!$E$33<>0,INTRO!$E$33, \" \")","v":"The Gambia"},"CRR","Niani",32075,{"$f":"IF(INTRO!$E$48=\"\",\"\",ROUND($D16*INTRO!$E$48,0))","v":3977},{"$f":"IF(INTRO!$E$49=\"\",\"\",ROUND($D16*INTRO!$E$49,0))","v":8943},{"$f":"IF(INTRO!$E$50=\"\",\"\",ROUND($D16*INTRO!$E$50,0))","v":18122},null,null,1,2,{"$f":"IF(INTRO!$E$37=\"Endemic\",IF($H16>0,IF($H16=4,\"Unknown\",IF($H16=99,\"Stopped\",$D16)),0),\"Not required\")","v":"Not required"},{"$f":"IF(INTRO!$E$39=\"Endemic\", IF($I16>0, IF($I16=4,\"Unknown\",IF($I16=99,\"Stopped\",$D16)), 0),\"Not required\")","v":"Not required"},{"$f":"IF(INTRO!$E$41=\"Endemic\", IF($J16>1, IF($J16=4, \"Unknown\", IF($J16=99, \"Surveillance\", E16)), 0),\"Not required\")","v":0},{"$f":"IF(INTRO!$E$41=\"Endemic\", IF($J16>1, IF($J16=4, \"Unknown\", IF($J16=99, \"Surveillance\", F16)), 0),\"Not required\")","v":0},{"$f":"IF(INTRO!$E$41=\"Endemic\", IF($J16>1, IF($J16=4, \"Unknown\", IF($J16=99, \"Surveillance\", ROUND(D16*INTRO!$E$51,0))), 0),\"Not required\")","v":0},{"$f":"IF(INTRO!$E$41=\"Endemic\", IF($J16>1, IF($J16=4, \"Unknown\", IF($J16=99, \"Surveillance\", SUM($N16:$P16))), 0),\"Not required\")","v":0},{"$f":"IF(INTRO!$E$43=\"Endemic\", IF($K16>1, IF($K16=4, \"Unknown\", IF($K16=99, \"Surveillance\", ROUND(E16*0.75,0))), 0),\"Not required\")","v":2983},{"$f":"IF(INTRO!$E$43=\"Endemic\", IF($K16>1, IF($K16=4, \"Unknown\", IF($K16=99, \"Surveillance\", F16)), 0),\"Not required\")","v":8943},{"$f":"IF(INTRO!$E$43=\"Endemic\", IF($K16>1, IF($K16=4, \"Unknown\", IF($K16=99, \"Surveillance\", G16)), 0),\"Not required\")","v":18122},{"$f":"IF(INTRO!$E$43=\"Endemic\", IF($K16>1, IF($K16=4, \"Unknown\", IF($K16=99, \"Surveillance\", SUM($R16:$T16))), 0),\"Not required\")","v":30048},null,null,0,1,null,null,null,null,null,null,47629,"Niani",null,null,null,null,31292.9622050976]
[{"$f":"IF(INTRO!$E$33<>0,INTRO!$E$33, \" \")","v":"The Gambia"},"CRR","Nianija",11176,{"$f":"IF(INTRO!$E$48=\"\",\"\",ROUND($D17*INTRO!$E$48,0))","v":1386},{"$f":"IF(INTRO!$E$49=\"\",\"\",ROUND($D17*INTRO!$E$49,0))","v":3116},{"$f":"IF(INTRO!$E$50=\"\",\"\",ROUND($D17*INTRO!$E$50,0))","v":6314},null,null,0,2,{"$f":"IF(INTRO!$E$37=\"Endemic\",IF($H17>0,IF($H17=4,\"Unknown\",IF($H17=99,\"Stopped\",$D17)),0),\"Not required\")","v":"Not required"},{"$f":"IF(INTRO!$E$39=\"Endemic\", IF($I17>0, IF($I17=4,\"Unknown\",IF($I17=99,\"Stopped\",$D17)), 0),\"Not required\")","v":"Not required"},{"$f":"IF(INTRO!$E$41=\"Endemic\", IF($J17>1, IF($J17=4, \"Unknown\", IF($J17=99, \"Surveillance\", E17)), 0),\"Not required\")","v":0},{"$f":"IF(INTRO!$E$41=\"Endemic\", IF($J17>1, IF($J17=4, \"Unknown\", IF($J17=99, \"Surveillance\", F17)), 0),\"Not required\")","v":0},{"$f":"IF(INTRO!$E$41=\"Endemic\", IF($J17>1, IF($J17=4, \"Unknown\", IF($J17=99, \"Surveillance\", ROUND(D17*INTRO!$E$51,0))), 0),\"Not required\")","v":0},{"$f":"IF(INTRO!$E$41=\"Endemic\", IF($J17>1, IF($J17=4, \"Unknown\", IF($J17=99, \"Surveillance\", SUM($N17:$P17))), 0),\"Not required\")","v":0},{"$f":"IF(INTRO!$E$43=\"Endemic\", IF($K17>1, IF($K17=4, \"Unknown\", IF($K17=99, \"Surveillance\", ROUND(E17*0.75,0))), 0),\"Not required\")","v":1040},{"$f":"IF(INTRO!$E$43=\"Endemic\", IF($K17>1, IF($K17=4, \"Unknown\", IF($K17=99, \"Surveillance\", F17)), 0),\"Not required\")","v":3116},{"$f":"IF(INTRO!$E$43=\"Endemic\", IF($K17>1, IF($K17=4, \"Unknown\", IF($K17=99, \"Surveillance\", G17)), 0),\"Not required\")","v":6314},{"$f":"IF(INTRO!$E$43=\"Endemic\", IF($K17>1, IF($K17=4, \"Unknown\", IF($K17=99, \"Surveillance\", SUM($R17:$T17))), 0),\"Not required\")","v":10470},null,null,0,1,null,null,null,null,null,null,47630,"Nianija",null,null,null,null,10903.902012403199]
[{"$f":"IF(INTRO!$E$33<>0,INTRO!$E$33, \" \")","v":"The Gambia"},"CRR","Sami",27573,{"$f":"IF(INTRO!$E$48=\"\",\"\",ROUND($D18*INTRO!$E$48,0))","v":3419},{"$f":"IF(INTRO!$E$49=\"\",\"\",ROUND($D18*INTRO!$E$49,0))","v":7687},{"$f":"IF(INTRO!$E$50=\"\",\"\",ROUND($D18*INTRO!$E$50,0))","v":15579},null,null,1,2,{"$f":"IF(INTRO!$E$37=\"Endemic\",IF($H18>0,IF($H18=4,\"Unknown\",IF($H18=99,\"Stopped\",$D18)),0),\"Not required\")","v":"Not required"},{"$f":"IF(INTRO!$E$39=\"Endemic\", IF($I18>0, IF($I18=4,\"Unknown\",IF($I18=99,\"Stopped\",$D18)), 0),\"Not required\")","v":"Not required"},{"$f":"IF(INTRO!$E$41=\"Endemic\", IF($J18>1, IF($J18=4, \"Unknown\", IF($J18=99, \"Surveillance\", E18)), 0),\"Not required\")","v":0},{"$f":"IF(INTRO!$E$41=\"Endemic\", IF($J18>1, IF($J18=4, \"Unknown\", IF($J18=99, \"Surveillance\", F18)), 0),\"Not required\")","v":0},{"$f":"IF(INTRO!$E$41=\"Endemic\", IF($J18>1, IF($J18=4, \"Unknown\", IF($J18=99, \"Surveillance\", ROUND(D18*INTRO!$E$51,0))), 0),\"Not required\")","v":0},{"$f":"IF(INTRO!$E$41=\"Endemic\", IF($J18>1, IF($J18=4, \"Unknown\", IF($J18=99, \"Surveillance\", SUM($N18:$P18))), 0),\"Not required\")","v":0},{"$f":"IF(INTRO!$E$43=\"Endemic\", IF($K18>1, IF($K18=4, \"Unknown\", IF($K18=99, \"Surveillance\", ROUND(E18*0.75,0))), 0),\"Not required\")","v":2564},{"$f":"IF(INTRO!$E$43=\"Endemic\", IF($K18>1, IF($K18=4, \"Unknown\", IF($K18=99, \"Surveillance\", F18)), 0),\"Not required\")","v":7687},{"$f":"IF(INTRO!$E$43=\"Endemic\", IF($K18>1, IF($K18=4, \"Unknown\", IF($K18=99, \"Surveillance\", G18)), 0),\"Not required\")","v":15579},{"$f":"IF(INTRO!$E$43=\"Endemic\", IF($K18>1, IF($K18=4, \"Unknown\", IF($K18=99, \"Surveillance\", SUM($R18:$T18))), 0),\"Not required\")","v":25830},null,null,0,1,null,null,null,null,null,null,47631,"Sami",null,null,null,null,26900.928769967999]
[{"$f":"IF(INTRO!$E$33<>0,INTRO!$E$33, \" \")","v":"The Gambia"},"CRR","Upper Fulladou West",51331,{"$f":"IF(INTRO!$E$48=\"\",\"\",ROUND($D19*INTRO!$E$48,0))","v":6365},{"$f":"IF(INTRO!$E$49=\"\",\"\",ROUND($D19*INTRO!$E$49,0))","v":14311},{"$f":"IF(INTRO!$E$50=\"\",\"\",ROUND($D19*INTRO!$E$50,0))","v":29002},null,null,1,2,{"$f":"IF(INTRO!$E$37=\"Endemic\",IF($H19>0,IF($H19=4,\"Unknown\",IF($H19=99,\"Stopped\",$D19)),0),\"Not required\")","v":"Not required"},{"$f":"IF(INTRO!$E$39=\"Endemic\", IF($I19>0, IF($I19=4,\"Unknown\",IF($I19=99,\"Stopped\",$D19)), 0),\"Not required\")","v":"Not required"},{"$f":"IF(INTRO!$E$41=\"Endemic\", IF($J19>1, IF($J19=4, \"Unknown\", IF($J19=99, \"Surveillance\", E19)), 0),\"Not required\")","v":0},{"$f":"IF(INTRO!$E$41=\"Endemic\", IF($J19>1, IF($J19=4, \"Unknown\", IF($J19=99, \"Surveillance\", F19)), 0),\"Not required\")","v":0},{"$f":"IF(INTRO!$E$41=\"Endemic\", IF($J19>1, IF($J19=4, \"Unknown\", IF($J19=99, \"Surveillance\", ROUND(D19*INTRO!$E$51,0))), 0),\"Not required\")","v":0},{"$f":"IF(INTRO!$E$41=\"Endemic\", IF($J19>1, IF($J19=4, \"Unknown\", IF($J19=99, \"Surveillance\", SUM($N19:$P19))), 0),\"Not required\")","v":0},{"$f":"IF(INTRO!$E$43=\"Endemic\", IF($K19>1, IF($K19=4, \"Unknown\", IF($K19=99, \"Surveillance\", ROUND(E19*0.75,0))), 0),\"Not required\")","v":4774},{"$f":"IF(INTRO!$E$43=\"Endemic\", IF($K19>1, IF($K19=4, \"Unknown\", IF($K19=99, \"Surveillance\", F19)), 0),\"Not required\")","v":14311},{"$f":"IF(INTRO!$E$43=\"Endemic\", IF($K19>1, IF($K19=4, \"Unknown\", IF($K19=99, \"Surveillance\", G19)), 0),\"Not required\")","v":29002},{"$f":"IF(INTRO!$E$43=\"Endemic\", IF($K19>1, IF($K19=4, \"Unknown\", IF($K19=99, \"Surveillance\", SUM($R19:$T19))), 0),\"Not required\")","v":48087},null,null,0,1,null,null,null,null,null,null,47623,"Upper Fulladou West (former Fuladu)",null,null,null,null,50078.710586168338]
[{"$f":"IF(INTRO!$E$33<>0,INTRO!$E$33, \" \")","v":"The Gambia"},"CRR","Upper Saloum",21132,{"$f":"IF(INTRO!$E$48=\"\",\"\",ROUND($D20*INTRO!$E$48,0))","v":2620},{"$f":"IF(INTRO!$E$49=\"\",\"\",ROUND($D20*INTRO!$E$49,0))","v":5892},{"$f":"IF(INTRO!$E$50=\"\",\"\",ROUND($D20*INTRO!$E$50,0))","v":11940},null,null,4,4,{"$f":"IF(INTRO!$E$37=\"Endemic\",IF($H20>0,IF($H20=4,\"Unknown\",IF($H20=99,\"Stopped\",$D20)),0),\"Not required\")","v":"Not required"},{"$f":"IF(INTRO!$E$39=\"Endemic\", IF($I20>0, IF($I20=4,\"Unknown\",IF($I20=99,\"Stopped\",$D20)), 0),\"Not required\")","v":"Not required"},{"$f":"IF(INTRO!$E$41=\"Endemic\", IF($J20>1, IF($J20=4, \"Unknown\", IF($J20=99, \"Surveillance\", E20)), 0),\"Not required\")","v":"Unknown"},{"$f":"IF(INTRO!$E$41=\"Endemic\", IF($J20>1, IF($J20=4, \"Unknown\", IF($J20=99, \"Surveillance\", F20)), 0),\"Not required\")","v":"Unknown"},{"$f":"IF(INTRO!$E$41=\"Endemic\", IF($J20>1, IF($J20=4, \"Unknown\", IF($J20=99, \"Surveillance\", ROUND(D20*INTRO!$E$51,0))), 0),\"Not required\")","v":"Unknown"},{"$f":"IF(INTRO!$E$41=\"Endemic\", IF($J20>1, IF($J20=4, \"Unknown\", IF($J20=99, \"Surveillance\", SUM($N20:$P20))), 0),\"Not required\")","v":"Unknown"},{"$f":"IF(INTRO!$E$43=\"Endemic\", IF($K20>1, IF($K20=4, \"Unknown\", IF($K20=99, \"Surveillance\", ROUND(E20*0.75,0))), 0),\"Not required\")","v":"Unknown"},{"$f":"IF(INTRO!$E$43=\"Endemic\", IF($K20>1, IF($K20=4, \"Unknown\", IF($K20=99, \"Surveillance\", F20)), 0),\"Not required\")","v":"Unknown"},{"$f":"IF(INTRO!$E$43=\"Endemic\", IF($K20>1, IF($K20=4, \"Unknown\", IF($K20=99, \"Surveillance\", G20)), 0),\"Not required\")","v":"Unknown"},{"$f":"IF(INTRO!$E$43=\"Endemic\", IF($K20>1, IF($K20=4, \"Unknown\", IF($K20=99, \"Surveillance\", SUM($R20:$T20))), 0),\"Not required\")","v":"Unknown"},null,null,0,0,null,null,null,null,null,null,47632,"Upper Saloum",null,null,null,null,20616.500838153599]
[{"$f":"IF(INTRO!$E$33<>0,INTRO!$E$33, \" \")","v":"The Gambia"},"LRR","Jarra Central",9076,{"$f":"IF(INTRO!$E$48=\"\",\"\",ROUND($D21*INTRO!$E$48,0))","v":1125},{"$f":"IF(INTRO!$E$49=\"\",\"\",ROUND($D21*INTRO!$E$49,0))","v":2530},{"$f":"IF(INTRO!$E$50=\"\",\"\",ROUND($D21*INTRO!$E$50,0))","v":5128},null,null,1,2,{"$f":"IF(INTRO!$E$37=\"Endemic\",IF($H21>0,IF($H21=4,\"Unknown\",IF($H21=99,\"Stopped\",$D21)),0),\"Not required\")","v":"Not required"},{"$f":"IF(INTRO!$E$39=\"Endemic\", IF($I21>0, IF($I21=4,\"Unknown\",IF($I21=99,\"Stopped\",$D21)), 0),\"Not required\")","v":"Not required"},{"$f":"IF(INTRO!$E$41=\"Endemic\", IF($J21>1, IF($J21=4, \"Unknown\", IF($J21=99, \"Surveillance\", E21)), 0),\"Not required\")","v":0},{"$f":"IF(INTRO!$E$41=\"Endemic\", IF($J21>1, IF($J21=4, \"Unknown\", IF($J21=99, \"Surveillance\", F21)), 0),\"Not required\")","v":0},{"$f":"IF(INTRO!$E$41=\"Endemic\", IF($J21>1, IF($J21=4, \"Unknown\", IF($J21=99, \"Surveillance\", ROUND(D21*INTRO!$E$51,0))), 0),\"Not required\")","v":0},{"$f":"IF(INTRO!$E$41=\"Endemic\", IF($J21>1, IF($J21=4, \"Unknown\", IF($J21=99, \"Surveillance\", SUM($N21:$P21))), 0),\"Not required\")","v":0},{"$f":"IF(INTRO!$E$43=\"Endemic\", IF($K21>1, IF($K21=4, \"Unknown\", IF($K21=99, \"Surveillance\", ROUND(E21*0.75,0))), 0),\"Not required\")","v":844},{"$f":"IF(INTRO!$E$43=\"Endemic\", IF($K21>1, IF($K21=4, \"Unknown\", IF($K21=99, \"Surveillance\", F21)), 0),\"Not required\")","v":2530},{"$f":"IF(INTRO!$E$43=\"Endemic\", IF($K21>1, IF($K21=4, \"Unknown\", IF($K21=99, \"Surveillance\", G21)), 0),\"Not required\")","v":5128},{"$f":"IF(INTRO!$E$43=\"Endemic\", IF($K21>1, IF($K21=4, \"Unknown\", IF($K21=99, \"Surveillance\", SUM($R21:$T21))), 0),\"Not required\")","v":8502},null,null,0,1,null,null,null,null,null,null,47634,"Jarra Central",null,null,null,null,8854.6774967343154]
[{"$f":"IF(INTRO!$E$33<>0,INTRO!$E$33, \" \")","v":"The Gambia"},"LRR","Jarra East",17445,{"$f":"IF(INTRO!$E$48=\"\",\"\",ROUND($D22*INTRO!$E$48,0))","v":2163},{"$f":"IF(INTRO!$E$49=\"\",\"\",ROUND($D22*INTRO!$E$49,0))","v":4864},{"$f":"IF(INTRO!$E$50=\"\",\"\",ROUND($D22*INTRO!$E$50,0))","v":9856},null,null,1,1,{"$f":"IF(INTRO!$E$37=\"Endemic\",IF($H22>0,IF($H22=4,\"Unknown\",IF($H22=99,\"Stopped\",$D22)),0),\"Not required\")","v":"Not required"},{"$f":"IF(INTRO!$E$39=\"Endemic\", IF($I22>0, IF($I22=4,\"Unknown\",IF($I22=99,\"Stopped\",$D22)), 0),\"Not required\")","v":"Not required"},{"$f":"IF(INTRO!$E$41=\"Endemic\", IF($J22>1, IF($J22=4, \"Unknown\", IF($J22=99, \"Surveillance\", E22)), 0),\"Not required\")","v":0},{"$f":"IF(INTRO!$E$41=\"Endemic\", IF($J22>1, IF($J22=4, \"Unknown\", IF($J22=99, \"Surveillance\", F22)), 0),\"Not required\")","v":0},{"$f":"IF(INTRO!$E$41=\"Endemic\", IF($J22>1, IF($J22=4, \"Unknown\", IF($J22=99, \"Surveillance\", ROUND(D22*INTRO!$E$51,0))), 0),\"Not required\")","v":0},{"$f":"IF(INTRO!$E$41=\"Endemic\", IF($J22>1, IF($J22=4, \"Unknown\", IF($J22=99, \"Surveillance\", SUM($N22:$P22))), 0),\"Not required\")","v":0},{"$f":"IF(INTRO!$E$43=\"Endemic\", IF($K22>1, IF($K22=4, \"Unknown\", IF($K22=99, \"Surveillance\", ROUND(E22*0.75,0))), 0),\"Not required\")","v":0},{"$f":"IF(INTRO!$E$43=\"Endemic\", IF($K22>1, IF($K22=4, \"Unknown\", IF($K22=99, \"Surveillance\", F22)), 0),\"Not required\")","v":0},{"$f":"IF(INTRO!$E$43=\"Endemic\", IF($K22>1, IF($K22=4, \"Unknown\", IF($K22=99, \"Surveillance\", G22)), 0),\"Not required\")","v":0},{"$f":"IF(INTRO!$E$43=\"Endemic\", IF($K22>1, IF($K22=4, \"Unknown\", IF($K22=99, \"Surveillance\", SUM($R22:$T22))), 0),\"Not required\")","v":0},null,null,0,0,null,null,null,null,null,null,47635,"Jarra East",null,null,null,null,17019.407693914891]
[{"$f":"IF(INTRO!$E$33<>0,INTRO!$E$33, \" \")","v":"The Gambia"},"LRR","Jarra West",28521,{"$f":"IF(INTRO!$E$48=\"\",\"\",ROUND($D23*INTRO!$E$48,0))","v":3537},{"$f":"IF(INTRO!$E$49=\"\",\"\",ROUND($D23*INTRO!$E$49,0))","v":7952},{"$f":"IF(INTRO!$E$50=\"\",\"\",ROUND($D23*INTRO!$E$50,0))","v":16114},null,null,0,2,{"$f":"IF(INTRO!$E$37=\"Endemic\",IF($H23>0,IF($H23=4,\"Unknown\",IF($H23=99,\"Stopped\",$D23)),0),\"Not required\")","v":"Not required"},{"$f":"IF(INTRO!$E$39=\"Endemic\", IF($I23>0, IF($I23=4,\"Unknown\",IF($I23=99,\"Stopped\",$D23)), 0),\"Not required\")","v":"Not required"},{"$f":"IF(INTRO!$E$41=\"Endemic\", IF($J23>1, IF($J23=4, \"Unknown\", IF($J23=99, \"Surveillance\", E23)), 0),\"Not required\")","v":0},{"$f":"IF(INTRO!$E$41=\"Endemic\", IF($J23>1, IF($J23=4, \"Unknown\", IF($J23=99, \"Surveillance\", F23)), 0),\"Not required\")","v":0},{"$f":"IF(INTRO!$E$41=\"Endemic\", IF($J23>1, IF($J23=4, \"Unknown\", IF($J23=99, \"Surveillance\", ROUND(D23*INTRO!$E$51,0))), 0),\"Not required\")","v":0},{"$f":"IF(INTRO!$E$41=\"Endemic\", IF($J23>1, IF($J23=4, \"Unknown\", IF($J23=99, \"Surveillance\", SUM($N23:$P23))), 0),\"Not required\")","v":0},{"$f":"IF(INTRO!$E$43=\"Endemic\", IF($K23>1, IF($K23=4, \"Unknown\", IF($K23=99, \"Surveillance\", ROUND(E23*0.75,0))), 0),\"Not required\")","v":2653},{"$f":"IF(INTRO!$E$43=\"Endemic\", IF($K23>1, IF($K23=4, \"Unknown\", IF($K23=99, \"Surveillance\", F23)), 0),\"Not required\")","v":7952},{"$f":"IF(INTRO!$E$43=\"Endemic\", IF($K23>1, IF($K23=4, \"Unknown\", IF($K23=99, \"Surveillance\", G23)), 0),\"Not required\")","v":16114},{"$f":"IF(INTRO!$E$43=\"Endemic\", IF($K23>1, IF($K23=4, \"Unknown\", IF($K23=99, \"Surveillance\", SUM($R23:$T23))), 0),\"Not required\")","v":26719},null,null,0,1,null,null,null,null,null,null,47636,"Jarra West",null,null,null,null,27825.043862310402]
[{"$f":"IF(INTRO!$E$33<>0,INTRO!$E$33, \" \")","v":"The Gambia"},"LRR","Kiang Central",9423,{"$f":"IF(INTRO!$E$48=\"\",\"\",ROUND($D24*INTRO!$E$48,0))","v":1168},{"$f":"IF(INTRO!$E$49=\"\",\"\",ROUND($D24*INTRO!$E$49,0))","v":2627},{"$f":"IF(INTRO!$E$50=\"\",\"\",ROUND($D24*INTRO!$E$50,0))","v":5324},null,null,1,2,{"$f":"IF(INTRO!$E$37=\"Endemic\",IF($H24>0,IF($H24=4,\"Unknown\",IF($H24=99,\"Stopped\",$D24)),0),\"Not required\")","v":"Not required"},{"$f":"IF(INTRO!$E$39=\"Endemic\", IF($I24>0, IF($I24=4,\"Unknown\",IF($I24=99,\"Stopped\",$D24)), 0),\"Not required\")","v":"Not required"},{"$f":"IF(INTRO!$E$41=\"Endemic\", IF($J24>1, IF($J24=4, \"Unknown\", IF($J24=99, \"Surveillance\", E24)), 0),\"Not required\")","v":0},{"$f":"IF(INTRO!$E$41=\"Endemic\", IF($J24>1, IF($J24=4, \"Unknown\", IF($J24=99, \"Surveillance\", F24)), 0),\"Not required\")","v":0},{"$f":"IF(INTRO!$E$41=\"Endemic\", IF($J24>1, IF($J24=4, \"Unknown\", IF($J24=99, \"Surveillance\", ROUND(D24*INTRO!$E$51,0))), 0),\"Not required\")","v":0},{"$f":"IF(INTRO!$E$41=\"Endemic\", IF($J24>1, IF($J24=4, \"Unknown\", IF($J24=99, \"Surveillance\", SUM($N24:$P24))), 0),\"Not required\")","v":0},{"$f":"IF(INTRO!$E$43=\"Endemic\", IF($K24>1, IF($K24=4, \"Unknown\", IF($K24=99, \"Surveillance\", ROUND(E24*0.75,0))), 0),\"Not required\")","v":876},{"$f":"IF(INTRO!$E$43=\"Endemic\", IF($K24>1, IF($K24=4, \"Unknown\", IF($K24=99, \"Surveillance\", F24)), 0),\"Not required\")","v":2627},{"$f":"IF(INTRO!$E$43=\"Endemic\", IF($K24>1, IF($K24=4, \"Unknown\", IF($K24=99, \"Surveillance\", G24)), 0),\"Not required\")","v":5324},{"$f":"IF(INTRO!$E$43=\"Endemic\", IF($K24>1, IF($K24=4, \"Unknown\", IF($K24=99, \"Surveillance\", SUM($R24:$T24))), 0),\"Not required\")","v":8827},null,null,0,1,null,null,null,null,null,null,47637,"Kiang Central",null,null,null,null,9193.2824022076129]
[{"$f":"IF(INTRO!$E$33<>0,INTRO!$E$33, \" \")","v":"The Gambia"},"LRR","Kiang East",7399,{"$f":"IF(INTRO!$E$48=\"\",\"\",ROUND($D25*INTRO!$E$48,0))","v":917},{"$f":"IF(INTRO!$E$49=\"\",\"\",ROUND($D25*INTRO!$E$49,0))","v":2063},{"$f":"IF(INTRO!$E$50=\"\",\"\",ROUND($D25*INTRO!$E$50,0))","v":4180},null,null,1,2,{"$f":"IF(INTRO!$E$37=\"Endemic\",IF($H25>0,IF($H25=4,\"Unknown\",IF($H25=99,\"Stopped\",$D25)),0),\"Not required\")","v":"Not required"},{"$f":"IF(INTRO!$E$39=\"Endemic\", IF($I25>0, IF($I25=4,\"Unknown\",IF($I25=99,\"Stopped\",$D25)), 0),\"Not required\")","v":"Not required"},{"$f":"IF(INTRO!$E$41=\"Endemic\", IF($J25>1, IF($J25=4, \"Unknown\", IF($J25=99, \"Surveillance\", E25)), 0),\"Not required\")","v":0},{"$f":"IF(INTRO!$E$41=\"Endemic\", IF($J25>1, IF($J25=4, \"Unknown\", IF($J25=99, \"Surveillance\", F25)), 0),\"Not required\")","v":0},{"$f":"IF(INTRO!$E$41=\"Endemic\", IF($J25>1, IF($J25=4, \"Unknown\", IF($J25=99, \"Surveillance\", ROUND(D25*INTRO!$E$51,0))), 0),\"Not required\")","v":0},{"$f":"IF(INTRO!$E$41=\"Endemic\", IF($J25>1, IF($J25=4, \"Unknown\", IF($J25=99, \"Surveillance\", SUM($N25:$P25))), 0),\"Not required\")","v":0},{"$f":"IF(INTRO!$E$43=\"Endemic\", IF($K25>1, IF($K25=4, \"Unknown\", IF($K25=99, \"Surveillance\", ROUND(E25*0.75,0))), 0),\"Not required\")","v":688},{"$f":"IF(INTRO!$E$43=\"Endemic\", IF($K25>1, IF($K25=4, \"Unknown\", IF($K25=99, \"Surveillance\", F25)), 0),\"Not required\")","v":2063},{"$f":"IF(INTRO!$E$43=\"Endemic\", IF($K25>1, IF($K25=4, \"Unknown\", IF($K25=99, \"Surveillance\", G25)), 0),\"Not required\")","v":4180},{"$f":"IF(INTRO!$E$43=\"Endemic\", IF($K25>1, IF($K25=4, \"Unknown\", IF($K25=99, \"Surveillance\", SUM($R25:$T25))), 0),\"Not required\")","v":6931},null,null,0,1,null,null,null,null,null,null,47638,"Kiang East",null,null,null,null,7218.9716680999863]
[{"$f":"IF(INTRO!$E$33<>0,INTRO!$E$33, \" \")","v":"The Gambia"},"LRR","Kiang West",16309,{"$f":"IF(INTRO!$E$48=\"\",\"\",ROUND($D26*INTRO!$E$48,0))","v":2022},{"$f":"IF(INTRO!$E$49=\"\",\"\",ROUND($D26*INTRO!$E$49,0))","v":4547},{"$f":"IF(INTRO!$E$50=\"\",\"\",ROUND($D26*INTRO!$E$50,0))","v":9215},null,null,1,2,{"$f":"IF(INTRO!$E$37=\"Endemic\",IF($H26>0,IF($H26=4,\"Unknown\",IF($H26=99,\"Stopped\",$D26)),0),\"Not required\")","v":"Not required"},{"$f":"IF(INTRO!$E$39=\"Endemic\", IF($I26>0, IF($I26=4,\"Unknown\",IF($I26=99,\"Stopped\",$D26)), 0),\"Not required\")","v":"Not required"},{"$f":"IF(INTRO!$E$41=\"Endemic\", IF($J26>1, IF($J26=4, \"Unknown\", IF($J26=99, \"Surveillance\", E26)), 0),\"Not required\")","v":0},{"$f":"IF(INTRO!$E$41=\"Endemic\", IF($J26>1, IF($J26=4, \"Unknown\", IF($J26=99, \"Surveillance\", F26)), 0),\"Not required\")","v":0},{"$f":"IF(INTRO!$E$41=\"Endemic\", IF($J26>1, IF($J26=4, \"Unknown\", IF($J26=99, \"Surveillance\", ROUND(D26*INTRO!$E$51,0))), 0),\"Not required\")","v":0},{"$f":"IF(INTRO!$E$41=\"Endemic\", IF($J26>1, IF($J26=4, \"Unknown\", IF($J26=99, \"Surveillance\", SUM($N26:$P26))), 0),\"Not required\")","v":0},{"$f":"IF(INTRO!$E$43=\"Endemic\", IF($K26>1, IF($K26=4, \"Unknown\", IF($K26=99, \"Surveillance\", ROUND(E26*0.75,0))), 0),\"Not required\")","v":1517},{"$f":"IF(INTRO!$E$43=\"Endemic\", IF($K26>1, IF($K26=4, \"Unknown\", IF($K26=99, \"Surveillance\", F26)), 0),\"Not required\")","v":4547},{"$f":"IF(INTRO!$E$43=\"Endemic\", IF($K26>1, IF($K26=4, \"Unknown\", IF($K26=99, \"Surveillance\", G26)), 0),\"Not required\")","v":9215},{"$f":"IF(INTRO!$E$43=\"Endemic\", IF($K26>1, IF($K26=4, \"Unknown\", IF($K26=99, \"Surveillance\", SUM($R26:$T26))), 0),\"Not required\")","v":15279},null,null,0,1,null,null,null,null,null,null,47639,"Kiang West",null,null,null,null,15911.24618509319]
[{"$f":"IF(INTRO!$E$33<>0,INTRO!$E$33, \" \")","v":"The Gambia"},"NBE","Central Baddibu",22494,{"$f":"IF(INTRO!$E$48=\"\",\"\",ROUND($D27*INTRO!$E$48,0))","v":2789},{"$f":"IF(INTRO!$E$49=\"\",\"\",ROUND($D27*INTRO!$E$49,0))","v":6271},{"$f":"IF(INTRO!$E$50=\"\",\"\",ROUND($D27*INTRO!$E$50,0))","v":12709},null,null,0,2,{"$f":"IF(INTRO!$E$37=\"Endemic\",IF($H27>0,IF($H27=4,\"Unknown\",IF($H27=99,\"Stopped\",$D27)),0),\"Not required\")","v":"Not required"},{"$f":"IF(INTRO!$E$39=\"Endemic\", IF($I27>0, IF($I27=4,\"Unknown\",IF($I27=99,\"Stopped\",$D27)), 0),\"Not required\")","v":"Not required"},{"$f":"IF(INTRO!$E$41=\"Endemic\", IF($J27>1, IF($J27=4, \"Unknown\", IF($J27=99, \"Surveillance\", E27)), 0),\"Not required\")","v":0},{"$f":"IF(INTRO!$E$41=\"Endemic\", IF($J27>1, IF($J27=4, \"Unknown\", IF($J27=99, \"Surveillance\", F27)), 0),\"Not required\")","v":0},{"$f":"IF(INTRO!$E$41=\"Endemic\", IF($J27>1, IF($J27=4, \"Unknown\", IF($J27=99, \"Surveillance\", ROUND(D27*INTRO!$E$51,0))), 0),\"Not required\")","v":0},{"$f":"IF(INTRO!$E$41=\"Endemic\", IF($J27>1, IF($J27=4, \"Unknown\", IF($J27=99, \"Surveillance\", SUM($N27:$P27))), 0),\"Not required\")","v":0},{"$f":"IF(INTRO!$E$43=\"Endemic\", IF($K27>1, IF($K27=4, \"Unknown\", IF($K27=99, \"Surveillance\", ROUND(E27*0.75,0))), 0),\"Not required\")","v":2092},{"$f":"IF(INTRO!$E$43=\"Endemic\", IF($K27>1, IF($K27=4, \"Unknown\", IF($K27=99, \"Surveillance\", F27)), 0),\"Not required\")","v":6271},{"$f":"IF(INTRO!$E$43=\"Endemic\", IF($K27>1, IF($K27=4, \"Unknown\", IF($K27=99, \"Surveillance\", G27)), 0),\"Not required\")","v":12709},{"$f":"IF(INTRO!$E$43=\"Endemic\", IF($K27>1, IF($K27=4, \"Unknown\", IF($K27=99, \"Surveillance\", SUM($R27:$T27))), 0),\"Not required\")","v":21072},null,null,0,1,null,null,null,null,null,null,47641,"Central Baddibu",null,null,null,null,21944.915084269585]
[{"$f":"IF(INTRO!$E$33<>0,INTRO!$E$33, \" \")","v":"The Gambia"},"NBE","Lower Baddibu",20728,{"$f":"IF(INTRO!$E$48=\"\",\"\",ROUND($D28*INTRO!$E$48,0))","v":2570},{"$f":"IF(INTRO!$E$49=\"\",\"\",ROUND($D28*INTRO!$E$49,0))","v":5779},{"$f":"IF(INTRO!$E$50=\"\",\"\",ROUND($D28*INTRO!$E$50,0))","v":11711},null,null,1,2,{"$f":"IF(INTRO!$E$37=\"Endemic\",IF($H28>0,IF($H28=4,\"Unknown\",IF($H28=99,\"Stopped\",$D28)),0),\"Not required\")","v":"Not required"},{"$f":"IF(INTRO!$E$39=\"Endemic\", IF($I28>0, IF($I28=4,\"Unknown\",IF($I28=99,\"Stopped\",$D28)), 0),\"Not required\")","v":"Not required"},{"$f":"IF(INTRO!$E$41=\"Endemic\", IF($J28>1, IF($J28=4, \"Unknown\", IF($J28=99, \"Surveillance\", E28)), 0),\"Not required\")","v":0},{"$f":"IF(INTRO!$E$41=\"Endemic\", IF($J28>1, IF($J28=4, \"Unknown\", IF($J28=99, \"Surveillance\", F28)), 0),\"Not required\")","v":0},{"$f":"IF(INTRO!$E$41=\"Endemic\", IF($J28>1, IF($J28=4, \"Unknown\", IF($J28=99, \"Surveillance\", ROUND(D28*INTRO!$E$51,0))), 0),\"Not required\")","v":0},{"$f":"IF(INTRO!$E$41=\"Endemic\", IF($J28>1, IF($J28=4, \"Unknown\", IF($J28=99, \"Surveillance\", SUM($N28:$P28))), 0),\"Not required\")","v":0},{"$f":"IF(INTRO!$E$43=\"Endemic\", IF($K28>1, IF($K28=4, \"Unknown\", IF($K28=99, \"Surveillance\", ROUND(E28*0.75,0))), 0),\"Not required\")","v":1928},{"$f":"IF(INTRO!$E$43=\"Endemic\", IF($K28>1, IF($K28=4, \"Unknown\", IF($K28=99, \"Surveillance\", F28)), 0),\"Not required\")","v":5779},{"$f":"IF(INTRO!$E$43=\"Endemic\", IF($K28>1, IF($K28=4, \"Unknown\", IF($K28=99, \"Surveillance\", G28)), 0),\"Not required\")","v":11711},{"$f":"IF(INTRO!$E$43=\"Endemic\", IF($K28>1, IF($K28=4, \"Unknown\", IF($K28=99, \"Surveillance\", SUM($R28:$T28))), 0),\"Not required\")","v":19418},null,null,0,1,null,null,null,null,null,null,47644,"Lower Baddibu",null,null,null,null,20222.28822680037]
[{"$f":"IF(INTRO!$E$33<>0,INTRO!$E$33, \" \")","v":"The Gambia"},"NBE","Sabach Sanjal",27383,{"$f":"IF(INTRO!$E$48=\"\",\"\",ROUND($D29*INTRO!$E$48,0))","v":3395},{"$f":"IF(INTRO!$E$49=\"\",\"\",ROUND($D29*INTRO!$E$49,0))","v":7634},{"$f":"IF(INTRO!$E$50=\"\",\"\",ROUND($D29*INTRO!$E$50,0))","v":15471},null,null,1,2,{"$f":"IF(INTRO!$E$37=\"Endemic\",IF($H29>0,IF($H29=4,\"Unknown\",IF($H29=99,\"Stopped\",$D29)),0),\"Not required\")","v":"Not required"},{"$f":"IF(INTRO!$E$39=\"Endemic\", IF($I29>0, IF($I29=4,\"Unknown\",IF($I29=99,\"Stopped\",$D29)), 0),\"Not required\")","v":"Not required"},{"$f":"IF(INTRO!$E$41=\"Endemic\", IF($J29>1, IF($J29=4, \"Unknown\", IF($J29=99, \"Surveillance\", E29)), 0),\"Not required\")","v":0},{"$f":"IF(INTRO!$E$41=\"Endemic\", IF($J29>1, IF($J29=4, \"Unknown\", IF($J29=99, \"Surveillance\", F29)), 0),\"Not required\")","v":0},{"$f":"IF(INTRO!$E$41=\"Endemic\", IF($J29>1, IF($J29=4, \"Unknown\", IF($J29=99, \"Surveillance\", ROUND(D29*INTRO!$E$51,0))), 0),\"Not required\")","v":0},{"$f":"IF(INTRO!$E$41=\"Endemic\", IF($J29>1, IF($J29=4, \"Unknown\", IF($J29=99, \"Surveillance\", SUM($N29:$P29))), 0),\"Not required\")","v":0},{"$f":"IF(INTRO!$E$43=\"Endemic\", IF($K29>1, IF($K29=4, \"Unknown\", IF($K29=99, \"Surveillance\", ROUND(E29*0.75,0))), 0),\"Not required\")","v":2546},{"$f":"IF(INTRO!$E$43=\"Endemic\", IF($K29>1, IF($K29=4, \"Unknown\", IF($K29=99, \"Surveillance\", F29)), 0),\"Not required\")","v":7634},{"$f":"IF(INTRO!$E$43=\"Endemic\", IF($K29>1, IF($K29=4, \"Unknown\", IF($K29=99, \"Surveillance\", G29)), 0),\"Not required\")","v":15471},{"$f":"IF(INTRO!$E$43=\"Endemic\", IF($K29>1, IF($K29=4, \"Unknown\", IF($K29=99, \"Surveillance\", SUM($R29:$T29))), 0),\"Not required\")","v":25651},null,null,0,1,null,null,null,null,null,null,47642,"Sabach Sanjal",null,null,null,null,26715.352989561783]
[{"$f":"IF(INTRO!$E$33<>0,INTRO!$E$33, \" \")","v":"The Gambia"},"NBE","Upper Baddibu",56110,{"$f":"IF(INTRO!$E$48=\"\",\"\",ROUND($D30*INTRO!$E$48,0))","v":6958},{"$f":"IF(INTRO!$E$49=\"\",\"\",ROUND($D30*INTRO!$E$49,0))","v":15643},{"$f":"IF(INTRO!$E$50=\"\",\"\",ROUND($D30*INTRO!$E$50,0))","v":31702},null,null,1,2,{"$f":"IF(INTRO!$E$37=\"Endemic\",IF($H30>0,IF($H30=4,\"Unknown\",IF($H30=99,\"Stopped\",$D30)),0),\"Not required\")","v":"Not required"},{"$f":"IF(INTRO!$E$39=\"Endemic\", IF($I30>0, IF($I30=4,\"Unknown\",IF($I30=99,\"Stopped\",$D30)), 0),\"Not required\")","v":"Not required"},{"$f":"IF(INTRO!$E$41=\"Endemic\", IF($J30>1, IF($J30=4, \"Unknown\", IF($J30=99, \"Surveillance\", E30)), 0),\"Not required\")","v":0},{"$f":"IF(INTRO!$E$41=\"Endemic\", IF($J30>1, IF($J30=4, \"Unknown\", IF($J30=99, \"Surveillance\", F30)), 0),\"Not required\")","v":0},{"$f":"IF(INTRO!$E$41=\"Endemic\", IF($J30>1, IF($J30=4, \"Unknown\", IF($J30=99, \"Surveillance\", ROUND(D30*INTRO!$E$51,0))), 0),\"Not required\")","v":0},{"$f":"IF(INTRO!$E$41=\"Endemic\", IF($J30>1, IF($J30=4, \"Unknown\", IF($J30=99, \"Surveillance\", SUM($N30:$P30))), 0),\"Not required\")","v":0},{"$f":"IF(INTRO!$E$43=\"Endemic\", IF($K30>1, IF($K30=4, \"Unknown\", IF($K30=99, \"Surveillance\", ROUND(E30*0.75,0))), 0),\"Not required\")","v":5219},{"$f":"IF(INTRO!$E$43=\"Endemic\", IF($K30>1, IF($K30=4, \"Unknown\", IF($K30=99, \"Surveillance\", F30)), 0),\"Not required\")","v":15643},{"$f":"IF(INTRO!$E$43=\"Endemic\", IF($K30>1, IF($K30=4, \"Unknown\", IF($K30=99, \"Surveillance\", G30)), 0),\"Not required\")","v":31702},{"$f":"IF(INTRO!$E$43=\"Endemic\", IF($K30>1, IF($K30=4, \"Unknown\", IF($K30=99, \"Surveillance\", SUM($R30:$T30))), 0),\"Not required\")","v":52564},null,null,0,1,null,null,null,null,null,null,47646,"Upper Baddibu",null,null,null,null,54741.253470688382]
[{"$f":"IF(INTRO!$E$33<>0,INTRO!$E$33, \" \")","v":"The Gambia"},"NBW","Jokadu",25749,{"$f":"IF(INTRO!$E$48=\"\",\"\",ROUND($D31*INTRO!$E$48,0))","v":3193},{"$f":"IF(INTRO!$E$49=\"\",\"\",ROUND($D31*INTRO!$E$49,0))","v":7179},{"$f":"IF(INTRO!$E$50=\"\",\"\",ROUND($D31*INTRO!$E$50,0))","v":14548},null,null,1,2,{"$f":"IF(INTRO!$E$37=\"Endemic\",IF($H31>0,IF($H31=4,\"Unknown\",IF($H31=99,\"Stopped\",$D31)),0),\"Not required\")","v":"Not required"},{"$f":"IF(INTRO!$E$39=\"Endemic\", IF($I31>0, IF($I31=4,\"Unknown\",IF($I31=99,\"Stopped\",$D31)), 0),\"Not required\")","v":"Not required"},{"$f":"IF(INTRO!$E$41=\"Endemic\", IF($J31>1, IF($J31=4, \"Unknown\", IF($J31=99, \"Surveillance\", E31)), 0),\"Not required\")","v":0},{"$f":"IF(INTRO!$E$41=\"Endemic\", IF($J31>1, IF($J31=4, \"Unknown\", IF($J31=99, \"Surveillance\", F31)), 0),\"Not required\")","v":0},{"$f":"IF(INTRO!$E$41=\"Endemic\", IF($J31>1, IF($J31=4, \"Unknown\", IF($J31=99, \"Surveillance\", ROUND(D31*INTRO!$E$51,0))), 0),\"Not required\")","v":0},{"$f":"IF(INTRO!$E$41=\"Endemic\", IF($J31>1, IF($J31=4, \"Unknown\", IF($J31=99, \"Surveillance\", SUM($N31:$P31))), 0),\"Not required\")","v":0},{"$f":"IF(INTRO!$E$43=\"Endemic\", IF($K31>1, IF($K31=4, \"Unknown\", IF($K31=99, \"Surveillance\", ROUND(E31*0.75,0))), 0),\"Not required\")","v":2395},{"$f":"IF(INTRO!$E$43=\"Endemic\", IF($K31>1, IF($K31=4, \"Unknown\", IF($K31=99, \"Surveillance\", F31)), 0),\"Not required\")","v":7179},{"$f":"IF(INTRO!$E$43=\"Endemic\", IF($K31>1, IF($K31=4, \"Unknown\", IF($K31=99, \"Surveillance\", G31)), 0),\"Not required\")","v":14548},{"$f":"IF(INTRO!$E$43=\"Endemic\", IF($K31>1, IF($K31=4, \"Unknown\", IF($K31=99, \"Surveillance\", SUM($R31:$T31))), 0),\"Not required\")","v":24122},null,null,0,1,null,null,null,null,null,null,47643,"Jokadu",null,null,null,null,25121.07872147263]
[{"$f":"IF(INTRO!$E$33<>0,INTRO!$E$33, \" \")","v":"The Gambia"},"NBW","Lower Niumi",65882,{"$f":"IF(INTRO!$E$48=\"\",\"\",ROUND($D32*INTRO!$E$48,0))","v":8169},{"$f":"IF(INTRO!$E$49=\"\",\"\",ROUND($D32*INTRO!$E$49,0))","v":18368},{"$f":"IF(INTRO!$E$50=\"\",\"\",ROUND($D32*INTRO!$E$50,0))","v":37223},null,null,1,2,{"$f":"IF(INTRO!$E$37=\"Endemic\",IF($H32>0,IF($H32=4,\"Unknown\",IF($H32=99,\"Stopped\",$D32)),0),\"Not required\")","v":"Not required"},{"$f":"IF(INTRO!$E$39=\"Endemic\", IF($I32>0, IF($I32=4,\"Unknown\",IF($I32=99,\"Stopped\",$D32)), 0),\"Not required\")","v":"Not required"},{"$f":"IF(INTRO!$E$41=\"Endemic\", IF($J32>1, IF($J32=4, \"Unknown\", IF($J32=99, \"Surveillance\", E32)), 0),\"Not required\")","v":0},{"$f":"IF(INTRO!$E$41=\"Endemic\", IF($J32>1, IF($J32=4, \"Unknown\", IF($J32=99, \"Surveillance\", F32)), 0),\"Not required\")","v":0},{"$f":"IF(INTRO!$E$41=\"Endemic\", IF($J32>1, IF($J32=4, \"Unknown\", IF($J32=99, \"Surveillance\", ROUND(D32*INTRO!$E$51,0))), 0),\"Not required\")","v":0},{"$f":"IF(INTRO!$E$41=\"Endemic\", IF($J32>1, IF($J32=4, \"Unknown\", IF($J32=99, \"Surveillance\", SUM($N32:$P32))), 0),\"Not required\")","v":0},{"$f":"IF(INTRO!$E$43=\"Endemic\", IF($K32>1, IF($K32=4, \"Unknown\", IF($K32=99, \"Surveillance\", ROUND(E32*0.75,0))), 0),\"Not required\")","v":6127},{"$f":"IF(INTRO!$E$43=\"Endemic\", IF($K32>1, IF($K32=4, \"Unknown\", IF($K32=99, \"Surveillance\", F32)), 0),\"Not required\")","v":18368},{"$f":"IF(INTRO!$E$43=\"Endemic\", IF($K32>1, IF($K32=4, \"Unknown\", IF($K32=99, \"Surveillance\", G32)), 0),\"Not required\")","v":37223},{"$f":"IF(INTRO!$E$43=\"Endemic\", IF($K32>1, IF($K32=4, \"Unknown\", IF($K32=99, \"Surveillance\", SUM($R32:$T32))), 0),\"Not required\")","v":61718},null,null,0,1,null,null,null,null,null,null,47645,"Lower Niumi",null,null,null,null,64275.373881831722]
[{"$f":"IF(INTRO!$E$33<>0,INTRO!$E$33, \" \")","v":"The Gambia"},"NBW","Upper Niumi",35637,{"$f":"IF(INTRO!$E$48=\"\",\"\",ROUND($D33*INTRO!$E$48,0))","v":4419},{"$f":"IF(INTRO!$E$49=\"\",\"\",ROUND($D33*INTRO!$E$49,0))","v":9936},{"$f":"IF(INTRO!$E$50=\"\",\"\",ROUND($D33*INTRO!$E$50,0))","v":20135},null,null,1,2,{"$f":"IF(INTRO!$E$37=\"Endemic\",IF($H33>0,IF($H33=4,\"Unknown\",IF($H33=99,\"Stopped\",$D33)),0),\"Not required\")","v":"Not required"},{"$f":"IF(INTRO!$E$39=\"Endemic\", IF($I33>0, IF($I33=4,\"Unknown\",IF($I33=99,\"Stopped\",$D33)), 0),\"Not required\")","v":"Not required"},{"$f":"IF(INTRO!$E$41=\"Endemic\", IF($J33>1, IF($J33=4, \"Unknown\", IF($J33=99, \"Surveillance\", E33)), 0),\"Not required\")","v":0},{"$f":"IF(INTRO!$E$41=\"Endemic\", IF($J33>1, IF($J33=4, \"Unknown\", IF($J33=99, \"Surveillance\", F33)), 0),\"Not required\")","v":0},{"$f":"IF(INTRO!$E$41=\"Endemic\", IF($J33>1, IF($J33=4, \"Unknown\", IF($J33=99, \"Surveillance\", ROUND(D33*INTRO!$E$51,0))), 0),\"Not required\")","v":0},{"$f":"IF(INTRO!$E$41=\"Endemic\", IF($J33>1, IF($J33=4, \"Unknown\", IF($J33=99, \"Surveillance\", SUM($N33:$P33))), 0),\"Not required\")","v":0},{"$f":"IF(INTRO!$E$43=\"Endemic\", IF($K33>1, IF($K33=4, \"Unknown\", IF($K33=99, \"Surveillance\", ROUND(E33*0.75,0))), 0),\"Not required\")","v":3314},{"$f":"IF(INTRO!$E$43=\"Endemic\", IF($K33>1, IF($K33=4, \"Unknown\", IF($K33=99, \"Surveillance\", F33)), 0),\"Not required\")","v":9936},{"$f":"IF(INTRO!$E$43=\"Endemic\", IF($K33>1, IF($K33=4, \"Unknown\", IF($K33=99, \"Surveillance\", G33)), 0),\"Not required\")","v":20135},{"$f":"IF(INTRO!$E$43=\"Endemic\", IF($K33>1, IF($K33=4, \"Unknown\", IF($K33=99, \"Surveillance\", SUM($R33:$T33))), 0),\"Not required\")","v":33385},null,null,0,1,null,null,null,null,null,null,47647,"Upper Niumi",null,null,null,null,34767.78912330023]
[{"$f":"IF(INTRO!$E$33<>0,INTRO!$E$33, \" \")","v":"The Gambia"},"URR","Basse",57222,{"$f":"IF(INTRO!$E$48=\"\",\"\",ROUND($D34*INTRO!$E$48,0))","v":7096},{"$f":"IF(INTRO!$E$49=\"\",\"\",ROUND($D34*INTRO!$E$49,0))","v":15953},{"$f":"IF(INTRO!$E$50=\"\",\"\",ROUND($D34*INTRO!$E$50,0))","v":32330},null,null,1,2,{"$f":"IF(INTRO!$E$37=\"Endemic\",IF($H34>0,IF($H34=4,\"Unknown\",IF($H34=99,\"Stopped\",$D34)),0),\"Not required\")","v":"Not required"},{"$f":"IF(INTRO!$E$39=\"Endemic\", IF($I34>0, IF($I34=4,\"Unknown\",IF($I34=99,\"Stopped\",$D34)), 0),\"Not required\")","v":"Not required"},{"$f":"IF(INTRO!$E$41=\"Endemic\", IF($J34>1, IF($J34=4, \"Unknown\", IF($J34=99, \"Surveillance\", E34)), 0),\"Not required\")","v":0},{"$f":"IF(INTRO!$E$41=\"Endemic\", IF($J34>1, IF($J34=4, \"Unknown\", IF($J34=99, \"Surveillance\", F34)), 0),\"Not required\")","v":0},{"$f":"IF(INTRO!$E$41=\"Endemic\", IF($J34>1, IF($J34=4, \"Unknown\", IF($J34=99, \"Surveillance\", ROUND(D34*INTRO!$E$51,0))), 0),\"Not required\")","v":0},{"$f":"IF(INTRO!$E$41=\"Endemic\", IF($J34>1, IF($J34=4, \"Unknown\", IF($J34=99, \"Surveillance\", SUM($N34:$P34))), 0),\"Not required\")","v":0},{"$f":"IF(INTRO!$E$43=\"Endemic\", IF($K34>1, IF($K34=4, \"Unknown\", IF($K34=99, \"Surveillance\", ROUND(E34*0.75,0))), 0),\"Not required\")","v":5322},{"$f":"IF(INTRO!$E$43=\"Endemic\", IF($K34>1, IF($K34=4, \"Unknown\", IF($K34=99, \"Surveillance\", F34)), 0),\"Not required\")","v":15953},{"$f":"IF(INTRO!$E$43=\"Endemic\", IF($K34>1, IF($K34=4, \"Unknown\", IF($K34=99, \"Surveillance\", G34)), 0),\"Not required\")","v":32330},{"$f":"IF(INTRO!$E$43=\"Endemic\", IF($K34>1, IF($K34=4, \"Unknown\", IF($K34=99, \"Surveillance\", SUM($R34:$T34))), 0),\"Not required\")","v":53605},null,null,0,1,null,null,null,null,null,null,47648,"Basse",null,null,null,null,55825.932463097088]
[{"$f":"IF(INTRO!$E$33<>0,INTRO!$E$33, \" \")","v":"The Gambia"},"URR","Jimara",50648,{"$f":"IF(INTRO!$E$48=\"\",\"\",ROUND($D35*INTRO!$E$48,0))","v":6280},{"$f":"IF(INTRO!$E$49=\"\",\"\",ROUND($D35*INTRO!$E$49,0))","v":14121},{"$f":"IF(INTRO!$E$50=\"\",\"\",ROUND($D35*INTRO!$E$50,0))","v":28616},null,null,0,2,{"$f":"IF(INTRO!$E$37=\"Endemic\",IF($H35>0,IF($H35=4,\"Unknown\",IF($H35=99,\"Stopped\",$D35)),0),\"Not required\")","v":"Not required"},{"$f":"IF(INTRO!$E$39=\"Endemic\", IF($I35>0, IF($I35=4,\"Unknown\",IF($I35=99,\"Stopped\",$D35)), 0),\"Not required\")","v":"Not required"},{"$f":"IF(INTRO!$E$41=\"Endemic\", IF($J35>1, IF($J35=4, \"Unknown\", IF($J35=99, \"Surveillance\", E35)), 0),\"Not required\")","v":0},{"$f":"IF(INTRO!$E$41=\"Endemic\", IF($J35>1, IF($J35=4, \"Unknown\", IF($J35=99, \"Surveillance\", F35)), 0),\"Not required\")","v":0},{"$f":"IF(INTRO!$E$41=\"Endemic\", IF($J35>1, IF($J35=4, \"Unknown\", IF($J35=99, \"Surveillance\", ROUND(D35*INTRO!$E$51,0))), 0),\"Not required\")","v":0},{"$f":"IF(INTRO!$E$41=\"Endemic\", IF($J35>1, IF($J35=4, \"Unknown\", IF($J35=99, \"Surveillance\", SUM($N35:$P35))), 0),\"Not required\")","v":0},{"$f":"IF(INTRO!$E$43=\"Endemic\", IF($K35>1, IF($K35=4, \"Unknown\", IF($K35=99, \"Surveillance\", ROUND(E35*0.75,0))), 0),\"Not required\")","v":4710},{"$f":"IF(INTRO!$E$43=\"Endemic\", IF($K35>1, IF($K35=4, \"Unknown\", IF($K35=99, \"Surveillance\", F35)), 0),\"Not required\")","v":14121},{"$f":"IF(INTRO!$E$43=\"Endemic\", IF($K35>1, IF($K35=4, \"Unknown\", IF($K35=99, \"Surveillance\", G35)), 0),\"Not required\")","v":28616},{"$f":"IF(INTRO!$E$43=\"Endemic\", IF($K35>1, IF($K35=4, \"Unknown\", IF($K35=99, \"Surveillance\", SUM($R35:$T35))), 0),\"Not required\")","v":47447},null,null,0,1,null,null,null,null,null,null,47650,"Jimara",null,null,null,null,49412.464884906163]
[{"$f":"IF(INTRO!$E$33<>0,INTRO!$E$33, \" \")","v":"The Gambia"},"URR","Kantora",44696,{"$f":"IF(INTRO!$E$48=\"\",\"\",ROUND($D36*INTRO!$E$48,0))","v":5542},{"$f":"IF(INTRO!$E$49=\"\",\"\",ROUND($D36*INTRO!$E$49,0))","v":12461},{"$f":"IF(INTRO!$E$50=\"\",\"\",ROUND($D36*INTRO!$E$50,0))","v":25253},null,null,1,2,{"$f":"IF(INTRO!$E$37=\"Endemic\",IF($H36>0,IF($H36=4,\"Unknown\",IF($H36=99,\"Stopped\",$D36)),0),\"Not required\")","v":"Not required"},{"$f":"IF(INTRO!$E$39=\"Endemic\", IF($I36>0, IF($I36=4,\"Unknown\",IF($I36=99,\"Stopped\",$D36)), 0),\"Not required\")","v":"Not required"},{"$f":"IF(INTRO!$E$41=\"Endemic\", IF($J36>1, IF($J36=4, \"Unknown\", IF($J36=99, \"Surveillance\", E36)), 0),\"Not required\")","v":0},{"$f":"IF(INTRO!$E$41=\"Endemic\", IF($J36>1, IF($J36=4, \"Unknown\", IF($J36=99, \"Surveillance\", F36)), 0),\"Not required\")","v":0},{"$f":"IF(INTRO!$E$41=\"Endemic\", IF($J36>1, IF($J36=4, \"Unknown\", IF($J36=99, \"Surveillance\", ROUND(D36*INTRO!$E$51,0))), 0),\"Not required\")","v":0},{"$f":"IF(INTRO!$E$41=\"Endemic\", IF($J36>1, IF($J36=4, \"Unknown\", IF($J36=99, \"Surveillance\", SUM($N36:$P36))), 0),\"Not required\")","v":0},{"$f":"IF(INTRO!$E$43=\"Endemic\", IF($K36>1, IF($K36=4, \"Unknown\", IF($K36=99, \"Surveillance\", ROUND(E36*0.75,0))), 0),\"Not required\")","v":4157},{"$f":"IF(INTRO!$E$43=\"Endemic\", IF($K36>1, IF($K36=4, \"Unknown\", IF($K36=99, \"Surveillance\", F36)), 0),\"Not required\")","v":12461},{"$f":"IF(INTRO!$E$43=\"Endemic\", IF($K36>1, IF($K36=4, \"Unknown\", IF($K36=99, \"Surveillance\", G36)), 0),\"Not required\")","v":25253},{"$f":"IF(INTRO!$E$43=\"Endemic\", IF($K36>1, IF($K36=4, \"Unknown\", IF($K36=99, \"Surveillance\", SUM($R36:$T36))), 0),\"Not required\")","v":41871},null,null,0,1,null,null,null,null,null,null,47651,"Kantora",null,null,null,null,43606.122229025816]
[{"$f":"IF(INTRO!$E$33<>0,INTRO!$E$33, \" \")","v":"The Gambia"},"URR","Sandu",27571,{"$f":"IF(INTRO!$E$48=\"\",\"\",ROUND($D37*INTRO!$E$48,0))","v":3419},{"$f":"IF(INTRO!$E$49=\"\",\"\",ROUND($D37*INTRO!$E$49,0))","v":7687},{"$f":"IF(INTRO!$E$50=\"\",\"\",ROUND($D37*INTRO!$E$50,0))","v":15578},null,null,0,1,{"$f":"IF(INTRO!$E$37=\"Endemic\",IF($H37>0,IF($H37=4,\"Unknown\",IF($H37=99,\"Stopped\",$D37)),0),\"Not required\")","v":"Not required"},{"$f":"IF(INTRO!$E$39=\"Endemic\", IF($I37>0, IF($I37=4,\"Unknown\",IF($I37=99,\"Stopped\",$D37)), 0),\"Not required\")","v":"Not required"},{"$f":"IF(INTRO!$E$41=\"Endemic\", IF($J37>1, IF($J37=4, \"Unknown\", IF($J37=99, \"Surveillance\", E37)), 0),\"Not required\")","v":0},{"$f":"IF(INTRO!$E$41=\"Endemic\", IF($J37>1, IF($J37=4, \"Unknown\", IF($J37=99, \"Surveillance\", F37)), 0),\"Not required\")","v":0},{"$f":"IF(INTRO!$E$41=\"Endemic\", IF($J37>1, IF($J37=4, \"Unknown\", IF($J37=99, \"Surveillance\", ROUND(D37*INTRO!$E$51,0))), 0),\"Not required\")","v":0},{"$f":"IF(INTRO!$E$41=\"Endemic\", IF($J37>1, IF($J37=4, \"Unknown\", IF($J37=99, \"Surveillance\", SUM($N37:$P37))), 0),\"Not required\")","v":0},{"$f":"IF(INTRO!$E$43=\"Endemic\", IF($K37>1, IF($K37=4, \"Unknown\", IF($K37=99, \"Surveillance\", ROUND(E37*0.75,0))), 0),\"Not required\")","v":0},{"$f":"IF(INTRO!$E$43=\"Endemic\", IF($K37>1, IF($K37=4, \"Unknown\", IF($K37=99, \"Surveillance\", F37)), 0),\"Not required\")","v":0},{"$f":"IF(INTRO!$E$43=\"Endemic\", IF($K37>1, IF($K37=4, \"Unknown\", IF($K37=99, \"Surveillance\", G37)), 0),\"Not required\")","v":0},{"$f":"IF(INTRO!$E$43=\"Endemic\", IF($K37>1, IF($K37=4, \"Unknown\", IF($K37=99, \"Surveillance\", SUM($R37:$T37))), 0),\"Not required\")","v":0},null,null,0,0,null,null,null,null,null,null,47652,"Sandu",null,null,null,null,26898.817484917396]
[{"$f":"IF(INTRO!$E$33<>0,INTRO!$E$33, \" \")","v":"The Gambia"},"URR","Tumana",43358,{"$f":"IF(INTRO!$E$48=\"\",\"\",ROUND($D38*INTRO!$E$48,0))","v":5376},{"$f":"IF(INTRO!$E$49=\"\",\"\",ROUND($D38*INTRO!$E$49,0))","v":12088},{"$f":"IF(INTRO!$E$50=\"\",\"\",ROUND($D38*INTRO!$E$50,0))","v":24497},null,null,1,2,{"$f":"IF(INTRO!$E$37=\"Endemic\",IF($H38>0,IF($H38=4,\"Unknown\",IF($H38=99,\"Stopped\",$D38)),0),\"Not required\")","v":"Not required"},{"$f":"IF(INTRO!$E$39=\"Endemic\", IF($I38>0, IF($I38=4,\"Unknown\",IF($I38=99,\"Stopped\",$D38)), 0),\"Not required\")","v":"Not required"},{"$f":"IF(INTRO!$E$41=\"Endemic\", IF($J38>1, IF($J38=4, \"Unknown\", IF($J38=99, \"Surveillance\", E38)), 0),\"Not required\")","v":0},{"$f":"IF(INTRO!$E$41=\"Endemic\", IF($J38>1, IF($J38=4, \"Unknown\", IF($J38=99, \"Surveillance\", F38)), 0),\"Not required\")","v":0},{"$f":"IF(INTRO!$E$41=\"Endemic\", IF($J38>1, IF($J38=4, \"Unknown\", IF($J38=99, \"Surveillance\", ROUND(D38*INTRO!$E$51,0))), 0),\"Not required\")","v":0},{"$f":"IF(INTRO!$E$41=\"Endemic\", IF($J38>1, IF($J38=4, \"Unknown\", IF($J38=99, \"Surveillance\", SUM($N38:$P38))), 0),\"Not required\")","v":0},{"$f":"IF(INTRO!$E$43=\"Endemic\", IF($K38>1, IF($K38=4, \"Unknown\", IF($K38=99, \"Surveillance\", ROUND(E38*0.75,0))), 0),\"Not required\")","v":4032},{"$f":"IF(INTRO!$E$43=\"Endemic\", IF($K38>1, IF($K38=4, \"Unknown\", IF($K38=99, \"Surveillance\", F38)), 0),\"Not required\")","v":12088},{"$f":"IF(INTRO!$E$43=\"Endemic\", IF($K38>1, IF($K38=4, \"Unknown\", IF($K38=99, \"Surveillance\", G38)), 0),\"Not required\")","v":24497},{"$f":"IF(INTRO!$E$43=\"Endemic\", IF($K38>1, IF($K38=4, \"Unknown\", IF($K38=99, \"Surveillance\", SUM($R38:$T38))), 0),\"Not required\")","v":40617},null,null,0,1,null,null,null,null,null,null,47653,"Tumana",null,null,null,null,42300.917339863758]
[{"$f":"IF(INTRO!$E$33<>0,INTRO!$E$33, \" \")","v":"The Gambia"},"URR","Wuli East",27517,{"$f":"IF(INTRO!$E$48=\"\",\"\",ROUND($D39*INTRO!$E$48,0))","v":3412},{"$f":"IF(INTRO!$E$49=\"\",\"\",ROUND($D39*INTRO!$E$49,0))","v":7672},{"$f":"IF(INTRO!$E$50=\"\",\"\",ROUND($D39*INTRO!$E$50,0))","v":15547},null,null,1,2,{"$f":"IF(INTRO!$E$37=\"Endemic\",IF($H39>0,IF($H39=4,\"Unknown\",IF($H39=99,\"Stopped\",$D39)),0),\"Not required\")","v":"Not required"},{"$f":"IF(INTRO!$E$39=\"Endemic\", IF($I39>0, IF($I39=4,\"Unknown\",IF($I39=99,\"Stopped\",$D39)), 0),\"Not required\")","v":"Not required"},{"$f":"IF(INTRO!$E$41=\"Endemic\", IF($J39>1, IF($J39=4, \"Unknown\", IF($J39=99, \"Surveillance\", E39)), 0),\"Not required\")","v":0},{"$f":"IF(INTRO!$E$41=\"Endemic\", IF($J39>1, IF($J39=4, \"Unknown\", IF($J39=99, \"Surveillance\", F39)), 0),\"Not required\")","v":0},{"$f":"IF(INTRO!$E$41=\"Endemic\", IF($J39>1, IF($J39=4, \"Unknown\", IF($J39=99, \"Surveillance\", ROUND(D39*INTRO!$E$51,0))), 0),\"Not required\")","v":0},{"$f":"IF(INTRO!$E$41=\"Endemic\", IF($J39>1, IF($J39=4, \"Unknown\", IF($J39=99, \"Surveillance\", SUM($N39:$P39))), 0),\"Not required\")","v":0},{"$f":"IF(INTRO!$E$43=\"Endemic\", IF($K39>1, IF($K39=4, \"Unknown\", IF($K39=99, \"Surveillance\", ROUND(E39*0.75,0))), 0),\"Not required\")","v":2559},{"$f":"IF(INTRO!$E$43=\"Endemic\", IF($K39>1, IF($K39=4, \"Unknown\", IF($K39=99, \"Surveillance\", F39)), 0),\"Not required\")","v":7672},{"$f":"IF(INTRO!$E$43=\"Endemic\", IF($K39>1, IF($K39=4, \"Unknown\", IF($K39=99, \"Surveillance\", G39)), 0),\"Not required\")","v":15547},{"$f":"IF(INTRO!$E$43=\"Endemic\", IF($K39>1, IF($K39=4, \"Unknown\", IF($K39=99, \"Surveillance\", SUM($R39:$T39))), 0),\"Not required\")","v":25778},null,null,0,1,null,null,null,null,null,null,47655,"Wuli East",null,null,null,null,26845.38139624961]
[{"$f":"IF(INTRO!$E$33<>0,INTRO!$E$33, \" \")","v":"The Gambia"},"URR","Wuli West",25435,{"$f":"IF(INTRO!$E$48=\"\",\"\",ROUND($D40*INTRO!$E$48,0))","v":3154},{"$f":"IF(INTRO!$E$49=\"\",\"\",ROUND($D40*INTRO!$E$49,0))","v":7091},{"$f":"IF(INTRO!$E$50=\"\",\"\",ROUND($D40*INTRO!$E$50,0))","v":14371},null,null,1,2,{"$f":"IF(INTRO!$E$37=\"Endemic\",IF($H40>0,IF($H40=4,\"Unknown\",IF($H40=99,\"Stopped\",$D40)),0),\"Not required\")","v":"Not required"},{"$f":"IF(INTRO!$E$39=\"Endemic\", IF($I40>0, IF($I40=4,\"Unknown\",IF($I40=99,\"Stopped\",$D40)), 0),\"Not required\")","v":"Not required"},{"$f":"IF(INTRO!$E$41=\"Endemic\", IF($J40>1, IF($J40=4, \"Unknown\", IF($J40=99, \"Surveillance\", E40)), 0),\"Not required\")","v":0},{"$f":"IF(INTRO!$E$41=\"Endemic\", IF($J40>1, IF($J40=4, \"Unknown\", IF($J40=99, \"Surveillance\", F40)), 0),\"Not required\")","v":0},{"$f":"IF(INTRO!$E$41=\"Endemic\", IF($J40>1, IF($J40=4, \"Unknown\", IF($J40=99, \"Surveillance\", ROUND(D40*INTRO!$E$51,0))), 0),\"Not required\")","v":0},{"$f":"IF(INTRO!$E$41=\"Endemic\", IF($J40>1, IF($J40=4, \"Unknown\", IF($J40=99, \"Surveillance\", SUM($N40:$P40))), 0),\"Not required\")","v":0},{"$f":"IF(INTRO!$E$43=\"Endemic\", IF($K40>1, IF($K40=4, \"Unknown\", IF($K40=99, \"Surveillance\", ROUND(E40*0.75,0))), 0),\"Not required\")","v":2366},{"$f":"IF(INTRO!$E$43=\"Endemic\", IF($K40>1, IF($K40=4, \"Unknown\", IF($K40=99, \"Surveillance\", F40)), 0),\"Not required\")","v":7091},{"$f":"IF(INTRO!$E$43=\"Endemic\", IF($K40>1, IF($K40=4, \"Unknown\", IF($K40=99, \"Surveillance\", G40)), 0),\"Not required\")","v":14371},{"$f":"IF(INTRO!$E$43=\"Endemic\", IF($K40>1, IF($K40=4, \"Unknown\", IF($K40=99, \"Surveillance\", SUM($R40:$T40))), 0),\"Not required\")","v":23828},null,null,0,1,null,null,null,null,null,null,47654,"Wuli West",null,null,null,null,24814.810026873794]
[{"$f":"IF(INTRO!$E$33<>0,INTRO!$E$33, \" \")","v":"The Gambia"},"WC1","Banjul Central",12364,{"$f":"IF(INTRO!$E$48=\"\",\"\",ROUND($D41*INTRO!$E$48,0))","v":1533},{"$f":"IF(INTRO!$E$49=\"\",\"\",ROUND($D41*INTRO!$E$49,0))","v":3447},{"$f":"IF(INTRO!$E$50=\"\",\"\",ROUND($D41*INTRO!$E$50,0))","v":6986},null,null,3,4,{"$f":"IF(INTRO!$E$37=\"Endemic\",IF($H41>0,IF($H41=4,\"Unknown\",IF($H41=99,\"Stopped\",$D41)),0),\"Not required\")","v":"Not required"},{"$f":"IF(INTRO!$E$39=\"Endemic\", IF($I41>0, IF($I41=4,\"Unknown\",IF($I41=99,\"Stopped\",$D41)), 0),\"Not required\")","v":"Not required"},{"$f":"IF(INTRO!$E$41=\"Endemic\", IF($J41>1, IF($J41=4, \"Unknown\", IF($J41=99, \"Surveillance\", E41)), 0),\"Not required\")","v":1533},{"$f":"IF(INTRO!$E$41=\"Endemic\", IF($J41>1, IF($J41=4, \"Unknown\", IF($J41=99, \"Surveillance\", F41)), 0),\"Not required\")","v":3447},{"$f":"IF(INTRO!$E$41=\"Endemic\", IF($J41>1, IF($J41=4, \"Unknown\", IF($J41=99, \"Surveillance\", ROUND(D41*INTRO!$E$51,0))), 0),\"Not required\")","v":2951},{"$f":"IF(INTRO!$E$41=\"Endemic\", IF($J41>1, IF($J41=4, \"Unknown\", IF($J41=99, \"Surveillance\", SUM($N41:$P41))), 0),\"Not required\")","v":7931},{"$f":"IF(INTRO!$E$43=\"Endemic\", IF($K41>1, IF($K41=4, \"Unknown\", IF($K41=99, \"Surveillance\", ROUND(E41*0.75,0))), 0),\"Not required\")","v":"Unknown"},{"$f":"IF(INTRO!$E$43=\"Endemic\", IF($K41>1, IF($K41=4, \"Unknown\", IF($K41=99, \"Surveillance\", F41)), 0),\"Not required\")","v":"Unknown"},{"$f":"IF(INTRO!$E$43=\"Endemic\", IF($K41>1, IF($K41=4, \"Unknown\", IF($K41=99, \"Surveillance\", G41)), 0),\"Not required\")","v":"Unknown"},{"$f":"IF(INTRO!$E$43=\"Endemic\", IF($K41>1, IF($K41=4, \"Unknown\", IF($K41=99, \"Surveillance\", SUM($R41:$T41))), 0),\"Not required\")","v":"Unknown"},null,null,2,0,null,null,null,null,null,null,47667,"Banjul Central",null,null,null,null,12062]
[{"$f":"IF(INTRO!$E$33<>0,INTRO!$E$33, \" \")","v":"The Gambia"},"WC1","Banjul North",11980,{"$f":"IF(INTRO!$E$48=\"\",\"\",ROUND($D42*INTRO!$E$48,0))","v":1486},{"$f":"IF(INTRO!$E$49=\"\",\"\",ROUND($D42*INTRO!$E$49,0))","v":3340},{"$f":"IF(INTRO!$E$50=\"\",\"\",ROUND($D42*INTRO!$E$50,0))","v":6769},null,null,3,4,{"$f":"IF(INTRO!$E$37=\"Endemic\",IF($H42>0,IF($H42=4,\"Unknown\",IF($H42=99,\"Stopped\",$D42)),0),\"Not required\")","v":"Not required"},{"$f":"IF(INTRO!$E$39=\"Endemic\", IF($I42>0, IF($I42=4,\"Unknown\",IF($I42=99,\"Stopped\",$D42)), 0),\"Not required\")","v":"Not required"},{"$f":"IF(INTRO!$E$41=\"Endemic\", IF($J42>1, IF($J42=4, \"Unknown\", IF($J42=99, \"Surveillance\", E42)), 0),\"Not required\")","v":1486},{"$f":"IF(INTRO!$E$41=\"Endemic\", IF($J42>1, IF($J42=4, \"Unknown\", IF($J42=99, \"Surveillance\", F42)), 0),\"Not required\")","v":3340},{"$f":"IF(INTRO!$E$41=\"Endemic\", IF($J42>1, IF($J42=4, \"Unknown\", IF($J42=99, \"Surveillance\", ROUND(D42*INTRO!$E$51,0))), 0),\"Not required\")","v":2860},{"$f":"IF(INTRO!$E$41=\"Endemic\", IF($J42>1, IF($J42=4, \"Unknown\", IF($J42=99, \"Surveillance\", SUM($N42:$P42))), 0),\"Not required\")","v":7686},{"$f":"IF(INTRO!$E$43=\"Endemic\", IF($K42>1, IF($K42=4, \"Unknown\", IF($K42=99, \"Surveillance\", ROUND(E42*0.75,0))), 0),\"Not required\")","v":"Unknown"},{"$f":"IF(INTRO!$E$43=\"Endemic\", IF($K42>1, IF($K42=4, \"Unknown\", IF($K42=99, \"Surveillance\", F42)), 0),\"Not required\")","v":"Unknown"},{"$f":"IF(INTRO!$E$43=\"Endemic\", IF($K42>1, IF($K42=4, \"Unknown\", IF($K42=99, \"Surveillance\", G42)), 0),\"Not required\")","v":"Unknown"},{"$f":"IF(INTRO!$E$43=\"Endemic\", IF($K42>1, IF($K42=4, \"Unknown\", IF($K42=99, \"Surveillance\", SUM($R42:$T42))), 0),\"Not required\")","v":"Unknown"},null,null,2,0,null,null,null,null,null,null,47668,"Banjul North",null,null,null,null,11688]
[{"$f":"IF(INTRO!$E$33<>0,INTRO!$E$33, \" \")","v":"The Gambia"},"WC1","Banjul South",8741,{"$f":"IF(INTRO!$E$48=\"\",\"\",ROUND($D43*INTRO!$E$48,0))","v":1084},{"$f":"IF(INTRO!$E$49=\"\",\"\",ROUND($D43*INTRO!$E$49,0))","v":2437},{"$f":"IF(INTRO!$E$50=\"\",\"\",ROUND($D43*INTRO!$E$50,0))","v":4939},null,null,3,4,{"$f":"IF(INTRO!$E$37=\"Endemic\",IF($H43>0,IF($H43=4,\"Unknown\",IF($H43=99,\"Stopped\",$D43)),0),\"Not required\")","v":"Not required"},{"$f":"IF(INTRO!$E$39=\"Endemic\", IF($I43>0, IF($I43=4,\"Unknown\",IF($I43=99,\"Stopped\",$D43)), 0),\"Not required\")","v":"Not required"},{"$f":"IF(INTRO!$E$41=\"Endemic\", IF($J43>1, IF($J43=4, \"Unknown\", IF($J43=99, \"Surveillance\", E43)), 0),\"Not required\")","v":1084},{"$f":"IF(INTRO!$E$41=\"Endemic\", IF($J43>1, IF($J43=4, \"Unknown\", IF($J43=99, \"Surveillance\", F43)), 0),\"Not required\")","v":2437},{"$f":"IF(INTRO!$E$41=\"Endemic\", IF($J43>1, IF($J43=4, \"Unknown\", IF($J43=99, \"Surveillance\", ROUND(D43*INTRO!$E$51,0))), 0),\"Not required\")","v":2086},{"$f":"IF(INTRO!$E$41=\"Endemic\", IF($J43>1, IF($J43=4, \"Unknown\", IF($J43=99, \"Surveillance\", SUM($N43:$P43))), 0),\"Not required\")","v":5607},{"$f":"IF(INTRO!$E$43=\"Endemic\", IF($K43>1, IF($K43=4, \"Unknown\", IF($K43=99, \"Surveillance\", ROUND(E43*0.75,0))), 0),\"Not required\")","v":"Unknown"},{"$f":"IF(INTRO!$E$43=\"Endemic\", IF($K43>1, IF($K43=4, \"Unknown\", IF($K43=99, \"Surveillance\", F43)), 0),\"Not required\")","v":"Unknown"},{"$f":"IF(INTRO!$E$43=\"Endemic\", IF($K43>1, IF($K43=4, \"Unknown\", IF($K43=99, \"Surveillance\", G43)), 0),\"Not required\")","v":"Unknown"},{"$f":"IF(INTRO!$E$43=\"Endemic\", IF($K43>1, IF($K43=4, \"Unknown\", IF($K43=99, \"Surveillance\", SUM($R43:$T43))), 0),\"Not required\")","v":"Unknown"},null,null,2,0,null,null,null,null,null,null,47666,"Banjul South",null,null,null,null,8528]
[{"$f":"IF(INTRO!$E$33<>0,INTRO!$E$33, \" \")","v":"The Gambia"},"WC1","Kanifing",418493,{"$f":"IF(INTRO!$E$48=\"\",\"\",ROUND($D44*INTRO!$E$48,0))","v":51893},{"$f":"IF(INTRO!$E$49=\"\",\"\",ROUND($D44*INTRO!$E$49,0))","v":116676},{"$f":"IF(INTRO!$E$50=\"\",\"\",ROUND($D44*INTRO!$E$50,0))","v":236449},null,null,1,2,{"$f":"IF(INTRO!$E$37=\"Endemic\",IF($H44>0,IF($H44=4,\"Unknown\",IF($H44=99,\"Stopped\",$D44)),0),\"Not required\")","v":"Not required"},{"$f":"IF(INTRO!$E$39=\"Endemic\", IF($I44>0, IF($I44=4,\"Unknown\",IF($I44=99,\"Stopped\",$D44)), 0),\"Not required\")","v":"Not required"},{"$f":"IF(INTRO!$E$41=\"Endemic\", IF($J44>1, IF($J44=4, \"Unknown\", IF($J44=99, \"Surveillance\", E44)), 0),\"Not required\")","v":0},{"$f":"IF(INTRO!$E$41=\"Endemic\", IF($J44>1, IF($J44=4, \"Unknown\", IF($J44=99, \"Surveillance\", F44)), 0),\"Not required\")","v":0},{"$f":"IF(INTRO!$E$41=\"Endemic\", IF($J44>1, IF($J44=4, \"Unknown\", IF($J44=99, \"Surveillance\", ROUND(D44*INTRO!$E$51,0))), 0),\"Not required\")","v":0},{"$f":"IF(INTRO!$E$41=\"Endemic\", IF($J44>1, IF($J44=4, \"Unknown\", IF($J44=99, \"Surveillance\", SUM($N44:$P44))), 0),\"Not required\")","v":0},{"$f":"IF(INTRO!$E$43=\"Endemic\", IF($K44>1, IF($K44=4, \"Unknown\", IF($K44=99, \"Surveillance\", ROUND(E44*0.75,0))), 0),\"Not required\")","v":38920},{"$f":"IF(INTRO!$E$43=\"Endemic\", IF($K44>1, IF($K44=4, \"Unknown\", IF($K44=99, \"Surveillance\", F44)), 0),\"Not required\")","v":116676},{"$f":"IF(INTRO!$E$43=\"Endemic\", IF($K44>1, IF($K44=4, \"Unknown\", IF($K44=99, \"Surveillance\", G44)), 0),\"Not required\")","v":236449},{"$f":"IF(INTRO!$E$43=\"Endemic\", IF($K44>1, IF($K44=4, \"Unknown\", IF($K44=99, \"Surveillance\", SUM($R44:$T44))), 0),\"Not required\")","v":392045},null,null,0,1,null,null,null,null,null,null,47633,"Kanifing",null,null,null,null,408285.75442336279]
[{"$f":"IF(INTRO!$E$33<>0,INTRO!$E$33, \" \")","v":"The Gambia"},"WC1","Kombo North",458967,{"$f":"IF(INTRO!$E$48=\"\",\"\",ROUND($D45*INTRO!$E$48,0))","v":56912},{"$f":"IF(INTRO!$E$49=\"\",\"\",ROUND($D45*INTRO!$E$49,0))","v":127960},{"$f":"IF(INTRO!$E$50=\"\",\"\",ROUND($D45*INTRO!$E$50,0))","v":259316},null,null,1,2,{"$f":"IF(INTRO!$E$37=\"Endemic\",IF($H45>0,IF($H45=4,\"Unknown\",IF($H45=99,\"Stopped\",$D45)),0),\"Not required\")","v":"Not required"},{"$f":"IF(INTRO!$E$39=\"Endemic\", IF($I45>0, IF($I45=4,\"Unknown\",IF($I45=99,\"Stopped\",$D45)), 0),\"Not required\")","v":"Not required"},{"$f":"IF(INTRO!$E$41=\"Endemic\", IF($J45>1, IF($J45=4, \"Unknown\", IF($J45=99, \"Surveillance\", E45)), 0),\"Not required\")","v":0},{"$f":"IF(INTRO!$E$41=\"Endemic\", IF($J45>1, IF($J45=4, \"Unknown\", IF($J45=99, \"Surveillance\", F45)), 0),\"Not required\")","v":0},{"$f":"IF(INTRO!$E$41=\"Endemic\", IF($J45>1, IF($J45=4, \"Unknown\", IF($J45=99, \"Surveillance\", ROUND(D45*INTRO!$E$51,0))), 0),\"Not required\")","v":0},{"$f":"IF(INTRO!$E$41=\"Endemic\", IF($J45>1, IF($J45=4, \"Unknown\", IF($J45=99, \"Surveillance\", SUM($N45:$P45))), 0),\"Not required\")","v":0},{"$f":"IF(INTRO!$E$43=\"Endemic\", IF($K45>1, IF($K45=4, \"Unknown\", IF($K45=99, \"Surveillance\", ROUND(E45*0.75,0))), 0),\"Not required\")","v":42684},{"$f":"IF(INTRO!$E$43=\"Endemic\", IF($K45>1, IF($K45=4, \"Unknown\", IF($K45=99, \"Surveillance\", F45)), 0),\"Not required\")","v":127960},{"$f":"IF(INTRO!$E$43=\"Endemic\", IF($K45>1, IF($K45=4, \"Unknown\", IF($K45=99, \"Surveillance\", G45)), 0),\"Not required\")","v":259316},{"$f":"IF(INTRO!$E$43=\"Endemic\", IF($K45>1, IF($K45=4, \"Unknown\", IF($K45=99, \"Surveillance\", SUM($R45:$T45))), 0),\"Not required\")","v":429960},null,null,0,1,null,null,null,null,null,null,47664,"Kombo North",null,null,null,null,447772.42269781209]
[{"$f":"IF(INTRO!$E$33<>0,INTRO!$E$33, \" \")","v":"The Gambia"},"WC2","Foni Bintang-Karanai",23151,{"$f":"IF(INTRO!$E$48=\"\",\"\",ROUND($D46*INTRO!$E$48,0))","v":2871},{"$f":"IF(INTRO!$E$49=\"\",\"\",ROUND($D46*INTRO!$E$49,0))","v":6454},{"$f":"IF(INTRO!$E$50=\"\",\"\",ROUND($D46*INTRO!$E$50,0))","v":13080},null,null,0,2,{"$f":"IF(INTRO!$E$37=\"Endemic\",IF($H46>0,IF($H46=4,\"Unknown\",IF($H46=99,\"Stopped\",$D46)),0),\"Not required\")","v":"Not required"},{"$f":"IF(INTRO!$E$39=\"Endemic\", IF($I46>0, IF($I46=4,\"Unknown\",IF($I46=99,\"Stopped\",$D46)), 0),\"Not required\")","v":"Not required"},{"$f":"IF(INTRO!$E$41=\"Endemic\", IF($J46>1, IF($J46=4, \"Unknown\", IF($J46=99, \"Surveillance\", E46)), 0),\"Not required\")","v":0},{"$f":"IF(INTRO!$E$41=\"Endemic\", IF($J46>1, IF($J46=4, \"Unknown\", IF($J46=99, \"Surveillance\", F46)), 0),\"Not required\")","v":0},{"$f":"IF(INTRO!$E$41=\"Endemic\", IF($J46>1, IF($J46=4, \"Unknown\", IF($J46=99, \"Surveillance\", ROUND(D46*INTRO!$E$51,0))), 0),\"Not required\")","v":0},{"$f":"IF(INTRO!$E$41=\"Endemic\", IF($J46>1, IF($J46=4, \"Unknown\", IF($J46=99, \"Surveillance\", SUM($N46:$P46))), 0),\"Not required\")","v":0},{"$f":"IF(INTRO!$E$43=\"Endemic\", IF($K46>1, IF($K46=4, \"Unknown\", IF($K46=99, \"Surveillance\", ROUND(E46*0.75,0))), 0),\"Not required\")","v":2153},{"$f":"IF(INTRO!$E$43=\"Endemic\", IF($K46>1, IF($K46=4, \"Unknown\", IF($K46=99, \"Surveillance\", F46)), 0),\"Not required\")","v":6454},{"$f":"IF(INTRO!$E$43=\"Endemic\", IF($K46>1, IF($K46=4, \"Unknown\", IF($K46=99, \"Surveillance\", G46)), 0),\"Not required\")","v":13080},{"$f":"IF(INTRO!$E$43=\"Endemic\", IF($K46>1, IF($K46=4, \"Unknown\", IF($K46=99, \"Surveillance\", SUM($R46:$T46))), 0),\"Not required\")","v":21687},null,null,0,1,null,null,null,null,null,null,47657,"Foni Bintang-Karanai",null,null,null,null,22586.728340941918]
[{"$f":"IF(INTRO!$E$33<>0,INTRO!$E$33, \" \")","v":"The Gambia"},"WC2","Foni Bondali",10248,{"$f":"IF(INTRO!$E$48=\"\",\"\",ROUND($D47*INTRO!$E$48,0))","v":1271},{"$f":"IF(INTRO!$E$49=\"\",\"\",ROUND($D47*INTRO!$E$49,0))","v":2857},{"$f":"IF(INTRO!$E$50=\"\",\"\",ROUND($D47*INTRO!$E$50,0))","v":5790},null,null,0,2,{"$f":"IF(INTRO!$E$37=\"Endemic\",IF($H47>0,IF($H47=4,\"Unknown\",IF($H47=99,\"Stopped\",$D47)),0),\"Not required\")","v":"Not required"},{"$f":"IF(INTRO!$E$39=\"Endemic\", IF($I47>0, IF($I47=4,\"Unknown\",IF($I47=99,\"Stopped\",$D47)), 0),\"Not required\")","v":"Not required"},{"$f":"IF(INTRO!$E$41=\"Endemic\", IF($J47>1, IF($J47=4, \"Unknown\", IF($J47=99, \"Surveillance\", E47)), 0),\"Not required\")","v":0},{"$f":"IF(INTRO!$E$41=\"Endemic\", IF($J47>1, IF($J47=4, \"Unknown\", IF($J47=99, \"Surveillance\", F47)), 0),\"Not required\")","v":0},{"$f":"IF(INTRO!$E$41=\"Endemic\", IF($J47>1, IF($J47=4, \"Unknown\", IF($J47=99, \"Surveillance\", ROUND(D47*INTRO!$E$51,0))), 0),\"Not required\")","v":0},{"$f":"IF(INTRO!$E$41=\"Endemic\", IF($J47>1, IF($J47=4, \"Unknown\", IF($J47=99, \"Surveillance\", SUM($N47:$P47))), 0),\"Not required\")","v":0},{"$f":"IF(INTRO!$E$43=\"Endemic\", IF($K47>1, IF($K47=4, \"Unknown\", IF($K47=99, \"Surveillance\", ROUND(E47*0.75,0))), 0),\"Not required\")","v":953},{"$f":"IF(INTRO!$E$43=\"Endemic\", IF($K47>1, IF($K47=4, \"Unknown\", IF($K47=99, \"Surveillance\", F47)), 0),\"Not required\")","v":2857},{"$f":"IF(INTRO!$E$43=\"Endemic\", IF($K47>1, IF($K47=4, \"Unknown\", IF($K47=99, \"Surveillance\", G47)), 0),\"Not required\")","v":5790},{"$f":"IF(INTRO!$E$43=\"Endemic\", IF($K47>1, IF($K47=4, \"Unknown\", IF($K47=99, \"Surveillance\", SUM($R47:$T47))), 0),\"Not required\")","v":9600},null,null,0,1,null,null,null,null,null,null,47658,"Foni Bondali",null,null,null,null,9998.3776720402966]
[{"$f":"IF(INTRO!$E$33<>0,INTRO!$E$33, \" \")","v":"The Gambia"},"WC2","Foni Brefet",19641,{"$f":"IF(INTRO!$E$48=\"\",\"\",ROUND($D48*INTRO!$E$48,0))","v":2435},{"$f":"IF(INTRO!$E$49=\"\",\"\",ROUND($D48*INTRO!$E$49,0))","v":5476},{"$f":"IF(INTRO!$E$50=\"\",\"\",ROUND($D48*INTRO!$E$50,0))","v":11097},null,null,0,2,{"$f":"IF(INTRO!$E$37=\"Endemic\",IF($H48>0,IF($H48=4,\"Unknown\",IF($H48=99,\"Stopped\",$D48)),0),\"Not required\")","v":"Not required"},{"$f":"IF(INTRO!$E$39=\"Endemic\", IF($I48>0, IF($I48=4,\"Unknown\",IF($I48=99,\"Stopped\",$D48)), 0),\"Not required\")","v":"Not required"},{"$f":"IF(INTRO!$E$41=\"Endemic\", IF($J48>1, IF($J48=4, \"Unknown\", IF($J48=99, \"Surveillance\", E48)), 0),\"Not required\")","v":0},{"$f":"IF(INTRO!$E$41=\"Endemic\", IF($J48>1, IF($J48=4, \"Unknown\", IF($J48=99, \"Surveillance\", F48)), 0),\"Not required\")","v":0},{"$f":"IF(INTRO!$E$41=\"Endemic\", IF($J48>1, IF($J48=4, \"Unknown\", IF($J48=99, \"Surveillance\", ROUND(D48*INTRO!$E$51,0))), 0),\"Not required\")","v":0},{"$f":"IF(INTRO!$E$41=\"Endemic\", IF($J48>1, IF($J48=4, \"Unknown\", IF($J48=99, \"Surveillance\", SUM($N48:$P48))), 0),\"Not required\")","v":0},{"$f":"IF(INTRO!$E$43=\"Endemic\", IF($K48>1, IF($K48=4, \"Unknown\", IF($K48=99, \"Surveillance\", ROUND(E48*0.75,0))), 0),\"Not required\")","v":1826},{"$f":"IF(INTRO!$E$43=\"Endemic\", IF($K48>1, IF($K48=4, \"Unknown\", IF($K48=99, \"Surveillance\", F48)), 0),\"Not required\")","v":5476},{"$f":"IF(INTRO!$E$43=\"Endemic\", IF($K48>1, IF($K48=4, \"Unknown\", IF($K48=99, \"Surveillance\", G48)), 0),\"Not required\")","v":11097},{"$f":"IF(INTRO!$E$43=\"Endemic\", IF($K48>1, IF($K48=4, \"Unknown\", IF($K48=99, \"Surveillance\", SUM($R48:$T48))), 0),\"Not required\")","v":18399},null,null,0,1,null,null,null,null,null,null,47659,"Foni Brefet",null,null,null,null,19161.578111776358]
[{"$f":"IF(INTRO!$E$33<>0,INTRO!$E$33, \" \")","v":"The Gambia"},"WC2","Foni Jarrol",9308,{"$f":"IF(INTRO!$E$48=\"\",\"\",ROUND($D49*INTRO!$E$48,0))","v":1154},{"$f":"IF(INTRO!$E$49=\"\",\"\",ROUND($D49*INTRO!$E$49,0))","v":2595},{"$f":"IF(INTRO!$E$50=\"\",\"\",ROUND($D49*INTRO!$E$50,0))","v":5259},null,null,0,2,{"$f":"IF(INTRO!$E$37=\"Endemic\",IF($H49>0,IF($H49=4,\"Unknown\",IF($H49=99,\"Stopped\",$D49)),0),\"Not required\")","v":"Not required"},{"$f":"IF(INTRO!$E$39=\"Endemic\", IF($I49>0, IF($I49=4,\"Unknown\",IF($I49=99,\"Stopped\",$D49)), 0),\"Not required\")","v":"Not required"},{"$f":"IF(INTRO!$E$41=\"Endemic\", IF($J49>1, IF($J49=4, \"Unknown\", IF($J49=99, \"Surveillance\", E49)), 0),\"Not required\")","v":0},{"$f":"IF(INTRO!$E$41=\"Endemic\", IF($J49>1, IF($J49=4, \"Unknown\", IF($J49=99, \"Surveillance\", F49)), 0),\"Not required\")","v":0},{"$f":"IF(INTRO!$E$41=\"Endemic\", IF($J49>1, IF($J49=4, \"Unknown\", IF($J49=99, \"Surveillance\", ROUND(D49*INTRO!$E$51,0))), 0),\"Not required\")","v":0},{"$f":"IF(INTRO!$E$41=\"Endemic\", IF($J49>1, IF($J49=4, \"Unknown\", IF($J49=99, \"Surveillance\", SUM($N49:$P49))), 0),\"Not required\")","v":0},{"$f":"IF(INTRO!$E$43=\"Endemic\", IF($K49>1, IF($K49=4, \"Unknown\", IF($K49=99, \"Surveillance\", ROUND(E49*0.75,0))), 0),\"Not required\")","v":866},{"$f":"IF(INTRO!$E$43=\"Endemic\", IF($K49>1, IF($K49=4, \"Unknown\", IF($K49=99, \"Surveillance\", F49)), 0),\"Not required\")","v":2595},{"$f":"IF(INTRO!$E$43=\"Endemic\", IF($K49>1, IF($K49=4, \"Unknown\", IF($K49=99, \"Surveillance\", G49)), 0),\"Not required\")","v":5259},{"$f":"IF(INTRO!$E$43=\"Endemic\", IF($K49>1, IF($K49=4, \"Unknown\", IF($K49=99, \"Surveillance\", SUM($R49:$T49))), 0),\"Not required\")","v":8720},null,null,0,1,null,null,null,null,null,null,47660,"Foni Jarrol",null,null,null,null,9081.3979304108434]
[{"$f":"IF(INTRO!$E$33<>0,INTRO!$E$33, \" \")","v":"The Gambia"},"WC2","Foni Kansala",19102,{"$f":"IF(INTRO!$E$48=\"\",\"\",ROUND($D50*INTRO!$E$48,0))","v":2369},{"$f":"IF(INTRO!$E$49=\"\",\"\",ROUND($D50*INTRO!$E$49,0))","v":5326},{"$f":"IF(INTRO!$E$50=\"\",\"\",ROUND($D50*INTRO!$E$50,0))","v":10793},null,null,0,3,{"$f":"IF(INTRO!$E$37=\"Endemic\",IF($H50>0,IF($H50=4,\"Unknown\",IF($H50=99,\"Stopped\",$D50)),0),\"Not required\")","v":"Not required"},{"$f":"IF(INTRO!$E$39=\"Endemic\", IF($I50>0, IF($I50=4,\"Unknown\",IF($I50=99,\"Stopped\",$D50)), 0),\"Not required\")","v":"Not required"},{"$f":"IF(INTRO!$E$41=\"Endemic\", IF($J50>1, IF($J50=4, \"Unknown\", IF($J50=99, \"Surveillance\", E50)), 0),\"Not required\")","v":0},{"$f":"IF(INTRO!$E$41=\"Endemic\", IF($J50>1, IF($J50=4, \"Unknown\", IF($J50=99, \"Surveillance\", F50)), 0),\"Not required\")","v":0},{"$f":"IF(INTRO!$E$41=\"Endemic\", IF($J50>1, IF($J50=4, \"Unknown\", IF($J50=99, \"Surveillance\", ROUND(D50*INTRO!$E$51,0))), 0),\"Not required\")","v":0},{"$f":"IF(INTRO!$E$41=\"Endemic\", IF($J50>1, IF($J50=4, \"Unknown\", IF($J50=99, \"Surveillance\", SUM($N50:$P50))), 0),\"Not required\")","v":0},{"$f":"IF(INTRO!$E$43=\"Endemic\", IF($K50>1, IF($K50=4, \"Unknown\", IF($K50=99, \"Surveillance\", ROUND(E50*0.75,0))), 0),\"Not required\")","v":1777},{"$f":"IF(INTRO!$E$43=\"Endemic\", IF($K50>1, IF($K50=4, \"Unknown\", IF($K50=99, \"Surveillance\", F50)), 0),\"Not required\")","v":5326},{"$f":"IF(INTRO!$E$43=\"Endemic\", IF($K50>1, IF($K50=4, \"Unknown\", IF($K50=99, \"Surveillance\", G50)), 0),\"Not required\")","v":10793},{"$f":"IF(INTRO!$E$43=\"Endemic\", IF($K50>1, IF($K50=4, \"Unknown\", IF($K50=99, \"Surveillance\", SUM($R50:$T50))), 0),\"Not required\")","v":17896},null,null,0,1,null,null,null,null,null,null,47661,"Foni Kansala",null,null,null,null,18636.458777720931]
[{"$f":"IF(INTRO!$E$33<>0,INTRO!$E$33, \" \")","v":"The Gambia"},"WC2","Kombo Central",189372,{"$f":"IF(INTRO!$E$48=\"\",\"\",ROUND($D51*INTRO!$E$48,0))","v":23482},{"$f":"IF(INTRO!$E$49=\"\",\"\",ROUND($D51*INTRO!$E$49,0))","v":52797},{"$f":"IF(INTRO!$E$50=\"\",\"\",ROUND($D51*INTRO!$E$50,0))","v":106995},null,null,1,2,{"$f":"IF(INTRO!$E$37=\"Endemic\",IF($H51>0,IF($H51=4,\"Unknown\",IF($H51=99,\"Stopped\",$D51)),0),\"Not required\")","v":"Not required"},{"$f":"IF(INTRO!$E$39=\"Endemic\", IF($I51>0, IF($I51=4,\"Unknown\",IF($I51=99,\"Stopped\",$D51)), 0),\"Not required\")","v":"Not required"},{"$f":"IF(INTRO!$E$41=\"Endemic\", IF($J51>1, IF($J51=4, \"Unknown\", IF($J51=99, \"Surveillance\", E51)), 0),\"Not required\")","v":0},{"$f":"IF(INTRO!$E$41=\"Endemic\", IF($J51>1, IF($J51=4, \"Unknown\", IF($J51=99, \"Surveillance\", F51)), 0),\"Not required\")","v":0},{"$f":"IF(INTRO!$E$41=\"Endemic\", IF($J51>1, IF($J51=4, \"Unknown\", IF($J51=99, \"Surveillance\", ROUND(D51*INTRO!$E$51,0))), 0),\"Not required\")","v":0},{"$f":"IF(INTRO!$E$41=\"Endemic\", IF($J51>1, IF($J51=4, \"Unknown\", IF($J51=99, \"Surveillance\", SUM($N51:$P51))), 0),\"Not required\")","v":0},{"$f":"IF(INTRO!$E$43=\"Endemic\", IF($K51>1, IF($K51=4, \"Unknown\", IF($K51=99, \"Surveillance\", ROUND(E51*0.75,0))), 0),\"Not required\")","v":17612},{"$f":"IF(INTRO!$E$43=\"Endemic\", IF($K51>1, IF($K51=4, \"Unknown\", IF($K51=99, \"Surveillance\", F51)), 0),\"Not required\")","v":52797},{"$f":"IF(INTRO!$E$43=\"Endemic\", IF($K51>1, IF($K51=4, \"Unknown\", IF($K51=99, \"Surveillance\", G51)), 0),\"Not required\")","v":106995},{"$f":"IF(INTRO!$E$43=\"Endemic\", IF($K51>1, IF($K51=4, \"Unknown\", IF($K51=99, \"Surveillance\", SUM($R51:$T51))), 0),\"Not required\")","v":177404},null,null,0,1,null,null,null,null,null,null,47662,"Kombo Central",null,null,null,null,184753.60610162717]
[{"$f":"IF(INTRO!$E$33<>0,INTRO!$E$33, \" \")","v":"The Gambia"},"WC2","Kombo East",57246,{"$f":"IF(INTRO!$E$48=\"\",\"\",ROUND($D52*INTRO!$E$48,0))","v":7099},{"$f":"IF(INTRO!$E$49=\"\",\"\",ROUND($D52*INTRO!$E$49,0))","v":15960},{"$f":"IF(INTRO!$E$50=\"\",\"\",ROUND($D52*INTRO!$E$50,0))","v":32344},null,null,1,2,{"$f":"IF(INTRO!$E$37=\"Endemic\",IF($H52>0,IF($H52=4,\"Unknown\",IF($H52=99,\"Stopped\",$D52)),0),\"Not required\")","v":"Not required"},{"$f":"IF(INTRO!$E$39=\"Endemic\", IF($I52>0, IF($I52=4,\"Unknown\",IF($I52=99,\"Stopped\",$D52)), 0),\"Not required\")","v":"Not required"},{"$f":"IF(INTRO!$E$41=\"Endemic\", IF($J52>1, IF($J52=4, \"Unknown\", IF($J52=99, \"Surveillance\", E52)), 0),\"Not required\")","v":0},{"$f":"IF(INTRO!$E$41=\"Endemic\", IF($J52>1, IF($J52=4, \"Unknown\", IF($J52=99, \"Surveillance\", F52)), 0),\"Not required\")","v":0},{"$f":"IF(INTRO!$E$41=\"Endemic\", IF($J52>1, IF($J52=4, \"Unknown\", IF($J52=99, \"Surveillance\", ROUND(D52*INTRO!$E$51,0))), 0),\"Not required\")","v":0},{"$f":"IF(INTRO!$E$41=\"Endemic\", IF($J52>1, IF($J52=4, \"Unknown\", IF($J52=99, \"Surveillance\", SUM($N52:$P52))), 0),\"Not required\")","v":0},{"$f":"IF(INTRO!$E$43=\"Endemic\", IF($K52>1, IF($K52=4, \"Unknown\", IF($K52=99, \"Surveillance\", ROUND(E52*0.75,0))), 0),\"Not required\")","v":5324},{"$f":"IF(INTRO!$E$43=\"Endemic\", IF($K52>1, IF($K52=4, \"Unknown\", IF($K52=99, \"Surveillance\", F52)), 0),\"Not required\")","v":15960},{"$f":"IF(INTRO!$E$43=\"Endemic\", IF($K52>1, IF($K52=4, \"Unknown\", IF($K52=99, \"Surveillance\", G52)), 0),\"Not required\")","v":32344},{"$f":"IF(INTRO!$E$43=\"Endemic\", IF($K52>1, IF($K52=4, \"Unknown\", IF($K52=99, \"Surveillance\", SUM($R52:$T52))), 0),\"Not required\")","v":53628},null,null,0,1,null,null,null,null,null,null,47663,"Kombo East",null,null,null,null,55850.003544136416]
[{"$f":"IF(INTRO!$E$33<>0,INTRO!$E$33, \" \")","v":"The Gambia"},"WC2","Kombo South",144407,{"$f":"IF(INTRO!$E$48=\"\",\"\",ROUND($D53*INTRO!$E$48,0))","v":17906},{"$f":"IF(INTRO!$E$49=\"\",\"\",ROUND($D53*INTRO!$E$49,0))","v":40261},{"$f":"IF(INTRO!$E$50=\"\",\"\",ROUND($D53*INTRO!$E$50,0))","v":81590},null,null,2,2,{"$f":"IF(INTRO!$E$37=\"Endemic\",IF($H53>0,IF($H53=4,\"Unknown\",IF($H53=99,\"Stopped\",$D53)),0),\"Not required\")","v":"Not required"},{"$f":"IF(INTRO!$E$39=\"Endemic\", IF($I53>0, IF($I53=4,\"Unknown\",IF($I53=99,\"Stopped\",$D53)), 0),\"Not required\")","v":"Not required"},{"$f":"IF(INTRO!$E$41=\"Endemic\", IF($J53>1, IF($J53=4, \"Unknown\", IF($J53=99, \"Surveillance\", E53)), 0),\"Not required\")","v":17906},{"$f":"IF(INTRO!$E$41=\"Endemic\", IF($J53>1, IF($J53=4, \"Unknown\", IF($J53=99, \"Surveillance\", F53)), 0),\"Not required\")","v":40261},{"$f":"IF(INTRO!$E$41=\"Endemic\", IF($J53>1, IF($J53=4, \"Unknown\", IF($J53=99, \"Surveillance\", ROUND(D53*INTRO!$E$51,0))), 0),\"Not required\")","v":34470},{"$f":"IF(INTRO!$E$41=\"Endemic\", IF($J53>1, IF($J53=4, \"Unknown\", IF($J53=99, \"Surveillance\", SUM($N53:$P53))), 0),\"Not required\")","v":92637},{"$f":"IF(INTRO!$E$43=\"Endemic\", IF($K53>1, IF($K53=4, \"Unknown\", IF($K53=99, \"Surveillance\", ROUND(E53*0.75,0))), 0),\"Not required\")","v":13430},{"$f":"IF(INTRO!$E$43=\"Endemic\", IF($K53>1, IF($K53=4, \"Unknown\", IF($K53=99, \"Surveillance\", F53)), 0),\"Not required\")","v":40261},{"$f":"IF(INTRO!$E$43=\"Endemic\", IF($K53>1, IF($K53=4, \"Unknown\", IF($K53=99, \"Surveillance\", G53)), 0),\"Not required\")","v":81590},{"$f":"IF(INTRO!$E$43=\"Endemic\", IF($K53>1, IF($K53=4, \"Unknown\", IF($K53=99, \"Surveillance\", SUM($R53:$T53))), 0),\"Not required\")","v":135281},null,null,1,1,null,null,null,null,null,null,47665,"Kombo South",null,null,null,null,140885.03138301175]

{"sheet":"DEC","index":2,"n_rows":53,"n_cols":12,"rows_kept":53,"cut":false,"hidden":true,"merged":[[3,0,3,2],[5,0,5,2],[6,5,7,5],[6,2,7,2],[6,1,7,1],[6,10,7,10],[6,0,7,0],[6,11,7,11],[5,3,5,6],[5,9,5,11],[6,4,7,4],[6,3,7,3],[6,8,7,8],[6,7,7,7],[6,6,7,6],[6,9,7,9]]}
["Diethylcarbamazine citrate (DEC)"]
["Administrative structure, eligible population by age group, treatment plan and information about tablets"]
[]
["TOTAL",null,null,{"$f":"SUBTOTAL(9,D$10:D$1010)","v":0},0,0,0,null,{"$f":"SUBTOTAL(9,I$10:I$1010)","v":0},0,0,0]
[]
["Country administrative structure",null,null,"Population requiring treatment with DEC",null,null,null,"Treatment plan","Target population","Diethylcarbamazine citrate (DEC)"]
["Country","Province/State","District","PreSAC","SAC","Adults","Total","LF","LF","Total required","Remaining in stock","Tablets to be procured"]
[]
[]
[{"$f":"IF(INTRO!$E$39<>\"Non-endemic\", \" \", IF(INTRO!$E$37=\"Non-endemic\",\" \", IF(COUNTRY_INFO!A10=0,\" \",COUNTRY_INFO!A10)))","v":" "},{"$f":"IF(INTRO!$E$39<>\"Non-endemic\", \" \", IF(INTRO!$E$37=\"Non-endemic\",\" \", IF(COUNTRY_INFO!B10=0,\" \",COUNTRY_INFO!B10)))","v":" "},{"$f":"IF(INTRO!$E$39<>\"Non-endemic\", \" \", IF(INTRO!$E$37=\"Non-endemic\",\" \", IF(COUNTRY_INFO!C10=0,\" \",COUNTRY_INFO!C10)))","v":" "},{"$f":"IF(INTRO!$E$39<>\"Non-endemic\", 0, IF(INTRO!$E$37=\"Non-endemic\",0,IF(COUNTRY_INFO!$H10=1,COUNTRY_INFO!E10,0)))","v":0},{"$f":"IF(INTRO!$E$39<>\"Non-endemic\", 0, IF(INTRO!$E$37=\"Non-endemic\",0,IF(COUNTRY_INFO!$H10=1,COUNTRY_INFO!F10,0)))","v":0},{"$f":"IF(INTRO!$E$39<>\"Non-endemic\", 0, IF(INTRO!$E$37=\"Non-endemic\",0,IF(COUNTRY_INFO!$H10=1,COUNTRY_INFO!G10,0)))","v":0},{"$f":"SUM(D10:F10)","v":0},{"$f":"IF(INTRO!$E$39=\"Non-endemic\",IF(INTRO!$E$37=\"Non-endemic\",\"Not required\",COUNTRY_INFO!V10),\"Treat with IVM\")","v":"Not required"},{"$f":"IF(H10=1,G10,0)","v":0},{"$f":"IF(I10>0,I10*2.5,0)","v":0},null,{"$f":"IF($J10>$K10,$J10-$K10,0)","v":0}]
[{"$f":"IF(INTRO!$E$39<>\"Non-endemic\", \" \", IF(INTRO!$E$37=\"Non-endemic\",\" \", IF(COUNTRY_INFO!A11=0,\" \",COUNTRY_INFO!A11)))","v":" "},{"$f":"IF(INTRO!$E$39<>\"Non-endemic\", \" \", IF(INTRO!$E$37=\"Non-endemic\",\" \", IF(COUNTRY_INFO!B11=0,\" \",COUNTRY_INFO!B11)))","v":" "},{"$f":"IF(INTRO!$E$39<>\"Non-endemic\", \" \", IF(INTRO!$E$37=\"Non-endemic\",\" \", IF(COUNTRY_INFO!C11=0,\" \",COUNTRY_INFO!C11)))","v":" "},{"$f":"IF(INTRO!$E$39<>\"Non-endemic\", 0, IF(INTRO!$E$37=\"Non-endemic\",0,IF(COUNTRY_INFO!$H11=1,COUNTRY_INFO!E11,0)))","v":0},{"$f":"IF(INTRO!$E$39<>\"Non-endemic\", 0, IF(INTRO!$E$37=\"Non-endemic\",0,IF(COUNTRY_INFO!$H11=1,COUNTRY_INFO!F11,0)))","v":0},{"$f":"IF(INTRO!$E$39<>\"Non-endemic\", 0, IF(INTRO!$E$37=\"Non-endemic\",0,IF(COUNTRY_INFO!$H11=1,COUNTRY_INFO!G11,0)))","v":0},{"$f":"SUM(D11:F11)","v":0},{"$f":"IF(INTRO!$E$39=\"Non-endemic\",IF(INTRO!$E$37=\"Non-endemic\",\"Not required\",COUNTRY_INFO!V11),\"Treat with IVM\")","v":"Not required"},{"$f":"IF(H11=1,G11,0)","v":0},{"$f":"IF(I11>0,I11*2.5,0)","v":0},null,0]
[{"$f":"IF(INTRO!$E$39<>\"Non-endemic\", \" \", IF(INTRO!$E$37=\"Non-endemic\",\" \", IF(COUNTRY_INFO!A12=0,\" \",COUNTRY_INFO!A12)))","v":" "},{"$f":"IF(INTRO!$E$39<>\"Non-endemic\", \" \", IF(INTRO!$E$37=\"Non-endemic\",\" \", IF(COUNTRY_INFO!B12=0,\" \",COUNTRY_INFO!B12)))","v":" "},{"$f":"IF(INTRO!$E$39<>\"Non-endemic\", \" \", IF(INTRO!$E$37=\"Non-endemic\",\" \", IF(COUNTRY_INFO!C12=0,\" \",COUNTRY_INFO!C12)))","v":" "},{"$f":"IF(INTRO!$E$39<>\"Non-endemic\", 0, IF(INTRO!$E$37=\"Non-endemic\",0,IF(COUNTRY_INFO!$H12=1,COUNTRY_INFO!E12,0)))","v":0},{"$f":"IF(INTRO!$E$39<>\"Non-endemic\", 0, IF(INTRO!$E$37=\"Non-endemic\",0,IF(COUNTRY_INFO!$H12=1,COUNTRY_INFO!F12,0)))","v":0},{"$f":"IF(INTRO!$E$39<>\"Non-endemic\", 0, IF(INTRO!$E$37=\"Non-endemic\",0,IF(COUNTRY_INFO!$H12=1,COUNTRY_INFO!G12,0)))","v":0},0,{"$f":"IF(INTRO!$E$39=\"Non-endemic\",IF(INTRO!$E$37=\"Non-endemic\",\"Not required\",COUNTRY_INFO!V12),\"Treat with IVM\")","v":"Not required"},0,0,null,0]
[{"$f":"IF(INTRO!$E$39<>\"Non-endemic\", \" \", IF(INTRO!$E$37=\"Non-endemic\",\" \", IF(COUNTRY_INFO!A13=0,\" \",COUNTRY_INFO!A13)))","v":" "},{"$f":"IF(INTRO!$E$39<>\"Non-endemic\", \" \", IF(INTRO!$E$37=\"Non-endemic\",\" \", IF(COUNTRY_INFO!B13=0,\" \",COUNTRY_INFO!B13)))","v":" "},{"$f":"IF(INTRO!$E$39<>\"Non-endemic\", \" \", IF(INTRO!$E$37=\"Non-endemic\",\" \", IF(COUNTRY_INFO!C13=0,\" \",COUNTRY_INFO!C13)))","v":" "},{"$f":"IF(INTRO!$E$39<>\"Non-endemic\", 0, IF(INTRO!$E$37=\"Non-endemic\",0,IF(COUNTRY_INFO!$H13=1,COUNTRY_INFO!E13,0)))","v":0},{"$f":"IF(INTRO!$E$39<>\"Non-endemic\", 0, IF(INTRO!$E$37=\"Non-endemic\",0,IF(COUNTRY_INFO!$H13=1,COUNTRY_INFO!F13,0)))","v":0},{"$f":"IF(INTRO!$E$39<>\"Non-endemic\", 0, IF(INTRO!$E$37=\"Non-endemic\",0,IF(COUNTRY_INFO!$H13=1,COUNTRY_INFO!G13,0)))","v":0},0,{"$f":"IF(INTRO!$E$39=\"Non-endemic\",IF(INTRO!$E$37=\"Non-endemic\",\"Not required\",COUNTRY_INFO!V13),\"Treat with IVM\")","v":"Not required"},0,0,null,0]
[{"$f":"IF(INTRO!$E$39<>\"Non-endemic\", \" \", IF(INTRO!$E$37=\"Non-endemic\",\" \", IF(COUNTRY_INFO!A14=0,\" \",COUNTRY_INFO!A14)))","v":" "},{"$f":"IF(INTRO!$E$39<>\"Non-endemic\", \" \", IF(INTRO!$E$37=\"Non-endemic\",\" \", IF(COUNTRY_INFO!B14=0,\" \",COUNTRY_INFO!B14)))","v":" "},{"$f":"IF(INTRO!$E$39<>\"Non-endemic\", \" \", IF(INTRO!$E$37=\"Non-endemic\",\" \", IF(COUNTRY_INFO!C14=0,\" \",COUNTRY_INFO!C14)))","v":" "},{"$f":"IF(INTRO!$E$39<>\"Non-endemic\", 0, IF(INTRO!$E$37=\"Non-endemic\",0,IF(COUNTRY_INFO!$H14=1,COUNTRY_INFO!E14,0)))","v":0},{"$f":"IF(INTRO!$E$39<>\"Non-endemic\", 0, IF(INTRO!$E$37=\"Non-endemic\",0,IF(COUNTRY_INFO!$H14=1,COUNTRY_INFO!F14,0)))","v":0},{"$f":"IF(INTRO!$E$39<>\"Non-endemic\", 0, IF(INTRO!$E$37=\"Non-endemic\",0,IF(COUNTRY_INFO!$H14=1,COUNTRY_INFO!G14,0)))","v":0},0,{"$f":"IF(INTRO!$E$39=\"Non-endemic\",IF(INTRO!$E$37=\"Non-endemic\",\"Not required\",COUNTRY_INFO!V14),\"Treat with IVM\")","v":"Not required"},0,0,null,0]
[{"$f":"IF(INTRO!$E$39<>\"Non-endemic\", \" \", IF(INTRO!$E$37=\"Non-endemic\",\" \", IF(COUNTRY_INFO!A15=0,\" \",COUNTRY_INFO!A15)))","v":" "},{"$f":"IF(INTRO!$E$39<>\"Non-endemic\", \" \", IF(INTRO!$E$37=\"Non-endemic\",\" \", IF(COUNTRY_INFO!B15=0,\" \",COUNTRY_INFO!B15)))","v":" "},{"$f":"IF(INTRO!$E$39<>\"Non-endemic\", \" \", IF(INTRO!$E$37=\"Non-endemic\",\" \", IF(COUNTRY_INFO!C15=0,\" \",COUNTRY_INFO!C15)))","v":" "},{"$f":"IF(INTRO!$E$39<>\"Non-endemic\", 0, IF(INTRO!$E$37=\"Non-endemic\",0,IF(COUNTRY_INFO!$H15=1,COUNTRY_INFO!E15,0)))","v":0},{"$f":"IF(INTRO!$E$39<>\"Non-endemic\", 0, IF(INTRO!$E$37=\"Non-endemic\",0,IF(COUNTRY_INFO!$H15=1,COUNTRY_INFO!F15,0)))","v":0},{"$f":"IF(INTRO!$E$39<>\"Non-endemic\", 0, IF(INTRO!$E$37=\"Non-endemic\",0,IF(COUNTRY_INFO!$H15=1,COUNTRY_INFO!G15,0)))","v":0},0,{"$f":"IF(INTRO!$E$39=\"Non-endemic\",IF(INTRO!$E$37=\"Non-endemic\",\"Not required\",COUNTRY_INFO!V15),\"Treat with IVM\")","v":"Not required"},0,0,null,0]
[{"$f":"IF(INTRO!$E$39<>\"Non-endemic\", \" \", IF(INTRO!$E$37=\"Non-endemic\",\" \", IF(COUNTRY_INFO!A16=0,\" \",COUNTRY_INFO!A16)))","v":" "},{"$f":"IF(INTRO!$E$39<>\"Non-endemic\", \" \", IF(INTRO!$E$37=\"Non-endemic\",\" \", IF(COUNTRY_INFO!B16=0,\" \",COUNTRY_INFO!B16)))","v":" "},{"$f":"IF(INTRO!$E$39<>\"Non-endemic\", \" \", IF(INTRO!$E$37=\"Non-endemic\",\" \", IF(COUNTRY_INFO!C16=0,\" \",COUNTRY_INFO!C16)))","v":" "},{"$f":"IF(INTRO!$E$39<>\"Non-endemic\", 0, IF(INTRO!$E$37=\"Non-endemic\",0,IF(COUNTRY_INFO!$H16=1,COUNTRY_INFO!E16,0)))","v":0},{"$f":"IF(INTRO!$E$39<>\"Non-endemic\", 0, IF(INTRO!$E$37=\"Non-endemic\",0,IF(COUNTRY_INFO!$H16=1,COUNTRY_INFO!F16,0)))","v":0},{"$f":"IF(INTRO!$E$39<>\"Non-endemic\", 0, IF(INTRO!$E$37=\"Non-endemic\",0,IF(COUNTRY_INFO!$H16=1,COUNTRY_INFO!G16,0)))","v":0},0,{"$f":"IF(INTRO!$E$39=\"Non-endemic\",IF(INTRO!$E$37=\"Non-endemic\",\"Not required\",COUNTRY_INFO!V16),\"Treat with IVM\")","v":"Not required"},0,0,null,0]
[{"$f":"IF(INTRO!$E$39<>\"Non-endemic\", \" \", IF(INTRO!$E$37=\"Non-endemic\",\" \", IF(COUNTRY_INFO!A17=0,\" \",COUNTRY_INFO!A17)))","v":" "},{"$f":"IF(INTRO!$E$39<>\"Non-endemic\", \" \", IF(INTRO!$E$37=\"Non-endemic\",\" \", IF(COUNTRY_INFO!B17=0,\" \",COUNTRY_INFO!B17)))","v":" "},{"$f":"IF(INTRO!$E$39<>\"Non-endemic\", \" \", IF(INTRO!$E$37=\"Non-endemic\",\" \", IF(COUNTRY_INFO!C17=0,\" \",COUNTRY_INFO!C17)))","v":" "},{"$f":"IF(INTRO!$E$39<>\"Non-endemic\", 0, IF(INTRO!$E$37=\"Non-endemic\",0,IF(COUNTRY_INFO!$H17=1,COUNTRY_INFO!E17,0)))","v":0},{"$f":"IF(INTRO!$E$39<>\"Non-endemic\", 0, IF(INTRO!$E$37=\"Non-endemic\",0,IF(COUNTRY_INFO!$H17=1,COUNTRY_INFO!F17,0)))","v":0},{"$f":"IF(INTRO!$E$39<>\"Non-endemic\", 0, IF(INTRO!$E$37=\"Non-endemic\",0,IF(COUNTRY_INFO!$H17=1,COUNTRY_INFO!G17,0)))","v":0},0,{"$f":"IF(INTRO!$E$39=\"Non-endemic\",IF(INTRO!$E$37=\"Non-endemic\",\"Not required\",COUNTRY_INFO!V17),\"Treat with IVM\")","v":"Not required"},0,0,null,0]
[{"$f":"IF(INTRO!$E$39<>\"Non-endemic\", \" \", IF(INTRO!$E$37=\"Non-endemic\",\" \", IF(COUNTRY_INFO!A18=0,\" \",COUNTRY_INFO!A18)))","v":" "},{"$f":"IF(INTRO!$E$39<>\"Non-endemic\", \" \", IF(INTRO!$E$37=\"Non-endemic\",\" \", IF(COUNTRY_INFO!B18=0,\" \",COUNTRY_INFO!B18)))","v":" "},{"$f":"IF(INTRO!$E$39<>\"Non-endemic\", \" \", IF(INTRO!$E$37=\"Non-endemic\",\" \", IF(COUNTRY_INFO!C18=0,\" \",COUNTRY_INFO!C18)))","v":" "},{"$f":"IF(INTRO!$E$39<>\"Non-endemic\", 0, IF(INTRO!$E$37=\"Non-endemic\",0,IF(COUNTRY_INFO!$H18=1,COUNTRY_INFO!E18,0)))","v":0},{"$f":"IF(INTRO!$E$39<>\"Non-endemic\", 0, IF(INTRO!$E$37=\"Non-endemic\",0,IF(COUNTRY_INFO!$H18=1,COUNTRY_INFO!F18,0)))","v":0},{"$f":"IF(INTRO!$E$39<>\"Non-endemic\", 0, IF(INTRO!$E$37=\"Non-endemic\",0,IF(COUNTRY_INFO!$H18=1,COUNTRY_INFO!G18,0)))","v":0},0,{"$f":"IF(INTRO!$E$39=\"Non-endemic\",IF(INTRO!$E$37=\"Non-endemic\",\"Not required\",COUNTRY_INFO!V18),\"Treat with IVM\")","v":"Not required"},0,0,null,0]
[{"$f":"IF(INTRO!$E$39<>\"Non-endemic\", \" \", IF(INTRO!$E$37=\"Non-endemic\",\" \", IF(COUNTRY_INFO!A19=0,\" \",COUNTRY_INFO!A19)))","v":" "},{"$f":"IF(INTRO!$E$39<>\"Non-endemic\", \" \", IF(INTRO!$E$37=\"Non-endemic\",\" \", IF(COUNTRY_INFO!B19=0,\" \",COUNTRY_INFO!B19)))","v":" "},{"$f":"IF(INTRO!$E$39<>\"Non-endemic\", \" \", IF(INTRO!$E$37=\"Non-endemic\",\" \", IF(COUNTRY_INFO!C19=0,\" \",COUNTRY_INFO!C19)))","v":" "},{"$f":"IF(INTRO!$E$39<>\"Non-endemic\", 0, IF(INTRO!$E$37=\"Non-endemic\",0,IF(COUNTRY_INFO!$H19=1,COUNTRY_INFO!E19,0)))","v":0},{"$f":"IF(INTRO!$E$39<>\"Non-endemic\", 0, IF(INTRO!$E$37=\"Non-endemic\",0,IF(COUNTRY_INFO!$H19=1,COUNTRY_INFO!F19,0)))","v":0},{"$f":"IF(INTRO!$E$39<>\"Non-endemic\", 0, IF(INTRO!$E$37=\"Non-endemic\",0,IF(COUNTRY_INFO!$H19=1,COUNTRY_INFO!G19,0)))","v":0},0,{"$f":"IF(INTRO!$E$39=\"Non-endemic\",IF(INTRO!$E$37=\"Non-endemic\",\"Not required\",COUNTRY_INFO!V19),\"Treat with IVM\")","v":"Not required"},0,0,null,0]
[{"$f":"IF(INTRO!$E$39<>\"Non-endemic\", \" \", IF(INTRO!$E$37=\"Non-endemic\",\" \", IF(COUNTRY_INFO!A20=0,\" \",COUNTRY_INFO!A20)))","v":" "},{"$f":"IF(INTRO!$E$39<>\"Non-endemic\", \" \", IF(INTRO!$E$37=\"Non-endemic\",\" \", IF(COUNTRY_INFO!B20=0,\" \",COUNTRY_INFO!B20)))","v":" "},{"$f":"IF(INTRO!$E$39<>\"Non-endemic\", \" \", IF(INTRO!$E$37=\"Non-endemic\",\" \", IF(COUNTRY_INFO!C20=0,\" \",COUNTRY_INFO!C20)))","v":" "},{"$f":"IF(INTRO!$E$39<>\"Non-endemic\", 0, IF(INTRO!$E$37=\"Non-endemic\",0,IF(COUNTRY_INFO!$H20=1,COUNTRY_INFO!E20,0)))","v":0},{"$f":"IF(INTRO!$E$39<>\"Non-endemic\", 0, IF(INTRO!$E$37=\"Non-endemic\",0,IF(COUNTRY_INFO!$H20=1,COUNTRY_INFO!F20,0)))","v":0},{"$f":"IF(INTRO!$E$39<>\"Non-endemic\", 0, IF(INTRO!$E$37=\"Non-endemic\",0,IF(COUNTRY_INFO!$H20=1,COUNTRY_INFO!G20,0)))","v":0},0,{"$f":"IF(INTRO!$E$39=\"Non-endemic\",IF(INTRO!$E$37=\"Non-endemic\",\"Not required\",COUNTRY_INFO!V20),\"Treat with IVM\")","v":"Not required"},0,0,null,0]
[{"$f":"IF(INTRO!$E$39<>\"Non-endemic\", \" \", IF(INTRO!$E$37=\"Non-endemic\",\" \", IF(COUNTRY_INFO!A21=0,\" \",COUNTRY_INFO!A21)))","v":" "},{"$f":"IF(INTRO!$E$39<>\"Non-endemic\", \" \", IF(INTRO!$E$37=\"Non-endemic\",\" \", IF(COUNTRY_INFO!B21=0,\" \",COUNTRY_INFO!B21)))","v":" "},{"$f":"IF(INTRO!$E$39<>\"Non-endemic\", \" \", IF(INTRO!$E$37=\"Non-endemic\",\" \", IF(COUNTRY_INFO!C21=0,\" \",COUNTRY_INFO!C21)))","v":" "},{"$f":"IF(INTRO!$E$39<>\"Non-endemic\", 0, IF(INTRO!$E$37=\"Non-endemic\",0,IF(COUNTRY_INFO!$H21=1,COUNTRY_INFO!E21,0)))","v":0},{"$f":"IF(INTRO!$E$39<>\"Non-endemic\", 0, IF(INTRO!$E$37=\"Non-endemic\",0,IF(COUNTRY_INFO!$H21=1,COUNTRY_INFO!F21,0)))","v":0},{"$f":"IF(INTRO!$E$39<>\"Non-endemic\", 0, IF(INTRO!$E$37=\"Non-endemic\",0,IF(COUNTRY_INFO!$H21=1,COUNTRY_INFO!G21,0)))","v":0},0,{"$f":"IF(INTRO!$E$39=\"Non-endemic\",IF(INTRO!$E$37=\"Non-endemic\",\"Not required\",COUNTRY_INFO!V21),\"Treat with IVM\")","v":"Not required"},0,0,null,0]
[{"$f":"IF(INTRO!$E$39<>\"Non-endemic\", \" \", IF(INTRO!$E$37=\"Non-endemic\",\" \", IF(COUNTRY_INFO!A22=0,\" \",COUNTRY_INFO!A22)))","v":" "},{"$f":"IF(INTRO!$E$39<>\"Non-endemic\", \" \", IF(INTRO!$E$37=\"Non-endemic\",\" \", IF(COUNTRY_INFO!B22=0,\" \",COUNTRY_INFO!B22)))","v":" "},{"$f":"IF(INTRO!$E$39<>\"Non-endemic\", \" \", IF(INTRO!$E$37=\"Non-endemic\",\" \", IF(COUNTRY_INFO!C22=0,\" \",COUNTRY_INFO!C22)))","v":" "},{"$f":"IF(INTRO!$E$39<>\"Non-endemic\", 0, IF(INTRO!$E$37=\"Non-endemic\",0,IF(COUNTRY_INFO!$H22=1,COUNTRY_INFO!E22,0)))","v":0},{"$f":"IF(INTRO!$E$39<>\"Non-endemic\", 0, IF(INTRO!$E$37=\"Non-endemic\",0,IF(COUNTRY_INFO!$H22=1,COUNTRY_INFO!F22,0)))","v":0},{"$f":"IF(INTRO!$E$39<>\"Non-endemic\", 0, IF(INTRO!$E$37=\"Non-endemic\",0,IF(COUNTRY_INFO!$H22=1,COUNTRY_INFO!G22,0)))","v":0},0,{"$f":"IF(INTRO!$E$39=\"Non-endemic\",IF(INTRO!$E$37=\"Non-endemic\",\"Not required\",COUNTRY_INFO!V22),\"Treat with IVM\")","v":"Not required"},0,0,null,0]
[{"$f":"IF(INTRO!$E$39<>\"Non-endemic\", \" \", IF(INTRO!$E$37=\"Non-endemic\",\" \", IF(COUNTRY_INFO!A23=0,\" \",COUNTRY_INFO!A23)))","v":" "},{"$f":"IF(INTRO!$E$39<>\"Non-endemic\", \" \", IF(INTRO!$E$37=\"Non-endemic\",\" \", IF(COUNTRY_INFO!B23=0,\" \",COUNTRY_INFO!B23)))","v":" "},{"$f":"IF(INTRO!$E$39<>\"Non-endemic\", \" \", IF(INTRO!$E$37=\"Non-endemic\",\" \", IF(COUNTRY_INFO!C23=0,\" \",COUNTRY_INFO!C23)))","v":" "},{"$f":"IF(INTRO!$E$39<>\"Non-endemic\", 0, IF(INTRO!$E$37=\"Non-endemic\",0,IF(COUNTRY_INFO!$H23=1,COUNTRY_INFO!E23,0)))","v":0},{"$f":"IF(INTRO!$E$39<>\"Non-endemic\", 0, IF(INTRO!$E$37=\"Non-endemic\",0,IF(COUNTRY_INFO!$H23=1,COUNTRY_INFO!F23,0)))","v":0},{"$f":"IF(INTRO!$E$39<>\"Non-endemic\", 0, IF(INTRO!$E$37=\"Non-endemic\",0,IF(COUNTRY_INFO!$H23=1,COUNTRY_INFO!G23,0)))","v":0},0,{"$f":"IF(INTRO!$E$39=\"Non-endemic\",IF(INTRO!$E$37=\"Non-endemic\",\"Not required\",COUNTRY_INFO!V23),\"Treat with IVM\")","v":"Not required"},0,0,null,0]
[{"$f":"IF(INTRO!$E$39<>\"Non-endemic\", \" \", IF(INTRO!$E$37=\"Non-endemic\",\" \", IF(COUNTRY_INFO!A24=0,\" \",COUNTRY_INFO!A24)))","v":" "},{"$f":"IF(INTRO!$E$39<>\"Non-endemic\", \" \", IF(INTRO!$E$37=\"Non-endemic\",\" \", IF(COUNTRY_INFO!B24=0,\" \",COUNTRY_INFO!B24)))","v":" "},{"$f":"IF(INTRO!$E$39<>\"Non-endemic\", \" \", IF(INTRO!$E$37=\"Non-endemic\",\" \", IF(COUNTRY_INFO!C24=0,\" \",COUNTRY_INFO!C24)))","v":" "},{"$f":"IF(INTRO!$E$39<>\"Non-endemic\", 0, IF(INTRO!$E$37=\"Non-endemic\",0,IF(COUNTRY_INFO!$H24=1,COUNTRY_INFO!E24,0)))","v":0},{"$f":"IF(INTRO!$E$39<>\"Non-endemic\", 0, IF(INTRO!$E$37=\"Non-endemic\",0,IF(COUNTRY_INFO!$H24=1,COUNTRY_INFO!F24,0)))","v":0},{"$f":"IF(INTRO!$E$39<>\"Non-endemic\", 0, IF(INTRO!$E$37=\"Non-endemic\",0,IF(COUNTRY_INFO!$H24=1,COUNTRY_INFO!G24,0)))","v":0},0,{"$f":"IF(INTRO!$E$39=\"Non-endemic\",IF(INTRO!$E$37=\"Non-endemic\",\"Not required\",COUNTRY_INFO!V24),\"Treat with IVM\")","v":"Not required"},0,0,null,0]
[{"$f":"IF(INTRO!$E$39<>\"Non-endemic\", \" \", IF(INTRO!$E$37=\"Non-endemic\",\" \", IF(COUNTRY_INFO!A25=0,\" \",COUNTRY_INFO!A25)))","v":" "},{"$f":"IF(INTRO!$E$39<>\"Non-endemic\", \" \", IF(INTRO!$E$37=\"Non-endemic\",\" \", IF(COUNTRY_INFO!B25=0,\" \",COUNTRY_INFO!B25)))","v":" "},{"$f":"IF(INTRO!$E$39<>\"Non-endemic\", \" \", IF(INTRO!$E$37=\"Non-endemic\",\" \", IF(COUNTRY_INFO!C25=0,\" \",COUNTRY_INFO!C25)))","v":" "},{"$f":"IF(INTRO!$E$39<>\"Non-endemic\", 0, IF(INTRO!$E$37=\"Non-endemic\",0,IF(COUNTRY_INFO!$H25=1,COUNTRY_INFO!E25,0)))","v":0},{"$f":"IF(INTRO!$E$39<>\"Non-endemic\", 0, IF(INTRO!$E$37=\"Non-endemic\",0,IF(COUNTRY_INFO!$H25=1,COUNTRY_INFO!F25,0)))","v":0},{"$f":"IF(INTRO!$E$39<>\"Non-endemic\", 0, IF(INTRO!$E$37=\"Non-endemic\",0,IF(COUNTRY_INFO!$H25=1,COUNTRY_INFO!G25,0)))","v":0},0,{"$f":"IF(INTRO!$E$39=\"Non-endemic\",IF(INTRO!$E$37=\"Non-endemic\",\"Not required\",COUNTRY_INFO!V25),\"Treat with IVM\")","v":"Not required"},0,0,null,0]
[{"$f":"IF(INTRO!$E$39<>\"Non-endemic\", \" \", IF(INTRO!$E$37=\"Non-endemic\",\" \", IF(COUNTRY_INFO!A26=0,\" \",COUNTRY_INFO!A26)))","v":" "},{"$f":"IF(INTRO!$E$39<>\"Non-endemic\", \" \", IF(INTRO!$E$37=\"Non-endemic\",\" \", IF(COUNTRY_INFO!B26=0,\" \",COUNTRY_INFO!B26)))","v":" "},{"$f":"IF(INTRO!$E$39<>\"Non-endemic\", \" \", IF(INTRO!$E$37=\"Non-endemic\",\" \", IF(COUNTRY_INFO!C26=0,\" \",COUNTRY_INFO!C26)))","v":" "},{"$f":"IF(INTRO!$E$39<>\"Non-endemic\", 0, IF(INTRO!$E$37=\"Non-endemic\",0,IF(COUNTRY_INFO!$H26=1,COUNTRY_INFO!E26,0)))","v":0},{"$f":"IF(INTRO!$E$39<>\"Non-endemic\", 0, IF(INTRO!$E$37=\"Non-endemic\",0,IF(COUNTRY_INFO!$H26=1,COUNTRY_INFO!F26,0)))","v":0},{"$f":"IF(INTRO!$E$39<>\"Non-endemic\", 0, IF(INTRO!$E$37=\"Non-endemic\",0,IF(COUNTRY_INFO!$H26=1,COUNTRY_INFO!G26,0)))","v":0},0,{"$f":"IF(INTRO!$E$39=\"Non-endemic\",IF(INTRO!$E$37=\"Non-endemic\",\"Not required\",COUNTRY_INFO!V26),\"Treat with IVM\")","v":"Not required"},0,0,null,0]
[{"$f":"IF(INTRO!$E$39<>\"Non-endemic\", \" \", IF(INTRO!$E$37=\"Non-endemic\",\" \", IF(COUNTRY_INFO!A27=0,\" \",COUNTRY_INFO!A27)))","v":" "},{"$f":"IF(INTRO!$E$39<>\"Non-endemic\", \" \", IF(INTRO!$E$37=\"Non-endemic\",\" \", IF(COUNTRY_INFO!B27=0,\" \",COUNTRY_INFO!B27)))","v":" "},{"$f":"IF(INTRO!$E$39<>\"Non-endemic\", \" \", IF(INTRO!$E$37=\"Non-endemic\",\" \", IF(COUNTRY_INFO!C27=0,\" \",COUNTRY_INFO!C27)))","v":" "},{"$f":"IF(INTRO!$E$39<>\"Non-endemic\", 0, IF(INTRO!$E$37=\"Non-endemic\",0,IF(COUNTRY_INFO!$H27=1,COUNTRY_INFO!E27,0)))","v":0},{"$f":"IF(INTRO!$E$39<>\"Non-endemic\", 0, IF(INTRO!$E$37=\"Non-endemic\",0,IF(COUNTRY_INFO!$H27=1,COUNTRY_INFO!F27,0)))","v":0},{"$f":"IF(INTRO!$E$39<>\"Non-endemic\", 0, IF(INTRO!$E$37=\"Non-endemic\",0,IF(COUNTRY_INFO!$H27=1,COUNTRY_INFO!G27,0)))","v":0},0,{"$f":"IF(INTRO!$E$39=\"Non-endemic\",IF(INTRO!$E$37=\"Non-endemic\",\"Not required\",COUNTRY_INFO!V27),\"Treat with IVM\")","v":"Not required"},0,0,null,0]
[{"$f":"IF(INTRO!$E$39<>\"Non-endemic\", \" \", IF(INTRO!$E$37=\"Non-endemic\",\" \", IF(COUNTRY_INFO!A28=0,\" \",COUNTRY_INFO!A28)))","v":" "},{"$f":"IF(INTRO!$E$39<>\"Non-endemic\", \" \", IF(INTRO!$E$37=\"Non-endemic\",\" \", IF(COUNTRY_INFO!B28=0,\" \",COUNTRY_INFO!B28)))","v":" "},{"$f":"IF(INTRO!$E$39<>\"Non-endemic\", \" \", IF(INTRO!$E$37=\"Non-endemic\",\" \", IF(COUNTRY_INFO!C28=0,\" \",COUNTRY_INFO!C28)))","v":" "},{"$f":"IF(INTRO!$E$39<>\"Non-endemic\", 0, IF(INTRO!$E$37=\"Non-endemic\",0,IF(COUNTRY_INFO!$H28=1,COUNTRY_INFO!E28,0)))","v":0},{"$f":"IF(INTRO!$E$39<>\"Non-endemic\", 0, IF(INTRO!$E$37=\"Non-endemic\",0,IF(COUNTRY_INFO!$H28=1,COUNTRY_INFO!F28,0)))","v":0},{"$f":"IF(INTRO!$E$39<>\"Non-endemic\", 0, IF(INTRO!$E$37=\"Non-endemic\",0,IF(COUNTRY_INFO!$H28=1,COUNTRY_INFO!G28,0)))","v":0},0,{"$f":"IF(INTRO!$E$39=\"Non-endemic\",IF(INTRO!$E$37=\"Non-endemic\",\"Not required\",COUNTRY_INFO!V28),\"Treat with IVM\")","v":"Not required"},0,0,null,0]
[{"$f":"IF(INTRO!$E$39<>\"Non-endemic\", \" \", IF(INTRO!$E$37=\"Non-endemic\",\" \", IF(COUNTRY_INFO!A29=0,\" \",COUNTRY_INFO!A29)))","v":" "},{"$f":"IF(INTRO!$E$39<>\"Non-endemic\", \" \", IF(INTRO!$E$37=\"Non-endemic\",\" \", IF(COUNTRY_INFO!B29=0,\" \",COUNTRY_INFO!B29)))","v":" "},{"$f":"IF(INTRO!$E$39<>\"Non-endemic\", \" \", IF(INTRO!$E$37=\"Non-endemic\",\" \", IF(COUNTRY_INFO!C29=0,\" \",COUNTRY_INFO!C29)))","v":" "},{"$f":"IF(INTRO!$E$39<>\"Non-endemic\", 0, IF(INTRO!$E$37=\"Non-endemic\",0,IF(COUNTRY_INFO!$H29=1,COUNTRY_INFO!E29,0)))","v":0},{"$f":"IF(INTRO!$E$39<>\"Non-endemic\", 0, IF(INTRO!$E$37=\"Non-endemic\",0,IF(COUNTRY_INFO!$H29=1,COUNTRY_INFO!F29,0)))","v":0},{"$f":"IF(INTRO!$E$39<>\"Non-endemic\", 0, IF(INTRO!$E$37=\"Non-endemic\",0,IF(COUNTRY_INFO!$H29=1,COUNTRY_INFO!G29,0)))","v":0},0,{"$f":"IF(INTRO!$E$39=\"Non-endemic\",IF(INTRO!$E$37=\"Non-endemic\",\"Not required\",COUNTRY_INFO!V29),\"Treat with IVM\")","v":"Not required"},0,0,null,0]
[{"$f":"IF(INTRO!$E$39<>\"Non-endemic\", \" \", IF(INTRO!$E$37=\"Non-endemic\",\" \", IF(COUNTRY_INFO!A30=0,\" \",COUNTRY_INFO!A30)))","v":" "},{"$f":"IF(INTRO!$E$39<>\"Non-endemic\", \" \", IF(INTRO!$E$37=\"Non-endemic\",\" \", IF(COUNTRY_INFO!B30=0,\" \",COUNTRY_INFO!B30)))","v":" "},{"$f":"IF(INTRO!$E$39<>\"Non-endemic\", \" \", IF(INTRO!$E$37=\"Non-endemic\",\" \", IF(COUNTRY_INFO!C30=0,\" \",COUNTRY_INFO!C30)))","v":" "},{"$f":"IF(INTRO!$E$39<>\"Non-endemic\", 0, IF(INTRO!$E$37=\"Non-endemic\",0,IF(COUNTRY_INFO!$H30=1,COUNTRY_INFO!E30,0)))","v":0},{"$f":"IF(INTRO!$E$39<>\"Non-endemic\", 0, IF(INTRO!$E$37=\"Non-endemic\",0,IF(COUNTRY_INFO!$H30=1,COUNTRY_INFO!F30,0)))","v":0},{"$f":"IF(INTRO!$E$39<>\"Non-endemic\", 0, IF(INTRO!$E$37=\"Non-endemic\",0,IF(COUNTRY_INFO!$H30=1,COUNTRY_INFO!G30,0)))","v":0},0,{"$f":"IF(INTRO!$E$39=\"Non-endemic\",IF(INTRO!$E$37=\"Non-endemic\",\"Not required\",COUNTRY_INFO!V30),\"Treat with IVM\")","v":"Not required"},0,0,null,0]
[{"$f":"IF(INTRO!$E$39<>\"Non-endemic\", \" \", IF(INTRO!$E$37=\"Non-endemic\",\" \", IF(COUNTRY_INFO!A31=0,\" \",COUNTRY_INFO!A31)))","v":" "},{"$f":"IF(INTRO!$E$39<>\"Non-endemic\", \" \", IF(INTRO!$E$37=\"Non-endemic\",\" \", IF(COUNTRY_INFO!B31=0,\" \",COUNTRY_INFO!B31)))","v":" "},{"$f":"IF(INTRO!$E$39<>\"Non-endemic\", \" \", IF(INTRO!$E$37=\"Non-endemic\",\" \", IF(COUNTRY_INFO!C31=0,\" \",COUNTRY_INFO!C31)))","v":" "},{"$f":"IF(INTRO!$E$39<>\"Non-endemic\", 0, IF(INTRO!$E$37=\"Non-endemic\",0,IF(COUNTRY_INFO!$H31=1,COUNTRY_INFO!E31,0)))","v":0},{"$f":"IF(INTRO!$E$39<>\"Non-endemic\", 0, IF(INTRO!$E$37=\"Non-endemic\",0,IF(COUNTRY_INFO!$H31=1,COUNTRY_INFO!F31,0)))","v":0},{"$f":"IF(INTRO!$E$39<>\"Non-endemic\", 0, IF(INTRO!$E$37=\"Non-endemic\",0,IF(COUNTRY_INFO!$H31=1,COUNTRY_INFO!G31,0)))","v":0},0,{"$f":"IF(INTRO!$E$39=\"Non-endemic\",IF(INTRO!$E$37=\"Non-endemic\",\"Not required\",COUNTRY_INFO!V31),\"Treat with IVM\")","v":"Not required"},0,0,null,0]
[{"$f":"IF(INTRO!$E$39<>\"Non-endemic\", \" \", IF(INTRO!$E$37=\"Non-endemic\",\" \", IF(COUNTRY_INFO!A32=0,\" \",COUNTRY_INFO!A32)))","v":" "},{"$f":"IF(INTRO!$E$39<>\"Non-endemic\", \" \", IF(INTRO!$E$37=\"Non-endemic\",\" \", IF(COUNTRY_INFO!B32=0,\" \",COUNTRY_INFO!B32)))","v":" "},{"$f":"IF(INTRO!$E$39<>\"Non-endemic\", \" \", IF(INTRO!$E$37=\"Non-endemic\",\" \", IF(COUNTRY_INFO!C32=0,\" \",COUNTRY_INFO!C32)))","v":" "},{"$f":"IF(INTRO!$E$39<>\"Non-endemic\", 0, IF(INTRO!$E$37=\"Non-endemic\",0,IF(COUNTRY_INFO!$H32=1,COUNTRY_INFO!E32,0)))","v":0},{"$f":"IF(INTRO!$E$39<>\"Non-endemic\", 0, IF(INTRO!$E$37=\"Non-endemic\",0,IF(COUNTRY_INFO!$H32=1,COUNTRY_INFO!F32,0)))","v":0},{"$f":"IF(INTRO!$E$39<>\"Non-endemic\", 0, IF(INTRO!$E$37=\"Non-endemic\",0,IF(COUNTRY_INFO!$H32=1,COUNTRY_INFO!G32,0)))","v":0},0,{"$f":"IF(INTRO!$E$39=\"Non-endemic\",IF(INTRO!$E$37=\"Non-endemic\",\"Not required\",COUNTRY_INFO!V32),\"Treat with IVM\")","v":"Not required"},0,0,null,0]
[{"$f":"IF(INTRO!$E$39<>\"Non-endemic\", \" \", IF(INTRO!$E$37=\"Non-endemic\",\" \", IF(COUNTRY_INFO!A33=0,\" \",COUNTRY_INFO!A33)))","v":" "},{"$f":"IF(INTRO!$E$39<>\"Non-endemic\", \" \", IF(INTRO!$E$37=\"Non-endemic\",\" \", IF(COUNTRY_INFO!B33=0,\" \",COUNTRY_INFO!B33)))","v":" "},{"$f":"IF(INTRO!$E$39<>\"Non-endemic\", \" \", IF(INTRO!$E$37=\"Non-endemic\",\" \", IF(COUNTRY_INFO!C33=0,\" \",COUNTRY_INFO!C33)))","v":" "},{"$f":"IF(INTRO!$E$39<>\"Non-endemic\", 0, IF(INTRO!$E$37=\"Non-endemic\",0,IF(COUNTRY_INFO!$H33=1,COUNTRY_INFO!E33,0)))","v":0},{"$f":"IF(INTRO!$E$39<>\"Non-endemic\", 0, IF(INTRO!$E$37=\"Non-endemic\",0,IF(COUNTRY_INFO!$H33=1,COUNTRY_INFO!F33,0)))","v":0},{"$f":"IF(INTRO!$E$39<>\"Non-endemic\", 0, IF(INTRO!$E$37=\"Non-endemic\",0,IF(COUNTRY_INFO!$H33=1,COUNTRY_INFO!G33,0)))","v":0},0,{"$f":"IF(INTRO!$E$39=\"Non-endemic\",IF(INTRO!$E$37=\"Non-endemic\",\"Not required\",COUNTRY_INFO!V33),\"Treat with IVM\")","v":"Not required"},0,0,null,0]
[{"$f":"IF(INTRO!$E$39<>\"Non-endemic\", \" \", IF(INTRO!$E$37=\"Non-endemic\",\" \", IF(COUNTRY_INFO!A34=0,\" \",COUNTRY_INFO!A34)))","v":" "},{"$f":"IF(INTRO!$E$39<>\"Non-endemic\", \" \", IF(INTRO!$E$37=\"Non-endemic\",\" \", IF(COUNTRY_INFO!B34=0,\" \",COUNTRY_INFO!B34)))","v":" "},{"$f":"IF(INTRO!$E$39<>\"Non-endemic\", \" \", IF(INTRO!$E$37=\"Non-endemic\",\" \", IF(COUNTRY_INFO!C34=0,\" \",COUNTRY_INFO!C34)))","v":" "},{"$f":"IF(INTRO!$E$39<>\"Non-endemic\", 0, IF(INTRO!$E$37=\"Non-endemic\",0,IF(COUNTRY_INFO!$H34=1,COUNTRY_INFO!E34,0)))","v":0},{"$f":"IF(INTRO!$E$39<>\"Non-endemic\", 0, IF(INTRO!$E$37=\"Non-endemic\",0,IF(COUNTRY_INFO!$H34=1,COUNTRY_INFO!F34,0)))","v":0},{"$f":"IF(INTRO!$E$39<>\"Non-endemic\", 0, IF(INTRO!$E$37=\"Non-endemic\",0,IF(COUNTRY_INFO!$H34=1,COUNTRY_INFO!G34,0)))","v":0},0,{"$f":"IF(INTRO!$E$39=\"Non-endemic\",IF(INTRO!$E$37=\"Non-endemic\",\"Not required\",COUNTRY_INFO!V34),\"Treat with IVM\")","v":"Not required"},0,0,null,0]
[{"$f":"IF(INTRO!$E$39<>\"Non-endemic\", \" \", IF(INTRO!$E$37=\"Non-endemic\",\" \", IF(COUNTRY_INFO!A35=0,\" \",COUNTRY_INFO!A35)))","v":" "},{"$f":"IF(INTRO!$E$39<>\"Non-endemic\", \" \", IF(INTRO!$E$37=\"Non-endemic\",\" \", IF(COUNTRY_INFO!B35=0,\" \",COUNTRY_INFO!B35)))","v":" "},{"$f":"IF(INTRO!$E$39<>\"Non-endemic\", \" \", IF(INTRO!$E$37=\"Non-endemic\",\" \", IF(COUNTRY_INFO!C35=0,\" \",COUNTRY_INFO!C35)))","v":" "},{"$f":"IF(INTRO!$E$39<>\"Non-endemic\", 0, IF(INTRO!$E$37=\"Non-endemic\",0,IF(COUNTRY_INFO!$H35=1,COUNTRY_INFO!E35,0)))","v":0},{"$f":"IF(INTRO!$E$39<>\"Non-endemic\", 0, IF(INTRO!$E$37=\"Non-endemic\",0,IF(COUNTRY_INFO!$H35=1,COUNTRY_INFO!F35,0)))","v":0},{"$f":"IF(INTRO!$E$39<>\"Non-endemic\", 0, IF(INTRO!$E$37=\"Non-endemic\",0,IF(COUNTRY_INFO!$H35=1,COUNTRY_INFO!G35,0)))","v":0},0,{"$f":"IF(INTRO!$E$39=\"Non-endemic\",IF(INTRO!$E$37=\"Non-endemic\",\"Not required\",COUNTRY_INFO!V35),\"Treat with IVM\")","v":"Not required"},0,0,null,0]
[{"$f":"IF(INTRO!$E$39<>\"Non-endemic\", \" \", IF(INTRO!$E$37=\"Non-endemic\",\" \", IF(COUNTRY_INFO!A36=0,\" \",COUNTRY_INFO!A36)))","v":" "},{"$f":"IF(INTRO!$E$39<>\"Non-endemic\", \" \", IF(INTRO!$E$37=\"Non-endemic\",\" \", IF(COUNTRY_INFO!B36=0,\" \",COUNTRY_INFO!B36)))","v":" "},{"$f":"IF(INTRO!$E$39<>\"Non-endemic\", \" \", IF(INTRO!$E$37=\"Non-endemic\",\" \", IF(COUNTRY_INFO!C36=0,\" \",COUNTRY_INFO!C36)))","v":" "},{"$f":"IF(INTRO!$E$39<>\"Non-endemic\", 0, IF(INTRO!$E$37=\"Non-endemic\",0,IF(COUNTRY_INFO!$H36=1,COUNTRY_INFO!E36,0)))","v":0},{"$f":"IF(INTRO!$E$39<>\"Non-endemic\", 0, IF(INTRO!$E$37=\"Non-endemic\",0,IF(COUNTRY_INFO!$H36=1,COUNTRY_INFO!F36,0)))","v":0},{"$f":"IF(INTRO!$E$39<>\"Non-endemic\", 0, IF(INTRO!$E$37=\"Non-endemic\",0,IF(COUNTRY_INFO!$H36=1,COUNTRY_INFO!G36,0)))","v":0},0,{"$f":"IF(INTRO!$E$39=\"Non-endemic\",IF(INTRO!$E$37=\"Non-endemic\",\"Not required\",COUNTRY_INFO!V36),\"Treat with IVM\")","v":"Not required"},0,0,null,0]
[{"$f":"IF(INTRO!$E$39<>\"Non-endemic\", \" \", IF(INTRO!$E$37=\"Non-endemic\",\" \", IF(COUNTRY_INFO!A37=0,\" \",COUNTRY_INFO!A37)))","v":" "},{"$f":"IF(INTRO!$E$39<>\"Non-endemic\", \" \", IF(INTRO!$E$37=\"Non-endemic\",\" \", IF(COUNTRY_INFO!B37=0,\" \",COUNTRY_INFO!B37)))","v":" "},{"$f":"IF(INTRO!$E$39<>\"Non-endemic\", \" \", IF(INTRO!$E$37=\"Non-endemic\",\" \", IF(COUNTRY_INFO!C37=0,\" \",COUNTRY_INFO!C37)))","v":" "},{"$f":"IF(INTRO!$E$39<>\"Non-endemic\", 0, IF(INTRO!$E$37=\"Non-endemic\",0,IF(COUNTRY_INFO!$H37=1,COUNTRY_INFO!E37,0)))","v":0},{"$f":"IF(INTRO!$E$39<>\"Non-endemic\", 0, IF(INTRO!$E$37=\"Non-endemic\",0,IF(COUNTRY_INFO!$H37=1,COUNTRY_INFO!F37,0)))","v":0},{"$f":"IF(INTRO!$E$39<>\"Non-endemic\", 0, IF(INTRO!$E$37=\"Non-endemic\",0,IF(COUNTRY_INFO!$H37=1,COUNTRY_INFO!G37,0)))","v":0},0,{"$f":"IF(INTRO!$E$39=\"Non-endemic\",IF(INTRO!$E$37=\"Non-endemic\",\"Not required\",COUNTRY_INFO!V37),\"Treat with IVM\")","v":"Not required"},0,0,null,0]
[{"$f":"IF(INTRO!$E$39<>\"Non-endemic\", \" \", IF(INTRO!$E$37=\"Non-endemic\",\" \", IF(COUNTRY_INFO!A38=0,\" \",COUNTRY_INFO!A38)))","v":" "},{"$f":"IF(INTRO!$E$39<>\"Non-endemic\", \" \", IF(INTRO!$E$37=\"Non-endemic\",\" \", IF(COUNTRY_INFO!B38=0,\" \",COUNTRY_INFO!B38)))","v":" "},{"$f":"IF(INTRO!$E$39<>\"Non-endemic\", \" \", IF(INTRO!$E$37=\"Non-endemic\",\" \", IF(COUNTRY_INFO!C38=0,\" \",COUNTRY_INFO!C38)))","v":" "},{"$f":"IF(INTRO!$E$39<>\"Non-endemic\", 0, IF(INTRO!$E$37=\"Non-endemic\",0,IF(COUNTRY_INFO!$H38=1,COUNTRY_INFO!E38,0)))","v":0},{"$f":"IF(INTRO!$E$39<>\"Non-endemic\", 0, IF(INTRO!$E$37=\"Non-endemic\",0,IF(COUNTRY_INFO!$H38=1,COUNTRY_INFO!F38,0)))","v":0},{"$f":"IF(INTRO!$E$39<>\"Non-endemic\", 0, IF(INTRO!$E$37=\"Non-endemic\",0,IF(COUNTRY_INFO!$H38=1,COUNTRY_INFO!G38,0)))","v":0},0,{"$f":"IF(INTRO!$E$39=\"Non-endemic\",IF(INTRO!$E$37=\"Non-endemic\",\"Not required\",COUNTRY_INFO!V38),\"Treat with IVM\")","v":"Not required"},0,0,null,0]
[{"$f":"IF(INTRO!$E$39<>\"Non-endemic\", \" \", IF(INTRO!$E$37=\"Non-endemic\",\" \", IF(COUNTRY_INFO!A39=0,\" \",COUNTRY_INFO!A39)))","v":" "},{"$f":"IF(INTRO!$E$39<>\"Non-endemic\", \" \", IF(INTRO!$E$37=\"Non-endemic\",\" \", IF(COUNTRY_INFO!B39=0,\" \",COUNTRY_INFO!B39)))","v":" "},{"$f":"IF(INTRO!$E$39<>\"Non-endemic\", \" \", IF(INTRO!$E$37=\"Non-endemic\",\" \", IF(COUNTRY_INFO!C39=0,\" \",COUNTRY_INFO!C39)))","v":" "},{"$f":"IF(INTRO!$E$39<>\"Non-endemic\", 0, IF(INTRO!$E$37=\"Non-endemic\",0,IF(COUNTRY_INFO!$H39=1,COUNTRY_INFO!E39,0)))","v":0},{"$f":"IF(INTRO!$E$39<>\"Non-endemic\", 0, IF(INTRO!$E$37=\"Non-endemic\",0,IF(COUNTRY_INFO!$H39=1,COUNTRY_INFO!F39,0)))","v":0},{"$f":"IF(INTRO!$E$39<>\"Non-endemic\", 0, IF(INTRO!$E$37=\"Non-endemic\",0,IF(COUNTRY_INFO!$H39=1,COUNTRY_INFO!G39,0)))","v":0},0,{"$f":"IF(INTRO!$E$39=\"Non-endemic\",IF(INTRO!$E$37=\"Non-endemic\",\"Not required\",COUNTRY_INFO!V39),\"Treat with IVM\")","v":"Not required"},0,0,null,0]
[{"$f":"IF(INTRO!$E$39<>\"Non-endemic\", \" \", IF(INTRO!$E$37=\"Non-endemic\",\" \", IF(COUNTRY_INFO!A40=0,\" \",COUNTRY_INFO!A40)))","v":" "},{"$f":"IF(INTRO!$E$39<>\"Non-endemic\", \" \", IF(INTRO!$E$37=\"Non-endemic\",\" \", IF(COUNTRY_INFO!B40=0,\" \",COUNTRY_INFO!B40)))","v":" "},{"$f":"IF(INTRO!$E$39<>\"Non-endemic\", \" \", IF(INTRO!$E$37=\"Non-endemic\",\" \", IF(COUNTRY_INFO!C40=0,\" \",COUNTRY_INFO!C40)))","v":" "},{"$f":"IF(INTRO!$E$39<>\"Non-endemic\", 0, IF(INTRO!$E$37=\"Non-endemic\",0,IF(COUNTRY_INFO!$H40=1,COUNTRY_INFO!E40,0)))","v":0},{"$f":"IF(INTRO!$E$39<>\"Non-endemic\", 0, IF(INTRO!$E$37=\"Non-endemic\",0,IF(COUNTRY_INFO!$H40=1,COUNTRY_INFO!F40,0)))","v":0},{"$f":"IF(INTRO!$E$39<>\"Non-endemic\", 0, IF(INTRO!$E$37=\"Non-endemic\",0,IF(COUNTRY_INFO!$H40=1,COUNTRY_INFO!G40,0)))","v":0},0,{"$f":"IF(INTRO!$E$39=\"Non-endemic\",IF(INTRO!$E$37=\"Non-endemic\",\"Not required\",COUNTRY_INFO!V40),\"Treat with IVM\")","v":"Not required"},0,0,null,0]
[{"$f":"IF(INTRO!$E$39<>\"Non-endemic\", \" \", IF(INTRO!$E$37=\"Non-endemic\",\" \", IF(COUNTRY_INFO!A41=0,\" \",COUNTRY_INFO!A41)))","v":" "},{"$f":"IF(INTRO!$E$39<>\"Non-endemic\", \" \", IF(INTRO!$E$37=\"Non-endemic\",\" \", IF(COUNTRY_INFO!B41=0,\" \",COUNTRY_INFO!B41)))","v":" "},{"$f":"IF(INTRO!$E$39<>\"Non-endemic\", \" \", IF(INTRO!$E$37=\"Non-endemic\",\" \", IF(COUNTRY_INFO!C41=0,\" \",COUNTRY_INFO!C41)))","v":" "},{"$f":"IF(INTRO!$E$39<>\"Non-endemic\", 0, IF(INTRO!$E$37=\"Non-endemic\",0,IF(COUNTRY_INFO!$H41=1,COUNTRY_INFO!E41,0)))","v":0},{"$f":"IF(INTRO!$E$39<>\"Non-endemic\", 0, IF(INTRO!$E$37=\"Non-endemic\",0,IF(COUNTRY_INFO!$H41=1,COUNTRY_INFO!F41,0)))","v":0},{"$f":"IF(INTRO!$E$39<>\"Non-endemic\", 0, IF(INTRO!$E$37=\"Non-endemic\",0,IF(COUNTRY_INFO!$H41=1,COUNTRY_INFO!G41,0)))","v":0},0,{"$f":"IF(INTRO!$E$39=\"Non-endemic\",IF(INTRO!$E$37=\"Non-endemic\",\"Not required\",COUNTRY_INFO!V41),\"Treat with IVM\")","v":"Not required"},0,0,null,0]
[{"$f":"IF(INTRO!$E$39<>\"Non-endemic\", \" \", IF(INTRO!$E$37=\"Non-endemic\",\" \", IF(COUNTRY_INFO!A42=0,\" \",COUNTRY_INFO!A42)))","v":" "},{"$f":"IF(INTRO!$E$39<>\"Non-endemic\", \" \", IF(INTRO!$E$37=\"Non-endemic\",\" \", IF(COUNTRY_INFO!B42=0,\" \",COUNTRY_INFO!B42)))","v":" "},{"$f":"IF(INTRO!$E$39<>\"Non-endemic\", \" \", IF(INTRO!$E$37=\"Non-endemic\",\" \", IF(COUNTRY_INFO!C42=0,\" \",COUNTRY_INFO!C42)))","v":" "},{"$f":"IF(INTRO!$E$39<>\"Non-endemic\", 0, IF(INTRO!$E$37=\"Non-endemic\",0,IF(COUNTRY_INFO!$H42=1,COUNTRY_INFO!E42,0)))","v":0},{"$f":"IF(INTRO!$E$39<>\"Non-endemic\", 0, IF(INTRO!$E$37=\"Non-endemic\",0,IF(COUNTRY_INFO!$H42=1,COUNTRY_INFO!F42,0)))","v":0},{"$f":"IF(INTRO!$E$39<>\"Non-endemic\", 0, IF(INTRO!$E$37=\"Non-endemic\",0,IF(COUNTRY_INFO!$H42=1,COUNTRY_INFO!G42,0)))","v":0},0,{"$f":"IF(INTRO!$E$39=\"Non-endemic\",IF(INTRO!$E$37=\"Non-endemic\",\"Not required\",COUNTRY_INFO!V42),\"Treat with IVM\")","v":"Not required"},0,0,null,0]
[{"$f":"IF(INTRO!$E$39<>\"Non-endemic\", \" \", IF(INTRO!$E$37=\"Non-endemic\",\" \", IF(COUNTRY_INFO!A43=0,\" \",COUNTRY_INFO!A43)))","v":" "},{"$f":"IF(INTRO!$E$39<>\"Non-endemic\", \" \", IF(INTRO!$E$37=\"Non-endemic\",\" \", IF(COUNTRY_INFO!B43=0,\" \",COUNTRY_INFO!B43)))","v":" "},{"$f":"IF(INTRO!$E$39<>\"Non-endemic\", \" \", IF(INTRO!$E$37=\"Non-endemic\",\" \", IF(COUNTRY_INFO!C43=0,\" \",COUNTRY_INFO!C43)))","v":" "},{"$f":"IF(INTRO!$E$39<>\"Non-endemic\", 0, IF(INTRO!$E$37=\"Non-endemic\",0,IF(COUNTRY_INFO!$H43=1,COUNTRY_INFO!E43,0)))","v":0},{"$f":"IF(INTRO!$E$39<>\"Non-endemic\", 0, IF(INTRO!$E$37=\"Non-endemic\",0,IF(COUNTRY_INFO!$H43=1,COUNTRY_INFO!F43,0)))","v":0},{"$f":"IF(INTRO!$E$39<>\"Non-endemic\", 0, IF(INTRO!$E$37=\"Non-endemic\",0,IF(COUNTRY_INFO!$H43=1,COUNTRY_INFO!G43,0)))","v":0},0,{"$f":"IF(INTRO!$E$39=\"Non-endemic\",IF(INTRO!$E$37=\"Non-endemic\",\"Not required\",COUNTRY_INFO!V43),\"Treat with IVM\")","v":"Not required"},0,0,null,0]
[{"$f":"IF(INTRO!$E$39<>\"Non-endemic\", \" \", IF(INTRO!$E$37=\"Non-endemic\",\" \", IF(COUNTRY_INFO!A44=0,\" \",COUNTRY_INFO!A44)))","v":" "},{"$f":"IF(INTRO!$E$39<>\"Non-endemic\", \" \", IF(INTRO!$E$37=\"Non-endemic\",\" \", IF(COUNTRY_INFO!B44=0,\" \",COUNTRY_INFO!B44)))","v":" "},{"$f":"IF(INTRO!$E$39<>\"Non-endemic\", \" \", IF(INTRO!$E$37=\"Non-endemic\",\" \", IF(COUNTRY_INFO!C44=0,\" \",COUNTRY_INFO!C44)))","v":" "},{"$f":"IF(INTRO!$E$39<>\"Non-endemic\", 0, IF(INTRO!$E$37=\"Non-endemic\",0,IF(COUNTRY_INFO!$H44=1,COUNTRY_INFO!E44,0)))","v":0},{"$f":"IF(INTRO!$E$39<>\"Non-endemic\", 0, IF(INTRO!$E$37=\"Non-endemic\",0,IF(COUNTRY_INFO!$H44=1,COUNTRY_INFO!F44,0)))","v":0},{"$f":"IF(INTRO!$E$39<>\"Non-endemic\", 0, IF(INTRO!$E$37=\"Non-endemic\",0,IF(COUNTRY_INFO!$H44=1,COUNTRY_INFO!G44,0)))","v":0},0,{"$f":"IF(INTRO!$E$39=\"Non-endemic\",IF(INTRO!$E$37=\"Non-endemic\",\"Not required\",COUNTRY_INFO!V44),\"Treat with IVM\")","v":"Not required"},0,0,null,0]
[{"$f":"IF(INTRO!$E$39<>\"Non-endemic\", \" \", IF(INTRO!$E$37=\"Non-endemic\",\" \", IF(COUNTRY_INFO!A45=0,\" \",COUNTRY_INFO!A45)))","v":" "},{"$f":"IF(INTRO!$E$39<>\"Non-endemic\", \" \", IF(INTRO!$E$37=\"Non-endemic\",\" \", IF(COUNTRY_INFO!B45=0,\" \",COUNTRY_INFO!B45)))","v":" "},{"$f":"IF(INTRO!$E$39<>\"Non-endemic\", \" \", IF(INTRO!$E$37=\"Non-endemic\",\" \", IF(COUNTRY_INFO!C45=0,\" \",COUNTRY_INFO!C45)))","v":" "},{"$f":"IF(INTRO!$E$39<>\"Non-endemic\", 0, IF(INTRO!$E$37=\"Non-endemic\",0,IF(COUNTRY_INFO!$H45=1,COUNTRY_INFO!E45,0)))","v":0},{"$f":"IF(INTRO!$E$39<>\"Non-endemic\", 0, IF(INTRO!$E$37=\"Non-endemic\",0,IF(COUNTRY_INFO!$H45=1,COUNTRY_INFO!F45,0)))","v":0},{"$f":"IF(INTRO!$E$39<>\"Non-endemic\", 0, IF(INTRO!$E$37=\"Non-endemic\",0,IF(COUNTRY_INFO!$H45=1,COUNTRY_INFO!G45,0)))","v":0},0,{"$f":"IF(INTRO!$E$39=\"Non-endemic\",IF(INTRO!$E$37=\"Non-endemic\",\"Not required\",COUNTRY_INFO!V45),\"Treat with IVM\")","v":"Not required"},0,0,null,0]
[{"$f":"IF(INTRO!$E$39<>\"Non-endemic\", \" \", IF(INTRO!$E$37=\"Non-endemic\",\" \", IF(COUNTRY_INFO!A46=0,\" \",COUNTRY_INFO!A46)))","v":" "},{"$f":"IF(INTRO!$E$39<>\"Non-endemic\", \" \", IF(INTRO!$E$37=\"Non-endemic\",\" \", IF(COUNTRY_INFO!B46=0,\" \",COUNTRY_INFO!B46)))","v":" "},{"$f":"IF(INTRO!$E$39<>\"Non-endemic\", \" \", IF(INTRO!$E$37=\"Non-endemic\",\" \", IF(COUNTRY_INFO!C46=0,\" \",COUNTRY_INFO!C46)))","v":" "},{"$f":"IF(INTRO!$E$39<>\"Non-endemic\", 0, IF(INTRO!$E$37=\"Non-endemic\",0,IF(COUNTRY_INFO!$H46=1,COUNTRY_INFO!E46,0)))","v":0},{"$f":"IF(INTRO!$E$39<>\"Non-endemic\", 0, IF(INTRO!$E$37=\"Non-endemic\",0,IF(COUNTRY_INFO!$H46=1,COUNTRY_INFO!F46,0)))","v":0},{"$f":"IF(INTRO!$E$39<>\"Non-endemic\", 0, IF(INTRO!$E$37=\"Non-endemic\",0,IF(COUNTRY_INFO!$H46=1,COUNTRY_INFO!G46,0)))","v":0},0,{"$f":"IF(INTRO!$E$39=\"Non-endemic\",IF(INTRO!$E$37=\"Non-endemic\",\"Not required\",COUNTRY_INFO!V46),\"Treat with IVM\")","v":"Not required"},0,0,null,0]
[{"$f":"IF(INTRO!$E$39<>\"Non-endemic\", \" \", IF(INTRO!$E$37=\"Non-endemic\",\" \", IF(COUNTRY_INFO!A47=0,\" \",COUNTRY_INFO!A47)))","v":" "},{"$f":"IF(INTRO!$E$39<>\"Non-endemic\", \" \", IF(INTRO!$E$37=\"Non-endemic\",\" \", IF(COUNTRY_INFO!B47=0,\" \",COUNTRY_INFO!B47)))","v":" "},{"$f":"IF(INTRO!$E$39<>\"Non-endemic\", \" \", IF(INTRO!$E$37=\"Non-endemic\",\" \", IF(COUNTRY_INFO!C47=0,\" \",COUNTRY_INFO!C47)))","v":" "},{"$f":"IF(INTRO!$E$39<>\"Non-endemic\", 0, IF(INTRO!$E$37=\"Non-endemic\",0,IF(COUNTRY_INFO!$H47=1,COUNTRY_INFO!E47,0)))","v":0},{"$f":"IF(INTRO!$E$39<>\"Non-endemic\", 0, IF(INTRO!$E$37=\"Non-endemic\",0,IF(COUNTRY_INFO!$H47=1,COUNTRY_INFO!F47,0)))","v":0},{"$f":"IF(INTRO!$E$39<>\"Non-endemic\", 0, IF(INTRO!$E$37=\"Non-endemic\",0,IF(COUNTRY_INFO!$H47=1,COUNTRY_INFO!G47,0)))","v":0},0,{"$f":"IF(INTRO!$E$39=\"Non-endemic\",IF(INTRO!$E$37=\"Non-endemic\",\"Not required\",COUNTRY_INFO!V47),\"Treat with IVM\")","v":"Not required"},0,0,null,0]
[{"$f":"IF(INTRO!$E$39<>\"Non-endemic\", \" \", IF(INTRO!$E$37=\"Non-endemic\",\" \", IF(COUNTRY_INFO!A48=0,\" \",COUNTRY_INFO!A48)))","v":" "},{"$f":"IF(INTRO!$E$39<>\"Non-endemic\", \" \", IF(INTRO!$E$37=\"Non-endemic\",\" \", IF(COUNTRY_INFO!B48=0,\" \",COUNTRY_INFO!B48)))","v":" "},{"$f":"IF(INTRO!$E$39<>\"Non-endemic\", \" \", IF(INTRO!$E$37=\"Non-endemic\",\" \", IF(COUNTRY_INFO!C48=0,\" \",COUNTRY_INFO!C48)))","v":" "},{"$f":"IF(INTRO!$E$39<>\"Non-endemic\", 0, IF(INTRO!$E$37=\"Non-endemic\",0,IF(COUNTRY_INFO!$H48=1,COUNTRY_INFO!E48,0)))","v":0},{"$f":"IF(INTRO!$E$39<>\"Non-endemic\", 0, IF(INTRO!$E$37=\"Non-endemic\",0,IF(COUNTRY_INFO!$H48=1,COUNTRY_INFO!F48,0)))","v":0},{"$f":"IF(INTRO!$E$39<>\"Non-endemic\", 0, IF(INTRO!$E$37=\"Non-endemic\",0,IF(COUNTRY_INFO!$H48=1,COUNTRY_INFO!G48,0)))","v":0},0,{"$f":"IF(INTRO!$E$39=\"Non-endemic\",IF(INTRO!$E$37=\"Non-endemic\",\"Not required\",COUNTRY_INFO!V48),\"Treat with IVM\")","v":"Not required"},0,0,null,0]
[{"$f":"IF(INTRO!$E$39<>\"Non-endemic\", \" \", IF(INTRO!$E$37=\"Non-endemic\",\" \", IF(COUNTRY_INFO!A49=0,\" \",COUNTRY_INFO!A49)))","v":" "},{"$f":"IF(INTRO!$E$39<>\"Non-endemic\", \" \", IF(INTRO!$E$37=\"Non-endemic\",\" \", IF(COUNTRY_INFO!B49=0,\" \",COUNTRY_INFO!B49)))","v":" "},{"$f":"IF(INTRO!$E$39<>\"Non-endemic\", \" \", IF(INTRO!$E$37=\"Non-endemic\",\" \", IF(COUNTRY_INFO!C49=0,\" \",COUNTRY_INFO!C49)))","v":" "},{"$f":"IF(INTRO!$E$39<>\"Non-endemic\", 0, IF(INTRO!$E$37=\"Non-endemic\",0,IF(COUNTRY_INFO!$H49=1,COUNTRY_INFO!E49,0)))","v":0},{"$f":"IF(INTRO!$E$39<>\"Non-endemic\", 0, IF(INTRO!$E$37=\"Non-endemic\",0,IF(COUNTRY_INFO!$H49=1,COUNTRY_INFO!F49,0)))","v":0},{"$f":"IF(INTRO!$E$39<>\"Non-endemic\", 0, IF(INTRO!$E$37=\"Non-endemic\",0,IF(COUNTRY_INFO!$H49=1,COUNTRY_INFO!G49,0)))","v":0},0,{"$f":"IF(INTRO!$E$39=\"Non-endemic\",IF(INTRO!$E$37=\"Non-endemic\",\"Not required\",COUNTRY_INFO!V49),\"Treat with IVM\")","v":"Not required"},0,0,null,0]
[{"$f":"IF(INTRO!$E$39<>\"Non-endemic\", \" \", IF(INTRO!$E$37=\"Non-endemic\",\" \", IF(COUNTRY_INFO!A50=0,\" \",COUNTRY_INFO!A50)))","v":" "},{"$f":"IF(INTRO!$E$39<>\"Non-endemic\", \" \", IF(INTRO!$E$37=\"Non-endemic\",\" \", IF(COUNTRY_INFO!B50=0,\" \",COUNTRY_INFO!B50)))","v":" "},{"$f":"IF(INTRO!$E$39<>\"Non-endemic\", \" \", IF(INTRO!$E$37=\"Non-endemic\",\" \", IF(COUNTRY_INFO!C50=0,\" \",COUNTRY_INFO!C50)))","v":" "},{"$f":"IF(INTRO!$E$39<>\"Non-endemic\", 0, IF(INTRO!$E$37=\"Non-endemic\",0,IF(COUNTRY_INFO!$H50=1,COUNTRY_INFO!E50,0)))","v":0},{"$f":"IF(INTRO!$E$39<>\"Non-endemic\", 0, IF(INTRO!$E$37=\"Non-endemic\",0,IF(COUNTRY_INFO!$H50=1,COUNTRY_INFO!F50,0)))","v":0},{"$f":"IF(INTRO!$E$39<>\"Non-endemic\", 0, IF(INTRO!$E$37=\"Non-endemic\",0,IF(COUNTRY_INFO!$H50=1,COUNTRY_INFO!G50,0)))","v":0},0,{"$f":"IF(INTRO!$E$39=\"Non-endemic\",IF(INTRO!$E$37=\"Non-endemic\",\"Not required\",COUNTRY_INFO!V50),\"Treat with IVM\")","v":"Not required"},0,0,null,0]
[{"$f":"IF(INTRO!$E$39<>\"Non-endemic\", \" \", IF(INTRO!$E$37=\"Non-endemic\",\" \", IF(COUNTRY_INFO!A51=0,\" \",COUNTRY_INFO!A51)))","v":" "},{"$f":"IF(INTRO!$E$39<>\"Non-endemic\", \" \", IF(INTRO!$E$37=\"Non-endemic\",\" \", IF(COUNTRY_INFO!B51=0,\" \",COUNTRY_INFO!B51)))","v":" "},{"$f":"IF(INTRO!$E$39<>\"Non-endemic\", \" \", IF(INTRO!$E$37=\"Non-endemic\",\" \", IF(COUNTRY_INFO!C51=0,\" \",COUNTRY_INFO!C51)))","v":" "},{"$f":"IF(INTRO!$E$39<>\"Non-endemic\", 0, IF(INTRO!$E$37=\"Non-endemic\",0,IF(COUNTRY_INFO!$H51=1,COUNTRY_INFO!E51,0)))","v":0},{"$f":"IF(INTRO!$E$39<>\"Non-endemic\", 0, IF(INTRO!$E$37=\"Non-endemic\",0,IF(COUNTRY_INFO!$H51=1,COUNTRY_INFO!F51,0)))","v":0},{"$f":"IF(INTRO!$E$39<>\"Non-endemic\", 0, IF(INTRO!$E$37=\"Non-endemic\",0,IF(COUNTRY_INFO!$H51=1,COUNTRY_INFO!G51,0)))","v":0},0,{"$f":"IF(INTRO!$E$39=\"Non-endemic\",IF(INTRO!$E$37=\"Non-endemic\",\"Not required\",COUNTRY_INFO!V51),\"Treat with IVM\")","v":"Not required"},0,0,null,0]
[{"$f":"IF(INTRO!$E$39<>\"Non-endemic\", \" \", IF(INTRO!$E$37=\"Non-endemic\",\" \", IF(COUNTRY_INFO!A52=0,\" \",COUNTRY_INFO!A52)))","v":" "},{"$f":"IF(INTRO!$E$39<>\"Non-endemic\", \" \", IF(INTRO!$E$37=\"Non-endemic\",\" \", IF(COUNTRY_INFO!B52=0,\" \",COUNTRY_INFO!B52)))","v":" "},{"$f":"IF(INTRO!$E$39<>\"Non-endemic\", \" \", IF(INTRO!$E$37=\"Non-endemic\",\" \", IF(COUNTRY_INFO!C52=0,\" \",COUNTRY_INFO!C52)))","v":" "},{"$f":"IF(INTRO!$E$39<>\"Non-endemic\", 0, IF(INTRO!$E$37=\"Non-endemic\",0,IF(COUNTRY_INFO!$H52=1,COUNTRY_INFO!E52,0)))","v":0},{"$f":"IF(INTRO!$E$39<>\"Non-endemic\", 0, IF(INTRO!$E$37=\"Non-endemic\",0,IF(COUNTRY_INFO!$H52=1,COUNTRY_INFO!F52,0)))","v":0},{"$f":"IF(INTRO!$E$39<>\"Non-endemic\", 0, IF(INTRO!$E$37=\"Non-endemic\",0,IF(COUNTRY_INFO!$H52=1,COUNTRY_INFO!G52,0)))","v":0},0,{"$f":"IF(INTRO!$E$39=\"Non-endemic\",IF(INTRO!$E$37=\"Non-endemic\",\"Not required\",COUNTRY_INFO!V52),\"Treat with IVM\")","v":"Not required"},0,0,null,0]
[{"$f":"IF(INTRO!$E$39<>\"Non-endemic\", \" \", IF(INTRO!$E$37=\"Non-endemic\",\" \", IF(COUNTRY_INFO!A53=0,\" \",COUNTRY_INFO!A53)))","v":" "},{"$f":"IF(INTRO!$E$39<>\"Non-endemic\", \" \", IF(INTRO!$E$37=\"Non-endemic\",\" \", IF(COUNTRY_INFO!B53=0,\" \",COUNTRY_INFO!B53)))","v":" "},{"$f":"IF(INTRO!$E$39<>\"Non-endemic\", \" \", IF(INTRO!$E$37=\"Non-endemic\",\" \", IF(COUNTRY_INFO!C53=0,\" \",COUNTRY_INFO!C53)))","v":" "},{"$f":"IF(INTRO!$E$39<>\"Non-endemic\", 0, IF(INTRO!$E$37=\"Non-endemic\",0,IF(COUNTRY_INFO!$H53=1,COUNTRY_INFO!E53,0)))","v":0},{"$f":"IF(INTRO!$E$39<>\"Non-endemic\", 0, IF(INTRO!$E$37=\"Non-endemic\",0,IF(COUNTRY_INFO!$H53=1,COUNTRY_INFO!F53,0)))","v":0},{"$f":"IF(INTRO!$E$39<>\"Non-endemic\", 0, IF(INTRO!$E$37=\"Non-endemic\",0,IF(COUNTRY_INFO!$H53=1,COUNTRY_INFO!G53,0)))","v":0},0,{"$f":"IF(INTRO!$E$39=\"Non-endemic\",IF(INTRO!$E$37=\"Non-endemic\",\"Not required\",COUNTRY_INFO!V53),\"Treat with IVM\")","v":"Not required"},0,0,null,0]

{"sheet":"ALB_MBD","index":3,"n_rows":53,"n_cols":21,"rows_kept":53,"cut":false,"hidden":false,"merged":[[6,9,6,10],[6,11,7,11],[0,6,0,10],[1,6,1,7],[1,9,1,10],[5,6,5,11],[6,6,6,7],[3,0,3,2],[3,3,3,4],[5,0,5,2],[5,3,5,4],[5,5,7,5],[6,0,7,0],[6,1,7,1],[6,2,7,2],[6,3,7,3],[6,4,7,4],[5,12,5,17],[6,20,7,20],[5,18,5,20],[6,18,7,18],[6,19,7,19],[6,16,7,16],[6,17,7,17],[6,15,7,15],[6,12,7,12],[6,13,7,13],[6,14,7,14]]}
["Albendazole (ALB) and Mebendazole (MBD)",null,null,null,null,null,"Select medicine for treatment of STH for each age group"]
["Administrative structure, eligible population by age group, treatment plan and information about tablets",null,null,null,null,null,"ALB",null,"ALB","ALB"]
[]
["TOTAL",null,null,null,null,{"$f":"SUBTOTAL(9,F$10:F$1010)","v":0},null,{"$f":"SUBTOTAL(9,H$10:H$1010)","v":26112},58709,null,50264,135085,0,0,0,135085,0,135085,0,0,0]
[]
["Country administrative structure",null,null,"Treatment plan",null,"People targeted by PELF with ALB","Target population for STH",null,null,null,null,null,"Albendazole (ALB)",null,null,null,null,null,"Mebendazole (MBD)"]
["Country","Province/State","District","LF","STH",null,"PreSAC",null,"SAC","WRA",null,"Total","Total required","Remaining in stock (LF)","Tablets to be procured (LF)","Total required","Remaining in stock (STH)","Tablets to be procured (STH)","Total required","Remaining in stock","Tablets to be procured"]
[null,null,null,null,null,null,"Rounds","People","People","Rounds","People"]
[]
[{"$f":"IF(AND(INTRO!$E$37=\"Non-endemic\",INTRO!$E$41=\"Non-endemic\"),\" \",IF(COUNTRY_INFO!A10=0,\" \",COUNTRY_INFO!A10))","v":"The Gambia"},{"$f":"IF(AND(INTRO!$E$37=\"Non-endemic\",INTRO!$E$41=\"Non-endemic\"),\" \",IF(COUNTRY_INFO!B10=0,\" \",COUNTRY_INFO!B10))","v":"CRR"},{"$f":"IF(AND(INTRO!$E$37=\"Non-endemic\",INTRO!$E$41=\"Non-endemic\"),\" \",IF(COUNTRY_INFO!C10=0,\" \",COUNTRY_INFO!C10))","v":"Janjanbureh"},{"$f":"IF(AND(INTRO!$E$37=\"Non-endemic\",INTRO!$E$41=\"Non-endemic\"),0,COUNTRY_INFO!V10)","v":0},{"$f":"IF(AND(INTRO!$E$37=\"Non-endemic\",INTRO!$E$41=\"Non-endemic\"),0,COUNTRY_INFO!X10)","v":0},{"$f":"IF(INTRO!$E$39=\"Non-endemic\",IF($D10=1,DEC!I10,0),IF($D10=1,IVM!G10,0))","v":0},null,{"$f":"IF(OR(COUNTRY_INFO!N10=\"Unknown\",COUNTRY_INFO!N10=\"Surveillance\",COUNTRY_INFO!N10=\"Not required\",COUNTRY_INFO!N10=0),0,IF(INTRO!$E$39=\"Non-endemic\",IF(AND($E10<>0,$G10=\"\"),IF($F10=0,COUNTRY_INFO!N10*$E10,COUNTRY_INFO!N10*($E10-$D10)),IF(AND($E10<>0,$G10<>0),IF($F10=0,COUNTRY_INFO!N10*$G10,COUNTRY_INFO!N10*($G10-$D10)),0)),IF($G10=\"\",COUNTRY_INFO!N10*$E10,COUNTRY_INFO!N10*$G10)))","v":0},{"$f":"IF(OR(COUNTRY_INFO!O10=\"Unknown\",COUNTRY_INFO!O10=\"Surveillance\",COUNTRY_INFO!O10=\"Not required\",COUNTRY_INFO!O10=0),0,IF($E10<>0, IF($F10=0,COUNTRY_INFO!O10*$E10,COUNTRY_INFO!O10*($E10-$D10)),COUNTRY_INFO!O10*$E10))","v":0},null,{"$f":"IF(OR(COUNTRY_INFO!P10=\"Unknown\",COUNTRY_INFO!P10=\"Surveillance\",COUNTRY_INFO!P10=\"Not required\",COUNTRY_INFO!P10=0),0,IF(AND($E10<>0,$J10=\"\"),IF($F10=0,COUNTRY_INFO!P10*$E10,COUNTRY_INFO!P10*($E10-$D10)), IF(AND($E10<>0,$J10<>0),IF($F10=0,COUNTRY_INFO!P10*$J10,COUNTRY_INFO!P10*($J10-$D10)), COUNTRY_INFO!P10*$J10)))","v":0},{"$f":"ROUND($H10,0)+ROUND($I10,0)+ROUND($K10,0)","v":0},{"$f":"$F10","v":0},null,{"$f":"IF($M10>$N10, $M10-$N10,0)","v":0},{"$f":"ROUND((IF($G$2=\"ALB\",$H10,0)+IF($I$2=\"ALB\",$I10,0)+IF($J$2=\"ALB\",$K10,0)),0)","v":0},null,{"$f":"IF($P10>$Q10,$P10-$Q10,0)","v":0},{"$f":"ROUND((IF($G$2=\"MBD\",$H10,0)+IF($I$2=\"MBD\",$I10,0)+IF($J$2=\"MBD\",$K10,0)),0)","v":0},null,{"$f":"IF($S10>$T10,$S10-$T10,0)","v":0}]
[{"$f":"IF(AND(INTRO!$E$37=\"Non-endemic\",INTRO!$E$41=\"Non-endemic\"),\" \",IF(COUNTRY_INFO!A11=0,\" \",COUNTRY_INFO!A11))","v":"The Gambia"},{"$f":"IF(AND(INTRO!$E$37=\"Non-endemic\",INTRO!$E$41=\"Non-endemic\"),\" \",IF(COUNTRY_INFO!B11=0,\" \",COUNTRY_INFO!B11))","v":"CRR"},{"$f":"IF(AND(INTRO!$E$37=\"Non-endemic\",INTRO!$E$41=\"Non-endemic\"),\" \",IF(COUNTRY_INFO!C11=0,\" \",COUNTRY_INFO!C11))","v":"Lower Fulladou West"},{"$f":"IF(AND(INTRO!$E$37=\"Non-endemic\",INTRO!$E$41=\"Non-endemic\"),0,COUNTRY_INFO!V11)","v":0},{"$f":"IF(AND(INTRO!$E$37=\"Non-endemic\",INTRO!$E$41=\"Non-endemic\"),0,COUNTRY_INFO!X11)","v":0},{"$f":"IF(INTRO!$E$39=\"Non-endemic\",IF($D11=1,DEC!I11,0),IF($D11=1,IVM!G11,0))","v":0},null,{"$f":"IF(OR(COUNTRY_INFO!N11=\"Unknown\",COUNTRY_INFO!N11=\"Surveillance\",COUNTRY_INFO!N11=\"Not required\",COUNTRY_INFO!N11=0),0,IF(INTRO!$E$39=\"Non-endemic\",IF(AND($E11<>0,$G11=\"\"),IF($F11=0,COUNTRY_INFO!N11*$E11,COUNTRY_INFO!N11*($E11-$D11)),IF(AND($E11<>0,$G11<>0),IF($F11=0,COUNTRY_INFO!N11*$G11,COUNTRY_INFO!N11*($G11-$D11)),0)),IF($G11=\"\",COUNTRY_INFO!N11*$E11,COUNTRY_INFO!N11*$G11)))","v":0},{"$f":"IF(OR(COUNTRY_INFO!O11=\"Unknown\",COUNTRY_INFO!O11=\"Surveillance\",COUNTRY_INFO!O11=\"Not required\",COUNTRY_INFO!O11=0),0,IF($E11<>0, IF($F11=0,COUNTRY_INFO!O11*$E11,COUNTRY_INFO!O11*($E11-$D11)),COUNTRY_INFO!O11*$E11))","v":0},null,{"$f":"IF(OR(COUNTRY_INFO!P11=\"Unknown\",COUNTRY_INFO!P11=\"Surveillance\",COUNTRY_INFO!P11=\"Not required\",COUNTRY_INFO!P11=0),0,IF(AND($E11<>0,$J11=\"\"),IF($F11=0,COUNTRY_INFO!P11*$E11,COUNTRY_INFO!P11*($E11-$D11)), IF(AND($E11<>0,$J11<>0),IF($F11=0,COUNTRY_INFO!P11*$J11,COUNTRY_INFO!P11*($J11-$D11)), COUNTRY_INFO!P11*$J11)))","v":0},0,0,null,0,0,null,0,0,null,0]
[{"$f":"IF(AND(INTRO!$E$37=\"Non-endemic\",INTRO!$E$41=\"Non-endemic\"),\" \",IF(COUNTRY_INFO!A12=0,\" \",COUNTRY_INFO!A12))","v":"The Gambia"},{"$f":"IF(AND(INTRO!$E$37=\"Non-endemic\",INTRO!$E$41=\"Non-endemic\"),\" \",IF(COUNTRY_INFO!B12=0,\" \",COUNTRY_INFO!B12))","v":"CRR"},{"$f":"IF(AND(INTRO!$E$37=\"Non-endemic\",INTRO!$E$41=\"Non-endemic\"),\" \",IF(COUNTRY_INFO!C12=0,\" \",COUNTRY_INFO!C12))","v":"Lower Saloum"},{"$f":"IF(AND(INTRO!$E$37=\"Non-endemic\",INTRO!$E$41=\"Non-endemic\"),0,COUNTRY_INFO!V12)","v":0},{"$f":"IF(AND(INTRO!$E$37=\"Non-endemic\",INTRO!$E$41=\"Non-endemic\"),0,COUNTRY_INFO!X12)","v":0},{"$f":"IF(INTRO!$E$39=\"Non-endemic\",IF($D12=1,DEC!I12,0),IF($D12=1,IVM!G12,0))","v":0},null,{"$f":"IF(OR(COUNTRY_INFO!N12=\"Unknown\",COUNTRY_INFO!N12=\"Surveillance\",COUNTRY_INFO!N12=\"Not required\",COUNTRY_INFO!N12=0),0,IF(INTRO!$E$39=\"Non-endemic\",IF(AND($E12<>0,$G12=\"\"),IF($F12=0,COUNTRY_INFO!N12*$E12,COUNTRY_INFO!N12*($E12-$D12)),IF(AND($E12<>0,$G12<>0),IF($F12=0,COUNTRY_INFO!N12*$G12,COUNTRY_INFO!N12*($G12-$D12)),0)),IF($G12=\"\",COUNTRY_INFO!N12*$E12,COUNTRY_INFO!N12*$G12)))","v":0},{"$f":"IF(OR(COUNTRY_INFO!O12=\"Unknown\",COUNTRY_INFO!O12=\"Surveillance\",COUNTRY_INFO!O12=\"Not required\",COUNTRY_INFO!O12=0),0,IF($E12<>0, IF($F12=0,COUNTRY_INFO!O12*$E12,COUNTRY_INFO!O12*($E12-$D12)),COUNTRY_INFO!O12*$E12))","v":0},null,{"$f":"IF(OR(COUNTRY_INFO!P12=\"Unknown\",COUNTRY_INFO!P12=\"Surveillance\",COUNTRY_INFO!P12=\"Not required\",COUNTRY_INFO!P12=0),0,IF(AND($E12<>0,$J12=\"\"),IF($F12=0,COUNTRY_INFO!P12*$E12,COUNTRY_INFO!P12*($E12-$D12)), IF(AND($E12<>0,$J12<>0),IF($F12=0,COUNTRY_INFO!P12*$J12,COUNTRY_INFO!P12*($J12-$D12)), COUNTRY_INFO!P12*$J12)))","v":0},0,0,null,0,0,null,0,0,null,0]
[{"$f":"IF(AND(INTRO!$E$37=\"Non-endemic\",INTRO!$E$41=\"Non-endemic\"),\" \",IF(COUNTRY_INFO!A13=0,\" \",COUNTRY_INFO!A13))","v":"The Gambia"},{"$f":"IF(AND(INTRO!$E$37=\"Non-endemic\",INTRO!$E$41=\"Non-endemic\"),\" \",IF(COUNTRY_INFO!B13=0,\" \",COUNTRY_INFO!B13))","v":"CRR"},{"$f":"IF(AND(INTRO!$E$37=\"Non-endemic\",INTRO!$E$41=\"Non-endemic\"),\" \",IF(COUNTRY_INFO!C13=0,\" \",COUNTRY_INFO!C13))","v":"Niamina Dankunku"},{"$f":"IF(AND(INTRO!$E$37=\"Non-endemic\",INTRO!$E$41=\"Non-endemic\"),0,COUNTRY_INFO!V13)","v":0},{"$f":"IF(AND(INTRO!$E$37=\"Non-endemic\",INTRO!$E$41=\"Non-endemic\"),0,COUNTRY_INFO!X13)","v":0},{"$f":"IF(INTRO!$E$39=\"Non-endemic\",IF($D13=1,DEC!I13,0),IF($D13=1,IVM!G13,0))","v":0},null,{"$f":"IF(OR(COUNTRY_INFO!N13=\"Unknown\",COUNTRY_INFO!N13=\"Surveillance\",COUNTRY_INFO!N13=\"Not required\",COUNTRY_INFO!N13=0),0,IF(INTRO!$E$39=\"Non-endemic\",IF(AND($E13<>0,$G13=\"\"),IF($F13=0,COUNTRY_INFO!N13*$E13,COUNTRY_INFO!N13*($E13-$D13)),IF(AND($E13<>0,$G13<>0),IF($F13=0,COUNTRY_INFO!N13*$G13,COUNTRY_INFO!N13*($G13-$D13)),0)),IF($G13=\"\",COUNTRY_INFO!N13*$E13,COUNTRY_INFO!N13*$G13)))","v":0},{"$f":"IF(OR(COUNTRY_INFO!O13=\"Unknown\",COUNTRY_INFO!O13=\"Surveillance\",COUNTRY_INFO!O13=\"Not required\",COUNTRY_INFO!O13=0),0,IF($E13<>0, IF($F13=0,COUNTRY_INFO!O13*$E13,COUNTRY_INFO!O13*($E13-$D13)),COUNTRY_INFO!O13*$E13))","v":0},null,{"$f":"IF(OR(COUNTRY_INFO!P13=\"Unknown\",COUNTRY_INFO!P13=\"Surveillance\",COUNTRY_INFO!P13=\"Not required\",COUNTRY_INFO!P13=0),0,IF(AND($E13<>0,$J13=\"\"),IF($F13=0,COUNTRY_INFO!P13*$E13,COUNTRY_INFO!P13*($E13-$D13)), IF(AND($E13<>0,$J13<>0),IF($F13=0,COUNTRY_INFO!P13*$J13,COUNTRY_INFO!P13*($J13-$D13)), COUNTRY_INFO!P13*$J13)))","v":0},0,0,null,0,0,null,0,0,null,0]
[{"$f":"IF(AND(INTRO!$E$37=\"Non-endemic\",INTRO!$E$41=\"Non-endemic\"),\" \",IF(COUNTRY_INFO!A14=0,\" \",COUNTRY_INFO!A14))","v":"The Gambia"},{"$f":"IF(AND(INTRO!$E$37=\"Non-endemic\",INTRO!$E$41=\"Non-endemic\"),\" \",IF(COUNTRY_INFO!B14=0,\" \",COUNTRY_INFO!B14))","v":"CRR"},{"$f":"IF(AND(INTRO!$E$37=\"Non-endemic\",INTRO!$E$41=\"Non-endemic\"),\" \",IF(COUNTRY_INFO!C14=0,\" \",COUNTRY_INFO!C14))","v":"Niamina East"},{"$f":"IF(AND(INTRO!$E$37=\"Non-endemic\",INTRO!$E$41=\"Non-endemic\"),0,COUNTRY_INFO!V14)","v":0},{"$f":"IF(AND(INTRO!$E$37=\"Non-endemic\",INTRO!$E$41=\"Non-endemic\"),0,COUNTRY_INFO!X14)","v":0},{"$f":"IF(INTRO!$E$39=\"Non-endemic\",IF($D14=1,DEC!I14,0),IF($D14=1,IVM!G14,0))","v":0},null,{"$f":"IF(OR(COUNTRY_INFO!N14=\"Unknown\",COUNTRY_INFO!N14=\"Surveillance\",COUNTRY_INFO!N14=\"Not required\",COUNTRY_INFO!N14=0),0,IF(INTRO!$E$39=\"Non-endemic\",IF(AND($E14<>0,$G14=\"\"),IF($F14=0,COUNTRY_INFO!N14*$E14,COUNTRY_INFO!N14*($E14-$D14)),IF(AND($E14<>0,$G14<>0),IF($F14=0,COUNTRY_INFO!N14*$G14,COUNTRY_INFO!N14*($G14-$D14)),0)),IF($G14=\"\",COUNTRY_INFO!N14*$E14,COUNTRY_INFO!N14*$G14)))","v":0},{"$f":"IF(OR(COUNTRY_INFO!O14=\"Unknown\",COUNTRY_INFO!O14=\"Surveillance\",COUNTRY_INFO!O14=\"Not required\",COUNTRY_INFO!O14=0),0,IF($E14<>0, IF($F14=0,COUNTRY_INFO!O14*$E14,COUNTRY_INFO!O14*($E14-$D14)),COUNTRY_INFO!O14*$E14))","v":0},null,{"$f":"IF(OR(COUNTRY_INFO!P14=\"Unknown\",COUNTRY_INFO!P14=\"Surveillance\",COUNTRY_INFO!P14=\"Not required\",COUNTRY_INFO!P14=0),0,IF(AND($E14<>0,$J14=\"\"),IF($F14=0,COUNTRY_INFO!P14*$E14,COUNTRY_INFO!P14*($E14-$D14)), IF(AND($E14<>0,$J14<>0),IF($F14=0,COUNTRY_INFO!P14*$J14,COUNTRY_INFO!P14*($J14-$D14)), COUNTRY_INFO!P14*$J14)))","v":0},0,0,null,0,0,null,0,0,null,0]
[{"$f":"IF(AND(INTRO!$E$37=\"Non-endemic\",INTRO!$E$41=\"Non-endemic\"),\" \",IF(COUNTRY_INFO!A15=0,\" \",COUNTRY_INFO!A15))","v":"The Gambia"},{"$f":"IF(AND(INTRO!$E$37=\"Non-endemic\",INTRO!$E$41=\"Non-endemic\"),\" \",IF(COUNTRY_INFO!B15=0,\" \",COUNTRY_INFO!B15))","v":"CRR"},{"$f":"IF(AND(INTRO!$E$37=\"Non-endemic\",INTRO!$E$41=\"Non-endemic\"),\" \",IF(COUNTRY_INFO!C15=0,\" \",COUNTRY_INFO!C15))","v":"Niamina West"},{"$f":"IF(AND(INTRO!$E$37=\"Non-endemic\",INTRO!$E$41=\"Non-endemic\"),0,COUNTRY_INFO!V15)","v":0},{"$f":"IF(AND(INTRO!$E$37=\"Non-endemic\",INTRO!$E$41=\"Non-endemic\"),0,COUNTRY_INFO!X15)","v":0},{"$f":"IF(INTRO!$E$39=\"Non-endemic\",IF($D15=1,DEC!I15,0),IF($D15=1,IVM!G15,0))","v":0},null,{"$f":"IF(OR(COUNTRY_INFO!N15=\"Unknown\",COUNTRY_INFO!N15=\"Surveillance\",COUNTRY_INFO!N15=\"Not required\",COUNTRY_INFO!N15=0),0,IF(INTRO!$E$39=\"Non-endemic\",IF(AND($E15<>0,$G15=\"\"),IF($F15=0,COUNTRY_INFO!N15*$E15,COUNTRY_INFO!N15*($E15-$D15)),IF(AND($E15<>0,$G15<>0),IF($F15=0,COUNTRY_INFO!N15*$G15,COUNTRY_INFO!N15*($G15-$D15)),0)),IF($G15=\"\",COUNTRY_INFO!N15*$E15,COUNTRY_INFO!N15*$G15)))","v":0},{"$f":"IF(OR(COUNTRY_INFO!O15=\"Unknown\",COUNTRY_INFO!O15=\"Surveillance\",COUNTRY_INFO!O15=\"Not required\",COUNTRY_INFO!O15=0),0,IF($E15<>0, IF($F15=0,COUNTRY_INFO!O15*$E15,COUNTRY_INFO!O15*($E15-$D15)),COUNTRY_INFO!O15*$E15))","v":0},null,{"$f":"IF(OR(COUNTRY_INFO!P15=\"Unknown\",COUNTRY_INFO!P15=\"Surveillance\",COUNTRY_INFO!P15=\"Not required\",COUNTRY_INFO!P15=0),0,IF(AND($E15<>0,$J15=\"\"),IF($F15=0,COUNTRY_INFO!P15*$E15,COUNTRY_INFO!P15*($E15-$D15)), IF(AND($E15<>0,$J15<>0),IF($F15=0,COUNTRY_INFO!P15*$J15,COUNTRY_INFO!P15*($J15-$D15)), COUNTRY_INFO!P15*$J15)))","v":0},0,0,null,0,0,null,0,0,null,0]
[{"$f":"IF(AND(INTRO!$E$37=\"Non-endemic\",INTRO!$E$41=\"Non-endemic\"),\" \",IF(COUNTRY_INFO!A16=0,\" \",COUNTRY_INFO!A16))","v":"The Gambia"},{"$f":"IF(AND(INTRO!$E$37=\"Non-endemic\",INTRO!$E$41=\"Non-endemic\"),\" \",IF(COUNTRY_INFO!B16=0,\" \",COUNTRY_INFO!B16))","v":"CRR"},{"$f":"IF(AND(INTRO!$E$37=\"Non-endemic\",INTRO!$E$41=\"Non-endemic\"),\" \",IF(COUNTRY_INFO!C16=0,\" \",COUNTRY_INFO!C16))","v":"Niani"},{"$f":"IF(AND(INTRO!$E$37=\"Non-endemic\",INTRO!$E$41=\"Non-endemic\"),0,COUNTRY_INFO!V16)","v":0},{"$f":"IF(AND(INTRO!$E$37=\"Non-endemic\",INTRO!$E$41=\"Non-endemic\"),0,COUNTRY_INFO!X16)","v":0},{"$f":"IF(INTRO!$E$39=\"Non-endemic\",IF($D16=1,DEC!I16,0),IF($D16=1,IVM!G16,0))","v":0},null,{"$f":"IF(OR(COUNTRY_INFO!N16=\"Unknown\",COUNTRY_INFO!N16=\"Surveillance\",COUNTRY_INFO!N16=\"Not required\",COUNTRY_INFO!N16=0),0,IF(INTRO!$E$39=\"Non-endemic\",IF(AND($E16<>0,$G16=\"\"),IF($F16=0,COUNTRY_INFO!N16*$E16,COUNTRY_INFO!N16*($E16-$D16)),IF(AND($E16<>0,$G16<>0),IF($F16=0,COUNTRY_INFO!N16*$G16,COUNTRY_INFO!N16*($G16-$D16)),0)),IF($G16=\"\",COUNTRY_INFO!N16*$E16,COUNTRY_INFO!N16*$G16)))","v":0},{"$f":"IF(OR(COUNTRY_INFO!O16=\"Unknown\",COUNTRY_INFO!O16=\"Surveillance\",COUNTRY_INFO!O16=\"Not required\",COUNTRY_INFO!O16=0),0,IF($E16<>0, IF($F16=0,COUNTRY_INFO!O16*$E16,COUNTRY_INFO!O16*($E16-$D16)),COUNTRY_INFO!O16*$E16))","v":0},null,{"$f":"IF(OR(COUNTRY_INFO!P16=\"Unknown\",COUNTRY_INFO!P16=\"Surveillance\",COUNTRY_INFO!P16=\"Not required\",COUNTRY_INFO!P16=0),0,IF(AND($E16<>0,$J16=\"\"),IF($F16=0,COUNTRY_INFO!P16*$E16,COUNTRY_INFO!P16*($E16-$D16)), IF(AND($E16<>0,$J16<>0),IF($F16=0,COUNTRY_INFO!P16*$J16,COUNTRY_INFO!P16*($J16-$D16)), COUNTRY_INFO!P16*$J16)))","v":0},0,0,null,0,0,null,0,0,null,0]
[{"$f":"IF(AND(INTRO!$E$37=\"Non-endemic\",INTRO!$E$41=\"Non-endemic\"),\" \",IF(COUNTRY_INFO!A17=0,\" \",COUNTRY_INFO!A17))","v":"The Gambia"},{"$f":"IF(AND(INTRO!$E$37=\"Non-endemic\",INTRO!$E$41=\"Non-endemic\"),\" \",IF(COUNTRY_INFO!B17=0,\" \",COUNTRY_INFO!B17))","v":"CRR"},{"$f":"IF(AND(INTRO!$E$37=\"Non-endemic\",INTRO!$E$41=\"Non-endemic\"),\" \",IF(COUNTRY_INFO!C17=0,\" \",COUNTRY_INFO!C17))","v":"Nianija"},{"$f":"IF(AND(INTRO!$E$37=\"Non-endemic\",INTRO!$E$41=\"Non-endemic\"),0,COUNTRY_INFO!V17)","v":0},{"$f":"IF(AND(INTRO!$E$37=\"Non-endemic\",INTRO!$E$41=\"Non-endemic\"),0,COUNTRY_INFO!X17)","v":0},{"$f":"IF(INTRO!$E$39=\"Non-endemic\",IF($D17=1,DEC!I17,0),IF($D17=1,IVM!G17,0))","v":0},null,{"$f":"IF(OR(COUNTRY_INFO!N17=\"Unknown\",COUNTRY_INFO!N17=\"Surveillance\",COUNTRY_INFO!N17=\"Not required\",COUNTRY_INFO!N17=0),0,IF(INTRO!$E$39=\"Non-endemic\",IF(AND($E17<>0,$G17=\"\"),IF($F17=0,COUNTRY_INFO!N17*$E17,COUNTRY_INFO!N17*($E17-$D17)),IF(AND($E17<>0,$G17<>0),IF($F17=0,COUNTRY_INFO!N17*$G17,COUNTRY_INFO!N17*($G17-$D17)),0)),IF($G17=\"\",COUNTRY_INFO!N17*$E17,COUNTRY_INFO!N17*$G17)))","v":0},{"$f":"IF(OR(COUNTRY_INFO!O17=\"Unknown\",COUNTRY_INFO!O17=\"Surveillance\",COUNTRY_INFO!O17=\"Not required\",COUNTRY_INFO!O17=0),0,IF($E17<>0, IF($F17=0,COUNTRY_INFO!O17*$E17,COUNTRY_INFO!O17*($E17-$D17)),COUNTRY_INFO!O17*$E17))","v":0},null,{"$f":"IF(OR(COUNTRY_INFO!P17=\"Unknown\",COUNTRY_INFO!P17=\"Surveillance\",COUNTRY_INFO!P17=\"Not required\",COUNTRY_INFO!P17=0),0,IF(AND($E17<>0,$J17=\"\"),IF($F17=0,COUNTRY_INFO!P17*$E17,COUNTRY_INFO!P17*($E17-$D17)), IF(AND($E17<>0,$J17<>0),IF($F17=0,COUNTRY_INFO!P17*$J17,COUNTRY_INFO!P17*($J17-$D17)), COUNTRY_INFO!P17*$J17)))","v":0},0,0,null,0,0,null,0,0,null,0]
[{"$f":"IF(AND(INTRO!$E$37=\"Non-endemic\",INTRO!$E$41=\"Non-endemic\"),\" \",IF(COUNTRY_INFO!A18=0,\" \",COUNTRY_INFO!A18))","v":"The Gambia"},{"$f":"IF(AND(INTRO!$E$37=\"Non-endemic\",INTRO!$E$41=\"Non-endemic\"),\" \",IF(COUNTRY_INFO!B18=0,\" \",COUNTRY_INFO!B18))","v":"CRR"},{"$f":"IF(AND(INTRO!$E$37=\"Non-endemic\",INTRO!$E$41=\"Non-endemic\"),\" \",IF(COUNTRY_INFO!C18=0,\" \",COUNTRY_INFO!C18))","v":"Sami"},{"$f":"IF(AND(INTRO!$E$37=\"Non-endemic\",INTRO!$E$41=\"Non-endemic\"),0,COUNTRY_INFO!V18)","v":0},{"$f":"IF(AND(INTRO!$E$37=\"Non-endemic\",INTRO!$E$41=\"Non-endemic\"),0,COUNTRY_INFO!X18)","v":0},{"$f":"IF(INTRO!$E$39=\"Non-endemic\",IF($D18=1,DEC!I18,0),IF($D18=1,IVM!G18,0))","v":0},null,{"$f":"IF(OR(COUNTRY_INFO!N18=\"Unknown\",COUNTRY_INFO!N18=\"Surveillance\",COUNTRY_INFO!N18=\"Not required\",COUNTRY_INFO!N18=0),0,IF(INTRO!$E$39=\"Non-endemic\",IF(AND($E18<>0,$G18=\"\"),IF($F18=0,COUNTRY_INFO!N18*$E18,COUNTRY_INFO!N18*($E18-$D18)),IF(AND($E18<>0,$G18<>0),IF($F18=0,COUNTRY_INFO!N18*$G18,COUNTRY_INFO!N18*($G18-$D18)),0)),IF($G18=\"\",COUNTRY_INFO!N18*$E18,COUNTRY_INFO!N18*$G18)))","v":0},{"$f":"IF(OR(COUNTRY_INFO!O18=\"Unknown\",COUNTRY_INFO!O18=\"Surveillance\",COUNTRY_INFO!O18=\"Not required\",COUNTRY_INFO!O18=0),0,IF($E18<>0, IF($F18=0,COUNTRY_INFO!O18*$E18,COUNTRY_INFO!O18*($E18-$D18)),COUNTRY_INFO!O18*$E18))","v":0},null,{"$f":"IF(OR(COUNTRY_INFO!P18=\"Unknown\",COUNTRY_INFO!P18=\"Surveillance\",COUNTRY_INFO!P18=\"Not required\",COUNTRY_INFO!P18=0),0,IF(AND($E18<>0,$J18=\"\"),IF($F18=0,COUNTRY_INFO!P18*$E18,COUNTRY_INFO!P18*($E18-$D18)), IF(AND($E18<>0,$J18<>0),IF($F18=0,COUNTRY_INFO!P18*$J18,COUNTRY_INFO!P18*($J18-$D18)), COUNTRY_INFO!P18*$J18)))","v":0},0,0,null,0,0,null,0,0,null,0]
[{"$f":"IF(AND(INTRO!$E$37=\"Non-endemic\",INTRO!$E$41=\"Non-endemic\"),\" \",IF(COUNTRY_INFO!A19=0,\" \",COUNTRY_INFO!A19))","v":"The Gambia"},{"$f":"IF(AND(INTRO!$E$37=\"Non-endemic\",INTRO!$E$41=\"Non-endemic\"),\" \",IF(COUNTRY_INFO!B19=0,\" \",COUNTRY_INFO!B19))","v":"CRR"},{"$f":"IF(AND(INTRO!$E$37=\"Non-endemic\",INTRO!$E$41=\"Non-endemic\"),\" \",IF(COUNTRY_INFO!C19=0,\" \",COUNTRY_INFO!C19))","v":"Upper Fulladou West"},{"$f":"IF(AND(INTRO!$E$37=\"Non-endemic\",INTRO!$E$41=\"Non-endemic\"),0,COUNTRY_INFO!V19)","v":0},{"$f":"IF(AND(INTRO!$E$37=\"Non-endemic\",INTRO!$E$41=\"Non-endemic\"),0,COUNTRY_INFO!X19)","v":0},{"$f":"IF(INTRO!$E$39=\"Non-endemic\",IF($D19=1,DEC!I19,0),IF($D19=1,IVM!G19,0))","v":0},null,{"$f":"IF(OR(COUNTRY_INFO!N19=\"Unknown\",COUNTRY_INFO!N19=\"Surveillance\",COUNTRY_INFO!N19=\"Not required\",COUNTRY_INFO!N19=0),0,IF(INTRO!$E$39=\"Non-endemic\",IF(AND($E19<>0,$G19=\"\"),IF($F19=0,COUNTRY_INFO!N19*$E19,COUNTRY_INFO!N19*($E19-$D19)),IF(AND($E19<>0,$G19<>0),IF($F19=0,COUNTRY_INFO!N19*$G19,COUNTRY_INFO!N19*($G19-$D19)),0)),IF($G19=\"\",COUNTRY_INFO!N19*$E19,COUNTRY_INFO!N19*$G19)))","v":0},{"$f":"IF(OR(COUNTRY_INFO!O19=\"Unknown\",COUNTRY_INFO!O19=\"Surveillance\",COUNTRY_INFO!O19=\"Not required\",COUNTRY_INFO!O19=0),0,IF($E19<>0, IF($F19=0,COUNTRY_INFO!O19*$E19,COUNTRY_INFO!O19*($E19-$D19)),COUNTRY_INFO!O19*$E19))","v":0},null,{"$f":"IF(OR(COUNTRY_INFO!P19=\"Unknown\",COUNTRY_INFO!P19=\"Surveillance\",COUNTRY_INFO!P19=\"Not required\",COUNTRY_INFO!P19=0),0,IF(AND($E19<>0,$J19=\"\"),IF($F19=0,COUNTRY_INFO!P19*$E19,COUNTRY_INFO!P19*($E19-$D19)), IF(AND($E19<>0,$J19<>0),IF($F19=0,COUNTRY_INFO!P19*$J19,COUNTRY_INFO!P19*($J19-$D19)), COUNTRY_INFO!P19*$J19)))","v":0},0,0,null,0,0,null,0,0,null,0]
[{"$f":"IF(AND(INTRO!$E$37=\"Non-endemic\",INTRO!$E$41=\"Non-endemic\"),\" \",IF(COUNTRY_INFO!A20=0,\" \",COUNTRY_INFO!A20))","v":"The Gambia"},{"$f":"IF(AND(INTRO!$E$37=\"Non-endemic\",INTRO!$E$41=\"Non-endemic\"),\" \",IF(COUNTRY_INFO!B20=0,\" \",COUNTRY_INFO!B20))","v":"CRR"},{"$f":"IF(AND(INTRO!$E$37=\"Non-endemic\",INTRO!$E$41=\"Non-endemic\"),\" \",IF(COUNTRY_INFO!C20=0,\" \",COUNTRY_INFO!C20))","v":"Upper Saloum"},{"$f":"IF(AND(INTRO!$E$37=\"Non-endemic\",INTRO!$E$41=\"Non-endemic\"),0,COUNTRY_INFO!V20)","v":0},{"$f":"IF(AND(INTRO!$E$37=\"Non-endemic\",INTRO!$E$41=\"Non-endemic\"),0,COUNTRY_INFO!X20)","v":0},{"$f":"IF(INTRO!$E$39=\"Non-endemic\",IF($D20=1,DEC!I20,0),IF($D20=1,IVM!G20,0))","v":0},null,{"$f":"IF(OR(COUNTRY_INFO!N20=\"Unknown\",COUNTRY_INFO!N20=\"Surveillance\",COUNTRY_INFO!N20=\"Not required\",COUNTRY_INFO!N20=0),0,IF(INTRO!$E$39=\"Non-endemic\",IF(AND($E20<>0,$G20=\"\"),IF($F20=0,COUNTRY_INFO!N20*$E20,COUNTRY_INFO!N20*($E20-$D20)),IF(AND($E20<>0,$G20<>0),IF($F20=0,COUNTRY_INFO!N20*$G20,COUNTRY_INFO!N20*($G20-$D20)),0)),IF($G20=\"\",COUNTRY_INFO!N20*$E20,COUNTRY_INFO!N20*$G20)))","v":0},{"$f":"IF(OR(COUNTRY_INFO!O20=\"Unknown\",COUNTRY_INFO!O20=\"Surveillance\",COUNTRY_INFO!O20=\"Not required\",COUNTRY_INFO!O20=0),0,IF($E20<>0, IF($F20=0,COUNTRY_INFO!O20*$E20,COUNTRY_INFO!O20*($E20-$D20)),COUNTRY_INFO!O20*$E20))","v":0},null,{"$f":"IF(OR(COUNTRY_INFO!P20=\"Unknown\",COUNTRY_INFO!P20=\"Surveillance\",COUNTRY_INFO!P20=\"Not required\",COUNTRY_INFO!P20=0),0,IF(AND($E20<>0,$J20=\"\"),IF($F20=0,COUNTRY_INFO!P20*$E20,COUNTRY_INFO!P20*($E20-$D20)), IF(AND($E20<>0,$J20<>0),IF($F20=0,COUNTRY_INFO!P20*$J20,COUNTRY_INFO!P20*($J20-$D20)), COUNTRY_INFO!P20*$J20)))","v":0},0,0,null,0,0,null,0,0,null,0]
[{"$f":"IF(AND(INTRO!$E$37=\"Non-endemic\",INTRO!$E$41=\"Non-endemic\"),\" \",IF(COUNTRY_INFO!A21=0,\" \",COUNTRY_INFO!A21))","v":"The Gambia"},{"$f":"IF(AND(INTRO!$E$37=\"Non-endemic\",INTRO!$E$41=\"Non-endemic\"),\" \",IF(COUNTRY_INFO!B21=0,\" \",COUNTRY_INFO!B21))","v":"LRR"},{"$f":"IF(AND(INTRO!$E$37=\"Non-endemic\",INTRO!$E$41=\"Non-endemic\"),\" \",IF(COUNTRY_INFO!C21=0,\" \",COUNTRY_INFO!C21))","v":"Jarra Central"},{"$f":"IF(AND(INTRO!$E$37=\"Non-endemic\",INTRO!$E$41=\"Non-endemic\"),0,COUNTRY_INFO!V21)","v":0},{"$f":"IF(AND(INTRO!$E$37=\"Non-endemic\",INTRO!$E$41=\"Non-endemic\"),0,COUNTRY_INFO!X21)","v":0},{"$f":"IF(INTRO!$E$39=\"Non-endemic\",IF($D21=1,DEC!I21,0),IF($D21=1,IVM!G21,0))","v":0},null,{"$f":"IF(OR(COUNTRY_INFO!N21=\"Unknown\",COUNTRY_INFO!N21=\"Surveillance\",COUNTRY_INFO!N21=\"Not required\",COUNTRY_INFO!N21=0),0,IF(INTRO!$E$39=\"Non-endemic\",IF(AND($E21<>0,$G21=\"\"),IF($F21=0,COUNTRY_INFO!N21*$E21,COUNTRY_INFO!N21*($E21-$D21)),IF(AND($E21<>0,$G21<>0),IF($F21=0,COUNTRY_INFO!N21*$G21,COUNTRY_INFO!N21*($G21-$D21)),0)),IF($G21=\"\",COUNTRY_INFO!N21*$E21,COUNTRY_INFO!N21*$G21)))","v":0},{"$f":"IF(OR(COUNTRY_INFO!O21=\"Unknown\",COUNTRY_INFO!O21=\"Surveillance\",COUNTRY_INFO!O21=\"Not required\",COUNTRY_INFO!O21=0),0,IF($E21<>0, IF($F21=0,COUNTRY_INFO!O21*$E21,COUNTRY_INFO!O21*($E21-$D21)),COUNTRY_INFO!O21*$E21))","v":0},null,{"$f":"IF(OR(COUNTRY_INFO!P21=\"Unknown\",COUNTRY_INFO!P21=\"Surveillance\",COUNTRY_INFO!P21=\"Not required\",COUNTRY_INFO!P21=0),0,IF(AND($E21<>0,$J21=\"\"),IF($F21=0,COUNTRY_INFO!P21*$E21,COUNTRY_INFO!P21*($E21-$D21)), IF(AND($E21<>0,$J21<>0),IF($F21=0,COUNTRY_INFO!P21*$J21,COUNTRY_INFO!P21*($J21-$D21)), COUNTRY_INFO!P21*$J21)))","v":0},0,0,null,0,0,null,0,0,null,0]
[{"$f":"IF(AND(INTRO!$E$37=\"Non-endemic\",INTRO!$E$41=\"Non-endemic\"),\" \",IF(COUNTRY_INFO!A22=0,\" \",COUNTRY_INFO!A22))","v":"The Gambia"},{"$f":"IF(AND(INTRO!$E$37=\"Non-endemic\",INTRO!$E$41=\"Non-endemic\"),\" \",IF(COUNTRY_INFO!B22=0,\" \",COUNTRY_INFO!B22))","v":"LRR"},{"$f":"IF(AND(INTRO!$E$37=\"Non-endemic\",INTRO!$E$41=\"Non-endemic\"),\" \",IF(COUNTRY_INFO!C22=0,\" \",COUNTRY_INFO!C22))","v":"Jarra East"},{"$f":"IF(AND(INTRO!$E$37=\"Non-endemic\",INTRO!$E$41=\"Non-endemic\"),0,COUNTRY_INFO!V22)","v":0},{"$f":"IF(AND(INTRO!$E$37=\"Non-endemic\",INTRO!$E$41=\"Non-endemic\"),0,COUNTRY_INFO!X22)","v":0},{"$f":"IF(INTRO!$E$39=\"Non-endemic\",IF($D22=1,DEC!I22,0),IF($D22=1,IVM!G22,0))","v":0},null,{"$f":"IF(OR(COUNTRY_INFO!N22=\"Unknown\",COUNTRY_INFO!N22=\"Surveillance\",COUNTRY_INFO!N22=\"Not required\",COUNTRY_INFO!N22=0),0,IF(INTRO!$E$39=\"Non-endemic\",IF(AND($E22<>0,$G22=\"\"),IF($F22=0,COUNTRY_INFO!N22*$E22,COUNTRY_INFO!N22*($E22-$D22)),IF(AND($E22<>0,$G22<>0),IF($F22=0,COUNTRY_INFO!N22*$G22,COUNTRY_INFO!N22*($G22-$D22)),0)),IF($G22=\"\",COUNTRY_INFO!N22*$E22,COUNTRY_INFO!N22*$G22)))","v":0},{"$f":"IF(OR(COUNTRY_INFO!O22=\"Unknown\",COUNTRY_INFO!O22=\"Surveillance\",COUNTRY_INFO!O22=\"Not required\",COUNTRY_INFO!O22=0),0,IF($E22<>0, IF($F22=0,COUNTRY_INFO!O22*$E22,COUNTRY_INFO!O22*($E22-$D22)),COUNTRY_INFO!O22*$E22))","v":0},null,{"$f":"IF(OR(COUNTRY_INFO!P22=\"Unknown\",COUNTRY_INFO!P22=\"Surveillance\",COUNTRY_INFO!P22=\"Not required\",COUNTRY_INFO!P22=0),0,IF(AND($E22<>0,$J22=\"\"),IF($F22=0,COUNTRY_INFO!P22*$E22,COUNTRY_INFO!P22*($E22-$D22)), IF(AND($E22<>0,$J22<>0),IF($F22=0,COUNTRY_INFO!P22*$J22,COUNTRY_INFO!P22*($J22-$D22)), COUNTRY_INFO!P22*$J22)))","v":0},0,0,null,0,0,null,0,0,null,0]
[{"$f":"IF(AND(INTRO!$E$37=\"Non-endemic\",INTRO!$E$41=\"Non-endemic\"),\" \",IF(COUNTRY_INFO!A23=0,\" \",COUNTRY_INFO!A23))","v":"The Gambia"},{"$f":"IF(AND(INTRO!$E$37=\"Non-endemic\",INTRO!$E$41=\"Non-endemic\"),\" \",IF(COUNTRY_INFO!B23=0,\" \",COUNTRY_INFO!B23))","v":"LRR"},{"$f":"IF(AND(INTRO!$E$37=\"Non-endemic\",INTRO!$E$41=\"Non-endemic\"),\" \",IF(COUNTRY_INFO!C23=0,\" \",COUNTRY_INFO!C23))","v":"Jarra West"},{"$f":"IF(AND(INTRO!$E$37=\"Non-endemic\",INTRO!$E$41=\"Non-endemic\"),0,COUNTRY_INFO!V23)","v":0},{"$f":"IF(AND(INTRO!$E$37=\"Non-endemic\",INTRO!$E$41=\"Non-endemic\"),0,COUNTRY_INFO!X23)","v":0},{"$f":"IF(INTRO!$E$39=\"Non-endemic\",IF($D23=1,DEC!I23,0),IF($D23=1,IVM!G23,0))","v":0},null,{"$f":"IF(OR(COUNTRY_INFO!N23=\"Unknown\",COUNTRY_INFO!N23=\"Surveillance\",COUNTRY_INFO!N23=\"Not required\",COUNTRY_INFO!N23=0),0,IF(INTRO!$E$39=\"Non-endemic\",IF(AND($E23<>0,$G23=\"\"),IF($F23=0,COUNTRY_INFO!N23*$E23,COUNTRY_INFO!N23*($E23-$D23)),IF(AND($E23<>0,$G23<>0),IF($F23=0,COUNTRY_INFO!N23*$G23,COUNTRY_INFO!N23*($G23-$D23)),0)),IF($G23=\"\",COUNTRY_INFO!N23*$E23,COUNTRY_INFO!N23*$G23)))","v":0},{"$f":"IF(OR(COUNTRY_INFO!O23=\"Unknown\",COUNTRY_INFO!O23=\"Surveillance\",COUNTRY_INFO!O23=\"Not required\",COUNTRY_INFO!O23=0),0,IF($E23<>0, IF($F23=0,COUNTRY_INFO!O23*$E23,COUNTRY_INFO!O23*($E23-$D23)),COUNTRY_INFO!O23*$E23))","v":0},null,{"$f":"IF(OR(COUNTRY_INFO!P23=\"Unknown\",COUNTRY_INFO!P23=\"Surveillance\",COUNTRY_INFO!P23=\"Not required\",COUNTRY_INFO!P23=0),0,IF(AND($E23<>0,$J23=\"\"),IF($F23=0,COUNTRY_INFO!P23*$E23,COUNTRY_INFO!P23*($E23-$D23)), IF(AND($E23<>0,$J23<>0),IF($F23=0,COUNTRY_INFO!P23*$J23,COUNTRY_INFO!P23*($J23-$D23)), COUNTRY_INFO!P23*$J23)))","v":0},0,0,null,0,0,null,0,0,null,0]
[{"$f":"IF(AND(INTRO!$E$37=\"Non-endemic\",INTRO!$E$41=\"Non-endemic\"),\" \",IF(COUNTRY_INFO!A24=0,\" \",COUNTRY_INFO!A24))","v":"The Gambia"},{"$f":"IF(AND(INTRO!$E$37=\"Non-endemic\",INTRO!$E$41=\"Non-endemic\"),\" \",IF(COUNTRY_INFO!B24=0,\" \",COUNTRY_INFO!B24))","v":"LRR"},{"$f":"IF(AND(INTRO!$E$37=\"Non-endemic\",INTRO!$E$41=\"Non-endemic\"),\" \",IF(COUNTRY_INFO!C24=0,\" \",COUNTRY_INFO!C24))","v":"Kiang Central"},{"$f":"IF(AND(INTRO!$E$37=\"Non-endemic\",INTRO!$E$41=\"Non-endemic\"),0,COUNTRY_INFO!V24)","v":0},{"$f":"IF(AND(INTRO!$E$37=\"Non-endemic\",INTRO!$E$41=\"Non-endemic\"),0,COUNTRY_INFO!X24)","v":0},{"$f":"IF(INTRO!$E$39=\"Non-endemic\",IF($D24=1,DEC!I24,0),IF($D24=1,IVM!G24,0))","v":0},null,{"$f":"IF(OR(COUNTRY_INFO!N24=\"Unknown\",COUNTRY_INFO!N24=\"Surveillance\",COUNTRY_INFO!N24=\"Not required\",COUNTRY_INFO!N24=0),0,IF(INTRO!$E$39=\"Non-endemic\",IF(AND($E24<>0,$G24=\"\"),IF($F24=0,COUNTRY_INFO!N24*$E24,COUNTRY_INFO!N24*($E24-$D24)),IF(AND($E24<>0,$G24<>0),IF($F24=0,COUNTRY_INFO!N24*$G24,COUNTRY_INFO!N24*($G24-$D24)),0)),IF($G24=\"\",COUNTRY_INFO!N24*$E24,COUNTRY_INFO!N24*$G24)))","v":0},{"$f":"IF(OR(COUNTRY_INFO!O24=\"Unknown\",COUNTRY_INFO!O24=\"Surveillance\",COUNTRY_INFO!O24=\"Not required\",COUNTRY_INFO!O24=0),0,IF($E24<>0, IF($F24=0,COUNTRY_INFO!O24*$E24,COUNTRY_INFO!O24*($E24-$D24)),COUNTRY_INFO!O24*$E24))","v":0},null,{"$f":"IF(OR(COUNTRY_INFO!P24=\"Unknown\",COUNTRY_INFO!P24=\"Surveillance\",COUNTRY_INFO!P24=\"Not required\",COUNTRY_INFO!P24=0),0,IF(AND($E24<>0,$J24=\"\"),IF($F24=0,COUNTRY_INFO!P24*$E24,COUNTRY_INFO!P24*($E24-$D24)), IF(AND($E24<>0,$J24<>0),IF($F24=0,COUNTRY_INFO!P24*$J24,COUNTRY_INFO!P24*($J24-$D24)), COUNTRY_INFO!P24*$J24)))","v":0},0,0,null,0,0,null,0,0,null,0]
[{"$f":"IF(AND(INTRO!$E$37=\"Non-endemic\",INTRO!$E$41=\"Non-endemic\"),\" \",IF(COUNTRY_INFO!A25=0,\" \",COUNTRY_INFO!A25))","v":"The Gambia"},{"$f":"IF(AND(INTRO!$E$37=\"Non-endemic\",INTRO!$E$41=\"Non-endemic\"),\" \",IF(COUNTRY_INFO!B25=0,\" \",COUNTRY_INFO!B25))","v":"LRR"},{"$f":"IF(AND(INTRO!$E$37=\"Non-endemic\",INTRO!$E$41=\"Non-endemic\"),\" \",IF(COUNTRY_INFO!C25=0,\" \",COUNTRY_INFO!C25))","v":"Kiang East"},{"$f":"IF(AND(INTRO!$E$37=\"Non-endemic\",INTRO!$E$41=\"Non-endemic\"),0,COUNTRY_INFO!V25)","v":0},{"$f":"IF(AND(INTRO!$E$37=\"Non-endemic\",INTRO!$E$41=\"Non-endemic\"),0,COUNTRY_INFO!X25)","v":0},{"$f":"IF(INTRO!$E$39=\"Non-endemic\",IF($D25=1,DEC!I25,0),IF($D25=1,IVM!G25,0))","v":0},null,{"$f":"IF(OR(COUNTRY_INFO!N25=\"Unknown\",COUNTRY_INFO!N25=\"Surveillance\",COUNTRY_INFO!N25=\"Not required\",COUNTRY_INFO!N25=0),0,IF(INTRO!$E$39=\"Non-endemic\",IF(AND($E25<>0,$G25=\"\"),IF($F25=0,COUNTRY_INFO!N25*$E25,COUNTRY_INFO!N25*($E25-$D25)),IF(AND($E25<>0,$G25<>0),IF($F25=0,COUNTRY_INFO!N25*$G25,COUNTRY_INFO!N25*($G25-$D25)),0)),IF($G25=\"\",COUNTRY_INFO!N25*$E25,COUNTRY_INFO!N25*$G25)))","v":0},{"$f":"IF(OR(COUNTRY_INFO!O25=\"Unknown\",COUNTRY_INFO!O25=\"Surveillance\",COUNTRY_INFO!O25=\"Not required\",COUNTRY_INFO!O25=0),0,IF($E25<>0, IF($F25=0,COUNTRY_INFO!O25*$E25,COUNTRY_INFO!O25*($E25-$D25)),COUNTRY_INFO!O25*$E25))","v":0},null,{"$f":"IF(OR(COUNTRY_INFO!P25=\"Unknown\",COUNTRY_INFO!P25=\"Surveillance\",COUNTRY_INFO!P25=\"Not required\",COUNTRY_INFO!P25=0),0,IF(AND($E25<>0,$J25=\"\"),IF($F25=0,COUNTRY_INFO!P25*$E25,COUNTRY_INFO!P25*($E25-$D25)), IF(AND($E25<>0,$J25<>0),IF($F25=0,COUNTRY_INFO!P25*$J25,COUNTRY_INFO!P25*($J25-$D25)), COUNTRY_INFO!P25*$J25)))","v":0},0,0,null,0,0,null,0,0,null,0]
[{"$f":"IF(AND(INTRO!$E$37=\"Non-endemic\",INTRO!$E$41=\"Non-endemic\"),\" \",IF(COUNTRY_INFO!A26=0,\" \",COUNTRY_INFO!A26))","v":"The Gambia"},{"$f":"IF(AND(INTRO!$E$37=\"Non-endemic\",INTRO!$E$41=\"Non-endemic\"),\" \",IF(COUNTRY_INFO!B26=0,\" \",COUNTRY_INFO!B26))","v":"LRR"},{"$f":"IF(AND(INTRO!$E$37=\"Non-endemic\",INTRO!$E$41=\"Non-endemic\"),\" \",IF(COUNTRY_INFO!C26=0,\" \",COUNTRY_INFO!C26))","v":"Kiang West"},{"$f":"IF(AND(INTRO!$E$37=\"Non-endemic\",INTRO!$E$41=\"Non-endemic\"),0,COUNTRY_INFO!V26)","v":0},{"$f":"IF(AND(INTRO!$E$37=\"Non-endemic\",INTRO!$E$41=\"Non-endemic\"),0,COUNTRY_INFO!X26)","v":0},{"$f":"IF(INTRO!$E$39=\"Non-endemic\",IF($D26=1,DEC!I26,0),IF($D26=1,IVM!G26,0))","v":0},null,{"$f":"IF(OR(COUNTRY_INFO!N26=\"Unknown\",COUNTRY_INFO!N26=\"Surveillance\",COUNTRY_INFO!N26=\"Not required\",COUNTRY_INFO!N26=0),0,IF(INTRO!$E$39=\"Non-endemic\",IF(AND($E26<>0,$G26=\"\"),IF($F26=0,COUNTRY_INFO!N26*$E26,COUNTRY_INFO!N26*($E26-$D26)),IF(AND($E26<>0,$G26<>0),IF($F26=0,COUNTRY_INFO!N26*$G26,COUNTRY_INFO!N26*($G26-$D26)),0)),IF($G26=\"\",COUNTRY_INFO!N26*$E26,COUNTRY_INFO!N26*$G26)))","v":0},{"$f":"IF(OR(COUNTRY_INFO!O26=\"Unknown\",COUNTRY_INFO!O26=\"Surveillance\",COUNTRY_INFO!O26=\"Not required\",COUNTRY_INFO!O26=0),0,IF($E26<>0, IF($F26=0,COUNTRY_INFO!O26*$E26,COUNTRY_INFO!O26*($E26-$D26)),COUNTRY_INFO!O26*$E26))","v":0},null,{"$f":"IF(OR(COUNTRY_INFO!P26=\"Unknown\",COUNTRY_INFO!P26=\"Surveillance\",COUNTRY_INFO!P26=\"Not required\",COUNTRY_INFO!P26=0),0,IF(AND($E26<>0,$J26=\"\"),IF($F26=0,COUNTRY_INFO!P26*$E26,COUNTRY_INFO!P26*($E26-$D26)), IF(AND($E26<>0,$J26<>0),IF($F26=0,COUNTRY_INFO!P26*$J26,COUNTRY_INFO!P26*($J26-$D26)), COUNTRY_INFO!P26*$J26)))","v":0},0,0,null,0,0,null,0,0,null,0]
[{"$f":"IF(AND(INTRO!$E$37=\"Non-endemic\",INTRO!$E$41=\"Non-endemic\"),\" \",IF(COUNTRY_INFO!A27=0,\" \",COUNTRY_INFO!A27))","v":"The Gambia"},{"$f":"IF(AND(INTRO!$E$37=\"Non-endemic\",INTRO!$E$41=\"Non-endemic\"),\" \",IF(COUNTRY_INFO!B27=0,\" \",COUNTRY_INFO!B27))","v":"NBE"},{"$f":"IF(AND(INTRO!$E$37=\"Non-endemic\",INTRO!$E$41=\"Non-endemic\"),\" \",IF(COUNTRY_INFO!C27=0,\" \",COUNTRY_INFO!C27))","v":"Central Baddibu"},{"$f":"IF(AND(INTRO!$E$37=\"Non-endemic\",INTRO!$E$41=\"Non-endemic\"),0,COUNTRY_INFO!V27)","v":0},{"$f":"IF(AND(INTRO!$E$37=\"Non-endemic\",INTRO!$E$41=\"Non-endemic\"),0,COUNTRY_INFO!X27)","v":0},{"$f":"IF(INTRO!$E$39=\"Non-endemic\",IF($D27=1,DEC!I27,0),IF($D27=1,IVM!G27,0))","v":0},null,{"$f":"IF(OR(COUNTRY_INFO!N27=\"Unknown\",COUNTRY_INFO!N27=\"Surveillance\",COUNTRY_INFO!N27=\"Not required\",COUNTRY_INFO!N27=0),0,IF(INTRO!$E$39=\"Non-endemic\",IF(AND($E27<>0,$G27=\"\"),IF($F27=0,COUNTRY_INFO!N27*$E27,COUNTRY_INFO!N27*($E27-$D27)),IF(AND($E27<>0,$G27<>0),IF($F27=0,COUNTRY_INFO!N27*$G27,COUNTRY_INFO!N27*($G27-$D27)),0)),IF($G27=\"\",COUNTRY_INFO!N27*$E27,COUNTRY_INFO!N27*$G27)))","v":0},{"$f":"IF(OR(COUNTRY_INFO!O27=\"Unknown\",COUNTRY_INFO!O27=\"Surveillance\",COUNTRY_INFO!O27=\"Not required\",COUNTRY_INFO!O27=0),0,IF($E27<>0, IF($F27=0,COUNTRY_INFO!O27*$E27,COUNTRY_INFO!O27*($E27-$D27)),COUNTRY_INFO!O27*$E27))","v":0},null,{"$f":"IF(OR(COUNTRY_INFO!P27=\"Unknown\",COUNTRY_INFO!P27=\"Surveillance\",COUNTRY_INFO!P27=\"Not required\",COUNTRY_INFO!P27=0),0,IF(AND($E27<>0,$J27=\"\"),IF($F27=0,COUNTRY_INFO!P27*$E27,COUNTRY_INFO!P27*($E27-$D27)), IF(AND($E27<>0,$J27<>0),IF($F27=0,COUNTRY_INFO!P27*$J27,COUNTRY_INFO!P27*($J27-$D27)), COUNTRY_INFO!P27*$J27)))","v":0},0,0,null,0,0,null,0,0,null,0]
[{"$f":"IF(AND(INTRO!$E$37=\"Non-endemic\",INTRO!$E$41=\"Non-endemic\"),\" \",IF(COUNTRY_INFO!A28=0,\" \",COUNTRY_INFO!A28))","v":"The Gambia"},{"$f":"IF(AND(INTRO!$E$37=\"Non-endemic\",INTRO!$E$41=\"Non-endemic\"),\" \",IF(COUNTRY_INFO!B28=0,\" \",COUNTRY_INFO!B28))","v":"NBE"},{"$f":"IF(AND(INTRO!$E$37=\"Non-endemic\",INTRO!$E$41=\"Non-endemic\"),\" \",IF(COUNTRY_INFO!C28=0,\" \",COUNTRY_INFO!C28))","v":"Lower Baddibu"},{"$f":"IF(AND(INTRO!$E$37=\"Non-endemic\",INTRO!$E$41=\"Non-endemic\"),0,COUNTRY_INFO!V28)","v":0},{"$f":"IF(AND(INTRO!$E$37=\"Non-endemic\",INTRO!$E$41=\"Non-endemic\"),0,COUNTRY_INFO!X28)","v":0},{"$f":"IF(INTRO!$E$39=\"Non-endemic\",IF($D28=1,DEC!I28,0),IF($D28=1,IVM!G28,0))","v":0},null,{"$f":"IF(OR(COUNTRY_INFO!N28=\"Unknown\",COUNTRY_INFO!N28=\"Surveillance\",COUNTRY_INFO!N28=\"Not required\",COUNTRY_INFO!N28=0),0,IF(INTRO!$E$39=\"Non-endemic\",IF(AND($E28<>0,$G28=\"\"),IF($F28=0,COUNTRY_INFO!N28*$E28,COUNTRY_INFO!N28*($E28-$D28)),IF(AND($E28<>0,$G28<>0),IF($F28=0,COUNTRY_INFO!N28*$G28,COUNTRY_INFO!N28*($G28-$D28)),0)),IF($G28=\"\",COUNTRY_INFO!N28*$E28,COUNTRY_INFO!N28*$G28)))","v":0},{"$f":"IF(OR(COUNTRY_INFO!O28=\"Unknown\",COUNTRY_INFO!O28=\"Surveillance\",COUNTRY_INFO!O28=\"Not required\",COUNTRY_INFO!O28=0),0,IF($E28<>0, IF($F28=0,COUNTRY_INFO!O28*$E28,COUNTRY_INFO!O28*($E28-$D28)),COUNTRY_INFO!O28*$E28))","v":0},null,{"$f":"IF(OR(COUNTRY_INFO!P28=\"Unknown\",COUNTRY_INFO!P28=\"Surveillance\",COUNTRY_INFO!P28=\"Not required\",COUNTRY_INFO!P28=0),0,IF(AND($E28<>0,$J28=\"\"),IF($F28=0,COUNTRY_INFO!P28*$E28,COUNTRY_INFO!P28*($E28-$D28)), IF(AND($E28<>0,$J28<>0),IF($F28=0,COUNTRY_INFO!P28*$J28,COUNTRY_INFO!P28*($J28-$D28)), COUNTRY_INFO!P28*$J28)))","v":0},0,0,null,0,0,null,0,0,null,0]
[{"$f":"IF(AND(INTRO!$E$37=\"Non-endemic\",INTRO!$E$41=\"Non-endemic\"),\" \",IF(COUNTRY_INFO!A29=0,\" \",COUNTRY_INFO!A29))","v":"The Gambia"},{"$f":"IF(AND(INTRO!$E$37=\"Non-endemic\",INTRO!$E$41=\"Non-endemic\"),\" \",IF(COUNTRY_INFO!B29=0,\" \",COUNTRY_INFO!B29))","v":"NBE"},{"$f":"IF(AND(INTRO!$E$37=\"Non-endemic\",INTRO!$E$41=\"Non-endemic\"),\" \",IF(COUNTRY_INFO!C29=0,\" \",COUNTRY_INFO!C29))","v":"Sabach Sanjal"},{"$f":"IF(AND(INTRO!$E$37=\"Non-endemic\",INTRO!$E$41=\"Non-endemic\"),0,COUNTRY_INFO!V29)","v":0},{"$f":"IF(AND(INTRO!$E$37=\"Non-endemic\",INTRO!$E$41=\"Non-endemic\"),0,COUNTRY_INFO!X29)","v":0},{"$f":"IF(INTRO!$E$39=\"Non-endemic\",IF($D29=1,DEC!I29,0),IF($D29=1,IVM!G29,0))","v":0},null,{"$f":"IF(OR(COUNTRY_INFO!N29=\"Unknown\",COUNTRY_INFO!N29=\"Surveillance\",COUNTRY_INFO!N29=\"Not required\",COUNTRY_INFO!N29=0),0,IF(INTRO!$E$39=\"Non-endemic\",IF(AND($E29<>0,$G29=\"\"),IF($F29=0,COUNTRY_INFO!N29*$E29,COUNTRY_INFO!N29*($E29-$D29)),IF(AND($E29<>0,$G29<>0),IF($F29=0,COUNTRY_INFO!N29*$G29,COUNTRY_INFO!N29*($G29-$D29)),0)),IF($G29=\"\",COUNTRY_INFO!N29*$E29,COUNTRY_INFO!N29*$G29)))","v":0},{"$f":"IF(OR(COUNTRY_INFO!O29=\"Unknown\",COUNTRY_INFO!O29=\"Surveillance\",COUNTRY_INFO!O29=\"Not required\",COUNTRY_INFO!O29=0),0,IF($E29<>0, IF($F29=0,COUNTRY_INFO!O29*$E29,COUNTRY_INFO!O29*($E29-$D29)),COUNTRY_INFO!O29*$E29))","v":0},null,{"$f":"IF(OR(COUNTRY_INFO!P29=\"Unknown\",COUNTRY_INFO!P29=\"Surveillance\",COUNTRY_INFO!P29=\"Not required\",COUNTRY_INFO!P29=0),0,IF(AND($E29<>0,$J29=\"\"),IF($F29=0,COUNTRY_INFO!P29*$E29,COUNTRY_INFO!P29*($E29-$D29)), IF(AND($E29<>0,$J29<>0),IF($F29=0,COUNTRY_INFO!P29*$J29,COUNTRY_INFO!P29*($J29-$D29)), COUNTRY_INFO!P29*$J29)))","v":0},0,0,null,0,0,null,0,0,null,0]
[{"$f":"IF(AND(INTRO!$E$37=\"Non-endemic\",INTRO!$E$41=\"Non-endemic\"),\" \",IF(COUNTRY_INFO!A30=0,\" \",COUNTRY_INFO!A30))","v":"The Gambia"},{"$f":"IF(AND(INTRO!$E$37=\"Non-endemic\",INTRO!$E$41=\"Non-endemic\"),\" \",IF(COUNTRY_INFO!B30=0,\" \",COUNTRY_INFO!B30))","v":"NBE"},{"$f":"IF(AND(INTRO!$E$37=\"Non-endemic\",INTRO!$E$41=\"Non-endemic\"),\" \",IF(COUNTRY_INFO!C30=0,\" \",COUNTRY_INFO!C30))","v":"Upper Baddibu"},{"$f":"IF(AND(INTRO!$E$37=\"Non-endemic\",INTRO!$E$41=\"Non-endemic\"),0,COUNTRY_INFO!V30)","v":0},{"$f":"IF(AND(INTRO!$E$37=\"Non-endemic\",INTRO!$E$41=\"Non-endemic\"),0,COUNTRY_INFO!X30)","v":0},{"$f":"IF(INTRO!$E$39=\"Non-endemic\",IF($D30=1,DEC!I30,0),IF($D30=1,IVM!G30,0))","v":0},null,{"$f":"IF(OR(COUNTRY_INFO!N30=\"Unknown\",COUNTRY_INFO!N30=\"Surveillance\",COUNTRY_INFO!N30=\"Not required\",COUNTRY_INFO!N30=0),0,IF(INTRO!$E$39=\"Non-endemic\",IF(AND($E30<>0,$G30=\"\"),IF($F30=0,COUNTRY_INFO!N30*$E30,COUNTRY_INFO!N30*($E30-$D30)),IF(AND($E30<>0,$G30<>0),IF($F30=0,COUNTRY_INFO!N30*$G30,COUNTRY_INFO!N30*($G30-$D30)),0)),IF($G30=\"\",COUNTRY_INFO!N30*$E30,COUNTRY_INFO!N30*$G30)))","v":0},{"$f":"IF(OR(COUNTRY_INFO!O30=\"Unknown\",COUNTRY_INFO!O30=\"Surveillance\",COUNTRY_INFO!O30=\"Not required\",COUNTRY_INFO!O30=0),0,IF($E30<>0, IF($F30=0,COUNTRY_INFO!O30*$E30,COUNTRY_INFO!O30*($E30-$D30)),COUNTRY_INFO!O30*$E30))","v":0},null,{"$f":"IF(OR(COUNTRY_INFO!P30=\"Unknown\",COUNTRY_INFO!P30=\"Surveillance\",COUNTRY_INFO!P30=\"Not required\",COUNTRY_INFO!P30=0),0,IF(AND($E30<>0,$J30=\"\"),IF($F30=0,COUNTRY_INFO!P30*$E30,COUNTRY_INFO!P30*($E30-$D30)), IF(AND($E30<>0,$J30<>0),IF($F30=0,COUNTRY_INFO!P30*$J30,COUNTRY_INFO!P30*($J30-$D30)), COUNTRY_INFO!P30*$J30)))","v":0},0,0,null,0,0,null,0,0,null,0]
[{"$f":"IF(AND(INTRO!$E$37=\"Non-endemic\",INTRO!$E$41=\"Non-endemic\"),\" \",IF(COUNTRY_INFO!A31=0,\" \",COUNTRY_INFO!A31))","v":"The Gambia"},{"$f":"IF(AND(INTRO!$E$37=\"Non-endemic\",INTRO!$E$41=\"Non-endemic\"),\" \",IF(COUNTRY_INFO!B31=0,\" \",COUNTRY_INFO!B31))","v":"NBW"},{"$f":"IF(AND(INTRO!$E$37=\"Non-endemic\",INTRO!$E$41=\"Non-endemic\"),\" \",IF(COUNTRY_INFO!C31=0,\" \",COUNTRY_INFO!C31))","v":"Jokadu"},{"$f":"IF(AND(INTRO!$E$37=\"Non-endemic\",INTRO!$E$41=\"Non-endemic\"),0,COUNTRY_INFO!V31)","v":0},{"$f":"IF(AND(INTRO!$E$37=\"Non-endemic\",INTRO!$E$41=\"Non-endemic\"),0,COUNTRY_INFO!X31)","v":0},{"$f":"IF(INTRO!$E$39=\"Non-endemic\",IF($D31=1,DEC!I31,0),IF($D31=1,IVM!G31,0))","v":0},null,{"$f":"IF(OR(COUNTRY_INFO!N31=\"Unknown\",COUNTRY_INFO!N31=\"Surveillance\",COUNTRY_INFO!N31=\"Not required\",COUNTRY_INFO!N31=0),0,IF(INTRO!$E$39=\"Non-endemic\",IF(AND($E31<>0,$G31=\"\"),IF($F31=0,COUNTRY_INFO!N31*$E31,COUNTRY_INFO!N31*($E31-$D31)),IF(AND($E31<>0,$G31<>0),IF($F31=0,COUNTRY_INFO!N31*$G31,COUNTRY_INFO!N31*($G31-$D31)),0)),IF($G31=\"\",COUNTRY_INFO!N31*$E31,COUNTRY_INFO!N31*$G31)))","v":0},{"$f":"IF(OR(COUNTRY_INFO!O31=\"Unknown\",COUNTRY_INFO!O31=\"Surveillance\",COUNTRY_INFO!O31=\"Not required\",COUNTRY_INFO!O31=0),0,IF($E31<>0, IF($F31=0,COUNTRY_INFO!O31*$E31,COUNTRY_INFO!O31*($E31-$D31)),COUNTRY_INFO!O31*$E31))","v":0},null,{"$f":"IF(OR(COUNTRY_INFO!P31=\"Unknown\",COUNTRY_INFO!P31=\"Surveillance\",COUNTRY_INFO!P31=\"Not required\",COUNTRY_INFO!P31=0),0,IF(AND($E31<>0,$J31=\"\"),IF($F31=0,COUNTRY_INFO!P31*$E31,COUNTRY_INFO!P31*($E31-$D31)), IF(AND($E31<>0,$J31<>0),IF($F31=0,COUNTRY_INFO!P31*$J31,COUNTRY_INFO!P31*($J31-$D31)), COUNTRY_INFO!P31*$J31)))","v":0},0,0,null,0,0,null,0,0,null,0]
[{"$f":"IF(AND(INTRO!$E$37=\"Non-endemic\",INTRO!$E$41=\"Non-endemic\"),\" \",IF(COUNTRY_INFO!A32=0,\" \",COUNTRY_INFO!A32))","v":"The Gambia"},{"$f":"IF(AND(INTRO!$E$37=\"Non-endemic\",INTRO!$E$41=\"Non-endemic\"),\" \",IF(COUNTRY_INFO!B32=0,\" \",COUNTRY_INFO!B32))","v":"NBW"},{"$f":"IF(AND(INTRO!$E$37=\"Non-endemic\",INTRO!$E$41=\"Non-endemic\"),\" \",IF(COUNTRY_INFO!C32=0,\" \",COUNTRY_INFO!C32))","v":"Lower Niumi"},{"$f":"IF(AND(INTRO!$E$37=\"Non-endemic\",INTRO!$E$41=\"Non-endemic\"),0,COUNTRY_INFO!V32)","v":0},{"$f":"IF(AND(INTRO!$E$37=\"Non-endemic\",INTRO!$E$41=\"Non-endemic\"),0,COUNTRY_INFO!X32)","v":0},{"$f":"IF(INTRO!$E$39=\"Non-endemic\",IF($D32=1,DEC!I32,0),IF($D32=1,IVM!G32,0))","v":0},null,{"$f":"IF(OR(COUNTRY_INFO!N32=\"Unknown\",COUNTRY_INFO!N32=\"Surveillance\",COUNTRY_INFO!N32=\"Not required\",COUNTRY_INFO!N32=0),0,IF(INTRO!$E$39=\"Non-endemic\",IF(AND($E32<>0,$G32=\"\"),IF($F32=0,COUNTRY_INFO!N32*$E32,COUNTRY_INFO!N32*($E32-$D32)),IF(AND($E32<>0,$G32<>0),IF($F32=0,COUNTRY_INFO!N32*$G32,COUNTRY_INFO!N32*($G32-$D32)),0)),IF($G32=\"\",COUNTRY_INFO!N32*$E32,COUNTRY_INFO!N32*$G32)))","v":0},{"$f":"IF(OR(COUNTRY_INFO!O32=\"Unknown\",COUNTRY_INFO!O32=\"Surveillance\",COUNTRY_INFO!O32=\"Not required\",COUNTRY_INFO!O32=0),0,IF($E32<>0, IF($F32=0,COUNTRY_INFO!O32*$E32,COUNTRY_INFO!O32*($E32-$D32)),COUNTRY_INFO!O32*$E32))","v":0},null,{"$f":"IF(OR(COUNTRY_INFO!P32=\"Unknown\",COUNTRY_INFO!P32=\"Surveillance\",COUNTRY_INFO!P32=\"Not required\",COUNTRY_INFO!P32=0),0,IF(AND($E32<>0,$J32=\"\"),IF($F32=0,COUNTRY_INFO!P32*$E32,COUNTRY_INFO!P32*($E32-$D32)), IF(AND($E32<>0,$J32<>0),IF($F32=0,COUNTRY_INFO!P32*$J32,COUNTRY_INFO!P32*($J32-$D32)), COUNTRY_INFO!P32*$J32)))","v":0},0,0,null,0,0,null,0,0,null,0]
[{"$f":"IF(AND(INTRO!$E$37=\"Non-endemic\",INTRO!$E$41=\"Non-endemic\"),\" \",IF(COUNTRY_INFO!A33=0,\" \",COUNTRY_INFO!A33))","v":"The Gambia"},{"$f":"IF(AND(INTRO!$E$37=\"Non-endemic\",INTRO!$E$41=\"Non-endemic\"),\" \",IF(COUNTRY_INFO!B33=0,\" \",COUNTRY_INFO!B33))","v":"NBW"},{"$f":"IF(AND(INTRO!$E$37=\"Non-endemic\",INTRO!$E$41=\"Non-endemic\"),\" \",IF(COUNTRY_INFO!C33=0,\" \",COUNTRY_INFO!C33))","v":"Upper Niumi"},{"$f":"IF(AND(INTRO!$E$37=\"Non-endemic\",INTRO!$E$41=\"Non-endemic\"),0,COUNTRY_INFO!V33)","v":0},{"$f":"IF(AND(INTRO!$E$37=\"Non-endemic\",INTRO!$E$41=\"Non-endemic\"),0,COUNTRY_INFO!X33)","v":0},{"$f":"IF(INTRO!$E$39=\"Non-endemic\",IF($D33=1,DEC!I33,0),IF($D33=1,IVM!G33,0))","v":0},null,{"$f":"IF(OR(COUNTRY_INFO!N33=\"Unknown\",COUNTRY_INFO!N33=\"Surveillance\",COUNTRY_INFO!N33=\"Not required\",COUNTRY_INFO!N33=0),0,IF(INTRO!$E$39=\"Non-endemic\",IF(AND($E33<>0,$G33=\"\"),IF($F33=0,COUNTRY_INFO!N33*$E33,COUNTRY_INFO!N33*($E33-$D33)),IF(AND($E33<>0,$G33<>0),IF($F33=0,COUNTRY_INFO!N33*$G33,COUNTRY_INFO!N33*($G33-$D33)),0)),IF($G33=\"\",COUNTRY_INFO!N33*$E33,COUNTRY_INFO!N33*$G33)))","v":0},{"$f":"IF(OR(COUNTRY_INFO!O33=\"Unknown\",COUNTRY_INFO!O33=\"Surveillance\",COUNTRY_INFO!O33=\"Not required\",COUNTRY_INFO!O33=0),0,IF($E33<>0, IF($F33=0,COUNTRY_INFO!O33*$E33,COUNTRY_INFO!O33*($E33-$D33)),COUNTRY_INFO!O33*$E33))","v":0},null,{"$f":"IF(OR(COUNTRY_INFO!P33=\"Unknown\",COUNTRY_INFO!P33=\"Surveillance\",COUNTRY_INFO!P33=\"Not required\",COUNTRY_INFO!P33=0),0,IF(AND($E33<>0,$J33=\"\"),IF($F33=0,COUNTRY_INFO!P33*$E33,COUNTRY_INFO!P33*($E33-$D33)), IF(AND($E33<>0,$J33<>0),IF($F33=0,COUNTRY_INFO!P33*$J33,COUNTRY_INFO!P33*($J33-$D33)), COUNTRY_INFO!P33*$J33)))","v":0},0,0,null,0,0,null,0,0,null,0]
[{"$f":"IF(AND(INTRO!$E$37=\"Non-endemic\",INTRO!$E$41=\"Non-endemic\"),\" \",IF(COUNTRY_INFO!A34=0,\" \",COUNTRY_INFO!A34))","v":"The Gambia"},{"$f":"IF(AND(INTRO!$E$37=\"Non-endemic\",INTRO!$E$41=\"Non-endemic\"),\" \",IF(COUNTRY_INFO!B34=0,\" \",COUNTRY_INFO!B34))","v":"URR"},{"$f":"IF(AND(INTRO!$E$37=\"Non-endemic\",INTRO!$E$41=\"Non-endemic\"),\" \",IF(COUNTRY_INFO!C34=0,\" \",COUNTRY_INFO!C34))","v":"Basse"},{"$f":"IF(AND(INTRO!$E$37=\"Non-endemic\",INTRO!$E$41=\"Non-endemic\"),0,COUNTRY_INFO!V34)","v":0},{"$f":"IF(AND(INTRO!$E$37=\"Non-endemic\",INTRO!$E$41=\"Non-endemic\"),0,COUNTRY_INFO!X34)","v":0},{"$f":"IF(INTRO!$E$39=\"Non-endemic\",IF($D34=1,DEC!I34,0),IF($D34=1,IVM!G34,0))","v":0},null,{"$f":"IF(OR(COUNTRY_INFO!N34=\"Unknown\",COUNTRY_INFO!N34=\"Surveillance\",COUNTRY_INFO!N34=\"Not required\",COUNTRY_INFO!N34=0),0,IF(INTRO!$E$39=\"Non-endemic\",IF(AND($E34<>0,$G34=\"\"),IF($F34=0,COUNTRY_INFO!N34*$E34,COUNTRY_INFO!N34*($E34-$D34)),IF(AND($E34<>0,$G34<>0),IF($F34=0,COUNTRY_INFO!N34*$G34,COUNTRY_INFO!N34*($G34-$D34)),0)),IF($G34=\"\",COUNTRY_INFO!N34*$E34,COUNTRY_INFO!N34*$G34)))","v":0},{"$f":"IF(OR(COUNTRY_INFO!O34=\"Unknown\",COUNTRY_INFO!O34=\"Surveillance\",COUNTRY_INFO!O34=\"Not required\",COUNTRY_INFO!O34=0),0,IF($E34<>0, IF($F34=0,COUNTRY_INFO!O34*$E34,COUNTRY_INFO!O34*($E34-$D34)),COUNTRY_INFO!O34*$E34))","v":0},null,{"$f":"IF(OR(COUNTRY_INFO!P34=\"Unknown\",COUNTRY_INFO!P34=\"Surveillance\",COUNTRY_INFO!P34=\"Not required\",COUNTRY_INFO!P34=0),0,IF(AND($E34<>0,$J34=\"\"),IF($F34=0,COUNTRY_INFO!P34*$E34,COUNTRY_INFO!P34*($E34-$D34)), IF(AND($E34<>0,$J34<>0),IF($F34=0,COUNTRY_INFO!P34*$J34,COUNTRY_INFO!P34*($J34-$D34)), COUNTRY_INFO!P34*$J34)))","v":0},0,0,null,0,0,null,0,0,null,0]
[{"$f":"IF(AND(INTRO!$E$37=\"Non-endemic\",INTRO!$E$41=\"Non-endemic\"),\" \",IF(COUNTRY_INFO!A35=0,\" \",COUNTRY_INFO!A35))","v":"The Gambia"},{"$f":"IF(AND(INTRO!$E$37=\"Non-endemic\",INTRO!$E$41=\"Non-endemic\"),\" \",IF(COUNTRY_INFO!B35=0,\" \",COUNTRY_INFO!B35))","v":"URR"},{"$f":"IF(AND(INTRO!$E$37=\"Non-endemic\",INTRO!$E$41=\"Non-endemic\"),\" \",IF(COUNTRY_INFO!C35=0,\" \",COUNTRY_INFO!C35))","v":"Jimara"},{"$f":"IF(AND(INTRO!$E$37=\"Non-endemic\",INTRO!$E$41=\"Non-endemic\"),0,COUNTRY_INFO!V35)","v":0},{"$f":"IF(AND(INTRO!$E$37=\"Non-endemic\",INTRO!$E$41=\"Non-endemic\"),0,COUNTRY_INFO!X35)","v":0},{"$f":"IF(INTRO!$E$39=\"Non-endemic\",IF($D35=1,DEC!I35,0),IF($D35=1,IVM!G35,0))","v":0},null,{"$f":"IF(OR(COUNTRY_INFO!N35=\"Unknown\",COUNTRY_INFO!N35=\"Surveillance\",COUNTRY_INFO!N35=\"Not required\",COUNTRY_INFO!N35=0),0,IF(INTRO!$E$39=\"Non-endemic\",IF(AND($E35<>0,$G35=\"\"),IF($F35=0,COUNTRY_INFO!N35*$E35,COUNTRY_INFO!N35*($E35-$D35)),IF(AND($E35<>0,$G35<>0),IF($F35=0,COUNTRY_INFO!N35*$G35,COUNTRY_INFO!N35*($G35-$D35)),0)),IF($G35=\"\",COUNTRY_INFO!N35*$E35,COUNTRY_INFO!N35*$G35)))","v":0},{"$f":"IF(OR(COUNTRY_INFO!O35=\"Unknown\",COUNTRY_INFO!O35=\"Surveillance\",COUNTRY_INFO!O35=\"Not required\",COUNTRY_INFO!O35=0),0,IF($E35<>0, IF($F35=0,COUNTRY_INFO!O35*$E35,COUNTRY_INFO!O35*($E35-$D35)),COUNTRY_INFO!O35*$E35))","v":0},null,{"$f":"IF(OR(COUNTRY_INFO!P35=\"Unknown\",COUNTRY_INFO!P35=\"Surveillance\",COUNTRY_INFO!P35=\"Not required\",COUNTRY_INFO!P35=0),0,IF(AND($E35<>0,$J35=\"\"),IF($F35=0,COUNTRY_INFO!P35*$E35,COUNTRY_INFO!P35*($E35-$D35)), IF(AND($E35<>0,$J35<>0),IF($F35=0,COUNTRY_INFO!P35*$J35,COUNTRY_INFO!P35*($J35-$D35)), COUNTRY_INFO!P35*$J35)))","v":0},0,0,null,0,0,null,0,0,null,0]
[{"$f":"IF(AND(INTRO!$E$37=\"Non-endemic\",INTRO!$E$41=\"Non-endemic\"),\" \",IF(COUNTRY_INFO!A36=0,\" \",COUNTRY_INFO!A36))","v":"The Gambia"},{"$f":"IF(AND(INTRO!$E$37=\"Non-endemic\",INTRO!$E$41=\"Non-endemic\"),\" \",IF(COUNTRY_INFO!B36=0,\" \",COUNTRY_INFO!B36))","v":"URR"},{"$f":"IF(AND(INTRO!$E$37=\"Non-endemic\",INTRO!$E$41=\"Non-endemic\"),\" \",IF(COUNTRY_INFO!C36=0,\" \",COUNTRY_INFO!C36))","v":"Kantora"},{"$f":"IF(AND(INTRO!$E$37=\"Non-endemic\",INTRO!$E$41=\"Non-endemic\"),0,COUNTRY_INFO!V36)","v":0},{"$f":"IF(AND(INTRO!$E$37=\"Non-endemic\",INTRO!$E$41=\"Non-endemic\"),0,COUNTRY_INFO!X36)","v":0},{"$f":"IF(INTRO!$E$39=\"Non-endemic\",IF($D36=1,DEC!I36,0),IF($D36=1,IVM!G36,0))","v":0},null,{"$f":"IF(OR(COUNTRY_INFO!N36=\"Unknown\",COUNTRY_INFO!N36=\"Surveillance\",COUNTRY_INFO!N36=\"Not required\",COUNTRY_INFO!N36=0),0,IF(INTRO!$E$39=\"Non-endemic\",IF(AND($E36<>0,$G36=\"\"),IF($F36=0,COUNTRY_INFO!N36*$E36,COUNTRY_INFO!N36*($E36-$D36)),IF(AND($E36<>0,$G36<>0),IF($F36=0,COUNTRY_INFO!N36*$G36,COUNTRY_INFO!N36*($G36-$D36)),0)),IF($G36=\"\",COUNTRY_INFO!N36*$E36,COUNTRY_INFO!N36*$G36)))","v":0},{"$f":"IF(OR(COUNTRY_INFO!O36=\"Unknown\",COUNTRY_INFO!O36=\"Surveillance\",COUNTRY_INFO!O36=\"Not required\",COUNTRY_INFO!O36=0),0,IF($E36<>0, IF($F36=0,COUNTRY_INFO!O36*$E36,COUNTRY_INFO!O36*($E36-$D36)),COUNTRY_INFO!O36*$E36))","v":0},null,{"$f":"IF(OR(COUNTRY_INFO!P36=\"Unknown\",COUNTRY_INFO!P36=\"Surveillance\",COUNTRY_INFO!P36=\"Not required\",COUNTRY_INFO!P36=0),0,IF(AND($E36<>0,$J36=\"\"),IF($F36=0,COUNTRY_INFO!P36*$E36,COUNTRY_INFO!P36*($E36-$D36)), IF(AND($E36<>0,$J36<>0),IF($F36=0,COUNTRY_INFO!P36*$J36,COUNTRY_INFO!P36*($J36-$D36)), COUNTRY_INFO!P36*$J36)))","v":0},0,0,null,0,0,null,0,0,null,0]
[{"$f":"IF(AND(INTRO!$E$37=\"Non-endemic\",INTRO!$E$41=\"Non-endemic\"),\" \",IF(COUNTRY_INFO!A37=0,\" \",COUNTRY_INFO!A37))","v":"The Gambia"},{"$f":"IF(AND(INTRO!$E$37=\"Non-endemic\",INTRO!$E$41=\"Non-endemic\"),\" \",IF(COUNTRY_INFO!B37=0,\" \",COUNTRY_INFO!B37))","v":"URR"},{"$f":"IF(AND(INTRO!$E$37=\"Non-endemic\",INTRO!$E$41=\"Non-endemic\"),\" \",IF(COUNTRY_INFO!C37=0,\" \",COUNTRY_INFO!C37))","v":"Sandu"},{"$f":"IF(AND(INTRO!$E$37=\"Non-endemic\",INTRO!$E$41=\"Non-endemic\"),0,COUNTRY_INFO!V37)","v":0},{"$f":"IF(AND(INTRO!$E$37=\"Non-endemic\",INTRO!$E$41=\"Non-endemic\"),0,COUNTRY_INFO!X37)","v":0},{"$f":"IF(INTRO!$E$39=\"Non-endemic\",IF($D37=1,DEC!I37,0),IF($D37=1,IVM!G37,0))","v":0},null,{"$f":"IF(OR(COUNTRY_INFO!N37=\"Unknown\",COUNTRY_INFO!N37=\"Surveillance\",COUNTRY_INFO!N37=\"Not required\",COUNTRY_INFO!N37=0),0,IF(INTRO!$E$39=\"Non-endemic\",IF(AND($E37<>0,$G37=\"\"),IF($F37=0,COUNTRY_INFO!N37*$E37,COUNTRY_INFO!N37*($E37-$D37)),IF(AND($E37<>0,$G37<>0),IF($F37=0,COUNTRY_INFO!N37*$G37,COUNTRY_INFO!N37*($G37-$D37)),0)),IF($G37=\"\",COUNTRY_INFO!N37*$E37,COUNTRY_INFO!N37*$G37)))","v":0},{"$f":"IF(OR(COUNTRY_INFO!O37=\"Unknown\",COUNTRY_INFO!O37=\"Surveillance\",COUNTRY_INFO!O37=\"Not required\",COUNTRY_INFO!O37=0),0,IF($E37<>0, IF($F37=0,COUNTRY_INFO!O37*$E37,COUNTRY_INFO!O37*($E37-$D37)),COUNTRY_INFO!O37*$E37))","v":0},null,{"$f":"IF(OR(COUNTRY_INFO!P37=\"Unknown\",COUNTRY_INFO!P37=\"Surveillance\",COUNTRY_INFO!P37=\"Not required\",COUNTRY_INFO!P37=0),0,IF(AND($E37<>0,$J37=\"\"),IF($F37=0,COUNTRY_INFO!P37*$E37,COUNTRY_INFO!P37*($E37-$D37)), IF(AND($E37<>0,$J37<>0),IF($F37=0,COUNTRY_INFO!P37*$J37,COUNTRY_INFO!P37*($J37-$D37)), COUNTRY_INFO!P37*$J37)))","v":0},0,0,null,0,0,null,0,0,null,0]
[{"$f":"IF(AND(INTRO!$E$37=\"Non-endemic\",INTRO!$E$41=\"Non-endemic\"),\" \",IF(COUNTRY_INFO!A38=0,\" \",COUNTRY_INFO!A38))","v":"The Gambia"},{"$f":"IF(AND(INTRO!$E$37=\"Non-endemic\",INTRO!$E$41=\"Non-endemic\"),\" \",IF(COUNTRY_INFO!B38=0,\" \",COUNTRY_INFO!B38))","v":"URR"},{"$f":"IF(AND(INTRO!$E$37=\"Non-endemic\",INTRO!$E$41=\"Non-endemic\"),\" \",IF(COUNTRY_INFO!C38=0,\" \",COUNTRY_INFO!C38))","v":"Tumana"},{"$f":"IF(AND(INTRO!$E$37=\"Non-endemic\",INTRO!$E$41=\"Non-endemic\"),0,COUNTRY_INFO!V38)","v":0},{"$f":"IF(AND(INTRO!$E$37=\"Non-endemic\",INTRO!$E$41=\"Non-endemic\"),0,COUNTRY_INFO!X38)","v":0},{"$f":"IF(INTRO!$E$39=\"Non-endemic\",IF($D38=1,DEC!I38,0),IF($D38=1,IVM!G38,0))","v":0},null,{"$f":"IF(OR(COUNTRY_INFO!N38=\"Unknown\",COUNTRY_INFO!N38=\"Surveillance\",COUNTRY_INFO!N38=\"Not required\",COUNTRY_INFO!N38=0),0,IF(INTRO!$E$39=\"Non-endemic\",IF(AND($E38<>0,$G38=\"\"),IF($F38=0,COUNTRY_INFO!N38*$E38,COUNTRY_INFO!N38*($E38-$D38)),IF(AND($E38<>0,$G38<>0),IF($F38=0,COUNTRY_INFO!N38*$G38,COUNTRY_INFO!N38*($G38-$D38)),0)),IF($G38=\"\",COUNTRY_INFO!N38*$E38,COUNTRY_INFO!N38*$G38)))","v":0},{"$f":"IF(OR(COUNTRY_INFO!O38=\"Unknown\",COUNTRY_INFO!O38=\"Surveillance\",COUNTRY_INFO!O38=\"Not required\",COUNTRY_INFO!O38=0),0,IF($E38<>0, IF($F38=0,COUNTRY_INFO!O38*$E38,COUNTRY_INFO!O38*($E38-$D38)),COUNTRY_INFO!O38*$E38))","v":0},null,{"$f":"IF(OR(COUNTRY_INFO!P38=\"Unknown\",COUNTRY_INFO!P38=\"Surveillance\",COUNTRY_INFO!P38=\"Not required\",COUNTRY_INFO!P38=0),0,IF(AND($E38<>0,$J38=\"\"),IF($F38=0,COUNTRY_INFO!P38*$E38,COUNTRY_INFO!P38*($E38-$D38)), IF(AND($E38<>0,$J38<>0),IF($F38=0,COUNTRY_INFO!P38*$J38,COUNTRY_INFO!P38*($J38-$D38)), COUNTRY_INFO!P38*$J38)))","v":0},0,0,null,0,0,null,0,0,null,0]
[{"$f":"IF(AND(INTRO!$E$37=\"Non-endemic\",INTRO!$E$41=\"Non-endemic\"),\" \",IF(COUNTRY_INFO!A39=0,\" \",COUNTRY_INFO!A39))","v":"The Gambia"},{"$f":"IF(AND(INTRO!$E$37=\"Non-endemic\",INTRO!$E$41=\"Non-endemic\"),\" \",IF(COUNTRY_INFO!B39=0,\" \",COUNTRY_INFO!B39))","v":"URR"},{"$f":"IF(AND(INTRO!$E$37=\"Non-endemic\",INTRO!$E$41=\"Non-endemic\"),\" \",IF(COUNTRY_INFO!C39=0,\" \",COUNTRY_INFO!C39))","v":"Wuli East"},{"$f":"IF(AND(INTRO!$E$37=\"Non-endemic\",INTRO!$E$41=\"Non-endemic\"),0,COUNTRY_INFO!V39)","v":0},{"$f":"IF(AND(INTRO!$E$37=\"Non-endemic\",INTRO!$E$41=\"Non-endemic\"),0,COUNTRY_INFO!X39)","v":0},{"$f":"IF(INTRO!$E$39=\"Non-endemic\",IF($D39=1,DEC!I39,0),IF($D39=1,IVM!G39,0))","v":0},null,{"$f":"IF(OR(COUNTRY_INFO!N39=\"Unknown\",COUNTRY_INFO!N39=\"Surveillance\",COUNTRY_INFO!N39=\"Not required\",COUNTRY_INFO!N39=0),0,IF(INTRO!$E$39=\"Non-endemic\",IF(AND($E39<>0,$G39=\"\"),IF($F39=0,COUNTRY_INFO!N39*$E39,COUNTRY_INFO!N39*($E39-$D39)),IF(AND($E39<>0,$G39<>0),IF($F39=0,COUNTRY_INFO!N39*$G39,COUNTRY_INFO!N39*($G39-$D39)),0)),IF($G39=\"\",COUNTRY_INFO!N39*$E39,COUNTRY_INFO!N39*$G39)))","v":0},{"$f":"IF(OR(COUNTRY_INFO!O39=\"Unknown\",COUNTRY_INFO!O39=\"Surveillance\",COUNTRY_INFO!O39=\"Not required\",COUNTRY_INFO!O39=0),0,IF($E39<>0, IF($F39=0,COUNTRY_INFO!O39*$E39,COUNTRY_INFO!O39*($E39-$D39)),COUNTRY_INFO!O39*$E39))","v":0},null,{"$f":"IF(OR(COUNTRY_INFO!P39=\"Unknown\",COUNTRY_INFO!P39=\"Surveillance\",COUNTRY_INFO!P39=\"Not required\",COUNTRY_INFO!P39=0),0,IF(AND($E39<>0,$J39=\"\"),IF($F39=0,COUNTRY_INFO!P39*$E39,COUNTRY_INFO!P39*($E39-$D39)), IF(AND($E39<>0,$J39<>0),IF($F39=0,COUNTRY_INFO!P39*$J39,COUNTRY_INFO!P39*($J39-$D39)), COUNTRY_INFO!P39*$J39)))","v":0},0,0,null,0,0,null,0,0,null,0]
[{"$f":"IF(AND(INTRO!$E$37=\"Non-endemic\",INTRO!$E$41=\"Non-endemic\"),\" \",IF(COUNTRY_INFO!A40=0,\" \",COUNTRY_INFO!A40))","v":"The Gambia"},{"$f":"IF(AND(INTRO!$E$37=\"Non-endemic\",INTRO!$E$41=\"Non-endemic\"),\" \",IF(COUNTRY_INFO!B40=0,\" \",COUNTRY_INFO!B40))","v":"URR"},{"$f":"IF(AND(INTRO!$E$37=\"Non-endemic\",INTRO!$E$41=\"Non-endemic\"),\" \",IF(COUNTRY_INFO!C40=0,\" \",COUNTRY_INFO!C40))","v":"Wuli West"},{"$f":"IF(AND(INTRO!$E$37=\"Non-endemic\",INTRO!$E$41=\"Non-endemic\"),0,COUNTRY_INFO!V40)","v":0},{"$f":"IF(AND(INTRO!$E$37=\"Non-endemic\",INTRO!$E$41=\"Non-endemic\"),0,COUNTRY_INFO!X40)","v":0},{"$f":"IF(INTRO!$E$39=\"Non-endemic\",IF($D40=1,DEC!I40,0),IF($D40=1,IVM!G40,0))","v":0},null,{"$f":"IF(OR(COUNTRY_INFO!N40=\"Unknown\",COUNTRY_INFO!N40=\"Surveillance\",COUNTRY_INFO!N40=\"Not required\",COUNTRY_INFO!N40=0),0,IF(INTRO!$E$39=\"Non-endemic\",IF(AND($E40<>0,$G40=\"\"),IF($F40=0,COUNTRY_INFO!N40*$E40,COUNTRY_INFO!N40*($E40-$D40)),IF(AND($E40<>0,$G40<>0),IF($F40=0,COUNTRY_INFO!N40*$G40,COUNTRY_INFO!N40*($G40-$D40)),0)),IF($G40=\"\",COUNTRY_INFO!N40*$E40,COUNTRY_INFO!N40*$G40)))","v":0},{"$f":"IF(OR(COUNTRY_INFO!O40=\"Unknown\",COUNTRY_INFO!O40=\"Surveillance\",COUNTRY_INFO!O40=\"Not required\",COUNTRY_INFO!O40=0),0,IF($E40<>0, IF($F40=0,COUNTRY_INFO!O40*$E40,COUNTRY_INFO!O40*($E40-$D40)),COUNTRY_INFO!O40*$E40))","v":0},null,{"$f":"IF(OR(COUNTRY_INFO!P40=\"Unknown\",COUNTRY_INFO!P40=\"Surveillance\",COUNTRY_INFO!P40=\"Not required\",COUNTRY_INFO!P40=0),0,IF(AND($E40<>0,$J40=\"\"),IF($F40=0,COUNTRY_INFO!P40*$E40,COUNTRY_INFO!P40*($E40-$D40)), IF(AND($E40<>0,$J40<>0),IF($F40=0,COUNTRY_INFO!P40*$J40,COUNTRY_INFO!P40*($J40-$D40)), COUNTRY_INFO!P40*$J40)))","v":0},0,0,null,0,0,null,0,0,null,0]
[{"$f":"IF(AND(INTRO!$E$37=\"Non-endemic\",INTRO!$E$41=\"Non-endemic\"),\" \",IF(COUNTRY_INFO!A41=0,\" \",COUNTRY_INFO!A41))","v":"The Gambia"},{"$f":"IF(AND(INTRO!$E$37=\"Non-endemic\",INTRO!$E$41=\"Non-endemic\"),\" \",IF(COUNTRY_INFO!B41=0,\" \",COUNTRY_INFO!B41))","v":"WC1"},{"$f":"IF(AND(INTRO!$E$37=\"Non-endemic\",INTRO!$E$41=\"Non-endemic\"),\" \",IF(COUNTRY_INFO!C41=0,\" \",COUNTRY_INFO!C41))","v":"Banjul Central"},{"$f":"IF(AND(INTRO!$E$37=\"Non-endemic\",INTRO!$E$41=\"Non-endemic\"),0,COUNTRY_INFO!V41)","v":0},{"$f":"IF(AND(INTRO!$E$37=\"Non-endemic\",INTRO!$E$41=\"Non-endemic\"),0,COUNTRY_INFO!X41)","v":2},{"$f":"IF(INTRO!$E$39=\"Non-endemic\",IF($D41=1,DEC!I41,0),IF($D41=1,IVM!G41,0))","v":0},null,{"$f":"IF(OR(COUNTRY_INFO!N41=\"Unknown\",COUNTRY_INFO!N41=\"Surveillance\",COUNTRY_INFO!N41=\"Not required\",COUNTRY_INFO!N41=0),0,IF(INTRO!$E$39=\"Non-endemic\",IF(AND($E41<>0,$G41=\"\"),IF($F41=0,COUNTRY_INFO!N41*$E41,COUNTRY_INFO!N41*($E41-$D41)),IF(AND($E41<>0,$G41<>0),IF($F41=0,COUNTRY_INFO!N41*$G41,COUNTRY_INFO!N41*($G41-$D41)),0)),IF($G41=\"\",COUNTRY_INFO!N41*$E41,COUNTRY_INFO!N41*$G41)))","v":3066},{"$f":"IF(OR(COUNTRY_INFO!O41=\"Unknown\",COUNTRY_INFO!O41=\"Surveillance\",COUNTRY_INFO!O41=\"Not required\",COUNTRY_INFO!O41=0),0,IF($E41<>0, IF($F41=0,COUNTRY_INFO!O41*$E41,COUNTRY_INFO!O41*($E41-$D41)),COUNTRY_INFO!O41*$E41))","v":6894},null,{"$f":"IF(OR(COUNTRY_INFO!P41=\"Unknown\",COUNTRY_INFO!P41=\"Surveillance\",COUNTRY_INFO!P41=\"Not required\",COUNTRY_INFO!P41=0),0,IF(AND($E41<>0,$J41=\"\"),IF($F41=0,COUNTRY_INFO!P41*$E41,COUNTRY_INFO!P41*($E41-$D41)), IF(AND($E41<>0,$J41<>0),IF($F41=0,COUNTRY_INFO!P41*$J41,COUNTRY_INFO!P41*($J41-$D41)), COUNTRY_INFO!P41*$J41)))","v":5902},15862,0,null,0,15862,null,15862,0,null,0]
[{"$f":"IF(AND(INTRO!$E$37=\"Non-endemic\",INTRO!$E$41=\"Non-endemic\"),\" \",IF(COUNTRY_INFO!A42=0,\" \",COUNTRY_INFO!A42))","v":"The Gambia"},{"$f":"IF(AND(INTRO!$E$37=\"Non-endemic\",INTRO!$E$41=\"Non-endemic\"),\" \",IF(COUNTRY_INFO!B42=0,\" \",COUNTRY_INFO!B42))","v":"WC1"},{"$f":"IF(AND(INTRO!$E$37=\"Non-endemic\",INTRO!$E$41=\"Non-endemic\"),\" \",IF(COUNTRY_INFO!C42=0,\" \",COUNTRY_INFO!C42))","v":"Banjul North"},{"$f":"IF(AND(INTRO!$E$37=\"Non-endemic\",INTRO!$E$41=\"Non-endemic\"),0,COUNTRY_INFO!V42)","v":0},{"$f":"IF(AND(INTRO!$E$37=\"Non-endemic\",INTRO!$E$41=\"Non-endemic\"),0,COUNTRY_INFO!X42)","v":2},{"$f":"IF(INTRO!$E$39=\"Non-endemic\",IF($D42=1,DEC!I42,0),IF($D42=1,IVM!G42,0))","v":0},null,{"$f":"IF(OR(COUNTRY_INFO!N42=\"Unknown\",COUNTRY_INFO!N42=\"Surveillance\",COUNTRY_INFO!N42=\"Not required\",COUNTRY_INFO!N42=0),0,IF(INTRO!$E$39=\"Non-endemic\",IF(AND($E42<>0,$G42=\"\"),IF($F42=0,COUNTRY_INFO!N42*$E42,COUNTRY_INFO!N42*($E42-$D42)),IF(AND($E42<>0,$G42<>0),IF($F42=0,COUNTRY_INFO!N42*$G42,COUNTRY_INFO!N42*($G42-$D42)),0)),IF($G42=\"\",COUNTRY_INFO!N42*$E42,COUNTRY_INFO!N42*$G42)))","v":2972},{"$f":"IF(OR(COUNTRY_INFO!O42=\"Unknown\",COUNTRY_INFO!O42=\"Surveillance\",COUNTRY_INFO!O42=\"Not required\",COUNTRY_INFO!O42=0),0,IF($E42<>0, IF($F42=0,COUNTRY_INFO!O42*$E42,COUNTRY_INFO!O42*($E42-$D42)),COUNTRY_INFO!O42*$E42))","v":6680},null,{"$f":"IF(OR(COUNTRY_INFO!P42=\"Unknown\",COUNTRY_INFO!P42=\"Surveillance\",COUNTRY_INFO!P42=\"Not required\",COUNTRY_INFO!P42=0),0,IF(AND($E42<>0,$J42=\"\"),IF($F42=0,COUNTRY_INFO!P42*$E42,COUNTRY_INFO!P42*($E42-$D42)), IF(AND($E42<>0,$J42<>0),IF($F42=0,COUNTRY_INFO!P42*$J42,COUNTRY_INFO!P42*($J42-$D42)), COUNTRY_INFO!P42*$J42)))","v":5720},15372,0,null,0,15372,null,15372,0,null,0]
[{"$f":"IF(AND(INTRO!$E$37=\"Non-endemic\",INTRO!$E$41=\"Non-endemic\"),\" \",IF(COUNTRY_INFO!A43=0,\" \",COUNTRY_INFO!A43))","v":"The Gambia"},{"$f":"IF(AND(INTRO!$E$37=\"Non-endemic\",INTRO!$E$41=\"Non-endemic\"),\" \",IF(COUNTRY_INFO!B43=0,\" \",COUNTRY_INFO!B43))","v":"WC1"},{"$f":"IF(AND(INTRO!$E$37=\"Non-endemic\",INTRO!$E$41=\"Non-endemic\"),\" \",IF(COUNTRY_INFO!C43=0,\" \",COUNTRY_INFO!C43))","v":"Banjul South"},{"$f":"IF(AND(INTRO!$E$37=\"Non-endemic\",INTRO!$E$41=\"Non-endemic\"),0,COUNTRY_INFO!V43)","v":0},{"$f":"IF(AND(INTRO!$E$37=\"Non-endemic\",INTRO!$E$41=\"Non-endemic\"),0,COUNTRY_INFO!X43)","v":2},{"$f":"IF(INTRO!$E$39=\"Non-endemic\",IF($D43=1,DEC!I43,0),IF($D43=1,IVM!G43,0))","v":0},null,{"$f":"IF(OR(COUNTRY_INFO!N43=\"Unknown\",COUNTRY_INFO!N43=\"Surveillance\",COUNTRY_INFO!N43=\"Not required\",COUNTRY_INFO!N43=0),0,IF(INTRO!$E$39=\"Non-endemic\",IF(AND($E43<>0,$G43=\"\"),IF($F43=0,COUNTRY_INFO!N43*$E43,COUNTRY_INFO!N43*($E43-$D43)),IF(AND($E43<>0,$G43<>0),IF($F43=0,COUNTRY_INFO!N43*$G43,COUNTRY_INFO!N43*($G43-$D43)),0)),IF($G43=\"\",COUNTRY_INFO!N43*$E43,COUNTRY_INFO!N43*$G43)))","v":2168},{"$f":"IF(OR(COUNTRY_INFO!O43=\"Unknown\",COUNTRY_INFO!O43=\"Surveillance\",COUNTRY_INFO!O43=\"Not required\",COUNTRY_INFO!O43=0),0,IF($E43<>0, IF($F43=0,COUNTRY_INFO!O43*$E43,COUNTRY_INFO!O43*($E43-$D43)),COUNTRY_INFO!O43*$E43))","v":4874},null,{"$f":"IF(OR(COUNTRY_INFO!P43=\"Unknown\",COUNTRY_INFO!P43=\"Surveillance\",COUNTRY_INFO!P43=\"Not required\",COUNTRY_INFO!P43=0),0,IF(AND($E43<>0,$J43=\"\"),IF($F43=0,COUNTRY_INFO!P43*$E43,COUNTRY_INFO!P43*($E43-$D43)), IF(AND($E43<>0,$J43<>0),IF($F43=0,COUNTRY_INFO!P43*$J43,COUNTRY_INFO!P43*($J43-$D43)), COUNTRY_INFO!P43*$J43)))","v":4172},11214,0,null,0,11214,null,11214,0,null,0]
[{"$f":"IF(AND(INTRO!$E$37=\"Non-endemic\",INTRO!$E$41=\"Non-endemic\"),\" \",IF(COUNTRY_INFO!A44=0,\" \",COUNTRY_INFO!A44))","v":"The Gambia"},{"$f":"IF(AND(INTRO!$E$37=\"Non-endemic\",INTRO!$E$41=\"Non-endemic\"),\" \",IF(COUNTRY_INFO!B44=0,\" \",COUNTRY_INFO!B44))","v":"WC1"},{"$f":"IF(AND(INTRO!$E$37=\"Non-endemic\",INTRO!$E$41=\"Non-endemic\"),\" \",IF(COUNTRY_INFO!C44=0,\" \",COUNTRY_INFO!C44))","v":"Kanifing"},{"$f":"IF(AND(INTRO!$E$37=\"Non-endemic\",INTRO!$E$41=\"Non-endemic\"),0,COUNTRY_INFO!V44)","v":0},{"$f":"IF(AND(INTRO!$E$37=\"Non-endemic\",INTRO!$E$41=\"Non-endemic\"),0,COUNTRY_INFO!X44)","v":0},{"$f":"IF(INTRO!$E$39=\"Non-endemic\",IF($D44=1,DEC!I44,0),IF($D44=1,IVM!G44,0))","v":0},null,{"$f":"IF(OR(COUNTRY_INFO!N44=\"Unknown\",COUNTRY_INFO!N44=\"Surveillance\",COUNTRY_INFO!N44=\"Not required\",COUNTRY_INFO!N44=0),0,IF(INTRO!$E$39=\"Non-endemic\",IF(AND($E44<>0,$G44=\"\"),IF($F44=0,COUNTRY_INFO!N44*$E44,COUNTRY_INFO!N44*($E44-$D44)),IF(AND($E44<>0,$G44<>0),IF($F44=0,COUNTRY_INFO!N44*$G44,COUNTRY_INFO!N44*($G44-$D44)),0)),IF($G44=\"\",COUNTRY_INFO!N44*$E44,COUNTRY_INFO!N44*$G44)))","v":0},{"$f":"IF(OR(COUNTRY_INFO!O44=\"Unknown\",COUNTRY_INFO!O44=\"Surveillance\",COUNTRY_INFO!O44=\"Not required\",COUNTRY_INFO!O44=0),0,IF($E44<>0, IF($F44=0,COUNTRY_INFO!O44*$E44,COUNTRY_INFO!O44*($E44-$D44)),COUNTRY_INFO!O44*$E44))","v":0},null,{"$f":"IF(OR(COUNTRY_INFO!P44=\"Unknown\",COUNTRY_INFO!P44=\"Surveillance\",COUNTRY_INFO!P44=\"Not required\",COUNTRY_INFO!P44=0),0,IF(AND($E44<>0,$J44=\"\"),IF($F44=0,COUNTRY_INFO!P44*$E44,COUNTRY_INFO!P44*($E44-$D44)), IF(AND($E44<>0,$J44<>0),IF($F44=0,COUNTRY_INFO!P44*$J44,COUNTRY_INFO!P44*($J44-$D44)), COUNTRY_INFO!P44*$J44)))","v":0},0,0,null,0,0,null,0,0,null,0]
[{"$f":"IF(AND(INTRO!$E$37=\"Non-endemic\",INTRO!$E$41=\"Non-endemic\"),\" \",IF(COUNTRY_INFO!A45=0,\" \",COUNTRY_INFO!A45))","v":"The Gambia"},{"$f":"IF(AND(INTRO!$E$37=\"Non-endemic\",INTRO!$E$41=\"Non-endemic\"),\" \",IF(COUNTRY_INFO!B45=0,\" \",COUNTRY_INFO!B45))","v":"WC1"},{"$f":"IF(AND(INTRO!$E$37=\"Non-endemic\",INTRO!$E$41=\"Non-endemic\"),\" \",IF(COUNTRY_INFO!C45=0,\" \",COUNTRY_INFO!C45))","v":"Kombo North"},{"$f":"IF(AND(INTRO!$E$37=\"Non-endemic\",INTRO!$E$41=\"Non-endemic\"),0,COUNTRY_INFO!V45)","v":0},{"$f":"IF(AND(INTRO!$E$37=\"Non-endemic\",INTRO!$E$41=\"Non-endemic\"),0,COUNTRY_INFO!X45)","v":0},{"$f":"IF(INTRO!$E$39=\"Non-endemic\",IF($D45=1,DEC!I45,0),IF($D45=1,IVM!G45,0))","v":0},null,{"$f":"IF(OR(COUNTRY_INFO!N45=\"Unknown\",COUNTRY_INFO!N45=\"Surveillance\",COUNTRY_INFO!N45=\"Not required\",COUNTRY_INFO!N45=0),0,IF(INTRO!$E$39=\"Non-endemic\",IF(AND($E45<>0,$G45=\"\"),IF($F45=0,COUNTRY_INFO!N45*$E45,COUNTRY_INFO!N45*($E45-$D45)),IF(AND($E45<>0,$G45<>0),IF($F45=0,COUNTRY_INFO!N45*$G45,COUNTRY_INFO!N45*($G45-$D45)),0)),IF($G45=\"\",COUNTRY_INFO!N45*$E45,COUNTRY_INFO!N45*$G45)))","v":0},{"$f":"IF(OR(COUNTRY_INFO!O45=\"Unknown\",COUNTRY_INFO!O45=\"Surveillance\",COUNTRY_INFO!O45=\"Not required\",COUNTRY_INFO!O45=0),0,IF($E45<>0, IF($F45=0,COUNTRY_INFO!O45*$E45,COUNTRY_INFO!O45*($E45-$D45)),COUNTRY_INFO!O45*$E45))","v":0},null,{"$f":"IF(OR(COUNTRY_INFO!P45=\"Unknown\",COUNTRY_INFO!P45=\"Surveillance\",COUNTRY_INFO!P45=\"Not required\",COUNTRY_INFO!P45=0),0,IF(AND($E45<>0,$J45=\"\"),IF($F45=0,COUNTRY_INFO!P45*$E45,COUNTRY_INFO!P45*($E45-$D45)), IF(AND($E45<>0,$J45<>0),IF($F45=0,COUNTRY_INFO!P45*$J45,COUNTRY_INFO!P45*($J45-$D45)), COUNTRY_INFO!P45*$J45)))","v":0},0,0,null,0,0,null,0,0,null,0]
[{"$f":"IF(AND(INTRO!$E$37=\"Non-endemic\",INTRO!$E$41=\"Non-endemic\"),\" \",IF(COUNTRY_INFO!A46=0,\" \",COUNTRY_INFO!A46))","v":"The Gambia"},{"$f":"IF(AND(INTRO!$E$37=\"Non-endemic\",INTRO!$E$41=\"Non-endemic\"),\" \",IF(COUNTRY_INFO!B46=0,\" \",COUNTRY_INFO!B46))","v":"WC2"},{"$f":"IF(AND(INTRO!$E$37=\"Non-endemic\",INTRO!$E$41=\"Non-endemic\"),\" \",IF(COUNTRY_INFO!C46=0,\" \",COUNTRY_INFO!C46))","v":"Foni Bintang-Karanai"},{"$f":"IF(AND(INTRO!$E$37=\"Non-endemic\",INTRO!$E$41=\"Non-endemic\"),0,COUNTRY_INFO!V46)","v":0},{"$f":"IF(AND(INTRO!$E$37=\"Non-endemic\",INTRO!$E$41=\"Non-endemic\"),0,COUNTRY_INFO!X46)","v":0},{"$f":"IF(INTRO!$E$39=\"Non-endemic\",IF($D46=1,DEC!I46,0),IF($D46=1,IVM!G46,0))","v":0},null,{"$f":"IF(OR(COUNTRY_INFO!N46=\"Unknown\",COUNTRY_INFO!N46=\"Surveillance\",COUNTRY_INFO!N46=\"Not required\",COUNTRY_INFO!N46=0),0,IF(INTRO!$E$39=\"Non-endemic\",IF(AND($E46<>0,$G46=\"\"),IF($F46=0,COUNTRY_INFO!N46*$E46,COUNTRY_INFO!N46*($E46-$D46)),IF(AND($E46<>0,$G46<>0),IF($F46=0,COUNTRY_INFO!N46*$G46,COUNTRY_INFO!N46*($G46-$D46)),0)),IF($G46=\"\",COUNTRY_INFO!N46*$E46,COUNTRY_INFO!N46*$G46)))","v":0},{"$f":"IF(OR(COUNTRY_INFO!O46=\"Unknown\",COUNTRY_INFO!O46=\"Surveillance\",COUNTRY_INFO!O46=\"Not required\",COUNTRY_INFO!O46=0),0,IF($E46<>0, IF($F46=0,COUNTRY_INFO!O46*$E46,COUNTRY_INFO!O46*($E46-$D46)),COUNTRY_INFO!O46*$E46))","v":0},null,{"$f":"IF(OR(COUNTRY_INFO!P46=\"Unknown\",COUNTRY_INFO!P46=\"Surveillance\",COUNTRY_INFO!P46=\"Not required\",COUNTRY_INFO!P46=0),0,IF(AND($E46<>0,$J46=\"\"),IF($F46=0,COUNTRY_INFO!P46*$E46,COUNTRY_INFO!P46*($E46-$D46)), IF(AND($E46<>0,$J46<>0),IF($F46=0,COUNTRY_INFO!P46*$J46,COUNTRY_INFO!P46*($J46-$D46)), COUNTRY_INFO!P46*$J46)))","v":0},0,0,null,0,0,null,0,0,null,0]
[{"$f":"IF(AND(INTRO!$E$37=\"Non-endemic\",INTRO!$E$41=\"Non-endemic\"),\" \",IF(COUNTRY_INFO!A47=0,\" \",COUNTRY_INFO!A47))","v":"The Gambia"},{"$f":"IF(AND(INTRO!$E$37=\"Non-endemic\",INTRO!$E$41=\"Non-endemic\"),\" \",IF(COUNTRY_INFO!B47=0,\" \",COUNTRY_INFO!B47))","v":"WC2"},{"$f":"IF(AND(INTRO!$E$37=\"Non-endemic\",INTRO!$E$41=\"Non-endemic\"),\" \",IF(COUNTRY_INFO!C47=0,\" \",COUNTRY_INFO!C47))","v":"Foni Bondali"},{"$f":"IF(AND(INTRO!$E$37=\"Non-endemic\",INTRO!$E$41=\"Non-endemic\"),0,COUNTRY_INFO!V47)","v":0},{"$f":"IF(AND(INTRO!$E$37=\"Non-endemic\",INTRO!$E$41=\"Non-endemic\"),0,COUNTRY_INFO!X47)","v":0},{"$f":"IF(INTRO!$E$39=\"Non-endemic\",IF($D47=1,DEC!I47,0),IF($D47=1,IVM!G47,0))","v":0},null,{"$f":"IF(OR(COUNTRY_INFO!N47=\"Unknown\",COUNTRY_INFO!N47=\"Surveillance\",COUNTRY_INFO!N47=\"Not required\",COUNTRY_INFO!N47=0),0,IF(INTRO!$E$39=\"Non-endemic\",IF(AND($E47<>0,$G47=\"\"),IF($F47=0,COUNTRY_INFO!N47*$E47,COUNTRY_INFO!N47*($E47-$D47)),IF(AND($E47<>0,$G47<>0),IF($F47=0,COUNTRY_INFO!N47*$G47,COUNTRY_INFO!N47*($G47-$D47)),0)),IF($G47=\"\",COUNTRY_INFO!N47*$E47,COUNTRY_INFO!N47*$G47)))","v":0},{"$f":"IF(OR(COUNTRY_INFO!O47=\"Unknown\",COUNTRY_INFO!O47=\"Surveillance\",COUNTRY_INFO!O47=\"Not required\",COUNTRY_INFO!O47=0),0,IF($E47<>0, IF($F47=0,COUNTRY_INFO!O47*$E47,COUNTRY_INFO!O47*($E47-$D47)),COUNTRY_INFO!O47*$E47))","v":0},null,{"$f":"IF(OR(COUNTRY_INFO!P47=\"Unknown\",COUNTRY_INFO!P47=\"Surveillance\",COUNTRY_INFO!P47=\"Not required\",COUNTRY_INFO!P47=0),0,IF(AND($E47<>0,$J47=\"\"),IF($F47=0,COUNTRY_INFO!P47*$E47,COUNTRY_INFO!P47*($E47-$D47)), IF(AND($E47<>0,$J47<>0),IF($F47=0,COUNTRY_INFO!P47*$J47,COUNTRY_INFO!P47*($J47-$D47)), COUNTRY_INFO!P47*$J47)))","v":0},0,0,null,0,0,null,0,0,null,0]
[{"$f":"IF(AND(INTRO!$E$37=\"Non-endemic\",INTRO!$E$41=\"Non-endemic\"),\" \",IF(COUNTRY_INFO!A48=0,\" \",COUNTRY_INFO!A48))","v":"The Gambia"},{"$f":"IF(AND(INTRO!$E$37=\"Non-endemic\",INTRO!$E$41=\"Non-endemic\"),\" \",IF(COUNTRY_INFO!B48=0,\" \",COUNTRY_INFO!B48))","v":"WC2"},{"$f":"IF(AND(INTRO!$E$37=\"Non-endemic\",INTRO!$E$41=\"Non-endemic\"),\" \",IF(COUNTRY_INFO!C48=0,\" \",COUNTRY_INFO!C48))","v":"Foni Brefet"},{"$f":"IF(AND(INTRO!$E$37=\"Non-endemic\",INTRO!$E$41=\"Non-endemic\"),0,COUNTRY_INFO!V48)","v":0},{"$f":"IF(AND(INTRO!$E$37=\"Non-endemic\",INTRO!$E$41=\"Non-endemic\"),0,COUNTRY_INFO!X48)","v":0},{"$f":"IF(INTRO!$E$39=\"Non-endemic\",IF($D48=1,DEC!I48,0),IF($D48=1,IVM!G48,0))","v":0},null,{"$f":"IF(OR(COUNTRY_INFO!N48=\"Unknown\",COUNTRY_INFO!N48=\"Surveillance\",COUNTRY_INFO!N48=\"Not required\",COUNTRY_INFO!N48=0),0,IF(INTRO!$E$39=\"Non-endemic\",IF(AND($E48<>0,$G48=\"\"),IF($F48=0,COUNTRY_INFO!N48*$E48,COUNTRY_INFO!N48*($E48-$D48)),IF(AND($E48<>0,$G48<>0),IF($F48=0,COUNTRY_INFO!N48*$G48,COUNTRY_INFO!N48*($G48-$D48)),0)),IF($G48=\"\",COUNTRY_INFO!N48*$E48,COUNTRY_INFO!N48*$G48)))","v":0},{"$f":"IF(OR(COUNTRY_INFO!O48=\"Unknown\",COUNTRY_INFO!O48=\"Surveillance\",COUNTRY_INFO!O48=\"Not required\",COUNTRY_INFO!O48=0),0,IF($E48<>0, IF($F48=0,COUNTRY_INFO!O48*$E48,COUNTRY_INFO!O48*($E48-$D48)),COUNTRY_INFO!O48*$E48))","v":0},null,{"$f":"IF(OR(COUNTRY_INFO!P48=\"Unknown\",COUNTRY_INFO!P48=\"Surveillance\",COUNTRY_INFO!P48=\"Not required\",COUNTRY_INFO!P48=0),0,IF(AND($E48<>0,$J48=\"\"),IF($F48=0,COUNTRY_INFO!P48*$E48,COUNTRY_INFO!P48*($E48-$D48)), IF(AND($E48<>0,$J48<>0),IF($F48=0,COUNTRY_INFO!P48*$J48,COUNTRY_INFO!P48*($J48-$D48)), COUNTRY_INFO!P48*$J48)))","v":0},0,0,null,0,0,null,0,0,null,0]
[{"$f":"IF(AND(INTRO!$E$37=\"Non-endemic\",INTRO!$E$41=\"Non-endemic\"),\" \",IF(COUNTRY_INFO!A49=0,\" \",COUNTRY_INFO!A49))","v":"The Gambia"},{"$f":"IF(AND(INTRO!$E$37=\"Non-endemic\",INTRO!$E$41=\"Non-endemic\"),\" \",IF(COUNTRY_INFO!B49=0,\" \",COUNTRY_INFO!B49))","v":"WC2"},{"$f":"IF(AND(INTRO!$E$37=\"Non-endemic\",INTRO!$E$41=\"Non-endemic\"),\" \",IF(COUNTRY_INFO!C49=0,\" \",COUNTRY_INFO!C49))","v":"Foni Jarrol"},{"$f":"IF(AND(INTRO!$E$37=\"Non-endemic\",INTRO!$E$41=\"Non-endemic\"),0,COUNTRY_INFO!V49)","v":0},{"$f":"IF(AND(INTRO!$E$37=\"Non-endemic\",INTRO!$E$41=\"Non-endemic\"),0,COUNTRY_INFO!X49)","v":0},{"$f":"IF(INTRO!$E$39=\"Non-endemic\",IF($D49=1,DEC!I49,0),IF($D49=1,IVM!G49,0))","v":0},null,{"$f":"IF(OR(COUNTRY_INFO!N49=\"Unknown\",COUNTRY_INFO!N49=\"Surveillance\",COUNTRY_INFO!N49=\"Not required\",COUNTRY_INFO!N49=0),0,IF(INTRO!$E$39=\"Non-endemic\",IF(AND($E49<>0,$G49=\"\"),IF($F49=0,COUNTRY_INFO!N49*$E49,COUNTRY_INFO!N49*($E49-$D49)),IF(AND($E49<>0,$G49<>0),IF($F49=0,COUNTRY_INFO!N49*$G49,COUNTRY_INFO!N49*($G49-$D49)),0)),IF($G49=\"\",COUNTRY_INFO!N49*$E49,COUNTRY_INFO!N49*$G49)))","v":0},{"$f":"IF(OR(COUNTRY_INFO!O49=\"Unknown\",COUNTRY_INFO!O49=\"Surveillance\",COUNTRY_INFO!O49=\"Not required\",COUNTRY_INFO!O49=0),0,IF($E49<>0, IF($F49=0,COUNTRY_INFO!O49*$E49,COUNTRY_INFO!O49*($E49-$D49)),COUNTRY_INFO!O49*$E49))","v":0},null,{"$f":"IF(OR(COUNTRY_INFO!P49=\"Unknown\",COUNTRY_INFO!P49=\"Surveillance\",COUNTRY_INFO!P49=\"Not required\",COUNTRY_INFO!P49=0),0,IF(AND($E49<>0,$J49=\"\"),IF($F49=0,COUNTRY_INFO!P49*$E49,COUNTRY_INFO!P49*($E49-$D49)), IF(AND($E49<>0,$J49<>0),IF($F49=0,COUNTRY_INFO!P49*$J49,COUNTRY_INFO!P49*($J49-$D49)), COUNTRY_INFO!P49*$J49)))","v":0},0,0,null,0,0,null,0,0,null,0]
[{"$f":"IF(AND(INTRO!$E$37=\"Non-endemic\",INTRO!$E$41=\"Non-endemic\"),\" \",IF(COUNTRY_INFO!A50=0,\" \",COUNTRY_INFO!A50))","v":"The Gambia"},{"$f":"IF(AND(INTRO!$E$37=\"Non-endemic\",INTRO!$E$41=\"Non-endemic\"),\" \",IF(COUNTRY_INFO!B50=0,\" \",COUNTRY_INFO!B50))","v":"WC2"},{"$f":"IF(AND(INTRO!$E$37=\"Non-endemic\",INTRO!$E$41=\"Non-endemic\"),\" \",IF(COUNTRY_INFO!C50=0,\" \",COUNTRY_INFO!C50))","v":"Foni Kansala"},{"$f":"IF(AND(INTRO!$E$37=\"Non-endemic\",INTRO!$E$41=\"Non-endemic\"),0,COUNTRY_INFO!V50)","v":0},{"$f":"IF(AND(INTRO!$E$37=\"Non-endemic\",INTRO!$E$41=\"Non-endemic\"),0,COUNTRY_INFO!X50)","v":0},{"$f":"IF(INTRO!$E$39=\"Non-endemic\",IF($D50=1,DEC!I50,0),IF($D50=1,IVM!G50,0))","v":0},null,{"$f":"IF(OR(COUNTRY_INFO!N50=\"Unknown\",COUNTRY_INFO!N50=\"Surveillance\",COUNTRY_INFO!N50=\"Not required\",COUNTRY_INFO!N50=0),0,IF(INTRO!$E$39=\"Non-endemic\",IF(AND($E50<>0,$G50=\"\"),IF($F50=0,COUNTRY_INFO!N50*$E50,COUNTRY_INFO!N50*($E50-$D50)),IF(AND($E50<>0,$G50<>0),IF($F50=0,COUNTRY_INFO!N50*$G50,COUNTRY_INFO!N50*($G50-$D50)),0)),IF($G50=\"\",COUNTRY_INFO!N50*$E50,COUNTRY_INFO!N50*$G50)))","v":0},{"$f":"IF(OR(COUNTRY_INFO!O50=\"Unknown\",COUNTRY_INFO!O50=\"Surveillance\",COUNTRY_INFO!O50=\"Not required\",COUNTRY_INFO!O50=0),0,IF($E50<>0, IF($F50=0,COUNTRY_INFO!O50*$E50,COUNTRY_INFO!O50*($E50-$D50)),COUNTRY_INFO!O50*$E50))","v":0},null,{"$f":"IF(OR(COUNTRY_INFO!P50=\"Unknown\",COUNTRY_INFO!P50=\"Surveillance\",COUNTRY_INFO!P50=\"Not required\",COUNTRY_INFO!P50=0),0,IF(AND($E50<>0,$J50=\"\"),IF($F50=0,COUNTRY_INFO!P50*$E50,COUNTRY_INFO!P50*($E50-$D50)), IF(AND($E50<>0,$J50<>0),IF($F50=0,COUNTRY_INFO!P50*$J50,COUNTRY_INFO!P50*($J50-$D50)), COUNTRY_INFO!P50*$J50)))","v":0},0,0,null,0,0,null,0,0,null,0]
[{"$f":"IF(AND(INTRO!$E$37=\"Non-endemic\",INTRO!$E$41=\"Non-endemic\"),\" \",IF(COUNTRY_INFO!A51=0,\" \",COUNTRY_INFO!A51))","v":"The Gambia"},{"$f":"IF(AND(INTRO!$E$37=\"Non-endemic\",INTRO!$E$41=\"Non-endemic\"),\" \",IF(COUNTRY_INFO!B51=0,\" \",COUNTRY_INFO!B51))","v":"WC2"},{"$f":"IF(AND(INTRO!$E$37=\"Non-endemic\",INTRO!$E$41=\"Non-endemic\"),\" \",IF(COUNTRY_INFO!C51=0,\" \",COUNTRY_INFO!C51))","v":"Kombo Central"},{"$f":"IF(AND(INTRO!$E$37=\"Non-endemic\",INTRO!$E$41=\"Non-endemic\"),0,COUNTRY_INFO!V51)","v":0},{"$f":"IF(AND(INTRO!$E$37=\"Non-endemic\",INTRO!$E$41=\"Non-endemic\"),0,COUNTRY_INFO!X51)","v":0},{"$f":"IF(INTRO!$E$39=\"Non-endemic\",IF($D51=1,DEC!I51,0),IF($D51=1,IVM!G51,0))","v":0},null,{"$f":"IF(OR(COUNTRY_INFO!N51=\"Unknown\",COUNTRY_INFO!N51=\"Surveillance\",COUNTRY_INFO!N51=\"Not required\",COUNTRY_INFO!N51=0),0,IF(INTRO!$E$39=\"Non-endemic\",IF(AND($E51<>0,$G51=\"\"),IF($F51=0,COUNTRY_INFO!N51*$E51,COUNTRY_INFO!N51*($E51-$D51)),IF(AND($E51<>0,$G51<>0),IF($F51=0,COUNTRY_INFO!N51*$G51,COUNTRY_INFO!N51*($G51-$D51)),0)),IF($G51=\"\",COUNTRY_INFO!N51*$E51,COUNTRY_INFO!N51*$G51)))","v":0},{"$f":"IF(OR(COUNTRY_INFO!O51=\"Unknown\",COUNTRY_INFO!O51=\"Surveillance\",COUNTRY_INFO!O51=\"Not required\",COUNTRY_INFO!O51=0),0,IF($E51<>0, IF($F51=0,COUNTRY_INFO!O51*$E51,COUNTRY_INFO!O51*($E51-$D51)),COUNTRY_INFO!O51*$E51))","v":0},null,{"$f":"IF(OR(COUNTRY_INFO!P51=\"Unknown\",COUNTRY_INFO!P51=\"Surveillance\",COUNTRY_INFO!P51=\"Not required\",COUNTRY_INFO!P51=0),0,IF(AND($E51<>0,$J51=\"\"),IF($F51=0,COUNTRY_INFO!P51*$E51,COUNTRY_INFO!P51*($E51-$D51)), IF(AND($E51<>0,$J51<>0),IF($F51=0,COUNTRY_INFO!P51*$J51,COUNTRY_INFO!P51*($J51-$D51)), COUNTRY_INFO!P51*$J51)))","v":0},0,0,null,0,0,null,0,0,null,0]
[{"$f":"IF(AND(INTRO!$E$37=\"Non-endemic\",INTRO!$E$41=\"Non-endemic\"),\" \",IF(COUNTRY_INFO!A52=0,\" \",COUNTRY_INFO!A52))","v":"The Gambia"},{"$f":"IF(AND(INTRO!$E$37=\"Non-endemic\",INTRO!$E$41=\"Non-endemic\"),\" \",IF(COUNTRY_INFO!B52=0,\" \",COUNTRY_INFO!B52))","v":"WC2"},{"$f":"IF(AND(INTRO!$E$37=\"Non-endemic\",INTRO!$E$41=\"Non-endemic\"),\" \",IF(COUNTRY_INFO!C52=0,\" \",COUNTRY_INFO!C52))","v":"Kombo East"},{"$f":"IF(AND(INTRO!$E$37=\"Non-endemic\",INTRO!$E$41=\"Non-endemic\"),0,COUNTRY_INFO!V52)","v":0},{"$f":"IF(AND(INTRO!$E$37=\"Non-endemic\",INTRO!$E$41=\"Non-endemic\"),0,COUNTRY_INFO!X52)","v":0},{"$f":"IF(INTRO!$E$39=\"Non-endemic\",IF($D52=1,DEC!I52,0),IF($D52=1,IVM!G52,0))","v":0},null,{"$f":"IF(OR(COUNTRY_INFO!N52=\"Unknown\",COUNTRY_INFO!N52=\"Surveillance\",COUNTRY_INFO!N52=\"Not required\",COUNTRY_INFO!N52=0),0,IF(INTRO!$E$39=\"Non-endemic\",IF(AND($E52<>0,$G52=\"\"),IF($F52=0,COUNTRY_INFO!N52*$E52,COUNTRY_INFO!N52*($E52-$D52)),IF(AND($E52<>0,$G52<>0),IF($F52=0,COUNTRY_INFO!N52*$G52,COUNTRY_INFO!N52*($G52-$D52)),0)),IF($G52=\"\",COUNTRY_INFO!N52*$E52,COUNTRY_INFO!N52*$G52)))","v":0},{"$f":"IF(OR(COUNTRY_INFO!O52=\"Unknown\",COUNTRY_INFO!O52=\"Surveillance\",COUNTRY_INFO!O52=\"Not required\",COUNTRY_INFO!O52=0),0,IF($E52<>0, IF($F52=0,COUNTRY_INFO!O52*$E52,COUNTRY_INFO!O52*($E52-$D52)),COUNTRY_INFO!O52*$E52))","v":0},null,{"$f":"IF(OR(COUNTRY_INFO!P52=\"Unknown\",COUNTRY_INFO!P52=\"Surveillance\",COUNTRY_INFO!P52=\"Not required\",COUNTRY_INFO!P52=0),0,IF(AND($E52<>0,$J52=\"\"),IF($F52=0,COUNTRY_INFO!P52*$E52,COUNTRY_INFO!P52*($E52-$D52)), IF(AND($E52<>0,$J52<>0),IF($F52=0,COUNTRY_INFO!P52*$J52,COUNTRY_INFO!P52*($J52-$D52)), COUNTRY_INFO!P52*$J52)))","v":0},0,0,null,0,0,null,0,0,null,0]
[{"$f":"IF(AND(INTRO!$E$37=\"Non-endemic\",INTRO!$E$41=\"Non-endemic\"),\" \",IF(COUNTRY_INFO!A53=0,\" \",COUNTRY_INFO!A53))","v":"The Gambia"},{"$f":"IF(AND(INTRO!$E$37=\"Non-endemic\",INTRO!$E$41=\"Non-endemic\"),\" \",IF(COUNTRY_INFO!B53=0,\" \",COUNTRY_INFO!B53))","v":"WC2"},{"$f":"IF(AND(INTRO!$E$37=\"Non-endemic\",INTRO!$E$41=\"Non-endemic\"),\" \",IF(COUNTRY_INFO!C53=0,\" \",COUNTRY_INFO!C53))","v":"Kombo South"},{"$f":"IF(AND(INTRO!$E$37=\"Non-endemic\",INTRO!$E$41=\"Non-endemic\"),0,COUNTRY_INFO!V53)","v":0},{"$f":"IF(AND(INTRO!$E$37=\"Non-endemic\",INTRO!$E$41=\"Non-endemic\"),0,COUNTRY_INFO!X53)","v":1},{"$f":"IF(INTRO!$E$39=\"Non-endemic\",IF($D53=1,DEC!I53,0),IF($D53=1,IVM!G53,0))","v":0},null,{"$f":"IF(OR(COUNTRY_INFO!N53=\"Unknown\",COUNTRY_INFO!N53=\"Surveillance\",COUNTRY_INFO!N53=\"Not required\",COUNTRY_INFO!N53=0),0,IF(INTRO!$E$39=\"Non-endemic\",IF(AND($E53<>0,$G53=\"\"),IF($F53=0,COUNTRY_INFO!N53*$E53,COUNTRY_INFO!N53*($E53-$D53)),IF(AND($E53<>0,$G53<>0),IF($F53=0,COUNTRY_INFO!N53*$G53,COUNTRY_INFO!N53*($G53-$D53)),0)),IF($G53=\"\",COUNTRY_INFO!N53*$E53,COUNTRY_INFO!N53*$G53)))","v":17906},{"$f":"IF(OR(COUNTRY_INFO!O53=\"Unknown\",COUNTRY_INFO!O53=\"Surveillance\",COUNTRY_INFO!O53=\"Not required\",COUNTRY_INFO!O53=0),0,IF($E53<>0, IF($F53=0,COUNTRY_INFO!O53*$E53,COUNTRY_INFO!O53*($E53-$D53)),COUNTRY_INFO!O53*$E53))","v":40261},null,{"$f":"IF(OR(COUNTRY_INFO!P53=\"Unknown\",COUNTRY_INFO!P53=\"Surveillance\",COUNTRY_INFO!P53=\"Not required\",COUNTRY_INFO!P53=0),0,IF(AND($E53<>0,$J53=\"\"),IF($F53=0,COUNTRY_INFO!P53*$E53,COUNTRY_INFO!P53*($E53-$D53)), IF(AND($E53<>0,$J53<>0),IF($F53=0,COUNTRY_INFO!P53*$J53,COUNTRY_INFO!P53*($J53-$D53)), COUNTRY_INFO!P53*$J53)))","v":34470},92637,0,null,0,92637,null,92637,0,null,0]

{"sheet":"PZQ","index":4,"n_rows":53,"n_cols":18,"rows_kept":53,"cut":false,"hidden":false,"merged":[[3,0,3,2],[5,0,5,2],[5,4,5,7],[5,8,5,9],[6,17,7,17],[6,6,7,6],[6,7,7,7],[6,9,7,9],[6,0,7,0],[6,1,7,1],[6,2,7,2],[6,4,7,4],[5,3,7,3],[6,5,7,5],[6,8,7,8],[6,12,7,12],[5,12,5,17],[5,10,5,11],[6,10,7,10],[6,14,7,14],[6,15,7,15],[6,16,7,16],[6,13,7,13],[6,11,7,11]]}
["Praziquantel (PZQ)"]
["Administrative structure, eligible population by age group, treatment plan and information about tablets"]
[]
["TOTAL",null,null,null,{"$f":"SUBTOTAL(9,E$10:E$1010)","v":200050},599703,1215324,2015077,null,0,null,null,{"$f":"SUBTOTAL(9,M$10:M$1010)","v":0},1199406,3645972,4845378,0,4845378]
[]
["Country administrative structure",null,null,"Treatment plan\nSCH","Target population for SCH",null,null,null,"Hot spots",null,"Previous year MDA",null,"Praziquantel (PZQ)"]
["Country","Province/State","District",null,"PreSAC","SAC","Adults","Total","Planned","Population","Rounds","Age groups","PreSAC","SAC","Adults","Total required","Remaining in stock","Tablets to be procured"]
[]
[]
[{"$f":"IF(INTRO!$E$43=\"Non-endemic\",\" \", IF(COUNTRY_INFO!A10=0,\" \",COUNTRY_INFO!A10))","v":"The Gambia"},{"$f":"IF(INTRO!$E$43=\"Non-endemic\",\" \", IF(COUNTRY_INFO!B10=0,\" \",COUNTRY_INFO!B10))","v":"CRR"},{"$f":"IF(INTRO!$E$43=\"Non-endemic\",\" \", IF(COUNTRY_INFO!C10=0,\" \",COUNTRY_INFO!C10))","v":"Janjanbureh"},{"$f":"IF(INTRO!$E$43=\"Non-endemic\", \"Not required\", COUNTRY_INFO!Y10)","v":0},{"$f":"IF(OR(COUNTRY_INFO!R10=\"Unknown\",COUNTRY_INFO!R10=\"Surveillance\",COUNTRY_INFO!R10=\"Not required\",COUNTRY_INFO!R10=0),0,IF($D10<>0, COUNTRY_INFO!R10,0))","v":0},{"$f":"IF(OR(COUNTRY_INFO!S10=\"Unknown\",COUNTRY_INFO!S10=\"Surveillance\",COUNTRY_INFO!S10=\"Not required\",COUNTRY_INFO!S10=0),0,IF($D10<>0, COUNTRY_INFO!S10,0))","v":0},{"$f":"IF(OR(COUNTRY_INFO!T10=\"Unknown\",COUNTRY_INFO!T10=\"Surveillance\",COUNTRY_INFO!T10=\"Not required\",COUNTRY_INFO!T10=0),0,IF($D10<>0, COUNTRY_INFO!T10,0))","v":0},{"$f":"SUM(E10:G10)","v":0},null,null,null,null,null,{"$f":"IF($I10<>\"Yes\",$F10*2,($F10+ROUND(J10*$F10/SUM(COUNTRY_INFO!$E10:$G10),0))*2)","v":0},{"$f":"IF($I10<>\"Yes\",$G10*3,($G10+ROUND(J10*$G10/SUM(COUNTRY_INFO!$E10:$G10),0))*3)","v":0},{"$f":"SUM(M10:O10)","v":0},null,{"$f":"IF($P10>$Q10,P10-Q10,0)","v":0}]
[{"$f":"IF(INTRO!$E$43=\"Non-endemic\",\" \", IF(COUNTRY_INFO!A11=0,\" \",COUNTRY_INFO!A11))","v":"The Gambia"},{"$f":"IF(INTRO!$E$43=\"Non-endemic\",\" \", IF(COUNTRY_INFO!B11=0,\" \",COUNTRY_INFO!B11))","v":"CRR"},{"$f":"IF(INTRO!$E$43=\"Non-endemic\",\" \", IF(COUNTRY_INFO!C11=0,\" \",COUNTRY_INFO!C11))","v":"Lower Fulladou West"},{"$f":"IF(INTRO!$E$43=\"Non-endemic\", \"Not required\", COUNTRY_INFO!Y11)","v":1},{"$f":"IF(OR(COUNTRY_INFO!R11=\"Unknown\",COUNTRY_INFO!R11=\"Surveillance\",COUNTRY_INFO!R11=\"Not required\",COUNTRY_INFO!R11=0),0,IF($D11<>0, COUNTRY_INFO!R11,0))","v":4314},{"$f":"IF(OR(COUNTRY_INFO!S11=\"Unknown\",COUNTRY_INFO!S11=\"Surveillance\",COUNTRY_INFO!S11=\"Not required\",COUNTRY_INFO!S11=0),0,IF($D11<>0, COUNTRY_INFO!S11,0))","v":12932},{"$f":"IF(OR(COUNTRY_INFO!T11=\"Unknown\",COUNTRY_INFO!T11=\"Surveillance\",COUNTRY_INFO!T11=\"Not required\",COUNTRY_INFO!T11=0),0,IF($D11<>0, COUNTRY_INFO!T11,0))","v":26208},{"$f":"SUM(E11:G11)","v":43454},null,null,null,null,null,{"$f":"IF($I11<>\"Yes\",$F11*2,($F11+ROUND(J11*$F11/SUM(COUNTRY_INFO!$E11:$G11),0))*2)","v":25864},{"$f":"IF($I11<>\"Yes\",$G11*3,($G11+ROUND(J11*$G11/SUM(COUNTRY_INFO!$E11:$G11),0))*3)","v":78624},{"$f":"SUM(M11:O11)","v":104488},null,{"$f":"IF($P11>$Q11,P11-Q11,0)","v":104488}]
[{"$f":"IF(INTRO!$E$43=\"Non-endemic\",\" \", IF(COUNTRY_INFO!A12=0,\" \",COUNTRY_INFO!A12))","v":"The Gambia"},{"$f":"IF(INTRO!$E$43=\"Non-endemic\",\" \", IF(COUNTRY_INFO!B12=0,\" \",COUNTRY_INFO!B12))","v":"CRR"},{"$f":"IF(INTRO!$E$43=\"Non-endemic\",\" \", IF(COUNTRY_INFO!C12=0,\" \",COUNTRY_INFO!C12))","v":"Lower Saloum"},{"$f":"IF(INTRO!$E$43=\"Non-endemic\", \"Not required\", COUNTRY_INFO!Y12)","v":1},{"$f":"IF(OR(COUNTRY_INFO!R12=\"Unknown\",COUNTRY_INFO!R12=\"Surveillance\",COUNTRY_INFO!R12=\"Not required\",COUNTRY_INFO!R12=0),0,IF($D12<>0, COUNTRY_INFO!R12,0))","v":1626},{"$f":"IF(OR(COUNTRY_INFO!S12=\"Unknown\",COUNTRY_INFO!S12=\"Surveillance\",COUNTRY_INFO!S12=\"Not required\",COUNTRY_INFO!S12=0),0,IF($D12<>0, COUNTRY_INFO!S12,0))","v":4873},{"$f":"IF(OR(COUNTRY_INFO!T12=\"Unknown\",COUNTRY_INFO!T12=\"Surveillance\",COUNTRY_INFO!T12=\"Not required\",COUNTRY_INFO!T12=0),0,IF($D12<>0, COUNTRY_INFO!T12,0))","v":9876},16375,null,null,null,null,null,{"$f":"IF($I12<>\"Yes\",$F12*2,($F12+ROUND(J12*$F12/SUM(COUNTRY_INFO!$E12:$G12),0))*2)","v":9746},{"$f":"IF($I12<>\"Yes\",$G12*3,($G12+ROUND(J12*$G12/SUM(COUNTRY_INFO!$E12:$G12),0))*3)","v":29628},39374,null,39374]
[{"$f":"IF(INTRO!$E$43=\"Non-endemic\",\" \", IF(COUNTRY_INFO!A13=0,\" \",COUNTRY_INFO!A13))","v":"The Gambia"},{"$f":"IF(INTRO!$E$43=\"Non-endemic\",\" \", IF(COUNTRY_INFO!B13=0,\" \",COUNTRY_INFO!B13))","v":"CRR"},{"$f":"IF(INTRO!$E$43=\"Non-endemic\",\" \", IF(COUNTRY_INFO!C13=0,\" \",COUNTRY_INFO!C13))","v":"Niamina Dankunku"},{"$f":"IF(INTRO!$E$43=\"Non-endemic\", \"Not required\", COUNTRY_INFO!Y13)","v":1},{"$f":"IF(OR(COUNTRY_INFO!R13=\"Unknown\",COUNTRY_INFO!R13=\"Surveillance\",COUNTRY_INFO!R13=\"Not required\",COUNTRY_INFO!R13=0),0,IF($D13<>0, COUNTRY_INFO!R13,0))","v":625},{"$f":"IF(OR(COUNTRY_INFO!S13=\"Unknown\",COUNTRY_INFO!S13=\"Surveillance\",COUNTRY_INFO!S13=\"Not required\",COUNTRY_INFO!S13=0),0,IF($D13<>0, COUNTRY_INFO!S13,0))","v":1873},{"$f":"IF(OR(COUNTRY_INFO!T13=\"Unknown\",COUNTRY_INFO!T13=\"Surveillance\",COUNTRY_INFO!T13=\"Not required\",COUNTRY_INFO!T13=0),0,IF($D13<>0, COUNTRY_INFO!T13,0))","v":3795},6293,null,null,null,null,null,{"$f":"IF($I13<>\"Yes\",$F13*2,($F13+ROUND(J13*$F13/SUM(COUNTRY_INFO!$E13:$G13),0))*2)","v":3746},{"$f":"IF($I13<>\"Yes\",$G13*3,($G13+ROUND(J13*$G13/SUM(COUNTRY_INFO!$E13:$G13),0))*3)","v":11385},15131,null,15131]
[{"$f":"IF(INTRO!$E$43=\"Non-endemic\",\" \", IF(COUNTRY_INFO!A14=0,\" \",COUNTRY_INFO!A14))","v":"The Gambia"},{"$f":"IF(INTRO!$E$43=\"Non-endemic\",\" \", IF(COUNTRY_INFO!B14=0,\" \",COUNTRY_INFO!B14))","v":"CRR"},{"$f":"IF(INTRO!$E$43=\"Non-endemic\",\" \", IF(COUNTRY_INFO!C14=0,\" \",COUNTRY_INFO!C14))","v":"Niamina East"},{"$f":"IF(INTRO!$E$43=\"Non-endemic\", \"Not required\", COUNTRY_INFO!Y14)","v":1},{"$f":"IF(OR(COUNTRY_INFO!R14=\"Unknown\",COUNTRY_INFO!R14=\"Surveillance\",COUNTRY_INFO!R14=\"Not required\",COUNTRY_INFO!R14=0),0,IF($D14<>0, COUNTRY_INFO!R14,0))","v":2500},{"$f":"IF(OR(COUNTRY_INFO!S14=\"Unknown\",COUNTRY_INFO!S14=\"Surveillance\",COUNTRY_INFO!S14=\"Not required\",COUNTRY_INFO!S14=0),0,IF($D14<>0, COUNTRY_INFO!S14,0))","v":7493},{"$f":"IF(OR(COUNTRY_INFO!T14=\"Unknown\",COUNTRY_INFO!T14=\"Surveillance\",COUNTRY_INFO!T14=\"Not required\",COUNTRY_INFO!T14=0),0,IF($D14<>0, COUNTRY_INFO!T14,0))","v":15186},25179,null,null,null,null,null,{"$f":"IF($I14<>\"Yes\",$F14*2,($F14+ROUND(J14*$F14/SUM(COUNTRY_INFO!$E14:$G14),0))*2)","v":14986},{"$f":"IF($I14<>\"Yes\",$G14*3,($G14+ROUND(J14*$G14/SUM(COUNTRY_INFO!$E14:$G14),0))*3)","v":45558},60544,null,60544]
[{"$f":"IF(INTRO!$E$43=\"Non-endemic\",\" \", IF(COUNTRY_INFO!A15=0,\" \",COUNTRY_INFO!A15))","v":"The Gambia"},{"$f":"IF(INTRO!$E$43=\"Non-endemic\",\" \", IF(COUNTRY_INFO!B15=0,\" \",COUNTRY_INFO!B15))","v":"CRR"},{"$f":"IF(INTRO!$E$43=\"Non-endemic\",\" \", IF(COUNTRY_INFO!C15=0,\" \",COUNTRY_INFO!C15))","v":"Niamina West"},{"$f":"IF(INTRO!$E$43=\"Non-endemic\", \"Not required\", COUNTRY_INFO!Y15)","v":1},{"$f":"IF(OR(COUNTRY_INFO!R15=\"Unknown\",COUNTRY_INFO!R15=\"Surveillance\",COUNTRY_INFO!R15=\"Not required\",COUNTRY_INFO!R15=0),0,IF($D15<>0, COUNTRY_INFO!R15,0))","v":734},{"$f":"IF(OR(COUNTRY_INFO!S15=\"Unknown\",COUNTRY_INFO!S15=\"Surveillance\",COUNTRY_INFO!S15=\"Not required\",COUNTRY_INFO!S15=0),0,IF($D15<>0, COUNTRY_INFO!S15,0))","v":2198},{"$f":"IF(OR(COUNTRY_INFO!T15=\"Unknown\",COUNTRY_INFO!T15=\"Surveillance\",COUNTRY_INFO!T15=\"Not required\",COUNTRY_INFO!T15=0),0,IF($D15<>0, COUNTRY_INFO!T15,0))","v":4455},7387,null,null,null,null,null,{"$f":"IF($I15<>\"Yes\",$F15*2,($F15+ROUND(J15*$F15/SUM(COUNTRY_INFO!$E15:$G15),0))*2)","v":4396},{"$f":"IF($I15<>\"Yes\",$G15*3,($G15+ROUND(J15*$G15/SUM(COUNTRY_INFO!$E15:$G15),0))*3)","v":13365},17761,null,17761]
[{"$f":"IF(INTRO!$E$43=\"Non-endemic\",\" \", IF(COUNTRY_INFO!A16=0,\" \",COUNTRY_INFO!A16))","v":"The Gambia"},{"$f":"IF(INTRO!$E$43=\"Non-endemic\",\" \", IF(COUNTRY_INFO!B16=0,\" \",COUNTRY_INFO!B16))","v":"CRR"},{"$f":"IF(INTRO!$E$43=\"Non-endemic\",\" \", IF(COUNTRY_INFO!C16=0,\" \",COUNTRY_INFO!C16))","v":"Niani"},{"$f":"IF(INTRO!$E$43=\"Non-endemic\", \"Not required\", COUNTRY_INFO!Y16)","v":1},{"$f":"IF(OR(COUNTRY_INFO!R16=\"Unknown\",COUNTRY_INFO!R16=\"Surveillance\",COUNTRY_INFO!R16=\"Not required\",COUNTRY_INFO!R16=0),0,IF($D16<>0, COUNTRY_INFO!R16,0))","v":2983},{"$f":"IF(OR(COUNTRY_INFO!S16=\"Unknown\",COUNTRY_INFO!S16=\"Surveillance\",COUNTRY_INFO!S16=\"Not required\",COUNTRY_INFO!S16=0),0,IF($D16<>0, COUNTRY_INFO!S16,0))","v":8943},{"$f":"IF(OR(COUNTRY_INFO!T16=\"Unknown\",COUNTRY_INFO!T16=\"Surveillance\",COUNTRY_INFO!T16=\"Not required\",COUNTRY_INFO!T16=0),0,IF($D16<>0, COUNTRY_INFO!T16,0))","v":18122},30048,null,null,null,null,null,{"$f":"IF($I16<>\"Yes\",$F16*2,($F16+ROUND(J16*$F16/SUM(COUNTRY_INFO!$E16:$G16),0))*2)","v":17886},{"$f":"IF($I16<>\"Yes\",$G16*3,($G16+ROUND(J16*$G16/SUM(COUNTRY_INFO!$E16:$G16),0))*3)","v":54366},72252,null,72252]
[{"$f":"IF(INTRO!$E$43=\"Non-endemic\",\" \", IF(COUNTRY_INFO!A17=0,\" \",COUNTRY_INFO!A17))","v":"The Gambia"},{"$f":"IF(INTRO!$E$43=\"Non-endemic\",\" \", IF(COUNTRY_INFO!B17=0,\" \",COUNTRY_INFO!B17))","v":"CRR"},{"$f":"IF(INTRO!$E$43=\"Non-endemic\",\" \", IF(COUNTRY_INFO!C17=0,\" \",COUNTRY_INFO!C17))","v":"Nianija"},{"$f":"IF(INTRO!$E$43=\"Non-endemic\", \"Not required\", COUNTRY_INFO!Y17)","v":1},{"$f":"IF(OR(COUNTRY_INFO!R17=\"Unknown\",COUNTRY_INFO!R17=\"Surveillance\",COUNTRY_INFO!R17=\"Not required\",COUNTRY_INFO!R17=0),0,IF($D17<>0, COUNTRY_INFO!R17,0))","v":1040},{"$f":"IF(OR(COUNTRY_INFO!S17=\"Unknown\",COUNTRY_INFO!S17=\"Surveillance\",COUNTRY_INFO!S17=\"Not required\",COUNTRY_INFO!S17=0),0,IF($D17<>0, COUNTRY_INFO!S17,0))","v":3116},{"$f":"IF(OR(COUNTRY_INFO!T17=\"Unknown\",COUNTRY_INFO!T17=\"Surveillance\",COUNTRY_INFO!T17=\"Not required\",COUNTRY_INFO!T17=0),0,IF($D17<>0, COUNTRY_INFO!T17,0))","v":6314},10470,null,null,null,null,null,{"$f":"IF($I17<>\"Yes\",$F17*2,($F17+ROUND(J17*$F17/SUM(COUNTRY_INFO!$E17:$G17),0))*2)","v":6232},{"$f":"IF($I17<>\"Yes\",$G17*3,($G17+ROUND(J17*$G17/SUM(COUNTRY_INFO!$E17:$G17),0))*3)","v":18942},25174,null,25174]
[{"$f":"IF(INTRO!$E$43=\"Non-endemic\",\" \", IF(COUNTRY_INFO!A18=0,\" \",COUNTRY_INFO!A18))","v":"The Gambia"},{"$f":"IF(INTRO!$E$43=\"Non-endemic\",\" \", IF(COUNTRY_INFO!B18=0,\" \",COUNTRY_INFO!B18))","v":"CRR"},{"$f":"IF(INTRO!$E$43=\"Non-endemic\",\" \", IF(COUNTRY_INFO!C18=0,\" \",COUNTRY_INFO!C18))","v":"Sami"},{"$f":"IF(INTRO!$E$43=\"Non-endemic\", \"Not required\", COUNTRY_INFO!Y18)","v":1},{"$f":"IF(OR(COUNTRY_INFO!R18=\"Unknown\",COUNTRY_INFO!R18=\"Surveillance\",COUNTRY_INFO!R18=\"Not required\",COUNTRY_INFO!R18=0),0,IF($D18<>0, COUNTRY_INFO!R18,0))","v":2564},{"$f":"IF(OR(COUNTRY_INFO!S18=\"Unknown\",COUNTRY_INFO!S18=\"Surveillance\",COUNTRY_INFO!S18=\"Not required\",COUNTRY_INFO!S18=0),0,IF($D18<>0, COUNTRY_INFO!S18,0))","v":7687},{"$f":"IF(OR(COUNTRY_INFO!T18=\"Unknown\",COUNTRY_INFO!T18=\"Surveillance\",COUNTRY_INFO!T18=\"Not required\",COUNTRY_INFO!T18=0),0,IF($D18<>0, COUNTRY_INFO!T18,0))","v":15579},25830,null,null,null,null,null,{"$f":"IF($I18<>\"Yes\",$F18*2,($F18+ROUND(J18*$F18/SUM(COUNTRY_INFO!$E18:$G18),0))*2)","v":15374},{"$f":"IF($I18<>\"Yes\",$G18*3,($G18+ROUND(J18*$G18/SUM(COUNTRY_INFO!$E18:$G18),0))*3)","v":46737},62111,null,62111]
[{"$f":"IF(INTRO!$E$43=\"Non-endemic\",\" \", IF(COUNTRY_INFO!A19=0,\" \",COUNTRY_INFO!A19))","v":"The Gambia"},{"$f":"IF(INTRO!$E$43=\"Non-endemic\",\" \", IF(COUNTRY_INFO!B19=0,\" \",COUNTRY_INFO!B19))","v":"CRR"},{"$f":"IF(INTRO!$E$43=\"Non-endemic\",\" \", IF(COUNTRY_INFO!C19=0,\" \",COUNTRY_INFO!C19))","v":"Upper Fulladou West"},{"$f":"IF(INTRO!$E$43=\"Non-endemic\", \"Not required\", COUNTRY_INFO!Y19)","v":1},{"$f":"IF(OR(COUNTRY_INFO!R19=\"Unknown\",COUNTRY_INFO!R19=\"Surveillance\",COUNTRY_INFO!R19=\"Not required\",COUNTRY_INFO!R19=0),0,IF($D19<>0, COUNTRY_INFO!R19,0))","v":4774},{"$f":"IF(OR(COUNTRY_INFO!S19=\"Unknown\",COUNTRY_INFO!S19=\"Surveillance\",COUNTRY_INFO!S19=\"Not required\",COUNTRY_INFO!S19=0),0,IF($D19<>0, COUNTRY_INFO!S19,0))","v":14311},{"$f":"IF(OR(COUNTRY_INFO!T19=\"Unknown\",COUNTRY_INFO!T19=\"Surveillance\",COUNTRY_INFO!T19=\"Not required\",COUNTRY_INFO!T19=0),0,IF($D19<>0, COUNTRY_INFO!T19,0))","v":29002},48087,null,null,null,null,null,{"$f":"IF($I19<>\"Yes\",$F19*2,($F19+ROUND(J19*$F19/SUM(COUNTRY_INFO!$E19:$G19),0))*2)","v":28622},{"$f":"IF($I19<>\"Yes\",$G19*3,($G19+ROUND(J19*$G19/SUM(COUNTRY_INFO!$E19:$G19),0))*3)","v":87006},115628,null,115628]
[{"$f":"IF(INTRO!$E$43=\"Non-endemic\",\" \", IF(COUNTRY_INFO!A20=0,\" \",COUNTRY_INFO!A20))","v":"The Gambia"},{"$f":"IF(INTRO!$E$43=\"Non-endemic\",\" \", IF(COUNTRY_INFO!B20=0,\" \",COUNTRY_INFO!B20))","v":"CRR"},{"$f":"IF(INTRO!$E$43=\"Non-endemic\",\" \", IF(COUNTRY_INFO!C20=0,\" \",COUNTRY_INFO!C20))","v":"Upper Saloum"},{"$f":"IF(INTRO!$E$43=\"Non-endemic\", \"Not required\", COUNTRY_INFO!Y20)","v":0},{"$f":"IF(OR(COUNTRY_INFO!R20=\"Unknown\",COUNTRY_INFO!R20=\"Surveillance\",COUNTRY_INFO!R20=\"Not required\",COUNTRY_INFO!R20=0),0,IF($D20<>0, COUNTRY_INFO!R20,0))","v":0},{"$f":"IF(OR(COUNTRY_INFO!S20=\"Unknown\",COUNTRY_INFO!S20=\"Surveillance\",COUNTRY_INFO!S20=\"Not required\",COUNTRY_INFO!S20=0),0,IF($D20<>0, COUNTRY_INFO!S20,0))","v":0},{"$f":"IF(OR(COUNTRY_INFO!T20=\"Unknown\",COUNTRY_INFO!T20=\"Surveillance\",COUNTRY_INFO!T20=\"Not required\",COUNTRY_INFO!T20=0),0,IF($D20<>0, COUNTRY_INFO!T20,0))","v":0},0,null,null,null,null,null,{"$f":"IF($I20<>\"Yes\",$F20*2,($F20+ROUND(J20*$F20/SUM(COUNTRY_INFO!$E20:$G20),0))*2)","v":0},{"$f":"IF($I20<>\"Yes\",$G20*3,($G20+ROUND(J20*$G20/SUM(COUNTRY_INFO!$E20:$G20),0))*3)","v":0},0,null,0]
[{"$f":"IF(INTRO!$E$43=\"Non-endemic\",\" \", IF(COUNTRY_INFO!A21=0,\" \",COUNTRY_INFO!A21))","v":"The Gambia"},{"$f":"IF(INTRO!$E$43=\"Non-endemic\",\" \", IF(COUNTRY_INFO!B21=0,\" \",COUNTRY_INFO!B21))","v":"LRR"},{"$f":"IF(INTRO!$E$43=\"Non-endemic\",\" \", IF(COUNTRY_INFO!C21=0,\" \",COUNTRY_INFO!C21))","v":"Jarra Central"},{"$f":"IF(INTRO!$E$43=\"Non-endemic\", \"Not required\", COUNTRY_INFO!Y21)","v":1},{"$f":"IF(OR(COUNTRY_INFO!R21=\"Unknown\",COUNTRY_INFO!R21=\"Surveillance\",COUNTRY_INFO!R21=\"Not required\",COUNTRY_INFO!R21=0),0,IF($D21<>0, COUNTRY_INFO!R21,0))","v":844},{"$f":"IF(OR(COUNTRY_INFO!S21=\"Unknown\",COUNTRY_INFO!S21=\"Surveillance\",COUNTRY_INFO!S21=\"Not required\",COUNTRY_INFO!S21=0),0,IF($D21<>0, COUNTRY_INFO!S21,0))","v":2530},{"$f":"IF(OR(COUNTRY_INFO!T21=\"Unknown\",COUNTRY_INFO!T21=\"Surveillance\",COUNTRY_INFO!T21=\"Not required\",COUNTRY_INFO!T21=0),0,IF($D21<>0, COUNTRY_INFO!T21,0))","v":5128},8502,null,null,null,null,null,{"$f":"IF($I21<>\"Yes\",$F21*2,($F21+ROUND(J21*$F21/SUM(COUNTRY_INFO!$E21:$G21),0))*2)","v":5060},{"$f":"IF($I21<>\"Yes\",$G21*3,($G21+ROUND(J21*$G21/SUM(COUNTRY_INFO!$E21:$G21),0))*3)","v":15384},20444,null,20444]
[{"$f":"IF(INTRO!$E$43=\"Non-endemic\",\" \", IF(COUNTRY_INFO!A22=0,\" \",COUNTRY_INFO!A22))","v":"The Gambia"},{"$f":"IF(INTRO!$E$43=\"Non-endemic\",\" \", IF(COUNTRY_INFO!B22=0,\" \",COUNTRY_INFO!B22))","v":"LRR"},{"$f":"IF(INTRO!$E$43=\"Non-endemic\",\" \", IF(COUNTRY_INFO!C22=0,\" \",COUNTRY_INFO!C22))","v":"Jarra East"},{"$f":"IF(INTRO!$E$43=\"Non-endemic\", \"Not required\", COUNTRY_INFO!Y22)","v":0},{"$f":"IF(OR(COUNTRY_INFO!R22=\"Unknown\",COUNTRY_INFO!R22=\"Surveillance\",COUNTRY_INFO!R22=\"Not required\",COUNTRY_INFO!R22=0),0,IF($D22<>0, COUNTRY_INFO!R22,0))","v":0},{"$f":"IF(OR(COUNTRY_INFO!S22=\"Unknown\",COUNTRY_INFO!S22=\"Surveillance\",COUNTRY_INFO!S22=\"Not required\",COUNTRY_INFO!S22=0),0,IF($D22<>0, COUNTRY_INFO!S22,0))","v":0},{"$f":"IF(OR(COUNTRY_INFO!T22=\"Unknown\",COUNTRY_INFO!T22=\"Surveillance\",COUNTRY_INFO!T22=\"Not required\",COUNTRY_INFO!T22=0),0,IF($D22<>0, COUNTRY_INFO!T22,0))","v":0},0,null,null,null,null,null,{"$f":"IF($I22<>\"Yes\",$F22*2,($F22+ROUND(J22*$F22/SUM(COUNTRY_INFO!$E22:$G22),0))*2)","v":0},{"$f":"IF($I22<>\"Yes\",$G22*3,($G22+ROUND(J22*$G22/SUM(COUNTRY_INFO!$E22:$G22),0))*3)","v":0},0,null,0]
[{"$f":"IF(INTRO!$E$43=\"Non-endemic\",\" \", IF(COUNTRY_INFO!A23=0,\" \",COUNTRY_INFO!A23))","v":"The Gambia"},{"$f":"IF(INTRO!$E$43=\"Non-endemic\",\" \", IF(COUNTRY_INFO!B23=0,\" \",COUNTRY_INFO!B23))","v":"LRR"},{"$f":"IF(INTRO!$E$43=\"Non-endemic\",\" \", IF(COUNTRY_INFO!C23=0,\" \",COUNTRY_INFO!C23))","v":"Jarra West"},{"$f":"IF(INTRO!$E$43=\"Non-endemic\", \"Not required\", COUNTRY_INFO!Y23)","v":1},{"$f":"IF(OR(COUNTRY_INFO!R23=\"Unknown\",COUNTRY_INFO!R23=\"Surveillance\",COUNTRY_INFO!R23=\"Not required\",COUNTRY_INFO!R23=0),0,IF($D23<>0, COUNTRY_INFO!R23,0))","v":2653},{"$f":"IF(OR(COUNTRY_INFO!S23=\"Unknown\",COUNTRY_INFO!S23=\"Surveillance\",COUNTRY_INFO!S23=\"Not required\",COUNTRY_INFO!S23=0),0,IF($D23<>0, COUNTRY_INFO!S23,0))","v":7952},{"$f":"IF(OR(COUNTRY_INFO!T23=\"Unknown\",COUNTRY_INFO!T23=\"Surveillance\",COUNTRY_INFO!T23=\"Not required\",COUNTRY_INFO!T23=0),0,IF($D23<>0, COUNTRY_INFO!T23,0))","v":16114},26719,null,null,null,null,null,{"$f":"IF($I23<>\"Yes\",$F23*2,($F23+ROUND(J23*$F23/SUM(COUNTRY_INFO!$E23:$G23),0))*2)","v":15904},{"$f":"IF($I23<>\"Yes\",$G23*3,($G23+ROUND(J23*$G23/SUM(COUNTRY_INFO!$E23:$G23),0))*3)","v":48342},64246,null,64246]
[{"$f":"IF(INTRO!$E$43=\"Non-endemic\",\" \", IF(COUNTRY_INFO!A24=0,\" \",COUNTRY_INFO!A24))","v":"The Gambia"},{"$f":"IF(INTRO!$E$43=\"Non-endemic\",\" \", IF(COUNTRY_INFO!B24=0,\" \",COUNTRY_INFO!B24))","v":"LRR"},{"$f":"IF(INTRO!$E$43=\"Non-endemic\",\" \", IF(COUNTRY_INFO!C24=0,\" \",COUNTRY_INFO!C24))","v":"Kiang Central"},{"$f":"IF(INTRO!$E$43=\"Non-endemic\", \"Not required\", COUNTRY_INFO!Y24)","v":1},{"$f":"IF(OR(COUNTRY_INFO!R24=\"Unknown\",COUNTRY_INFO!R24=\"Surveillance\",COUNTRY_INFO!R24=\"Not required\",COUNTRY_INFO!R24=0),0,IF($D24<>0, COUNTRY_INFO!R24,0))","v":876},{"$f":"IF(OR(COUNTRY_INFO!S24=\"Unknown\",COUNTRY_INFO!S24=\"Surveillance\",COUNTRY_INFO!S24=\"Not required\",COUNTRY_INFO!S24=0),0,IF($D24<>0, COUNTRY_INFO!S24,0))","v":2627},{"$f":"IF(OR(COUNTRY_INFO!T24=\"Unknown\",COUNTRY_INFO!T24=\"Surveillance\",COUNTRY_INFO!T24=\"Not required\",COUNTRY_INFO!T24=0),0,IF($D24<>0, COUNTRY_INFO!T24,0))","v":5324},8827,null,null,null,null,null,{"$f":"IF($I24<>\"Yes\",$F24*2,($F24+ROUND(J24*$F24/SUM(COUNTRY_INFO!$E24:$G24),0))*2)","v":5254},{"$f":"IF($I24<>\"Yes\",$G24*3,($G24+ROUND(J24*$G24/SUM(COUNTRY_INFO!$E24:$G24),0))*3)","v":15972},21226,null,21226]
[{"$f":"IF(INTRO!$E$43=\"Non-endemic\",\" \", IF(COUNTRY_INFO!A25=0,\" \",COUNTRY_INFO!A25))","v":"The Gambia"},{"$f":"IF(INTRO!$E$43=\"Non-endemic\",\" \", IF(COUNTRY_INFO!B25=0,\" \",COUNTRY_INFO!B25))","v":"LRR"},{"$f":"IF(INTRO!$E$43=\"Non-endemic\",\" \", IF(COUNTRY_INFO!C25=0,\" \",COUNTRY_INFO!C25))","v":"Kiang East"},{"$f":"IF(INTRO!$E$43=\"Non-endemic\", \"Not required\", COUNTRY_INFO!Y25)","v":1},{"$f":"IF(OR(COUNTRY_INFO!R25=\"Unknown\",COUNTRY_INFO!R25=\"Surveillance\",COUNTRY_INFO!R25=\"Not required\",COUNTRY_INFO!R25=0),0,IF($D25<>0, COUNTRY_INFO!R25,0))","v":688},{"$f":"IF(OR(COUNTRY_INFO!S25=\"Unknown\",COUNTRY_INFO!S25=\"Surveillance\",COUNTRY_INFO!S25=\"Not required\",COUNTRY_INFO!S25=0),0,IF($D25<>0, COUNTRY_INFO!S25,0))","v":2063},{"$f":"IF(OR(COUNTRY_INFO!T25=\"Unknown\",COUNTRY_INFO!T25=\"Surveillance\",COUNTRY_INFO!T25=\"Not required\",COUNTRY_INFO!T25=0),0,IF($D25<>0, COUNTRY_INFO!T25,0))","v":4180},6931,null,null,null,null,null,{"$f":"IF($I25<>\"Yes\",$F25*2,($F25+ROUND(J25*$F25/SUM(COUNTRY_INFO!$E25:$G25),0))*2)","v":4126},{"$f":"IF($I25<>\"Yes\",$G25*3,($G25+ROUND(J25*$G25/SUM(COUNTRY_INFO!$E25:$G25),0))*3)","v":12540},16666,null,16666]
[{"$f":"IF(INTRO!$E$43=\"Non-endemic\",\" \", IF(COUNTRY_INFO!A26=0,\" \",COUNTRY_INFO!A26))","v":"The Gambia"},{"$f":"IF(INTRO!$E$43=\"Non-endemic\",\" \", IF(COUNTRY_INFO!B26=0,\" \",COUNTRY_INFO!B26))","v":"LRR"},{"$f":"IF(INTRO!$E$43=\"Non-endemic\",\" \", IF(COUNTRY_INFO!C26=0,\" \",COUNTRY_INFO!C26))","v":"Kiang West"},{"$f":"IF(INTRO!$E$43=\"Non-endemic\", \"Not required\", COUNTRY_INFO!Y26)","v":1},{"$f":"IF(OR(COUNTRY_INFO!R26=\"Unknown\",COUNTRY_INFO!R26=\"Surveillance\",COUNTRY_INFO!R26=\"Not required\",COUNTRY_INFO!R26=0),0,IF($D26<>0, COUNTRY_INFO!R26,0))","v":1517},{"$f":"IF(OR(COUNTRY_INFO!S26=\"Unknown\",COUNTRY_INFO!S26=\"Surveillance\",COUNTRY_INFO!S26=\"Not required\",COUNTRY_INFO!S26=0),0,IF($D26<>0, COUNTRY_INFO!S26,0))","v":4547},{"$f":"IF(OR(COUNTRY_INFO!T26=\"Unknown\",COUNTRY_INFO!T26=\"Surveillance\",COUNTRY_INFO!T26=\"Not required\",COUNTRY_INFO!T26=0),0,IF($D26<>0, COUNTRY_INFO!T26,0))","v":9215},15279,null,null,null,null,null,{"$f":"IF($I26<>\"Yes\",$F26*2,($F26+ROUND(J26*$F26/SUM(COUNTRY_INFO!$E26:$G26),0))*2)","v":9094},{"$f":"IF($I26<>\"Yes\",$G26*3,($G26+ROUND(J26*$G26/SUM(COUNTRY_INFO!$E26:$G26),0))*3)","v":27645},36739,null,36739]
[{"$f":"IF(INTRO!$E$43=\"Non-endemic\",\" \", IF(COUNTRY_INFO!A27=0,\" \",COUNTRY_INFO!A27))","v":"The Gambia"},{"$f":"IF(INTRO!$E$43=\"Non-endemic\",\" \", IF(COUNTRY_INFO!B27=0,\" \",COUNTRY_INFO!B27))","v":"NBE"},{"$f":"IF(INTRO!$E$43=\"Non-endemic\",\" \", IF(COUNTRY_INFO!C27=0,\" \",COUNTRY_INFO!C27))","v":"Central Baddibu"},{"$f":"IF(INTRO!$E$43=\"Non-endemic\", \"Not required\", COUNTRY_INFO!Y27)","v":1},{"$f":"IF(OR(COUNTRY_INFO!R27=\"Unknown\",COUNTRY_INFO!R27=\"Surveillance\",COUNTRY_INFO!R27=\"Not required\",COUNTRY_INFO!R27=0),0,IF($D27<>0, COUNTRY_INFO!R27,0))","v":2092},{"$f":"IF(OR(COUNTRY_INFO!S27=\"Unknown\",COUNTRY_INFO!S27=\"Surveillance\",COUNTRY_INFO!S27=\"Not required\",COUNTRY_INFO!S27=0),0,IF($D27<>0, COUNTRY_INFO!S27,0))","v":6271},{"$f":"IF(OR(COUNTRY_INFO!T27=\"Unknown\",COUNTRY_INFO!T27=\"Surveillance\",COUNTRY_INFO!T27=\"Not required\",COUNTRY_INFO!T27=0),0,IF($D27<>0, COUNTRY_INFO!T27,0))","v":12709},21072,null,null,null,null,null,{"$f":"IF($I27<>\"Yes\",$F27*2,($F27+ROUND(J27*$F27/SUM(COUNTRY_INFO!$E27:$G27),0))*2)","v":12542},{"$f":"IF($I27<>\"Yes\",$G27*3,($G27+ROUND(J27*$G27/SUM(COUNTRY_INFO!$E27:$G27),0))*3)","v":38127},50669,null,50669]
[{"$f":"IF(INTRO!$E$43=\"Non-endemic\",\" \", IF(COUNTRY_INFO!A28=0,\" \",COUNTRY_INFO!A28))","v":"The Gambia"},{"$f":"IF(INTRO!$E$43=\"Non-endemic\",\" \", IF(COUNTRY_INFO!B28=0,\" \",COUNTRY_INFO!B28))","v":"NBE"},{"$f":"IF(INTRO!$E$43=\"Non-endemic\",\" \", IF(COUNTRY_INFO!C28=0,\" \",COUNTRY_INFO!C28))","v":"Lower Baddibu"},{"$f":"IF(INTRO!$E$43=\"Non-endemic\", \"Not required\", COUNTRY_INFO!Y28)","v":1},{"$f":"IF(OR(COUNTRY_INFO!R28=\"Unknown\",COUNTRY_INFO!R28=\"Surveillance\",COUNTRY_INFO!R28=\"Not required\",COUNTRY_INFO!R28=0),0,IF($D28<>0, COUNTRY_INFO!R28,0))","v":1928},{"$f":"IF(OR(COUNTRY_INFO!S28=\"Unknown\",COUNTRY_INFO!S28=\"Surveillance\",COUNTRY_INFO!S28=\"Not required\",COUNTRY_INFO!S28=0),0,IF($D28<>0, COUNTRY_INFO!S28,0))","v":5779},{"$f":"IF(OR(COUNTRY_INFO!T28=\"Unknown\",COUNTRY_INFO!T28=\"Surveillance\",COUNTRY_INFO!T28=\"Not required\",COUNTRY_INFO!T28=0),0,IF($D28<>0, COUNTRY_INFO!T28,0))","v":11711},19418,null,null,null,null,null,{"$f":"IF($I28<>\"Yes\",$F28*2,($F28+ROUND(J28*$F28/SUM(COUNTRY_INFO!$E28:$G28),0))*2)","v":11558},{"$f":"IF($I28<>\"Yes\",$G28*3,($G28+ROUND(J28*$G28/SUM(COUNTRY_INFO!$E28:$G28),0))*3)","v":35133},46691,null,46691]
[{"$f":"IF(INTRO!$E$43=\"Non-endemic\",\" \", IF(COUNTRY_INFO!A29=0,\" \",COUNTRY_INFO!A29))","v":"The Gambia"},{"$f":"IF(INTRO!$E$43=\"Non-endemic\",\" \", IF(COUNTRY_INFO!B29=0,\" \",COUNTRY_INFO!B29))","v":"NBE"},{"$f":"IF(INTRO!$E$43=\"Non-endemic\",\" \", IF(COUNTRY_INFO!C29=0,\" \",COUNTRY_INFO!C29))","v":"Sabach Sanjal"},{"$f":"IF(INTRO!$E$43=\"Non-endemic\", \"Not required\", COUNTRY_INFO!Y29)","v":1},{"$f":"IF(OR(COUNTRY_INFO!R29=\"Unknown\",COUNTRY_INFO!R29=\"Surveillance\",COUNTRY_INFO!R29=\"Not required\",COUNTRY_INFO!R29=0),0,IF($D29<>0, COUNTRY_INFO!R29,0))","v":2546},{"$f":"IF(OR(COUNTRY_INFO!S29=\"Unknown\",COUNTRY_INFO!S29=\"Surveillance\",COUNTRY_INFO!S29=\"Not required\",COUNTRY_INFO!S29=0),0,IF($D29<>0, COUNTRY_INFO!S29,0))","v":7634},{"$f":"IF(OR(COUNTRY_INFO!T29=\"Unknown\",COUNTRY_INFO!T29=\"Surveillance\",COUNTRY_INFO!T29=\"Not required\",COUNTRY_INFO!T29=0),0,IF($D29<>0, COUNTRY_INFO!T29,0))","v":15471},25651,null,null,null,null,null,{"$f":"IF($I29<>\"Yes\",$F29*2,($F29+ROUND(J29*$F29/SUM(COUNTRY_INFO!$E29:$G29),0))*2)","v":15268},{"$f":"IF($I29<>\"Yes\",$G29*3,($G29+ROUND(J29*$G29/SUM(COUNTRY_INFO!$E29:$G29),0))*3)","v":46413},61681,null,61681]
[{"$f":"IF(INTRO!$E$43=\"Non-endemic\",\" \", IF(COUNTRY_INFO!A30=0,\" \",COUNTRY_INFO!A30))","v":"The Gambia"},{"$f":"IF(INTRO!$E$43=\"Non-endemic\",\" \", IF(COUNTRY_INFO!B30=0,\" \",COUNTRY_INFO!B30))","v":"NBE"},{"$f":"IF(INTRO!$E$43=\"Non-endemic\",\" \", IF(COUNTRY_INFO!C30=0,\" \",COUNTRY_INFO!C30))","v":"Upper Baddibu"},{"$f":"IF(INTRO!$E$43=\"Non-endemic\", \"Not required\", COUNTRY_INFO!Y30)","v":1},{"$f":"IF(OR(COUNTRY_INFO!R30=\"Unknown\",COUNTRY_INFO!R30=\"Surveillance\",COUNTRY_INFO!R30=\"Not required\",COUNTRY_INFO!R30=0),0,IF($D30<>0, COUNTRY_INFO!R30,0))","v":5219},{"$f":"IF(OR(COUNTRY_INFO!S30=\"Unknown\",COUNTRY_INFO!S30=\"Surveillance\",COUNTRY_INFO!S30=\"Not required\",COUNTRY_INFO!S30=0),0,IF($D30<>0, COUNTRY_INFO!S30,0))","v":15643},{"$f":"IF(OR(COUNTRY_INFO!T30=\"Unknown\",COUNTRY_INFO!T30=\"Surveillance\",COUNTRY_INFO!T30=\"Not required\",COUNTRY_INFO!T30=0),0,IF($D30<>0, COUNTRY_INFO!T30,0))","v":31702},52564,null,null,null,null,null,{"$f":"IF($I30<>\"Yes\",$F30*2,($F30+ROUND(J30*$F30/SUM(COUNTRY_INFO!$E30:$G30),0))*2)","v":31286},{"$f":"IF($I30<>\"Yes\",$G30*3,($G30+ROUND(J30*$G30/SUM(COUNTRY_INFO!$E30:$G30),0))*3)","v":95106},126392,null,126392]
[{"$f":"IF(INTRO!$E$43=\"Non-endemic\",\" \", IF(COUNTRY_INFO!A31=0,\" \",COUNTRY_INFO!A31))","v":"The Gambia"},{"$f":"IF(INTRO!$E$43=\"Non-endemic\",\" \", IF(COUNTRY_INFO!B31=0,\" \",COUNTRY_INFO!B31))","v":"NBW"},{"$f":"IF(INTRO!$E$43=\"Non-endemic\",\" \", IF(COUNTRY_INFO!C31=0,\" \",COUNTRY_INFO!C31))","v":"Jokadu"},{"$f":"IF(INTRO!$E$43=\"Non-endemic\", \"Not required\", COUNTRY_INFO!Y31)","v":1},{"$f":"IF(OR(COUNTRY_INFO!R31=\"Unknown\",COUNTRY_INFO!R31=\"Surveillance\",COUNTRY_INFO!R31=\"Not required\",COUNTRY_INFO!R31=0),0,IF($D31<>0, COUNTRY_INFO!R31,0))","v":2395},{"$f":"IF(OR(COUNTRY_INFO!S31=\"Unknown\",COUNTRY_INFO!S31=\"Surveillance\",COUNTRY_INFO!S31=\"Not required\",COUNTRY_INFO!S31=0),0,IF($D31<>0, COUNTRY_INFO!S31,0))","v":7179},{"$f":"IF(OR(COUNTRY_INFO!T31=\"Unknown\",COUNTRY_INFO!T31=\"Surveillance\",COUNTRY_INFO!T31=\"Not required\",COUNTRY_INFO!T31=0),0,IF($D31<>0, COUNTRY_INFO!T31,0))","v":14548},24122,null,null,null,null,null,{"$f":"IF($I31<>\"Yes\",$F31*2,($F31+ROUND(J31*$F31/SUM(COUNTRY_INFO!$E31:$G31),0))*2)","v":14358},{"$f":"IF($I31<>\"Yes\",$G31*3,($G31+ROUND(J31*$G31/SUM(COUNTRY_INFO!$E31:$G31),0))*3)","v":43644},58002,null,58002]
[{"$f":"IF(INTRO!$E$43=\"Non-endemic\",\" \", IF(COUNTRY_INFO!A32=0,\" \",COUNTRY_INFO!A32))","v":"The Gambia"},{"$f":"IF(INTRO!$E$43=\"Non-endemic\",\" \", IF(COUNTRY_INFO!B32=0,\" \",COUNTRY_INFO!B32))","v":"NBW"},{"$f":"IF(INTRO!$E$43=\"Non-endemic\",\" \", IF(COUNTRY_INFO!C32=0,\" \",COUNTRY_INFO!C32))","v":"Lower Niumi"},{"$f":"IF(INTRO!$E$43=\"Non-endemic\", \"Not required\", COUNTRY_INFO!Y32)","v":1},{"$f":"IF(OR(COUNTRY_INFO!R32=\"Unknown\",COUNTRY_INFO!R32=\"Surveillance\",COUNTRY_INFO!R32=\"Not required\",COUNTRY_INFO!R32=0),0,IF($D32<>0, COUNTRY_INFO!R32,0))","v":6127},{"$f":"IF(OR(COUNTRY_INFO!S32=\"Unknown\",COUNTRY_INFO!S32=\"Surveillance\",COUNTRY_INFO!S32=\"Not required\",COUNTRY_INFO!S32=0),0,IF($D32<>0, COUNTRY_INFO!S32,0))","v":18368},{"$f":"IF(OR(COUNTRY_INFO!T32=\"Unknown\",COUNTRY_INFO!T32=\"Surveillance\",COUNTRY_INFO!T32=\"Not required\",COUNTRY_INFO!T32=0),0,IF($D32<>0, COUNTRY_INFO!T32,0))","v":37223},61718,null,null,null,null,null,{"$f":"IF($I32<>\"Yes\",$F32*2,($F32+ROUND(J32*$F32/SUM(COUNTRY_INFO!$E32:$G32),0))*2)","v":36736},{"$f":"IF($I32<>\"Yes\",$G32*3,($G32+ROUND(J32*$G32/SUM(COUNTRY_INFO!$E32:$G32),0))*3)","v":111669},148405,null,148405]
[{"$f":"IF(INTRO!$E$43=\"Non-endemic\",\" \", IF(COUNTRY_INFO!A33=0,\" \",COUNTRY_INFO!A33))","v":"The Gambia"},{"$f":"IF(INTRO!$E$43=\"Non-endemic\",\" \", IF(COUNTRY_INFO!B33=0,\" \",COUNTRY_INFO!B33))","v":"NBW"},{"$f":"IF(INTRO!$E$43=\"Non-endemic\",\" \", IF(COUNTRY_INFO!C33=0,\" \",COUNTRY_INFO!C33))","v":"Upper Niumi"},{"$f":"IF(INTRO!$E$43=\"Non-endemic\", \"Not required\", COUNTRY_INFO!Y33)","v":1},{"$f":"IF(OR(COUNTRY_INFO!R33=\"Unknown\",COUNTRY_INFO!R33=\"Surveillance\",COUNTRY_INFO!R33=\"Not required\",COUNTRY_INFO!R33=0),0,IF($D33<>0, COUNTRY_INFO!R33,0))","v":3314},{"$f":"IF(OR(COUNTRY_INFO!S33=\"Unknown\",COUNTRY_INFO!S33=\"Surveillance\",COUNTRY_INFO!S33=\"Not required\",COUNTRY_INFO!S33=0),0,IF($D33<>0, COUNTRY_INFO!S33,0))","v":9936},{"$f":"IF(OR(COUNTRY_INFO!T33=\"Unknown\",COUNTRY_INFO!T33=\"Surveillance\",COUNTRY_INFO!T33=\"Not required\",COUNTRY_INFO!T33=0),0,IF($D33<>0, COUNTRY_INFO!T33,0))","v":20135},33385,null,null,null,null,null,{"$f":"IF($I33<>\"Yes\",$F33*2,($F33+ROUND(J33*$F33/SUM(COUNTRY_INFO!$E33:$G33),0))*2)","v":19872},{"$f":"IF($I33<>\"Yes\",$G33*3,($G33+ROUND(J33*$G33/SUM(COUNTRY_INFO!$E33:$G33),0))*3)","v":60405},80277,null,80277]
[{"$f":"IF(INTRO!$E$43=\"Non-endemic\",\" \", IF(COUNTRY_INFO!A34=0,\" \",COUNTRY_INFO!A34))","v":"The Gambia"},{"$f":"IF(INTRO!$E$43=\"Non-endemic\",\" \", IF(COUNTRY_INFO!B34=0,\" \",COUNTRY_INFO!B34))","v":"URR"},{"$f":"IF(INTRO!$E$43=\"Non-endemic\",\" \", IF(COUNTRY_INFO!C34=0,\" \",COUNTRY_INFO!C34))","v":"Basse"},{"$f":"IF(INTRO!$E$43=\"Non-endemic\", \"Not required\", COUNTRY_INFO!Y34)","v":1},{"$f":"IF(OR(COUNTRY_INFO!R34=\"Unknown\",COUNTRY_INFO!R34=\"Surveillance\",COUNTRY_INFO!R34=\"Not required\",COUNTRY_INFO!R34=0),0,IF($D34<>0, COUNTRY_INFO!R34,0))","v":5322},{"$f":"IF(OR(COUNTRY_INFO!S34=\"Unknown\",COUNTRY_INFO!S34=\"Surveillance\",COUNTRY_INFO!S34=\"Not required\",COUNTRY_INFO!S34=0),0,IF($D34<>0, COUNTRY_INFO!S34,0))","v":15953},{"$f":"IF(OR(COUNTRY_INFO!T34=\"Unknown\",COUNTRY_INFO!T34=\"Surveillance\",COUNTRY_INFO!T34=\"Not required\",COUNTRY_INFO!T34=0),0,IF($D34<>0, COUNTRY_INFO!T34,0))","v":32330},53605,null,null,null,null,null,{"$f":"IF($I34<>\"Yes\",$F34*2,($F34+ROUND(J34*$F34/SUM(COUNTRY_INFO!$E34:$G34),0))*2)","v":31906},{"$f":"IF($I34<>\"Yes\",$G34*3,($G34+ROUND(J34*$G34/SUM(COUNTRY_INFO!$E34:$G34),0))*3)","v":96990},128896,null,128896]
[{"$f":"IF(INTRO!$E$43=\"Non-endemic\",\" \", IF(COUNTRY_INFO!A35=0,\" \",COUNTRY_INFO!A35))","v":"The Gambia"},{"$f":"IF(INTRO!$E$43=\"Non-endemic\",\" \", IF(COUNTRY_INFO!B35=0,\" \",COUNTRY_INFO!B35))","v":"URR"},{"$f":"IF(INTRO!$E$43=\"Non-endemic\",\" \", IF(COUNTRY_INFO!C35=0,\" \",COUNTRY_INFO!C35))","v":"Jimara"},{"$f":"IF(INTRO!$E$43=\"Non-endemic\", \"Not required\", COUNTRY_INFO!Y35)","v":1},{"$f":"IF(OR(COUNTRY_INFO!R35=\"Unknown\",COUNTRY_INFO!R35=\"Surveillance\",COUNTRY_INFO!R35=\"Not required\",COUNTRY_INFO!R35=0),0,IF($D35<>0, COUNTRY_INFO!R35,0))","v":4710},{"$f":"IF(OR(COUNTRY_INFO!S35=\"Unknown\",COUNTRY_INFO!S35=\"Surveillance\",COUNTRY_INFO!S35=\"Not required\",COUNTRY_INFO!S35=0),0,IF($D35<>0, COUNTRY_INFO!S35,0))","v":14121},{"$f":"IF(OR(COUNTRY_INFO!T35=\"Unknown\",COUNTRY_INFO!T35=\"Surveillance\",COUNTRY_INFO!T35=\"Not required\",COUNTRY_INFO!T35=0),0,IF($D35<>0, COUNTRY_INFO!T35,0))","v":28616},47447,null,null,null,null,null,{"$f":"IF($I35<>\"Yes\",$F35*2,($F35+ROUND(J35*$F35/SUM(COUNTRY_INFO!$E35:$G35),0))*2)","v":28242},{"$f":"IF($I35<>\"Yes\",$G35*3,($G35+ROUND(J35*$G35/SUM(COUNTRY_INFO!$E35:$G35),0))*3)","v":85848},114090,null,114090]
[{"$f":"IF(INTRO!$E$43=\"Non-endemic\",\" \", IF(COUNTRY_INFO!A36=0,\" \",COUNTRY_INFO!A36))","v":"The Gambia"},{"$f":"IF(INTRO!$E$43=\"Non-endemic\",\" \", IF(COUNTRY_INFO!B36=0,\" \",COUNTRY_INFO!B36))","v":"URR"},{"$f":"IF(INTRO!$E$43=\"Non-endemic\",\" \", IF(COUNTRY_INFO!C36=0,\" \",COUNTRY_INFO!C36))","v":"Kantora"},{"$f":"IF(INTRO!$E$43=\"Non-endemic\", \"Not required\", COUNTRY_INFO!Y36)","v":1},{"$f":"IF(OR(COUNTRY_INFO!R36=\"Unknown\",COUNTRY_INFO!R36=\"Surveillance\",COUNTRY_INFO!R36=\"Not required\",COUNTRY_INFO!R36=0),0,IF($D36<>0, COUNTRY_INFO!R36,0))","v":4157},{"$f":"IF(OR(COUNTRY_INFO!S36=\"Unknown\",COUNTRY_INFO!S36=\"Surveillance\",COUNTRY_INFO!S36=\"Not required\",COUNTRY_INFO!S36=0),0,IF($D36<>0, COUNTRY_INFO!S36,0))","v":12461},{"$f":"IF(OR(COUNTRY_INFO!T36=\"Unknown\",COUNTRY_INFO!T36=\"Surveillance\",COUNTRY_INFO!T36=\"Not required\",COUNTRY_INFO!T36=0),0,IF($D36<>0, COUNTRY_INFO!T36,0))","v":25253},41871,null,null,null,null,null,{"$f":"IF($I36<>\"Yes\",$F36*2,($F36+ROUND(J36*$F36/SUM(COUNTRY_INFO!$E36:$G36),0))*2)","v":24922},{"$f":"IF($I36<>\"Yes\",$G36*3,($G36+ROUND(J36*$G36/SUM(COUNTRY_INFO!$E36:$G36),0))*3)","v":75759},100681,null,100681]
[{"$f":"IF(INTRO!$E$43=\"Non-endemic\",\" \", IF(COUNTRY_INFO!A37=0,\" \",COUNTRY_INFO!A37))","v":"The Gambia"},{"$f":"IF(INTRO!$E$43=\"Non-endemic\",\" \", IF(COUNTRY_INFO!B37=0,\" \",COUNTRY_INFO!B37))","v":"URR"},{"$f":"IF(INTRO!$E$43=\"Non-endemic\",\" \", IF(COUNTRY_INFO!C37=0,\" \",COUNTRY_INFO!C37))","v":"Sandu"},{"$f":"IF(INTRO!$E$43=\"Non-endemic\", \"Not required\", COUNTRY_INFO!Y37)","v":0},{"$f":"IF(OR(COUNTRY_INFO!R37=\"Unknown\",COUNTRY_INFO!R37=\"Surveillance\",COUNTRY_INFO!R37=\"Not required\",COUNTRY_INFO!R37=0),0,IF($D37<>0, COUNTRY_INFO!R37,0))","v":0},{"$f":"IF(OR(COUNTRY_INFO!S37=\"Unknown\",COUNTRY_INFO!S37=\"Surveillance\",COUNTRY_INFO!S37=\"Not required\",COUNTRY_INFO!S37=0),0,IF($D37<>0, COUNTRY_INFO!S37,0))","v":0},{"$f":"IF(OR(COUNTRY_INFO!T37=\"Unknown\",COUNTRY_INFO!T37=\"Surveillance\",COUNTRY_INFO!T37=\"Not required\",COUNTRY_INFO!T37=0),0,IF($D37<>0, COUNTRY_INFO!T37,0))","v":0},0,null,null,null,null,null,{"$f":"IF($I37<>\"Yes\",$F37*2,($F37+ROUND(J37*$F37/SUM(COUNTRY_INFO!$E37:$G37),0))*2)","v":0},{"$f":"IF($I37<>\"Yes\",$G37*3,($G37+ROUND(J37*$G37/SUM(COUNTRY_INFO!$E37:$G37),0))*3)","v":0},0,null,0]
[{"$f":"IF(INTRO!$E$43=\"Non-endemic\",\" \", IF(COUNTRY_INFO!A38=0,\" \",COUNTRY_INFO!A38))","v":"The Gambia"},{"$f":"IF(INTRO!$E$43=\"Non-endemic\",\" \", IF(COUNTRY_INFO!B38=0,\" \",COUNTRY_INFO!B38))","v":"URR"},{"$f":"IF(INTRO!$E$43=\"Non-endemic\",\" \", IF(COUNTRY_INFO!C38=0,\" \",COUNTRY_INFO!C38))","v":"Tumana"},{"$f":"IF(INTRO!$E$43=\"Non-endemic\", \"Not required\", COUNTRY_INFO!Y38)","v":1},{"$f":"IF(OR(COUNTRY_INFO!R38=\"Unknown\",COUNTRY_INFO!R38=\"Surveillance\",COUNTRY_INFO!R38=\"Not required\",COUNTRY_INFO!R38=0),0,IF($D38<>0, COUNTRY_INFO!R38,0))","v":4032},{"$f":"IF(OR(COUNTRY_INFO!S38=\"Unknown\",COUNTRY_INFO!S38=\"Surveillance\",COUNTRY_INFO!S38=\"Not required\",COUNTRY_INFO!S38=0),0,IF($D38<>0, COUNTRY_INFO!S38,0))","v":12088},{"$f":"IF(OR(COUNTRY_INFO!T38=\"Unknown\",COUNTRY_INFO!T38=\"Surveillance\",COUNTRY_INFO!T38=\"Not required\",COUNTRY_INFO!T38=0),0,IF($D38<>0, COUNTRY_INFO!T38,0))","v":24497},40617,null,null,null,null,null,{"$f":"IF($I38<>\"Yes\",$F38*2,($F38+ROUND(J38*$F38/SUM(COUNTRY_INFO!$E38:$G38),0))*2)","v":24176},{"$f":"IF($I38<>\"Yes\",$G38*3,($G38+ROUND(J38*$G38/SUM(COUNTRY_INFO!$E38:$G38),0))*3)","v":73491},97667,null,97667]
[{"$f":"IF(INTRO!$E$43=\"Non-endemic\",\" \", IF(COUNTRY_INFO!A39=0,\" \",COUNTRY_INFO!A39))","v":"The Gambia"},{"$f":"IF(INTRO!$E$43=\"Non-endemic\",\" \", IF(COUNTRY_INFO!B39=0,\" \",COUNTRY_INFO!B39))","v":"URR"},{"$f":"IF(INTRO!$E$43=\"Non-endemic\",\" \", IF(COUNTRY_INFO!C39=0,\" \",COUNTRY_INFO!C39))","v":"Wuli East"},{"$f":"IF(INTRO!$E$43=\"Non-endemic\", \"Not required\", COUNTRY_INFO!Y39)","v":1},{"$f":"IF(OR(COUNTRY_INFO!R39=\"Unknown\",COUNTRY_INFO!R39=\"Surveillance\",COUNTRY_INFO!R39=\"Not required\",COUNTRY_INFO!R39=0),0,IF($D39<>0, COUNTRY_INFO!R39,0))","v":2559},{"$f":"IF(OR(COUNTRY_INFO!S39=\"Unknown\",COUNTRY_INFO!S39=\"Surveillance\",COUNTRY_INFO!S39=\"Not required\",COUNTRY_INFO!S39=0),0,IF($D39<>0, COUNTRY_INFO!S39,0))","v":7672},{"$f":"IF(OR(COUNTRY_INFO!T39=\"Unknown\",COUNTRY_INFO!T39=\"Surveillance\",COUNTRY_INFO!T39=\"Not required\",COUNTRY_INFO!T39=0),0,IF($D39<>0, COUNTRY_INFO!T39,0))","v":15547},25778,null,null,null,null,null,{"$f":"IF($I39<>\"Yes\",$F39*2,($F39+ROUND(J39*$F39/SUM(COUNTRY_INFO!$E39:$G39),0))*2)","v":15344},{"$f":"IF($I39<>\"Yes\",$G39*3,($G39+ROUND(J39*$G39/SUM(COUNTRY_INFO!$E39:$G39),0))*3)","v":46641},61985,null,61985]
[{"$f":"IF(INTRO!$E$43=\"Non-endemic\",\" \", IF(COUNTRY_INFO!A40=0,\" \",COUNTRY_INFO!A40))","v":"The Gambia"},{"$f":"IF(INTRO!$E$43=\"Non-endemic\",\" \", IF(COUNTRY_INFO!B40=0,\" \",COUNTRY_INFO!B40))","v":"URR"},{"$f":"IF(INTRO!$E$43=\"Non-endemic\",\" \", IF(COUNTRY_INFO!C40=0,\" \",COUNTRY_INFO!C40))","v":"Wuli West"},{"$f":"IF(INTRO!$E$43=\"Non-endemic\", \"Not required\", COUNTRY_INFO!Y40)","v":1},{"$f":"IF(OR(COUNTRY_INFO!R40=\"Unknown\",COUNTRY_INFO!R40=\"Surveillance\",COUNTRY_INFO!R40=\"Not required\",COUNTRY_INFO!R40=0),0,IF($D40<>0, COUNTRY_INFO!R40,0))","v":2366},{"$f":"IF(OR(COUNTRY_INFO!S40=\"Unknown\",COUNTRY_INFO!S40=\"Surveillance\",COUNTRY_INFO!S40=\"Not required\",COUNTRY_INFO!S40=0),0,IF($D40<>0, COUNTRY_INFO!S40,0))","v":7091},{"$f":"IF(OR(COUNTRY_INFO!T40=\"Unknown\",COUNTRY_INFO!T40=\"Surveillance\",COUNTRY_INFO!T40=\"Not required\",COUNTRY_INFO!T40=0),0,IF($D40<>0, COUNTRY_INFO!T40,0))","v":14371},23828,null,null,null,null,null,{"$f":"IF($I40<>\"Yes\",$F40*2,($F40+ROUND(J40*$F40/SUM(COUNTRY_INFO!$E40:$G40),0))*2)","v":14182},{"$f":"IF($I40<>\"Yes\",$G40*3,($G40+ROUND(J40*$G40/SUM(COUNTRY_INFO!$E40:$G40),0))*3)","v":43113},57295,null,57295]
[{"$f":"IF(INTRO!$E$43=\"Non-endemic\",\" \", IF(COUNTRY_INFO!A41=0,\" \",COUNTRY_INFO!A41))","v":"The Gambia"},{"$f":"IF(INTRO!$E$43=\"Non-endemic\",\" \", IF(COUNTRY_INFO!B41=0,\" \",COUNTRY_INFO!B41))","v":"WC1"},{"$f":"IF(INTRO!$E$43=\"Non-endemic\",\" \", IF(COUNTRY_INFO!C41=0,\" \",COUNTRY_INFO!C41))","v":"Banjul Central"},{"$f":"IF(INTRO!$E$43=\"Non-endemic\", \"Not required\", COUNTRY_INFO!Y41)","v":0},{"$f":"IF(OR(COUNTRY_INFO!R41=\"Unknown\",COUNTRY_INFO!R41=\"Surveillance\",COUNTRY_INFO!R41=\"Not required\",COUNTRY_INFO!R41=0),0,IF($D41<>0, COUNTRY_INFO!R41,0))","v":0},{"$f":"IF(OR(COUNTRY_INFO!S41=\"Unknown\",COUNTRY_INFO!S41=\"Surveillance\",COUNTRY_INFO!S41=\"Not required\",COUNTRY_INFO!S41=0),0,IF($D41<>0, COUNTRY_INFO!S41,0))","v":0},{"$f":"IF(OR(COUNTRY_INFO!T41=\"Unknown\",COUNTRY_INFO!T41=\"Surveillance\",COUNTRY_INFO!T41=\"Not required\",COUNTRY_INFO!T41=0),0,IF($D41<>0, COUNTRY_INFO!T41,0))","v":0},0,null,null,null,null,null,{"$f":"IF($I41<>\"Yes\",$F41*2,($F41+ROUND(J41*$F41/SUM(COUNTRY_INFO!$E41:$G41),0))*2)","v":0},{"$f":"IF($I41<>\"Yes\",$G41*3,($G41+ROUND(J41*$G41/SUM(COUNTRY_INFO!$E41:$G41),0))*3)","v":0},0,null,0]
[{"$f":"IF(INTRO!$E$43=\"Non-endemic\",\" \", IF(COUNTRY_INFO!A42=0,\" \",COUNTRY_INFO!A42))","v":"The Gambia"},{"$f":"IF(INTRO!$E$43=\"Non-endemic\",\" \", IF(COUNTRY_INFO!B42=0,\" \",COUNTRY_INFO!B42))","v":"WC1"},{"$f":"IF(INTRO!$E$43=\"Non-endemic\",\" \", IF(COUNTRY_INFO!C42=0,\" \",COUNTRY_INFO!C42))","v":"Banjul North"},{"$f":"IF(INTRO!$E$43=\"Non-endemic\", \"Not required\", COUNTRY_INFO!Y42)","v":0},{"$f":"IF(OR(COUNTRY_INFO!R42=\"Unknown\",COUNTRY_INFO!R42=\"Surveillance\",COUNTRY_INFO!R42=\"Not required\",COUNTRY_INFO!R42=0),0,IF($D42<>0, COUNTRY_INFO!R42,0))","v":0},{"$f":"IF(OR(COUNTRY_INFO!S42=\"Unknown\",COUNTRY_INFO!S42=\"Surveillance\",COUNTRY_INFO!S42=\"Not required\",COUNTRY_INFO!S42=0),0,IF($D42<>0, COUNTRY_INFO!S42,0))","v":0},{"$f":"IF(OR(COUNTRY_INFO!T42=\"Unknown\",COUNTRY_INFO!T42=\"Surveillance\",COUNTRY_INFO!T42=\"Not required\",COUNTRY_INFO!T42=0),0,IF($D42<>0, COUNTRY_INFO!T42,0))","v":0},0,null,null,null,null,null,{"$f":"IF($I42<>\"Yes\",$F42*2,($F42+ROUND(J42*$F42/SUM(COUNTRY_INFO!$E42:$G42),0))*2)","v":0},{"$f":"IF($I42<>\"Yes\",$G42*3,($G42+ROUND(J42*$G42/SUM(COUNTRY_INFO!$E42:$G42),0))*3)","v":0},0,null,0]
[{"$f":"IF(INTRO!$E$43=\"Non-endemic\",\" \", IF(COUNTRY_INFO!A43=0,\" \",COUNTRY_INFO!A43))","v":"The Gambia"},{"$f":"IF(INTRO!$E$43=\"Non-endemic\",\" \", IF(COUNTRY_INFO!B43=0,\" \",COUNTRY_INFO!B43))","v":"WC1"},{"$f":"IF(INTRO!$E$43=\"Non-endemic\",\" \", IF(COUNTRY_INFO!C43=0,\" \",COUNTRY_INFO!C43))","v":"Banjul South"},{"$f":"IF(INTRO!$E$43=\"Non-endemic\", \"Not required\", COUNTRY_INFO!Y43)","v":0},{"$f":"IF(OR(COUNTRY_INFO!R43=\"Unknown\",COUNTRY_INFO!R43=\"Surveillance\",COUNTRY_INFO!R43=\"Not required\",COUNTRY_INFO!R43=0),0,IF($D43<>0, COUNTRY_INFO!R43,0))","v":0},{"$f":"IF(OR(COUNTRY_INFO!S43=\"Unknown\",COUNTRY_INFO!S43=\"Surveillance\",COUNTRY_INFO!S43=\"Not required\",COUNTRY_INFO!S43=0),0,IF($D43<>0, COUNTRY_INFO!S43,0))","v":0},{"$f":"IF(OR(COUNTRY_INFO!T43=\"Unknown\",COUNTRY_INFO!T43=\"Surveillance\",COUNTRY_INFO!T43=\"Not required\",COUNTRY_INFO!T43=0),0,IF($D43<>0, COUNTRY_INFO!T43,0))","v":0},0,null,null,null,null,null,{"$f":"IF($I43<>\"Yes\",$F43*2,($F43+ROUND(J43*$F43/SUM(COUNTRY_INFO!$E43:$G43),0))*2)","v":0},{"$f":"IF($I43<>\"Yes\",$G43*3,($G43+ROUND(J43*$G43/SUM(COUNTRY_INFO!$E43:$G43),0))*3)","v":0},0,null,0]
[{"$f":"IF(INTRO!$E$43=\"Non-endemic\",\" \", IF(COUNTRY_INFO!A44=0,\" \",COUNTRY_INFO!A44))","v":"The Gambia"},{"$f":"IF(INTRO!$E$43=\"Non-endemic\",\" \", IF(COUNTRY_INFO!B44=0,\" \",COUNTRY_INFO!B44))","v":"WC1"},{"$f":"IF(INTRO!$E$43=\"Non-endemic\",\" \", IF(COUNTRY_INFO!C44=0,\" \",COUNTRY_INFO!C44))","v":"Kanifing"},{"$f":"IF(INTRO!$E$43=\"Non-endemic\", \"Not required\", COUNTRY_INFO!Y44)","v":1},{"$f":"IF(OR(COUNTRY_INFO!R44=\"Unknown\",COUNTRY_INFO!R44=\"Surveillance\",COUNTRY_INFO!R44=\"Not required\",COUNTRY_INFO!R44=0),0,IF($D44<>0, COUNTRY_INFO!R44,0))","v":38920},{"$f":"IF(OR(COUNTRY_INFO!S44=\"Unknown\",COUNTRY_INFO!S44=\"Surveillance\",COUNTRY_INFO!S44=\"Not required\",COUNTRY_INFO!S44=0),0,IF($D44<>0, COUNTRY_INFO!S44,0))","v":116676},{"$f":"IF(OR(COUNTRY_INFO!T44=\"Unknown\",COUNTRY_INFO!T44=\"Surveillance\",COUNTRY_INFO!T44=\"Not required\",COUNTRY_INFO!T44=0),0,IF($D44<>0, COUNTRY_INFO!T44,0))","v":236449},392045,null,null,null,null,null,{"$f":"IF($I44<>\"Yes\",$F44*2,($F44+ROUND(J44*$F44/SUM(COUNTRY_INFO!$E44:$G44),0))*2)","v":233352},{"$f":"IF($I44<>\"Yes\",$G44*3,($G44+ROUND(J44*$G44/SUM(COUNTRY_INFO!$E44:$G44),0))*3)","v":709347},942699,null,942699]
[{"$f":"IF(INTRO!$E$43=\"Non-endemic\",\" \", IF(COUNTRY_INFO!A45=0,\" \",COUNTRY_INFO!A45))","v":"The Gambia"},{"$f":"IF(INTRO!$E$43=\"Non-endemic\",\" \", IF(COUNTRY_INFO!B45=0,\" \",COUNTRY_INFO!B45))","v":"WC1"},{"$f":"IF(INTRO!$E$43=\"Non-endemic\",\" \", IF(COUNTRY_INFO!C45=0,\" \",COUNTRY_INFO!C45))","v":"Kombo North"},{"$f":"IF(INTRO!$E$43=\"Non-endemic\", \"Not required\", COUNTRY_INFO!Y45)","v":1},{"$f":"IF(OR(COUNTRY_INFO!R45=\"Unknown\",COUNTRY_INFO!R45=\"Surveillance\",COUNTRY_INFO!R45=\"Not required\",COUNTRY_INFO!R45=0),0,IF($D45<>0, COUNTRY_INFO!R45,0))","v":42684},{"$f":"IF(OR(COUNTRY_INFO!S45=\"Unknown\",COUNTRY_INFO!S45=\"Surveillance\",COUNTRY_INFO!S45=\"Not required\",COUNTRY_INFO!S45=0),0,IF($D45<>0, COUNTRY_INFO!S45,0))","v":127960},{"$f":"IF(OR(COUNTRY_INFO!T45=\"Unknown\",COUNTRY_INFO!T45=\"Surveillance\",COUNTRY_INFO!T45=\"Not required\",COUNTRY_INFO!T45=0),0,IF($D45<>0, COUNTRY_INFO!T45,0))","v":259316},429960,null,null,null,null,null,{"$f":"IF($I45<>\"Yes\",$F45*2,($F45+ROUND(J45*$F45/SUM(COUNTRY_INFO!$E45:$G45),0))*2)","v":255920},{"$f":"IF($I45<>\"Yes\",$G45*3,($G45+ROUND(J45*$G45/SUM(COUNTRY_INFO!$E45:$G45),0))*3)","v":777948},1033868,null,1033868]
[{"$f":"IF(INTRO!$E$43=\"Non-endemic\",\" \", IF(COUNTRY_INFO!A46=0,\" \",COUNTRY_INFO!A46))","v":"The Gambia"},{"$f":"IF(INTRO!$E$43=\"Non-endemic\",\" \", IF(COUNTRY_INFO!B46=0,\" \",COUNTRY_INFO!B46))","v":"WC2"},{"$f":"IF(INTRO!$E$43=\"Non-endemic\",\" \", IF(COUNTRY_INFO!C46=0,\" \",COUNTRY_INFO!C46))","v":"Foni Bintang-Karanai"},{"$f":"IF(INTRO!$E$43=\"Non-endemic\", \"Not required\", COUNTRY_INFO!Y46)","v":1},{"$f":"IF(OR(COUNTRY_INFO!R46=\"Unknown\",COUNTRY_INFO!R46=\"Surveillance\",COUNTRY_INFO!R46=\"Not required\",COUNTRY_INFO!R46=0),0,IF($D46<>0, COUNTRY_INFO!R46,0))","v":2153},{"$f":"IF(OR(COUNTRY_INFO!S46=\"Unknown\",COUNTRY_INFO!S46=\"Surveillance\",COUNTRY_INFO!S46=\"Not required\",COUNTRY_INFO!S46=0),0,IF($D46<>0, COUNTRY_INFO!S46,0))","v":6454},{"$f":"IF(OR(COUNTRY_INFO!T46=\"Unknown\",COUNTRY_INFO!T46=\"Surveillance\",COUNTRY_INFO!T46=\"Not required\",COUNTRY_INFO!T46=0),0,IF($D46<>0, COUNTRY_INFO!T46,0))","v":13080},21687,null,null,null,null,null,{"$f":"IF($I46<>\"Yes\",$F46*2,($F46+ROUND(J46*$F46/SUM(COUNTRY_INFO!$E46:$G46),0))*2)","v":12908},{"$f":"IF($I46<>\"Yes\",$G46*3,($G46+ROUND(J46*$G46/SUM(COUNTRY_INFO!$E46:$G46),0))*3)","v":39240},52148,null,52148]
[{"$f":"IF(INTRO!$E$43=\"Non-endemic\",\" \", IF(COUNTRY_INFO!A47=0,\" \",COUNTRY_INFO!A47))","v":"The Gambia"},{"$f":"IF(INTRO!$E$43=\"Non-endemic\",\" \", IF(COUNTRY_INFO!B47=0,\" \",COUNTRY_INFO!B47))","v":"WC2"},{"$f":"IF(INTRO!$E$43=\"Non-endemic\",\" \", IF(COUNTRY_INFO!C47=0,\" \",COUNTRY_INFO!C47))","v":"Foni Bondali"},{"$f":"IF(INTRO!$E$43=\"Non-endemic\", \"Not required\", COUNTRY_INFO!Y47)","v":1},{"$f":"IF(OR(COUNTRY_INFO!R47=\"Unknown\",COUNTRY_INFO!R47=\"Surveillance\",COUNTRY_INFO!R47=\"Not required\",COUNTRY_INFO!R47=0),0,IF($D47<>0, COUNTRY_INFO!R47,0))","v":953},{"$f":"IF(OR(COUNTRY_INFO!S47=\"Unknown\",COUNTRY_INFO!S47=\"Surveillance\",COUNTRY_INFO!S47=\"Not required\",COUNTRY_INFO!S47=0),0,IF($D47<>0, COUNTRY_INFO!S47,0))","v":2857},{"$f":"IF(OR(COUNTRY_INFO!T47=\"Unknown\",COUNTRY_INFO!T47=\"Surveillance\",COUNTRY_INFO!T47=\"Not required\",COUNTRY_INFO!T47=0),0,IF($D47<>0, COUNTRY_INFO!T47,0))","v":5790},9600,null,null,null,null,null,{"$f":"IF($I47<>\"Yes\",$F47*2,($F47+ROUND(J47*$F47/SUM(COUNTRY_INFO!$E47:$G47),0))*2)","v":5714},{"$f":"IF($I47<>\"Yes\",$G47*3,($G47+ROUND(J47*$G47/SUM(COUNTRY_INFO!$E47:$G47),0))*3)","v":17370},23084,null,23084]
[{"$f":"IF(INTRO!$E$43=\"Non-endemic\",\" \", IF(COUNTRY_INFO!A48=0,\" \",COUNTRY_INFO!A48))","v":"The Gambia"},{"$f":"IF(INTRO!$E$43=\"Non-endemic\",\" \", IF(COUNTRY_INFO!B48=0,\" \",COUNTRY_INFO!B48))","v":"WC2"},{"$f":"IF(INTRO!$E$43=\"Non-endemic\",\" \", IF(COUNTRY_INFO!C48=0,\" \",COUNTRY_INFO!C48))","v":"Foni Brefet"},{"$f":"IF(INTRO!$E$43=\"Non-endemic\", \"Not required\", COUNTRY_INFO!Y48)","v":1},{"$f":"IF(OR(COUNTRY_INFO!R48=\"Unknown\",COUNTRY_INFO!R48=\"Surveillance\",COUNTRY_INFO!R48=\"Not required\",COUNTRY_INFO!R48=0),0,IF($D48<>0, COUNTRY_INFO!R48,0))","v":1826},{"$f":"IF(OR(COUNTRY_INFO!S48=\"Unknown\",COUNTRY_INFO!S48=\"Surveillance\",COUNTRY_INFO!S48=\"Not required\",COUNTRY_INFO!S48=0),0,IF($D48<>0, COUNTRY_INFO!S48,0))","v":5476},{"$f":"IF(OR(COUNTRY_INFO!T48=\"Unknown\",COUNTRY_INFO!T48=\"Surveillance\",COUNTRY_INFO!T48=\"Not required\",COUNTRY_INFO!T48=0),0,IF($D48<>0, COUNTRY_INFO!T48,0))","v":11097},18399,null,null,null,null,null,{"$f":"IF($I48<>\"Yes\",$F48*2,($F48+ROUND(J48*$F48/SUM(COUNTRY_INFO!$E48:$G48),0))*2)","v":10952},{"$f":"IF($I48<>\"Yes\",$G48*3,($G48+ROUND(J48*$G48/SUM(COUNTRY_INFO!$E48:$G48),0))*3)","v":33291},44243,null,44243]
[{"$f":"IF(INTRO!$E$43=\"Non-endemic\",\" \", IF(COUNTRY_INFO!A49=0,\" \",COUNTRY_INFO!A49))","v":"The Gambia"},{"$f":"IF(INTRO!$E$43=\"Non-endemic\",\" \", IF(COUNTRY_INFO!B49=0,\" \",COUNTRY_INFO!B49))","v":"WC2"},{"$f":"IF(INTRO!$E$43=\"Non-endemic\",\" \", IF(COUNTRY_INFO!C49=0,\" \",COUNTRY_INFO!C49))","v":"Foni Jarrol"},{"$f":"IF(INTRO!$E$43=\"Non-endemic\", \"Not required\", COUNTRY_INFO!Y49)","v":1},{"$f":"IF(OR(COUNTRY_INFO!R49=\"Unknown\",COUNTRY_INFO!R49=\"Surveillance\",COUNTRY_INFO!R49=\"Not required\",COUNTRY_INFO!R49=0),0,IF($D49<>0, COUNTRY_INFO!R49,0))","v":866},{"$f":"IF(OR(COUNTRY_INFO!S49=\"Unknown\",COUNTRY_INFO!S49=\"Surveillance\",COUNTRY_INFO!S49=\"Not required\",COUNTRY_INFO!S49=0),0,IF($D49<>0, COUNTRY_INFO!S49,0))","v":2595},{"$f":"IF(OR(COUNTRY_INFO!T49=\"Unknown\",COUNTRY_INFO!T49=\"Surveillance\",COUNTRY_INFO!T49=\"Not required\",COUNTRY_INFO!T49=0),0,IF($D49<>0, COUNTRY_INFO!T49,0))","v":5259},8720,null,null,null,null,null,{"$f":"IF($I49<>\"Yes\",$F49*2,($F49+ROUND(J49*$F49/SUM(COUNTRY_INFO!$E49:$G49),0))*2)","v":5190},{"$f":"IF($I49<>\"Yes\",$G49*3,($G49+ROUND(J49*$G49/SUM(COUNTRY_INFO!$E49:$G49),0))*3)","v":15777},20967,null,20967]
[{"$f":"IF(INTRO!$E$43=\"Non-endemic\",\" \", IF(COUNTRY_INFO!A50=0,\" \",COUNTRY_INFO!A50))","v":"The Gambia"},{"$f":"IF(INTRO!$E$43=\"Non-endemic\",\" \", IF(COUNTRY_INFO!B50=0,\" \",COUNTRY_INFO!B50))","v":"WC2"},{"$f":"IF(INTRO!$E$43=\"Non-endemic\",\" \", IF(COUNTRY_INFO!C50=0,\" \",COUNTRY_INFO!C50))","v":"Foni Kansala"},{"$f":"IF(INTRO!$E$43=\"Non-endemic\", \"Not required\", COUNTRY_INFO!Y50)","v":1},{"$f":"IF(OR(COUNTRY_INFO!R50=\"Unknown\",COUNTRY_INFO!R50=\"Surveillance\",COUNTRY_INFO!R50=\"Not required\",COUNTRY_INFO!R50=0),0,IF($D50<>0, COUNTRY_INFO!R50,0))","v":1777},{"$f":"IF(OR(COUNTRY_INFO!S50=\"Unknown\",COUNTRY_INFO!S50=\"Surveillance\",COUNTRY_INFO!S50=\"Not required\",COUNTRY_INFO!S50=0),0,IF($D50<>0, COUNTRY_INFO!S50,0))","v":5326},{"$f":"IF(OR(COUNTRY_INFO!T50=\"Unknown\",COUNTRY_INFO!T50=\"Surveillance\",COUNTRY_INFO!T50=\"Not required\",COUNTRY_INFO!T50=0),0,IF($D50<>0, COUNTRY_INFO!T50,0))","v":10793},17896,null,null,null,null,null,{"$f":"IF($I50<>\"Yes\",$F50*2,($F50+ROUND(J50*$F50/SUM(COUNTRY_INFO!$E50:$G50),0))*2)","v":10652},{"$f":"IF($I50<>\"Yes\",$G50*3,($G50+ROUND(J50*$G50/SUM(COUNTRY_INFO!$E50:$G50),0))*3)","v":32379},43031,null,43031]
[{"$f":"IF(INTRO!$E$43=\"Non-endemic\",\" \", IF(COUNTRY_INFO!A51=0,\" \",COUNTRY_INFO!A51))","v":"The Gambia"},{"$f":"IF(INTRO!$E$43=\"Non-endemic\",\" \", IF(COUNTRY_INFO!B51=0,\" \",COUNTRY_INFO!B51))","v":"WC2"},{"$f":"IF(INTRO!$E$43=\"Non-endemic\",\" \", IF(COUNTRY_INFO!C51=0,\" \",COUNTRY_INFO!C51))","v":"Kombo Central"},{"$f":"IF(INTRO!$E$43=\"Non-endemic\", \"Not required\", COUNTRY_INFO!Y51)","v":1},{"$f":"IF(OR(COUNTRY_INFO!R51=\"Unknown\",COUNTRY_INFO!R51=\"Surveillance\",COUNTRY_INFO!R51=\"Not required\",COUNTRY_INFO!R51=0),0,IF($D51<>0, COUNTRY_INFO!R51,0))","v":17612},{"$f":"IF(OR(COUNTRY_INFO!S51=\"Unknown\",COUNTRY_INFO!S51=\"Surveillance\",COUNTRY_INFO!S51=\"Not required\",COUNTRY_INFO!S51=0),0,IF($D51<>0, COUNTRY_INFO!S51,0))","v":52797},{"$f":"IF(OR(COUNTRY_INFO!T51=\"Unknown\",COUNTRY_INFO!T51=\"Surveillance\",COUNTRY_INFO!T51=\"Not required\",COUNTRY_INFO!T51=0),0,IF($D51<>0, COUNTRY_INFO!T51,0))","v":106995},177404,null,null,null,null,null,{"$f":"IF($I51<>\"Yes\",$F51*2,($F51+ROUND(J51*$F51/SUM(COUNTRY_INFO!$E51:$G51),0))*2)","v":105594},{"$f":"IF($I51<>\"Yes\",$G51*3,($G51+ROUND(J51*$G51/SUM(COUNTRY_INFO!$E51:$G51),0))*3)","v":320985},426579,null,426579]
[{"$f":"IF(INTRO!$E$43=\"Non-endemic\",\" \", IF(COUNTRY_INFO!A52=0,\" \",COUNTRY_INFO!A52))","v":"The Gambia"},{"$f":"IF(INTRO!$E$43=\"Non-endemic\",\" \", IF(COUNTRY_INFO!B52=0,\" \",COUNTRY_INFO!B52))","v":"WC2"},{"$f":"IF(INTRO!$E$43=\"Non-endemic\",\" \", IF(COUNTRY_INFO!C52=0,\" \",COUNTRY_INFO!C52))","v":"Kombo East"},{"$f":"IF(INTRO!$E$43=\"Non-endemic\", \"Not required\", COUNTRY_INFO!Y52)","v":1},{"$f":"IF(OR(COUNTRY_INFO!R52=\"Unknown\",COUNTRY_INFO!R52=\"Surveillance\",COUNTRY_INFO!R52=\"Not required\",COUNTRY_INFO!R52=0),0,IF($D52<>0, COUNTRY_INFO!R52,0))","v":5324},{"$f":"IF(OR(COUNTRY_INFO!S52=\"Unknown\",COUNTRY_INFO!S52=\"Surveillance\",COUNTRY_INFO!S52=\"Not required\",COUNTRY_INFO!S52=0),0,IF($D52<>0, COUNTRY_INFO!S52,0))","v":15960},{"$f":"IF(OR(COUNTRY_INFO!T52=\"Unknown\",COUNTRY_INFO!T52=\"Surveillance\",COUNTRY_INFO!T52=\"Not required\",COUNTRY_INFO!T52=0),0,IF($D52<>0, COUNTRY_INFO!T52,0))","v":32344},53628,null,null,null,null,null,{"$f":"IF($I52<>\"Yes\",$F52*2,($F52+ROUND(J52*$F52/SUM(COUNTRY_INFO!$E52:$G52),0))*2)","v":31920},{"$f":"IF($I52<>\"Yes\",$G52*3,($G52+ROUND(J52*$G52/SUM(COUNTRY_INFO!$E52:$G52),0))*3)","v":97032},128952,null,128952]
[{"$f":"IF(INTRO!$E$43=\"Non-endemic\",\" \", IF(COUNTRY_INFO!A53=0,\" \",COUNTRY_INFO!A53))","v":"The Gambia"},{"$f":"IF(INTRO!$E$43=\"Non-endemic\",\" \", IF(COUNTRY_INFO!B53=0,\" \",COUNTRY_INFO!B53))","v":"WC2"},{"$f":"IF(INTRO!$E$43=\"Non-endemic\",\" \", IF(COUNTRY_INFO!C53=0,\" \",COUNTRY_INFO!C53))","v":"Kombo South"},{"$f":"IF(INTRO!$E$43=\"Non-endemic\", \"Not required\", COUNTRY_INFO!Y53)","v":1},{"$f":"IF(OR(COUNTRY_INFO!R53=\"Unknown\",COUNTRY_INFO!R53=\"Surveillance\",COUNTRY_INFO!R53=\"Not required\",COUNTRY_INFO!R53=0),0,IF($D53<>0, COUNTRY_INFO!R53,0))","v":13430},{"$f":"IF(OR(COUNTRY_INFO!S53=\"Unknown\",COUNTRY_INFO!S53=\"Surveillance\",COUNTRY_INFO!S53=\"Not required\",COUNTRY_INFO!S53=0),0,IF($D53<>0, COUNTRY_INFO!S53,0))","v":40261},{"$f":"IF(OR(COUNTRY_INFO!T53=\"Unknown\",COUNTRY_INFO!T53=\"Surveillance\",COUNTRY_INFO!T53=\"Not required\",COUNTRY_INFO!T53=0),0,IF($D53<>0, COUNTRY_INFO!T53,0))","v":81590},135281,null,null,null,null,null,{"$f":"IF($I53<>\"Yes\",$F53*2,($F53+ROUND(J53*$F53/SUM(COUNTRY_INFO!$E53:$G53),0))*2)","v":80522},{"$f":"IF($I53<>\"Yes\",$G53*3,($G53+ROUND(J53*$G53/SUM(COUNTRY_INFO!$E53:$G53),0))*3)","v":244770},325292,null,325292]

{"sheet":"IVM","index":5,"n_rows":53,"n_cols":14,"rows_kept":53,"cut":false,"hidden":true,"merged":[[6,7,7,7],[6,9,7,9],[6,10,7,10],[6,11,7,11],[3,0,3,2],[3,4,3,5],[6,4,7,4],[6,5,7,5],[5,8,5,13],[6,0,7,0],[6,1,7,1],[6,2,7,2],[5,0,5,2],[5,4,5,5],[5,6,5,7],[6,12,7,12],[5,3,7,3],[6,13,7,13],[6,8,7,8],[6,6,7,6]]}
["Ivermectin (IVM)"]
["Administrative structure, eligible population by age group, treatment plan and information about tablets"]
[]
["TOTAL",null,null,{"$f":"SUBTOTAL(9,D$10:D$1010)","v":0},null,null,{"$f":"SUBTOTAL(9,G$10:G$1010)","v":0},0,0,0,0,0,0,0]
[]
["Country administrative structure",null,null,"Population requiring treatment with IVM","Treatment plan",null,"Target population",null,"Ivermectin (IVM)"]
["Country","Province/State","District",null,"LF","Oncho","LF","Oncho","LF only","Oncho only","LF+Oncho","Total required","Remaining in stock","Tablets to be procured"]
[]
[]
[{"$f":"IF(INTRO!$E$39=\"Non-endemic\",\" \",IF(COUNTRY_INFO!A10=0,\" \",COUNTRY_INFO!A10))","v":" "},{"$f":"IF(INTRO!$E$39=\"Non-endemic\",\" \",IF(COUNTRY_INFO!B10=0,\" \",COUNTRY_INFO!B10))","v":" "},{"$f":"IF(INTRO!$E$39=\"Non-endemic\",\" \",IF(COUNTRY_INFO!C10=0,\" \",COUNTRY_INFO!C10))","v":" "},{"$f":"IF(INTRO!$E$39=\"Non-endemic\",0,IF(INTRO!$E$39=\"Endemic but PC is not required\",IF(COUNTRY_INFO!$H10=1,COUNTRY_INFO!F10+COUNTRY_INFO!G10,0),IF(COUNTRY_INFO!$H10=1,COUNTRY_INFO!F10+COUNTRY_INFO!G10,IF(COUNTRY_INFO!$I10=1,IF(COUNTRY_INFO!M10>=(COUNTRY_INFO!F10+COUNTRY_INFO!G10),COUNTRY_INFO!F10+COUNTRY_INFO!G10,COUNTRY_INFO!$M10),0))))","v":0},{"$f":"IF(AND(INTRO!$E$39=\"Non-endemic\",INTRO!$E$37=\"Non-endemic\"),\"Not required\",IF(INTRO!$E$39=\"Non-endemic\",\"Treat with DEC\",COUNTRY_INFO!V10))","v":"Not required"},{"$f":"IF(INTRO!$E$39<>\"Non-endemic\",COUNTRY_INFO!W10,\"Not required\")","v":"Not required"},{"$f":"IF(COUNTRY_INFO!H10=1, IF($E10=1,$D10, 0),0)","v":0},{"$f":"IF(COUNTRY_INFO!I10=1, IF(AND(COUNTRY_INFO!$I10=1,$F10<>0),IF(COUNTRY_INFO!M10>=(COUNTRY_INFO!F10+COUNTRY_INFO!G10),COUNTRY_INFO!F10+COUNTRY_INFO!G10,COUNTRY_INFO!$M10), 0),0)","v":0},{"$f":"IF(G10<H10,0,IF($E10=1, (G10-H10)*2.8, 0))","v":0},{"$f":"IF($E10<$F10, H10*(F10-E10)*2.8, 0)","v":0},{"$f":"IF(AND($E10=1, $F10<>0), H10*2.8, 0)","v":0},{"$f":"SUM(I10:K10)","v":0},null,{"$f":"IF($L10>$M10,$L10-$M10,0)","v":0}]
[{"$f":"IF(INTRO!$E$39=\"Non-endemic\",\" \",IF(COUNTRY_INFO!A11=0,\" \",COUNTRY_INFO!A11))","v":" "},{"$f":"IF(INTRO!$E$39=\"Non-endemic\",\" \",IF(COUNTRY_INFO!B11=0,\" \",COUNTRY_INFO!B11))","v":" "},{"$f":"IF(INTRO!$E$39=\"Non-endemic\",\" \",IF(COUNTRY_INFO!C11=0,\" \",COUNTRY_INFO!C11))","v":" "},{"$f":"IF(INTRO!$E$39=\"Non-endemic\",0,IF(INTRO!$E$39=\"Endemic but PC is not required\",IF(COUNTRY_INFO!$H11=1,COUNTRY_INFO!F11+COUNTRY_INFO!G11,0),IF(COUNTRY_INFO!$H11=1,COUNTRY_INFO!F11+COUNTRY_INFO!G11,IF(COUNTRY_INFO!$I11=1,IF(COUNTRY_INFO!M11>=(COUNTRY_INFO!F11+COUNTRY_INFO!G11),COUNTRY_INFO!F11+COUNTRY_INFO!G11,COUNTRY_INFO!$M11),0))))","v":0},{"$f":"IF(AND(INTRO!$E$39=\"Non-endemic\",INTRO!$E$37=\"Non-endemic\"),\"Not required\",IF(INTRO!$E$39=\"Non-endemic\",\"Treat with DEC\",COUNTRY_INFO!V11))","v":"Not required"},{"$f":"IF(INTRO!$E$39<>\"Non-endemic\",COUNTRY_INFO!W11,\"Not required\")","v":"Not required"},{"$f":"IF(COUNTRY_INFO!H11=1, IF($E11=1,$D11, 0),0)","v":0},{"$f":"IF(COUNTRY_INFO!I11=1, IF(AND(COUNTRY_INFO!$I11=1,$F11<>0),IF(COUNTRY_INFO!M11>=(COUNTRY_INFO!F11+COUNTRY_INFO!G11),COUNTRY_INFO!F11+COUNTRY_INFO!G11,COUNTRY_INFO!$M11), 0),0)","v":0},0,0,{"$f":"IF(AND($E11=1, $F11<>0), H11*2.8, 0)","v":0},{"$f":"SUM(I11:K11)","v":0},null,0]
[{"$f":"IF(INTRO!$E$39=\"Non-endemic\",\" \",IF(COUNTRY_INFO!A12=0,\" \",COUNTRY_INFO!A12))","v":" "},{"$f":"IF(INTRO!$E$39=\"Non-endemic\",\" \",IF(COUNTRY_INFO!B12=0,\" \",COUNTRY_INFO!B12))","v":" "},{"$f":"IF(INTRO!$E$39=\"Non-endemic\",\" \",IF(COUNTRY_INFO!C12=0,\" \",COUNTRY_INFO!C12))","v":" "},{"$f":"IF(INTRO!$E$39=\"Non-endemic\",0,IF(INTRO!$E$39=\"Endemic but PC is not required\",IF(COUNTRY_INFO!$H12=1,COUNTRY_INFO!F12+COUNTRY_INFO!G12,0),IF(COUNTRY_INFO!$H12=1,COUNTRY_INFO!F12+COUNTRY_INFO!G12,IF(COUNTRY_INFO!$I12=1,IF(COUNTRY_INFO!M12>=(COUNTRY_INFO!F12+COUNTRY_INFO!G12),COUNTRY_INFO!F12+COUNTRY_INFO!G12,COUNTRY_INFO!$M12),0))))","v":0},{"$f":"IF(AND(INTRO!$E$39=\"Non-endemic\",INTRO!$E$37=\"Non-endemic\"),\"Not required\",IF(INTRO!$E$39=\"Non-endemic\",\"Treat with DEC\",COUNTRY_INFO!V12))","v":"Not required"},{"$f":"IF(INTRO!$E$39<>\"Non-endemic\",COUNTRY_INFO!W12,\"Not required\")","v":"Not required"},{"$f":"IF(COUNTRY_INFO!H12=1, IF($E12=1,$D12, 0),0)","v":0},{"$f":"IF(COUNTRY_INFO!I12=1, IF(AND(COUNTRY_INFO!$I12=1,$F12<>0),IF(COUNTRY_INFO!M12>=(COUNTRY_INFO!F12+COUNTRY_INFO!G12),COUNTRY_INFO!F12+COUNTRY_INFO!G12,COUNTRY_INFO!$M12), 0),0)","v":0},0,0,0,0,null,0]
[{"$f":"IF(INTRO!$E$39=\"Non-endemic\",\" \",IF(COUNTRY_INFO!A13=0,\" \",COUNTRY_INFO!A13))","v":" "},{"$f":"IF(INTRO!$E$39=\"Non-endemic\",\" \",IF(COUNTRY_INFO!B13=0,\" \",COUNTRY_INFO!B13))","v":" "},{"$f":"IF(INTRO!$E$39=\"Non-endemic\",\" \",IF(COUNTRY_INFO!C13=0,\" \",COUNTRY_INFO!C13))","v":" "},{"$f":"IF(INTRO!$E$39=\"Non-endemic\",0,IF(INTRO!$E$39=\"Endemic but PC is not required\",IF(COUNTRY_INFO!$H13=1,COUNTRY_INFO!F13+COUNTRY_INFO!G13,0),IF(COUNTRY_INFO!$H13=1,COUNTRY_INFO!F13+COUNTRY_INFO!G13,IF(COUNTRY_INFO!$I13=1,IF(COUNTRY_INFO!M13>=(COUNTRY_INFO!F13+COUNTRY_INFO!G13),COUNTRY_INFO!F13+COUNTRY_INFO!G13,COUNTRY_INFO!$M13),0))))","v":0},{"$f":"IF(AND(INTRO!$E$39=\"Non-endemic\",INTRO!$E$37=\"Non-endemic\"),\"Not required\",IF(INTRO!$E$39=\"Non-endemic\",\"Treat with DEC\",COUNTRY_INFO!V13))","v":"Not required"},{"$f":"IF(INTRO!$E$39<>\"Non-endemic\",COUNTRY_INFO!W13,\"Not required\")","v":"Not required"},{"$f":"IF(COUNTRY_INFO!H13=1, IF($E13=1,$D13, 0),0)","v":0},{"$f":"IF(COUNTRY_INFO!I13=1, IF(AND(COUNTRY_INFO!$I13=1,$F13<>0),IF(COUNTRY_INFO!M13>=(COUNTRY_INFO!F13+COUNTRY_INFO!G13),COUNTRY_INFO!F13+COUNTRY_INFO!G13,COUNTRY_INFO!$M13), 0),0)","v":0},0,0,0,0,null,0]
[{"$f":"IF(INTRO!$E$39=\"Non-endemic\",\" \",IF(COUNTRY_INFO!A14=0,\" \",COUNTRY_INFO!A14))","v":" "},{"$f":"IF(INTRO!$E$39=\"Non-endemic\",\" \",IF(COUNTRY_INFO!B14=0,\" \",COUNTRY_INFO!B14))","v":" "},{"$f":"IF(INTRO!$E$39=\"Non-endemic\",\" \",IF(COUNTRY_INFO!C14=0,\" \",COUNTRY_INFO!C14))","v":" "},{"$f":"IF(INTRO!$E$39=\"Non-endemic\",0,IF(INTRO!$E$39=\"Endemic but PC is not required\",IF(COUNTRY_INFO!$H14=1,COUNTRY_INFO!F14+COUNTRY_INFO!G14,0),IF(COUNTRY_INFO!$H14=1,COUNTRY_INFO!F14+COUNTRY_INFO!G14,IF(COUNTRY_INFO!$I14=1,IF(COUNTRY_INFO!M14>=(COUNTRY_INFO!F14+COUNTRY_INFO!G14),COUNTRY_INFO!F14+COUNTRY_INFO!G14,COUNTRY_INFO!$M14),0))))","v":0},{"$f":"IF(AND(INTRO!$E$39=\"Non-endemic\",INTRO!$E$37=\"Non-endemic\"),\"Not required\",IF(INTRO!$E$39=\"Non-endemic\",\"Treat with DEC\",COUNTRY_INFO!V14))","v":"Not required"},{"$f":"IF(INTRO!$E$39<>\"Non-endemic\",COUNTRY_INFO!W14,\"Not required\")","v":"Not required"},{"$f":"IF(COUNTRY_INFO!H14=1, IF($E14=1,$D14, 0),0)","v":0},{"$f":"IF(COUNTRY_INFO!I14=1, IF(AND(COUNTRY_INFO!$I14=1,$F14<>0),IF(COUNTRY_INFO!M14>=(COUNTRY_INFO!F14+COUNTRY_INFO!G14),COUNTRY_INFO!F14+COUNTRY_INFO!G14,COUNTRY_INFO!$M14), 0),0)","v":0},0,0,0,0,null,0]
[{"$f":"IF(INTRO!$E$39=\"Non-endemic\",\" \",IF(COUNTRY_INFO!A15=0,\" \",COUNTRY_INFO!A15))","v":" "},{"$f":"IF(INTRO!$E$39=\"Non-endemic\",\" \",IF(COUNTRY_INFO!B15=0,\" \",COUNTRY_INFO!B15))","v":" "},{"$f":"IF(INTRO!$E$39=\"Non-endemic\",\" \",IF(COUNTRY_INFO!C15=0,\" \",COUNTRY_INFO!C15))","v":" "},{"$f":"IF(INTRO!$E$39=\"Non-endemic\",0,IF(INTRO!$E$39=\"Endemic but PC is not required\",IF(COUNTRY_INFO!$H15=1,COUNTRY_INFO!F15+COUNTRY_INFO!G15,0),IF(COUNTRY_INFO!$H15=1,COUNTRY_INFO!F15+COUNTRY_INFO!G15,IF(COUNTRY_INFO!$I15=1,IF(COUNTRY_INFO!M15>=(COUNTRY_INFO!F15+COUNTRY_INFO!G15),COUNTRY_INFO!F15+COUNTRY_INFO!G15,COUNTRY_INFO!$M15),0))))","v":0},{"$f":"IF(AND(INTRO!$E$39=\"Non-endemic\",INTRO!$E$37=\"Non-endemic\"),\"Not required\",IF(INTRO!$E$39=\"Non-endemic\",\"Treat with DEC\",COUNTRY_INFO!V15))","v":"Not required"},{"$f":"IF(INTRO!$E$39<>\"Non-endemic\",COUNTRY_INFO!W15,\"Not required\")","v":"Not required"},{"$f":"IF(COUNTRY_INFO!H15=1, IF($E15=1,$D15, 0),0)","v":0},{"$f":"IF(COUNTRY_INFO!I15=1, IF(AND(COUNTRY_INFO!$I15=1,$F15<>0),IF(COUNTRY_INFO!M15>=(COUNTRY_INFO!F15+COUNTRY_INFO!G15),COUNTRY_INFO!F15+COUNTRY_INFO!G15,COUNTRY_INFO!$M15), 0),0)","v":0},0,0,0,0,null,0]
[{"$f":"IF(INTRO!$E$39=\"Non-endemic\",\" \",IF(COUNTRY_INFO!A16=0,\" \",COUNTRY_INFO!A16))","v":" "},{"$f":"IF(INTRO!$E$39=\"Non-endemic\",\" \",IF(COUNTRY_INFO!B16=0,\" \",COUNTRY_INFO!B16))","v":" "},{"$f":"IF(INTRO!$E$39=\"Non-endemic\",\" \",IF(COUNTRY_INFO!C16=0,\" \",COUNTRY_INFO!C16))","v":" "},{"$f":"IF(INTRO!$E$39=\"Non-endemic\",0,IF(INTRO!$E$39=\"Endemic but PC is not required\",IF(COUNTRY_INFO!$H16=1,COUNTRY_INFO!F16+COUNTRY_INFO!G16,0),IF(COUNTRY_INFO!$H16=1,COUNTRY_INFO!F16+COUNTRY_INFO!G16,IF(COUNTRY_INFO!$I16=1,IF(COUNTRY_INFO!M16>=(COUNTRY_INFO!F16+COUNTRY_INFO!G16),COUNTRY_INFO!F16+COUNTRY_INFO!G16,COUNTRY_INFO!$M16),0))))","v":0},{"$f":"IF(AND(INTRO!$E$39=\"Non-endemic\",INTRO!$E$37=\"Non-endemic\"),\"Not required\",IF(INTRO!$E$39=\"Non-endemic\",\"Treat with DEC\",COUNTRY_INFO!V16))","v":"Not required"},{"$f":"IF(INTRO!$E$39<>\"Non-endemic\",COUNTRY_INFO!W16,\"Not required\")","v":"Not required"},{"$f":"IF(COUNTRY_INFO!H16=1, IF($E16=1,$D16, 0),0)","v":0},{"$f":"IF(COUNTRY_INFO!I16=1, IF(AND(COUNTRY_INFO!$I16=1,$F16<>0),IF(COUNTRY_INFO!M16>=(COUNTRY_INFO!F16+COUNTRY_INFO!G16),COUNTRY_INFO!F16+COUNTRY_INFO!G16,COUNTRY_INFO!$M16), 0),0)","v":0},0,0,0,0,null,0]
[{"$f":"IF(INTRO!$E$39=\"Non-endemic\",\" \",IF(COUNTRY_INFO!A17=0,\" \",COUNTRY_INFO!A17))","v":" "},{"$f":"IF(INTRO!$E$39=\"Non-endemic\",\" \",IF(COUNTRY_INFO!B17=0,\" \",COUNTRY_INFO!B17))","v":" "},{"$f":"IF(INTRO!$E$39=\"Non-endemic\",\" \",IF(COUNTRY_INFO!C17=0,\" \",COUNTRY_INFO!C17))","v":" "},{"$f":"IF(INTRO!$E$39=\"Non-endemic\",0,IF(INTRO!$E$39=\"Endemic but PC is not required\",IF(COUNTRY_INFO!$H17=1,COUNTRY_INFO!F17+COUNTRY_INFO!G17,0),IF(COUNTRY_INFO!$H17=1,COUNTRY_INFO!F17+COUNTRY_INFO!G17,IF(COUNTRY_INFO!$I17=1,IF(COUNTRY_INFO!M17>=(COUNTRY_INFO!F17+COUNTRY_INFO!G17),COUNTRY_INFO!F17+COUNTRY_INFO!G17,COUNTRY_INFO!$M17),0))))","v":0},{"$f":"IF(AND(INTRO!$E$39=\"Non-endemic\",INTRO!$E$37=\"Non-endemic\"),\"Not required\",IF(INTRO!$E$39=\"Non-endemic\",\"Treat with DEC\",COUNTRY_INFO!V17))","v":"Not required"},{"$f":"IF(INTRO!$E$39<>\"Non-endemic\",COUNTRY_INFO!W17,\"Not required\")","v":"Not required"},{"$f":"IF(COUNTRY_INFO!H17=1, IF($E17=1,$D17, 0),0)","v":0},{"$f":"IF(COUNTRY_INFO!I17=1, IF(AND(COUNTRY_INFO!$I17=1,$F17<>0),IF(COUNTRY_INFO!M17>=(COUNTRY_INFO!F17+COUNTRY_INFO!G17),COUNTRY_INFO!F17+COUNTRY_INFO!G17,COUNTRY_INFO!$M17), 0),0)","v":0},0,0,0,0,null,0]
[{"$f":"IF(INTRO!$E$39=\"Non-endemic\",\" \",IF(COUNTRY_INFO!A18=0,\" \",COUNTRY_INFO!A18))","v":" "},{"$f":"IF(INTRO!$E$39=\"Non-endemic\",\" \",IF(COUNTRY_INFO!B18=0,\" \",COUNTRY_INFO!B18))","v":" "},{"$f":"IF(INTRO!$E$39=\"Non-endemic\",\" \",IF(COUNTRY_INFO!C18=0,\" \",COUNTRY_INFO!C18))","v":" "},{"$f":"IF(INTRO!$E$39=\"Non-endemic\",0,IF(INTRO!$E$39=\"Endemic but PC is not required\",IF(COUNTRY_INFO!$H18=1,COUNTRY_INFO!F18+COUNTRY_INFO!G18,0),IF(COUNTRY_INFO!$H18=1,COUNTRY_INFO!F18+COUNTRY_INFO!G18,IF(COUNTRY_INFO!$I18=1,IF(COUNTRY_INFO!M18>=(COUNTRY_INFO!F18+COUNTRY_INFO!G18),COUNTRY_INFO!F18+COUNTRY_INFO!G18,COUNTRY_INFO!$M18),0))))","v":0},{"$f":"IF(AND(INTRO!$E$39=\"Non-endemic\",INTRO!$E$37=\"Non-endemic\"),\"Not required\",IF(INTRO!$E$39=\"Non-endemic\",\"Treat with DEC\",COUNTRY_INFO!V18))","v":"Not required"},{"$f":"IF(INTRO!$E$39<>\"Non-endemic\",COUNTRY_INFO!W18,\"Not required\")","v":"Not required"},{"$f":"IF(COUNTRY_INFO!H18=1, IF($E18=1,$D18, 0),0)","v":0},{"$f":"IF(COUNTRY_INFO!I18=1, IF(AND(COUNTRY_INFO!$I18=1,$F18<>0),IF(COUNTRY_INFO!M18>=(COUNTRY_INFO!F18+COUNTRY_INFO!G18),COUNTRY_INFO!F18+COUNTRY_INFO!G18,COUNTRY_INFO!$M18), 0),0)","v":0},0,0,0,0,null,0]
[{"$f":"IF(INTRO!$E$39=\"Non-endemic\",\" \",IF(COUNTRY_INFO!A19=0,\" \",COUNTRY_INFO!A19))","v":" "},{"$f":"IF(INTRO!$E$39=\"Non-endemic\",\" \",IF(COUNTRY_INFO!B19=0,\" \",COUNTRY_INFO!B19))","v":" "},{"$f":"IF(INTRO!$E$39=\"Non-endemic\",\" \",IF(COUNTRY_INFO!C19=0,\" \",COUNTRY_INFO!C19))","v":" "},{"$f":"IF(INTRO!$E$39=\"Non-endemic\",0,IF(INTRO!$E$39=\"Endemic but PC is not required\",IF(COUNTRY_INFO!$H19=1,COUNTRY_INFO!F19+COUNTRY_INFO!G19,0),IF(COUNTRY_INFO!$H19=1,COUNTRY_INFO!F19+COUNTRY_INFO!G19,IF(COUNTRY_INFO!$I19=1,IF(COUNTRY_INFO!M19>=(COUNTRY_INFO!F19+COUNTRY_INFO!G19),COUNTRY_INFO!F19+COUNTRY_INFO!G19,COUNTRY_INFO!$M19),0))))","v":0},{"$f":"IF(AND(INTRO!$E$39=\"Non-endemic\",INTRO!$E$37=\"Non-endemic\"),\"Not required\",IF(INTRO!$E$39=\"Non-endemic\",\"Treat with DEC\",COUNTRY_INFO!V19))","v":"Not required"},{"$f":"IF(INTRO!$E$39<>\"Non-endemic\",COUNTRY_INFO!W19,\"Not required\")","v":"Not required"},{"$f":"IF(COUNTRY_INFO!H19=1, IF($E19=1,$D19, 0),0)","v":0},{"$f":"IF(COUNTRY_INFO!I19=1, IF(AND(COUNTRY_INFO!$I19=1,$F19<>0),IF(COUNTRY_INFO!M19>=(COUNTRY_INFO!F19+COUNTRY_INFO!G19),COUNTRY_INFO!F19+COUNTRY_INFO!G19,COUNTRY_INFO!$M19), 0),0)","v":0},0,0,0,0,null,0]
[{"$f":"IF(INTRO!$E$39=\"Non-endemic\",\" \",IF(COUNTRY_INFO!A20=0,\" \",COUNTRY_INFO!A20))","v":" "},{"$f":"IF(INTRO!$E$39=\"Non-endemic\",\" \",IF(COUNTRY_INFO!B20=0,\" \",COUNTRY_INFO!B20))","v":" "},{"$f":"IF(INTRO!$E$39=\"Non-endemic\",\" \",IF(COUNTRY_INFO!C20=0,\" \",COUNTRY_INFO!C20))","v":" "},{"$f":"IF(INTRO!$E$39=\"Non-endemic\",0,IF(INTRO!$E$39=\"Endemic but PC is not required\",IF(COUNTRY_INFO!$H20=1,COUNTRY_INFO!F20+COUNTRY_INFO!G20,0),IF(COUNTRY_INFO!$H20=1,COUNTRY_INFO!F20+COUNTRY_INFO!G20,IF(COUNTRY_INFO!$I20=1,IF(COUNTRY_INFO!M20>=(COUNTRY_INFO!F20+COUNTRY_INFO!G20),COUNTRY_INFO!F20+COUNTRY_INFO!G20,COUNTRY_INFO!$M20),0))))","v":0},{"$f":"IF(AND(INTRO!$E$39=\"Non-endemic\",INTRO!$E$37=\"Non-endemic\"),\"Not required\",IF(INTRO!$E$39=\"Non-endemic\",\"Treat with DEC\",COUNTRY_INFO!V20))","v":"Not required"},{"$f":"IF(INTRO!$E$39<>\"Non-endemic\",COUNTRY_INFO!W20,\"Not required\")","v":"Not required"},{"$f":"IF(COUNTRY_INFO!H20=1, IF($E20=1,$D20, 0),0)","v":0},{"$f":"IF(COUNTRY_INFO!I20=1, IF(AND(COUNTRY_INFO!$I20=1,$F20<>0),IF(COUNTRY_INFO!M20>=(COUNTRY_INFO!F20+COUNTRY_INFO!G20),COUNTRY_INFO!F20+COUNTRY_INFO!G20,COUNTRY_INFO!$M20), 0),0)","v":0},0,0,0,0,null,0]
[{"$f":"IF(INTRO!$E$39=\"Non-endemic\",\" \",IF(COUNTRY_INFO!A21=0,\" \",COUNTRY_INFO!A21))","v":" "},{"$f":"IF(INTRO!$E$39=\"Non-endemic\",\" \",IF(COUNTRY_INFO!B21=0,\" \",COUNTRY_INFO!B21))","v":" "},{"$f":"IF(INTRO!$E$39=\"Non-endemic\",\" \",IF(COUNTRY_INFO!C21=0,\" \",COUNTRY_INFO!C21))","v":" "},{"$f":"IF(INTRO!$E$39=\"Non-endemic\",0,IF(INTRO!$E$39=\"Endemic but PC is not required\",IF(COUNTRY_INFO!$H21=1,COUNTRY_INFO!F21+COUNTRY_INFO!G21,0),IF(COUNTRY_INFO!$H21=1,COUNTRY_INFO!F21+COUNTRY_INFO!G21,IF(COUNTRY_INFO!$I21=1,IF(COUNTRY_INFO!M21>=(COUNTRY_INFO!F21+COUNTRY_INFO!G21),COUNTRY_INFO!F21+COUNTRY_INFO!G21,COUNTRY_INFO!$M21),0))))","v":0},{"$f":"IF(AND(INTRO!$E$39=\"Non-endemic\",INTRO!$E$37=\"Non-endemic\"),\"Not required\",IF(INTRO!$E$39=\"Non-endemic\",\"Treat with DEC\",COUNTRY_INFO!V21))","v":"Not required"},{"$f":"IF(INTRO!$E$39<>\"Non-endemic\",COUNTRY_INFO!W21,\"Not required\")","v":"Not required"},{"$f":"IF(COUNTRY_INFO!H21=1, IF($E21=1,$D21, 0),0)","v":0},{"$f":"IF(COUNTRY_INFO!I21=1, IF(AND(COUNTRY_INFO!$I21=1,$F21<>0),IF(COUNTRY_INFO!M21>=(COUNTRY_INFO!F21+COUNTRY_INFO!G21),COUNTRY_INFO!F21+COUNTRY_INFO!G21,COUNTRY_INFO!$M21), 0),0)","v":0},0,0,0,0,null,0]
[{"$f":"IF(INTRO!$E$39=\"Non-endemic\",\" \",IF(COUNTRY_INFO!A22=0,\" \",COUNTRY_INFO!A22))","v":" "},{"$f":"IF(INTRO!$E$39=\"Non-endemic\",\" \",IF(COUNTRY_INFO!B22=0,\" \",COUNTRY_INFO!B22))","v":" "},{"$f":"IF(INTRO!$E$39=\"Non-endemic\",\" \",IF(COUNTRY_INFO!C22=0,\" \",COUNTRY_INFO!C22))","v":" "},{"$f":"IF(INTRO!$E$39=\"Non-endemic\",0,IF(INTRO!$E$39=\"Endemic but PC is not required\",IF(COUNTRY_INFO!$H22=1,COUNTRY_INFO!F22+COUNTRY_INFO!G22,0),IF(COUNTRY_INFO!$H22=1,COUNTRY_INFO!F22+COUNTRY_INFO!G22,IF(COUNTRY_INFO!$I22=1,IF(COUNTRY_INFO!M22>=(COUNTRY_INFO!F22+COUNTRY_INFO!G22),COUNTRY_INFO!F22+COUNTRY_INFO!G22,COUNTRY_INFO!$M22),0))))","v":0},{"$f":"IF(AND(INTRO!$E$39=\"Non-endemic\",INTRO!$E$37=\"Non-endemic\"),\"Not required\",IF(INTRO!$E$39=\"Non-endemic\",\"Treat with DEC\",COUNTRY_INFO!V22))","v":"Not required"},{"$f":"IF(INTRO!$E$39<>\"Non-endemic\",COUNTRY_INFO!W22,\"Not required\")","v":"Not required"},{"$f":"IF(COUNTRY_INFO!H22=1, IF($E22=1,$D22, 0),0)","v":0},{"$f":"IF(COUNTRY_INFO!I22=1, IF(AND(COUNTRY_INFO!$I22=1,$F22<>0),IF(COUNTRY_INFO!M22>=(COUNTRY_INFO!F22+COUNTRY_INFO!G22),COUNTRY_INFO!F22+COUNTRY_INFO!G22,COUNTRY_INFO!$M22), 0),0)","v":0},0,0,0,0,null,0]
[{"$f":"IF(INTRO!$E$39=\"Non-endemic\",\" \",IF(COUNTRY_INFO!A23=0,\" \",COUNTRY_INFO!A23))","v":" "},{"$f":"IF(INTRO!$E$39=\"Non-endemic\",\" \",IF(COUNTRY_INFO!B23=0,\" \",COUNTRY_INFO!B23))","v":" "},{"$f":"IF(INTRO!$E$39=\"Non-endemic\",\" \",IF(COUNTRY_INFO!C23=0,\" \",COUNTRY_INFO!C23))","v":" "},{"$f":"IF(INTRO!$E$39=\"Non-endemic\",0,IF(INTRO!$E$39=\"Endemic but PC is not required\",IF(COUNTRY_INFO!$H23=1,COUNTRY_INFO!F23+COUNTRY_INFO!G23,0),IF(COUNTRY_INFO!$H23=1,COUNTRY_INFO!F23+COUNTRY_INFO!G23,IF(COUNTRY_INFO!$I23=1,IF(COUNTRY_INFO!M23>=(COUNTRY_INFO!F23+COUNTRY_INFO!G23),COUNTRY_INFO!F23+COUNTRY_INFO!G23,COUNTRY_INFO!$M23),0))))","v":0},{"$f":"IF(AND(INTRO!$E$39=\"Non-endemic\",INTRO!$E$37=\"Non-endemic\"),\"Not required\",IF(INTRO!$E$39=\"Non-endemic\",\"Treat with DEC\",COUNTRY_INFO!V23))","v":"Not required"},{"$f":"IF(INTRO!$E$39<>\"Non-endemic\",COUNTRY_INFO!W23,\"Not required\")","v":"Not required"},{"$f":"IF(COUNTRY_INFO!H23=1, IF($E23=1,$D23, 0),0)","v":0},{"$f":"IF(COUNTRY_INFO!I23=1, IF(AND(COUNTRY_INFO!$I23=1,$F23<>0),IF(COUNTRY_INFO!M23>=(COUNTRY_INFO!F23+COUNTRY_INFO!G23),COUNTRY_INFO!F23+COUNTRY_INFO!G23,COUNTRY_INFO!$M23), 0),0)","v":0},0,0,0,0,null,0]
[{"$f":"IF(INTRO!$E$39=\"Non-endemic\",\" \",IF(COUNTRY_INFO!A24=0,\" \",COUNTRY_INFO!A24))","v":" "},{"$f":"IF(INTRO!$E$39=\"Non-endemic\",\" \",IF(COUNTRY_INFO!B24=0,\" \",COUNTRY_INFO!B24))","v":" "},{"$f":"IF(INTRO!$E$39=\"Non-endemic\",\" \",IF(COUNTRY_INFO!C24=0,\" \",COUNTRY_INFO!C24))","v":" "},{"$f":"IF(INTRO!$E$39=\"Non-endemic\",0,IF(INTRO!$E$39=\"Endemic but PC is not required\",IF(COUNTRY_INFO!$H24=1,COUNTRY_INFO!F24+COUNTRY_INFO!G24,0),IF(COUNTRY_INFO!$H24=1,COUNTRY_INFO!F24+COUNTRY_INFO!G24,IF(COUNTRY_INFO!$I24=1,IF(COUNTRY_INFO!M24>=(COUNTRY_INFO!F24+COUNTRY_INFO!G24),COUNTRY_INFO!F24+COUNTRY_INFO!G24,COUNTRY_INFO!$M24),0))))","v":0},{"$f":"IF(AND(INTRO!$E$39=\"Non-endemic\",INTRO!$E$37=\"Non-endemic\"),\"Not required\",IF(INTRO!$E$39=\"Non-endemic\",\"Treat with DEC\",COUNTRY_INFO!V24))","v":"Not required"},{"$f":"IF(INTRO!$E$39<>\"Non-endemic\",COUNTRY_INFO!W24,\"Not required\")","v":"Not required"},{"$f":"IF(COUNTRY_INFO!H24=1, IF($E24=1,$D24, 0),0)","v":0},{"$f":"IF(COUNTRY_INFO!I24=1, IF(AND(COUNTRY_INFO!$I24=1,$F24<>0),IF(COUNTRY_INFO!M24>=(COUNTRY_INFO!F24+COUNTRY_INFO!G24),COUNTRY_INFO!F24+COUNTRY_INFO!G24,COUNTRY_INFO!$M24), 0),0)","v":0},0,0,0,0,null,0]
[{"$f":"IF(INTRO!$E$39=\"Non-endemic\",\" \",IF(COUNTRY_INFO!A25=0,\" \",COUNTRY_INFO!A25))","v":" "},{"$f":"IF(INTRO!$E$39=\"Non-endemic\",\" \",IF(COUNTRY_INFO!B25=0,\" \",COUNTRY_INFO!B25))","v":" "},{"$f":"IF(INTRO!$E$39=\"Non-endemic\",\" \",IF(COUNTRY_INFO!C25=0,\" \",COUNTRY_INFO!C25))","v":" "},{"$f":"IF(INTRO!$E$39=\"Non-endemic\",0,IF(INTRO!$E$39=\"Endemic but PC is not required\",IF(COUNTRY_INFO!$H25=1,COUNTRY_INFO!F25+COUNTRY_INFO!G25,0),IF(COUNTRY_INFO!$H25=1,COUNTRY_INFO!F25+COUNTRY_INFO!G25,IF(COUNTRY_INFO!$I25=1,IF(COUNTRY_INFO!M25>=(COUNTRY_INFO!F25+COUNTRY_INFO!G25),COUNTRY_INFO!F25+COUNTRY_INFO!G25,COUNTRY_INFO!$M25),0))))","v":0},{"$f":"IF(AND(INTRO!$E$39=\"Non-endemic\",INTRO!$E$37=\"Non-endemic\"),\"Not required\",IF(INTRO!$E$39=\"Non-endemic\",\"Treat with DEC\",COUNTRY_INFO!V25))","v":"Not required"},{"$f":"IF(INTRO!$E$39<>\"Non-endemic\",COUNTRY_INFO!W25,\"Not required\")","v":"Not required"},{"$f":"IF(COUNTRY_INFO!H25=1, IF($E25=1,$D25, 0),0)","v":0},{"$f":"IF(COUNTRY_INFO!I25=1, IF(AND(COUNTRY_INFO!$I25=1,$F25<>0),IF(COUNTRY_INFO!M25>=(COUNTRY_INFO!F25+COUNTRY_INFO!G25),COUNTRY_INFO!F25+COUNTRY_INFO!G25,COUNTRY_INFO!$M25), 0),0)","v":0},0,0,0,0,null,0]
[{"$f":"IF(INTRO!$E$39=\"Non-endemic\",\" \",IF(COUNTRY_INFO!A26=0,\" \",COUNTRY_INFO!A26))","v":" "},{"$f":"IF(INTRO!$E$39=\"Non-endemic\",\" \",IF(COUNTRY_INFO!B26=0,\" \",COUNTRY_INFO!B26))","v":" "},{"$f":"IF(INTRO!$E$39=\"Non-endemic\",\" \",IF(COUNTRY_INFO!C26=0,\" \",COUNTRY_INFO!C26))","v":" "},{"$f":"IF(INTRO!$E$39=\"Non-endemic\",0,IF(INTRO!$E$39=\"Endemic but PC is not required\",IF(COUNTRY_INFO!$H26=1,COUNTRY_INFO!F26+COUNTRY_INFO!G26,0),IF(COUNTRY_INFO!$H26=1,COUNTRY_INFO!F26+COUNTRY_INFO!G26,IF(COUNTRY_INFO!$I26=1,IF(COUNTRY_INFO!M26>=(COUNTRY_INFO!F26+COUNTRY_INFO!G26),COUNTRY_INFO!F26+COUNTRY_INFO!G26,COUNTRY_INFO!$M26),0))))","v":0},{"$f":"IF(AND(INTRO!$E$39=\"Non-endemic\",INTRO!$E$37=\"Non-endemic\"),\"Not required\",IF(INTRO!$E$39=\"Non-endemic\",\"Treat with DEC\",COUNTRY_INFO!V26))","v":"Not required"},{"$f":"IF(INTRO!$E$39<>\"Non-endemic\",COUNTRY_INFO!W26,\"Not required\")","v":"Not required"},{"$f":"IF(COUNTRY_INFO!H26=1, IF($E26=1,$D26, 0),0)","v":0},{"$f":"IF(COUNTRY_INFO!I26=1, IF(AND(COUNTRY_INFO!$I26=1,$F26<>0),IF(COUNTRY_INFO!M26>=(COUNTRY_INFO!F26+COUNTRY_INFO!G26),COUNTRY_INFO!F26+COUNTRY_INFO!G26,COUNTRY_INFO!$M26), 0),0)","v":0},0,0,0,0,null,0]
[{"$f":"IF(INTRO!$E$39=\"Non-endemic\",\" \",IF(COUNTRY_INFO!A27=0,\" \",COUNTRY_INFO!A27))","v":" "},{"$f":"IF(INTRO!$E$39=\"Non-endemic\",\" \",IF(COUNTRY_INFO!B27=0,\" \",COUNTRY_INFO!B27))","v":" "},{"$f":"IF(INTRO!$E$39=\"Non-endemic\",\" \",IF(COUNTRY_INFO!C27=0,\" \",COUNTRY_INFO!C27))","v":" "},{"$f":"IF(INTRO!$E$39=\"Non-endemic\",0,IF(INTRO!$E$39=\"Endemic but PC is not required\",IF(COUNTRY_INFO!$H27=1,COUNTRY_INFO!F27+COUNTRY_INFO!G27,0),IF(COUNTRY_INFO!$H27=1,COUNTRY_INFO!F27+COUNTRY_INFO!G27,IF(COUNTRY_INFO!$I27=1,IF(COUNTRY_INFO!M27>=(COUNTRY_INFO!F27+COUNTRY_INFO!G27),COUNTRY_INFO!F27+COUNTRY_INFO!G27,COUNTRY_INFO!$M27),0))))","v":0},{"$f":"IF(AND(INTRO!$E$39=\"Non-endemic\",INTRO!$E$37=\"Non-endemic\"),\"Not required\",IF(INTRO!$E$39=\"Non-endemic\",\"Treat with DEC\",COUNTRY_INFO!V27))","v":"Not required"},{"$f":"IF(INTRO!$E$39<>\"Non-endemic\",COUNTRY_INFO!W27,\"Not required\")","v":"Not required"},{"$f":"IF(COUNTRY_INFO!H27=1, IF($E27=1,$D27, 0),0)","v":0},{"$f":"IF(COUNTRY_INFO!I27=1, IF(AND(COUNTRY_INFO!$I27=1,$F27<>0),IF(COUNTRY_INFO!M27>=(COUNTRY_INFO!F27+COUNTRY_INFO!G27),COUNTRY_INFO!F27+COUNTRY_INFO!G27,COUNTRY_INFO!$M27), 0),0)","v":0},0,0,0,0,null,0]
[{"$f":"IF(INTRO!$E$39=\"Non-endemic\",\" \",IF(COUNTRY_INFO!A28=0,\" \",COUNTRY_INFO!A28))","v":" "},{"$f":"IF(INTRO!$E$39=\"Non-endemic\",\" \",IF(COUNTRY_INFO!B28=0,\" \",COUNTRY_INFO!B28))","v":" "},{"$f":"IF(INTRO!$E$39=\"Non-endemic\",\" \",IF(COUNTRY_INFO!C28=0,\" \",COUNTRY_INFO!C28))","v":" "},{"$f":"IF(INTRO!$E$39=\"Non-endemic\",0,IF(INTRO!$E$39=\"Endemic but PC is not required\",IF(COUNTRY_INFO!$H28=1,COUNTRY_INFO!F28+COUNTRY_INFO!G28,0),IF(COUNTRY_INFO!$H28=1,COUNTRY_INFO!F28+COUNTRY_INFO!G28,IF(COUNTRY_INFO!$I28=1,IF(COUNTRY_INFO!M28>=(COUNTRY_INFO!F28+COUNTRY_INFO!G28),COUNTRY_INFO!F28+COUNTRY_INFO!G28,COUNTRY_INFO!$M28),0))))","v":0},{"$f":"IF(AND(INTRO!$E$39=\"Non-endemic\",INTRO!$E$37=\"Non-endemic\"),\"Not required\",IF(INTRO!$E$39=\"Non-endemic\",\"Treat with DEC\",COUNTRY_INFO!V28))","v":"Not required"},{"$f":"IF(INTRO!$E$39<>\"Non-endemic\",COUNTRY_INFO!W28,\"Not required\")","v":"Not required"},{"$f":"IF(COUNTRY_INFO!H28=1, IF($E28=1,$D28, 0),0)","v":0},{"$f":"IF(COUNTRY_INFO!I28=1, IF(AND(COUNTRY_INFO!$I28=1,$F28<>0),IF(COUNTRY_INFO!M28>=(COUNTRY_INFO!F28+COUNTRY_INFO!G28),COUNTRY_INFO!F28+COUNTRY_INFO!G28,COUNTRY_INFO!$M28), 0),0)","v":0},0,0,0,0,null,0]
[{"$f":"IF(INTRO!$E$39=\"Non-endemic\",\" \",IF(COUNTRY_INFO!A29=0,\" \",COUNTRY_INFO!A29))","v":" "},{"$f":"IF(INTRO!$E$39=\"Non-endemic\",\" \",IF(COUNTRY_INFO!B29=0,\" \",COUNTRY_INFO!B29))","v":" "},{"$f":"IF(INTRO!$E$39=\"Non-endemic\",\" \",IF(COUNTRY_INFO!C29=0,\" \",COUNTRY_INFO!C29))","v":" "},{"$f":"IF(INTRO!$E$39=\"Non-endemic\",0,IF(INTRO!$E$39=\"Endemic but PC is not required\",IF(COUNTRY_INFO!$H29=1,COUNTRY_INFO!F29+COUNTRY_INFO!G29,0),IF(COUNTRY_INFO!$H29=1,COUNTRY_INFO!F29+COUNTRY_INFO!G29,IF(COUNTRY_INFO!$I29=1,IF(COUNTRY_INFO!M29>=(COUNTRY_INFO!F29+COUNTRY_INFO!G29),COUNTRY_INFO!F29+COUNTRY_INFO!G29,COUNTRY_INFO!$M29),0))))","v":0},{"$f":"IF(AND(INTRO!$E$39=\"Non-endemic\",INTRO!$E$37=\"Non-endemic\"),\"Not required\",IF(INTRO!$E$39=\"Non-endemic\",\"Treat with DEC\",COUNTRY_INFO!V29))","v":"Not required"},{"$f":"IF(INTRO!$E$39<>\"Non-endemic\",COUNTRY_INFO!W29,\"Not required\")","v":"Not required"},{"$f":"IF(COUNTRY_INFO!H29=1, IF($E29=1,$D29, 0),0)","v":0},{"$f":"IF(COUNTRY_INFO!I29=1, IF(AND(COUNTRY_INFO!$I29=1,$F29<>0),IF(COUNTRY_INFO!M29>=(COUNTRY_INFO!F29+COUNTRY_INFO!G29),COUNTRY_INFO!F29+COUNTRY_INFO!G29,COUNTRY_INFO!$M29), 0),0)","v":0},0,0,0,0,null,0]
[{"$f":"IF(INTRO!$E$39=\"Non-endemic\",\" \",IF(COUNTRY_INFO!A30=0,\" \",COUNTRY_INFO!A30))","v":" "},{"$f":"IF(INTRO!$E$39=\"Non-endemic\",\" \",IF(COUNTRY_INFO!B30=0,\" \",COUNTRY_INFO!B30))","v":" "},{"$f":"IF(INTRO!$E$39=\"Non-endemic\",\" \",IF(COUNTRY_INFO!C30=0,\" \",COUNTRY_INFO!C30))","v":" "},{"$f":"IF(INTRO!$E$39=\"Non-endemic\",0,IF(INTRO!$E$39=\"Endemic but PC is not required\",IF(COUNTRY_INFO!$H30=1,COUNTRY_INFO!F30+COUNTRY_INFO!G30,0),IF(COUNTRY_INFO!$H30=1,COUNTRY_INFO!F30+COUNTRY_INFO!G30,IF(COUNTRY_INFO!$I30=1,IF(COUNTRY_INFO!M30>=(COUNTRY_INFO!F30+COUNTRY_INFO!G30),COUNTRY_INFO!F30+COUNTRY_INFO!G30,COUNTRY_INFO!$M30),0))))","v":0},{"$f":"IF(AND(INTRO!$E$39=\"Non-endemic\",INTRO!$E$37=\"Non-endemic\"),\"Not required\",IF(INTRO!$E$39=\"Non-endemic\",\"Treat with DEC\",COUNTRY_INFO!V30))","v":"Not required"},{"$f":"IF(INTRO!$E$39<>\"Non-endemic\",COUNTRY_INFO!W30,\"Not required\")","v":"Not required"},{"$f":"IF(COUNTRY_INFO!H30=1, IF($E30=1,$D30, 0),0)","v":0},{"$f":"IF(COUNTRY_INFO!I30=1, IF(AND(COUNTRY_INFO!$I30=1,$F30<>0),IF(COUNTRY_INFO!M30>=(COUNTRY_INFO!F30+COUNTRY_INFO!G30),COUNTRY_INFO!F30+COUNTRY_INFO!G30,COUNTRY_INFO!$M30), 0),0)","v":0},0,0,0,0,null,0]
[{"$f":"IF(INTRO!$E$39=\"Non-endemic\",\" \",IF(COUNTRY_INFO!A31=0,\" \",COUNTRY_INFO!A31))","v":" "},{"$f":"IF(INTRO!$E$39=\"Non-endemic\",\" \",IF(COUNTRY_INFO!B31=0,\" \",COUNTRY_INFO!B31))","v":" "},{"$f":"IF(INTRO!$E$39=\"Non-endemic\",\" \",IF(COUNTRY_INFO!C31=0,\" \",COUNTRY_INFO!C31))","v":" "},{"$f":"IF(INTRO!$E$39=\"Non-endemic\",0,IF(INTRO!$E$39=\"Endemic but PC is not required\",IF(COUNTRY_INFO!$H31=1,COUNTRY_INFO!F31+COUNTRY_INFO!G31,0),IF(COUNTRY_INFO!$H31=1,COUNTRY_INFO!F31+COUNTRY_INFO!G31,IF(COUNTRY_INFO!$I31=1,IF(COUNTRY_INFO!M31>=(COUNTRY_INFO!F31+COUNTRY_INFO!G31),COUNTRY_INFO!F31+COUNTRY_INFO!G31,COUNTRY_INFO!$M31),0))))","v":0},{"$f":"IF(AND(INTRO!$E$39=\"Non-endemic\",INTRO!$E$37=\"Non-endemic\"),\"Not required\",IF(INTRO!$E$39=\"Non-endemic\",\"Treat with DEC\",COUNTRY_INFO!V31))","v":"Not required"},{"$f":"IF(INTRO!$E$39<>\"Non-endemic\",COUNTRY_INFO!W31,\"Not required\")","v":"Not required"},{"$f":"IF(COUNTRY_INFO!H31=1, IF($E31=1,$D31, 0),0)","v":0},{"$f":"IF(COUNTRY_INFO!I31=1, IF(AND(COUNTRY_INFO!$I31=1,$F31<>0),IF(COUNTRY_INFO!M31>=(COUNTRY_INFO!F31+COUNTRY_INFO!G31),COUNTRY_INFO!F31+COUNTRY_INFO!G31,COUNTRY_INFO!$M31), 0),0)","v":0},0,0,0,0,null,0]
[{"$f":"IF(INTRO!$E$39=\"Non-endemic\",\" \",IF(COUNTRY_INFO!A32=0,\" \",COUNTRY_INFO!A32))","v":" "},{"$f":"IF(INTRO!$E$39=\"Non-endemic\",\" \",IF(COUNTRY_INFO!B32=0,\" \",COUNTRY_INFO!B32))","v":" "},{"$f":"IF(INTRO!$E$39=\"Non-endemic\",\" \",IF(COUNTRY_INFO!C32=0,\" \",COUNTRY_INFO!C32))","v":" "},{"$f":"IF(INTRO!$E$39=\"Non-endemic\",0,IF(INTRO!$E$39=\"Endemic but PC is not required\",IF(COUNTRY_INFO!$H32=1,COUNTRY_INFO!F32+COUNTRY_INFO!G32,0),IF(COUNTRY_INFO!$H32=1,COUNTRY_INFO!F32+COUNTRY_INFO!G32,IF(COUNTRY_INFO!$I32=1,IF(COUNTRY_INFO!M32>=(COUNTRY_INFO!F32+COUNTRY_INFO!G32),COUNTRY_INFO!F32+COUNTRY_INFO!G32,COUNTRY_INFO!$M32),0))))","v":0},{"$f":"IF(AND(INTRO!$E$39=\"Non-endemic\",INTRO!$E$37=\"Non-endemic\"),\"Not required\",IF(INTRO!$E$39=\"Non-endemic\",\"Treat with DEC\",COUNTRY_INFO!V32))","v":"Not required"},{"$f":"IF(INTRO!$E$39<>\"Non-endemic\",COUNTRY_INFO!W32,\"Not required\")","v":"Not required"},{"$f":"IF(COUNTRY_INFO!H32=1, IF($E32=1,$D32, 0),0)","v":0},{"$f":"IF(COUNTRY_INFO!I32=1, IF(AND(COUNTRY_INFO!$I32=1,$F32<>0),IF(COUNTRY_INFO!M32>=(COUNTRY_INFO!F32+COUNTRY_INFO!G32),COUNTRY_INFO!F32+COUNTRY_INFO!G32,COUNTRY_INFO!$M32), 0),0)","v":0},0,0,0,0,null,0]
[{"$f":"IF(INTRO!$E$39=\"Non-endemic\",\" \",IF(COUNTRY_INFO!A33=0,\" \",COUNTRY_INFO!A33))","v":" "},{"$f":"IF(INTRO!$E$39=\"Non-endemic\",\" \",IF(COUNTRY_INFO!B33=0,\" \",COUNTRY_INFO!B33))","v":" "},{"$f":"IF(INTRO!$E$39=\"Non-endemic\",\" \",IF(COUNTRY_INFO!C33=0,\" \",COUNTRY_INFO!C33))","v":" "},{"$f":"IF(INTRO!$E$39=\"Non-endemic\",0,IF(INTRO!$E$39=\"Endemic but PC is not required\",IF(COUNTRY_INFO!$H33=1,COUNTRY_INFO!F33+COUNTRY_INFO!G33,0),IF(COUNTRY_INFO!$H33=1,COUNTRY_INFO!F33+COUNTRY_INFO!G33,IF(COUNTRY_INFO!$I33=1,IF(COUNTRY_INFO!M33>=(COUNTRY_INFO!F33+COUNTRY_INFO!G33),COUNTRY_INFO!F33+COUNTRY_INFO!G33,COUNTRY_INFO!$M33),0))))","v":0},{"$f":"IF(AND(INTRO!$E$39=\"Non-endemic\",INTRO!$E$37=\"Non-endemic\"),\"Not required\",IF(INTRO!$E$39=\"Non-endemic\",\"Treat with DEC\",COUNTRY_INFO!V33))","v":"Not required"},{"$f":"IF(INTRO!$E$39<>\"Non-endemic\",COUNTRY_INFO!W33,\"Not required\")","v":"Not required"},{"$f":"IF(COUNTRY_INFO!H33=1, IF($E33=1,$D33, 0),0)","v":0},{"$f":"IF(COUNTRY_INFO!I33=1, IF(AND(COUNTRY_INFO!$I33=1,$F33<>0),IF(COUNTRY_INFO!M33>=(COUNTRY_INFO!F33+COUNTRY_INFO!G33),COUNTRY_INFO!F33+COUNTRY_INFO!G33,COUNTRY_INFO!$M33), 0),0)","v":0},0,0,0,0,null,0]
[{"$f":"IF(INTRO!$E$39=\"Non-endemic\",\" \",IF(COUNTRY_INFO!A34=0,\" \",COUNTRY_INFO!A34))","v":" "},{"$f":"IF(INTRO!$E$39=\"Non-endemic\",\" \",IF(COUNTRY_INFO!B34=0,\" \",COUNTRY_INFO!B34))","v":" "},{"$f":"IF(INTRO!$E$39=\"Non-endemic\",\" \",IF(COUNTRY_INFO!C34=0,\" \",COUNTRY_INFO!C34))","v":" "},{"$f":"IF(INTRO!$E$39=\"Non-endemic\",0,IF(INTRO!$E$39=\"Endemic but PC is not required\",IF(COUNTRY_INFO!$H34=1,COUNTRY_INFO!F34+COUNTRY_INFO!G34,0),IF(COUNTRY_INFO!$H34=1,COUNTRY_INFO!F34+COUNTRY_INFO!G34,IF(COUNTRY_INFO!$I34=1,IF(COUNTRY_INFO!M34>=(COUNTRY_INFO!F34+COUNTRY_INFO!G34),COUNTRY_INFO!F34+COUNTRY_INFO!G34,COUNTRY_INFO!$M34),0))))","v":0},{"$f":"IF(AND(INTRO!$E$39=\"Non-endemic\",INTRO!$E$37=\"Non-endemic\"),\"Not required\",IF(INTRO!$E$39=\"Non-endemic\",\"Treat with DEC\",COUNTRY_INFO!V34))","v":"Not required"},{"$f":"IF(INTRO!$E$39<>\"Non-endemic\",COUNTRY_INFO!W34,\"Not required\")","v":"Not required"},{"$f":"IF(COUNTRY_INFO!H34=1, IF($E34=1,$D34, 0),0)","v":0},{"$f":"IF(COUNTRY_INFO!I34=1, IF(AND(COUNTRY_INFO!$I34=1,$F34<>0),IF(COUNTRY_INFO!M34>=(COUNTRY_INFO!F34+COUNTRY_INFO!G34),COUNTRY_INFO!F34+COUNTRY_INFO!G34,COUNTRY_INFO!$M34), 0),0)","v":0},0,0,0,0,null,0]
[{"$f":"IF(INTRO!$E$39=\"Non-endemic\",\" \",IF(COUNTRY_INFO!A35=0,\" \",COUNTRY_INFO!A35))","v":" "},{"$f":"IF(INTRO!$E$39=\"Non-endemic\",\" \",IF(COUNTRY_INFO!B35=0,\" \",COUNTRY_INFO!B35))","v":" "},{"$f":"IF(INTRO!$E$39=\"Non-endemic\",\" \",IF(COUNTRY_INFO!C35=0,\" \",COUNTRY_INFO!C35))","v":" "},{"$f":"IF(INTRO!$E$39=\"Non-endemic\",0,IF(INTRO!$E$39=\"Endemic but PC is not required\",IF(COUNTRY_INFO!$H35=1,COUNTRY_INFO!F35+COUNTRY_INFO!G35,0),IF(COUNTRY_INFO!$H35=1,COUNTRY_INFO!F35+COUNTRY_INFO!G35,IF(COUNTRY_INFO!$I35=1,IF(COUNTRY_INFO!M35>=(COUNTRY_INFO!F35+COUNTRY_INFO!G35),COUNTRY_INFO!F35+COUNTRY_INFO!G35,COUNTRY_INFO!$M35),0))))","v":0},{"$f":"IF(AND(INTRO!$E$39=\"Non-endemic\",INTRO!$E$37=\"Non-endemic\"),\"Not required\",IF(INTRO!$E$39=\"Non-endemic\",\"Treat with DEC\",COUNTRY_INFO!V35))","v":"Not required"},{"$f":"IF(INTRO!$E$39<>\"Non-endemic\",COUNTRY_INFO!W35,\"Not required\")","v":"Not required"},{"$f":"IF(COUNTRY_INFO!H35=1, IF($E35=1,$D35, 0),0)","v":0},{"$f":"IF(COUNTRY_INFO!I35=1, IF(AND(COUNTRY_INFO!$I35=1,$F35<>0),IF(COUNTRY_INFO!M35>=(COUNTRY_INFO!F35+COUNTRY_INFO!G35),COUNTRY_INFO!F35+COUNTRY_INFO!G35,COUNTRY_INFO!$M35), 0),0)","v":0},0,0,0,0,null,0]
[{"$f":"IF(INTRO!$E$39=\"Non-endemic\",\" \",IF(COUNTRY_INFO!A36=0,\" \",COUNTRY_INFO!A36))","v":" "},{"$f":"IF(INTRO!$E$39=\"Non-endemic\",\" \",IF(COUNTRY_INFO!B36=0,\" \",COUNTRY_INFO!B36))","v":" "},{"$f":"IF(INTRO!$E$39=\"Non-endemic\",\" \",IF(COUNTRY_INFO!C36=0,\" \",COUNTRY_INFO!C36))","v":" "},{"$f":"IF(INTRO!$E$39=\"Non-endemic\",0,IF(INTRO!$E$39=\"Endemic but PC is not required\",IF(COUNTRY_INFO!$H36=1,COUNTRY_INFO!F36+COUNTRY_INFO!G36,0),IF(COUNTRY_INFO!$H36=1,COUNTRY_INFO!F36+COUNTRY_INFO!G36,IF(COUNTRY_INFO!$I36=1,IF(COUNTRY_INFO!M36>=(COUNTRY_INFO!F36+COUNTRY_INFO!G36),COUNTRY_INFO!F36+COUNTRY_INFO!G36,COUNTRY_INFO!$M36),0))))","v":0},{"$f":"IF(AND(INTRO!$E$39=\"Non-endemic\",INTRO!$E$37=\"Non-endemic\"),\"Not required\",IF(INTRO!$E$39=\"Non-endemic\",\"Treat with DEC\",COUNTRY_INFO!V36))","v":"Not required"},{"$f":"IF(INTRO!$E$39<>\"Non-endemic\",COUNTRY_INFO!W36,\"Not required\")","v":"Not required"},{"$f":"IF(COUNTRY_INFO!H36=1, IF($E36=1,$D36, 0),0)","v":0},{"$f":"IF(COUNTRY_INFO!I36=1, IF(AND(COUNTRY_INFO!$I36=1,$F36<>0),IF(COUNTRY_INFO!M36>=(COUNTRY_INFO!F36+COUNTRY_INFO!G36),COUNTRY_INFO!F36+COUNTRY_INFO!G36,COUNTRY_INFO!$M36), 0),0)","v":0},0,0,0,0,null,0]
[{"$f":"IF(INTRO!$E$39=\"Non-endemic\",\" \",IF(COUNTRY_INFO!A37=0,\" \",COUNTRY_INFO!A37))","v":" "},{"$f":"IF(INTRO!$E$39=\"Non-endemic\",\" \",IF(COUNTRY_INFO!B37=0,\" \",COUNTRY_INFO!B37))","v":" "},{"$f":"IF(INTRO!$E$39=\"Non-endemic\",\" \",IF(COUNTRY_INFO!C37=0,\" \",COUNTRY_INFO!C37))","v":" "},{"$f":"IF(INTRO!$E$39=\"Non-endemic\",0,IF(INTRO!$E$39=\"Endemic but PC is not required\",IF(COUNTRY_INFO!$H37=1,COUNTRY_INFO!F37+COUNTRY_INFO!G37,0),IF(COUNTRY_INFO!$H37=1,COUNTRY_INFO!F37+COUNTRY_INFO!G37,IF(COUNTRY_INFO!$I37=1,IF(COUNTRY_INFO!M37>=(COUNTRY_INFO!F37+COUNTRY_INFO!G37),COUNTRY_INFO!F37+COUNTRY_INFO!G37,COUNTRY_INFO!$M37),0))))","v":0},{"$f":"IF(AND(INTRO!$E$39=\"Non-endemic\",INTRO!$E$37=\"Non-endemic\"),\"Not required\",IF(INTRO!$E$39=\"Non-endemic\",\"Treat with DEC\",COUNTRY_INFO!V37))","v":"Not required"},{"$f":"IF(INTRO!$E$39<>\"Non-endemic\",COUNTRY_INFO!W37,\"Not required\")","v":"Not required"},{"$f":"IF(COUNTRY_INFO!H37=1, IF($E37=1,$D37, 0),0)","v":0},{"$f":"IF(COUNTRY_INFO!I37=1, IF(AND(COUNTRY_INFO!$I37=1,$F37<>0),IF(COUNTRY_INFO!M37>=(COUNTRY_INFO!F37+COUNTRY_INFO!G37),COUNTRY_INFO!F37+COUNTRY_INFO!G37,COUNTRY_INFO!$M37), 0),0)","v":0},0,0,0,0,null,0]
[{"$f":"IF(INTRO!$E$39=\"Non-endemic\",\" \",IF(COUNTRY_INFO!A38=0,\" \",COUNTRY_INFO!A38))","v":" "},{"$f":"IF(INTRO!$E$39=\"Non-endemic\",\" \",IF(COUNTRY_INFO!B38=0,\" \",COUNTRY_INFO!B38))","v":" "},{"$f":"IF(INTRO!$E$39=\"Non-endemic\",\" \",IF(COUNTRY_INFO!C38=0,\" \",COUNTRY_INFO!C38))","v":" "},{"$f":"IF(INTRO!$E$39=\"Non-endemic\",0,IF(INTRO!$E$39=\"Endemic but PC is not required\",IF(COUNTRY_INFO!$H38=1,COUNTRY_INFO!F38+COUNTRY_INFO!G38,0),IF(COUNTRY_INFO!$H38=1,COUNTRY_INFO!F38+COUNTRY_INFO!G38,IF(COUNTRY_INFO!$I38=1,IF(COUNTRY_INFO!M38>=(COUNTRY_INFO!F38+COUNTRY_INFO!G38),COUNTRY_INFO!F38+COUNTRY_INFO!G38,COUNTRY_INFO!$M38),0))))","v":0},{"$f":"IF(AND(INTRO!$E$39=\"Non-endemic\",INTRO!$E$37=\"Non-endemic\"),\"Not required\",IF(INTRO!$E$39=\"Non-endemic\",\"Treat with DEC\",COUNTRY_INFO!V38))","v":"Not required"},{"$f":"IF(INTRO!$E$39<>\"Non-endemic\",COUNTRY_INFO!W38,\"Not required\")","v":"Not required"},{"$f":"IF(COUNTRY_INFO!H38=1, IF($E38=1,$D38, 0),0)","v":0},{"$f":"IF(COUNTRY_INFO!I38=1, IF(AND(COUNTRY_INFO!$I38=1,$F38<>0),IF(COUNTRY_INFO!M38>=(COUNTRY_INFO!F38+COUNTRY_INFO!G38),COUNTRY_INFO!F38+COUNTRY_INFO!G38,COUNTRY_INFO!$M38), 0),0)","v":0},0,0,0,0,null,0]
[{"$f":"IF(INTRO!$E$39=\"Non-endemic\",\" \",IF(COUNTRY_INFO!A39=0,\" \",COUNTRY_INFO!A39))","v":" "},{"$f":"IF(INTRO!$E$39=\"Non-endemic\",\" \",IF(COUNTRY_INFO!B39=0,\" \",COUNTRY_INFO!B39))","v":" "},{"$f":"IF(INTRO!$E$39=\"Non-endemic\",\" \",IF(COUNTRY_INFO!C39=0,\" \",COUNTRY_INFO!C39))","v":" "},{"$f":"IF(INTRO!$E$39=\"Non-endemic\",0,IF(INTRO!$E$39=\"Endemic but PC is not required\",IF(COUNTRY_INFO!$H39=1,COUNTRY_INFO!F39+COUNTRY_INFO!G39,0),IF(COUNTRY_INFO!$H39=1,COUNTRY_INFO!F39+COUNTRY_INFO!G39,IF(COUNTRY_INFO!$I39=1,IF(COUNTRY_INFO!M39>=(COUNTRY_INFO!F39+COUNTRY_INFO!G39),COUNTRY_INFO!F39+COUNTRY_INFO!G39,COUNTRY_INFO!$M39),0))))","v":0},{"$f":"IF(AND(INTRO!$E$39=\"Non-endemic\",INTRO!$E$37=\"Non-endemic\"),\"Not required\",IF(INTRO!$E$39=\"Non-endemic\",\"Treat with DEC\",COUNTRY_INFO!V39))","v":"Not required"},{"$f":"IF(INTRO!$E$39<>\"Non-endemic\",COUNTRY_INFO!W39,\"Not required\")","v":"Not required"},{"$f":"IF(COUNTRY_INFO!H39=1, IF($E39=1,$D39, 0),0)","v":0},{"$f":"IF(COUNTRY_INFO!I39=1, IF(AND(COUNTRY_INFO!$I39=1,$F39<>0),IF(COUNTRY_INFO!M39>=(COUNTRY_INFO!F39+COUNTRY_INFO!G39),COUNTRY_INFO!F39+COUNTRY_INFO!G39,COUNTRY_INFO!$M39), 0),0)","v":0},0,0,0,0,null,0]
[{"$f":"IF(INTRO!$E$39=\"Non-endemic\",\" \",IF(COUNTRY_INFO!A40=0,\" \",COUNTRY_INFO!A40))","v":" "},{"$f":"IF(INTRO!$E$39=\"Non-endemic\",\" \",IF(COUNTRY_INFO!B40=0,\" \",COUNTRY_INFO!B40))","v":" "},{"$f":"IF(INTRO!$E$39=\"Non-endemic\",\" \",IF(COUNTRY_INFO!C40=0,\" \",COUNTRY_INFO!C40))","v":" "},{"$f":"IF(INTRO!$E$39=\"Non-endemic\",0,IF(INTRO!$E$39=\"Endemic but PC is not required\",IF(COUNTRY_INFO!$H40=1,COUNTRY_INFO!F40+COUNTRY_INFO!G40,0),IF(COUNTRY_INFO!$H40=1,COUNTRY_INFO!F40+COUNTRY_INFO!G40,IF(COUNTRY_INFO!$I40=1,IF(COUNTRY_INFO!M40>=(COUNTRY_INFO!F40+COUNTRY_INFO!G40),COUNTRY_INFO!F40+COUNTRY_INFO!G40,COUNTRY_INFO!$M40),0))))","v":0},{"$f":"IF(AND(INTRO!$E$39=\"Non-endemic\",INTRO!$E$37=\"Non-endemic\"),\"Not required\",IF(INTRO!$E$39=\"Non-endemic\",\"Treat with DEC\",COUNTRY_INFO!V40))","v":"Not required"},{"$f":"IF(INTRO!$E$39<>\"Non-endemic\",COUNTRY_INFO!W40,\"Not required\")","v":"Not required"},{"$f":"IF(COUNTRY_INFO!H40=1, IF($E40=1,$D40, 0),0)","v":0},{"$f":"IF(COUNTRY_INFO!I40=1, IF(AND(COUNTRY_INFO!$I40=1,$F40<>0),IF(COUNTRY_INFO!M40>=(COUNTRY_INFO!F40+COUNTRY_INFO!G40),COUNTRY_INFO!F40+COUNTRY_INFO!G40,COUNTRY_INFO!$M40), 0),0)","v":0},0,0,0,0,null,0]
[{"$f":"IF(INTRO!$E$39=\"Non-endemic\",\" \",IF(COUNTRY_INFO!A41=0,\" \",COUNTRY_INFO!A41))","v":" "},{"$f":"IF(INTRO!$E$39=\"Non-endemic\",\" \",IF(COUNTRY_INFO!B41=0,\" \",COUNTRY_INFO!B41))","v":" "},{"$f":"IF(INTRO!$E$39=\"Non-endemic\",\" \",IF(COUNTRY_INFO!C41=0,\" \",COUNTRY_INFO!C41))","v":" "},{"$f":"IF(INTRO!$E$39=\"Non-endemic\",0,IF(INTRO!$E$39=\"Endemic but PC is not required\",IF(COUNTRY_INFO!$H41=1,COUNTRY_INFO!F41+COUNTRY_INFO!G41,0),IF(COUNTRY_INFO!$H41=1,COUNTRY_INFO!F41+COUNTRY_INFO!G41,IF(COUNTRY_INFO!$I41=1,IF(COUNTRY_INFO!M41>=(COUNTRY_INFO!F41+COUNTRY_INFO!G41),COUNTRY_INFO!F41+COUNTRY_INFO!G41,COUNTRY_INFO!$M41),0))))","v":0},{"$f":"IF(AND(INTRO!$E$39=\"Non-endemic\",INTRO!$E$37=\"Non-endemic\"),\"Not required\",IF(INTRO!$E$39=\"Non-endemic\",\"Treat with DEC\",COUNTRY_INFO!V41))","v":"Not required"},{"$f":"IF(INTRO!$E$39<>\"Non-endemic\",COUNTRY_INFO!W41,\"Not required\")","v":"Not required"},{"$f":"IF(COUNTRY_INFO!H41=1, IF($E41=1,$D41, 0),0)","v":0},{"$f":"IF(COUNTRY_INFO!I41=1, IF(AND(COUNTRY_INFO!$I41=1,$F41<>0),IF(COUNTRY_INFO!M41>=(COUNTRY_INFO!F41+COUNTRY_INFO!G41),COUNTRY_INFO!F41+COUNTRY_INFO!G41,COUNTRY_INFO!$M41), 0),0)","v":0},0,0,0,0,null,0]
[{"$f":"IF(INTRO!$E$39=\"Non-endemic\",\" \",IF(COUNTRY_INFO!A42=0,\" \",COUNTRY_INFO!A42))","v":" "},{"$f":"IF(INTRO!$E$39=\"Non-endemic\",\" \",IF(COUNTRY_INFO!B42=0,\" \",COUNTRY_INFO!B42))","v":" "},{"$f":"IF(INTRO!$E$39=\"Non-endemic\",\" \",IF(COUNTRY_INFO!C42=0,\" \",COUNTRY_INFO!C42))","v":" "},{"$f":"IF(INTRO!$E$39=\"Non-endemic\",0,IF(INTRO!$E$39=\"Endemic but PC is not required\",IF(COUNTRY_INFO!$H42=1,COUNTRY_INFO!F42+COUNTRY_INFO!G42,0),IF(COUNTRY_INFO!$H42=1,COUNTRY_INFO!F42+COUNTRY_INFO!G42,IF(COUNTRY_INFO!$I42=1,IF(COUNTRY_INFO!M42>=(COUNTRY_INFO!F42+COUNTRY_INFO!G42),COUNTRY_INFO!F42+COUNTRY_INFO!G42,COUNTRY_INFO!$M42),0))))","v":0},{"$f":"IF(AND(INTRO!$E$39=\"Non-endemic\",INTRO!$E$37=\"Non-endemic\"),\"Not required\",IF(INTRO!$E$39=\"Non-endemic\",\"Treat with DEC\",COUNTRY_INFO!V42))","v":"Not required"},{"$f":"IF(INTRO!$E$39<>\"Non-endemic\",COUNTRY_INFO!W42,\"Not required\")","v":"Not required"},{"$f":"IF(COUNTRY_INFO!H42=1, IF($E42=1,$D42, 0),0)","v":0},{"$f":"IF(COUNTRY_INFO!I42=1, IF(AND(COUNTRY_INFO!$I42=1,$F42<>0),IF(COUNTRY_INFO!M42>=(COUNTRY_INFO!F42+COUNTRY_INFO!G42),COUNTRY_INFO!F42+COUNTRY_INFO!G42,COUNTRY_INFO!$M42), 0),0)","v":0},0,0,0,0,null,0]
[{"$f":"IF(INTRO!$E$39=\"Non-endemic\",\" \",IF(COUNTRY_INFO!A43=0,\" \",COUNTRY_INFO!A43))","v":" "},{"$f":"IF(INTRO!$E$39=\"Non-endemic\",\" \",IF(COUNTRY_INFO!B43=0,\" \",COUNTRY_INFO!B43))","v":" "},{"$f":"IF(INTRO!$E$39=\"Non-endemic\",\" \",IF(COUNTRY_INFO!C43=0,\" \",COUNTRY_INFO!C43))","v":" "},{"$f":"IF(INTRO!$E$39=\"Non-endemic\",0,IF(INTRO!$E$39=\"Endemic but PC is not required\",IF(COUNTRY_INFO!$H43=1,COUNTRY_INFO!F43+COUNTRY_INFO!G43,0),IF(COUNTRY_INFO!$H43=1,COUNTRY_INFO!F43+COUNTRY_INFO!G43,IF(COUNTRY_INFO!$I43=1,IF(COUNTRY_INFO!M43>=(COUNTRY_INFO!F43+COUNTRY_INFO!G43),COUNTRY_INFO!F43+COUNTRY_INFO!G43,COUNTRY_INFO!$M43),0))))","v":0},{"$f":"IF(AND(INTRO!$E$39=\"Non-endemic\",INTRO!$E$37=\"Non-endemic\"),\"Not required\",IF(INTRO!$E$39=\"Non-endemic\",\"Treat with DEC\",COUNTRY_INFO!V43))","v":"Not required"},{"$f":"IF(INTRO!$E$39<>\"Non-endemic\",COUNTRY_INFO!W43,\"Not required\")","v":"Not required"},{"$f":"IF(COUNTRY_INFO!H43=1, IF($E43=1,$D43, 0),0)","v":0},{"$f":"IF(COUNTRY_INFO!I43=1, IF(AND(COUNTRY_INFO!$I43=1,$F43<>0),IF(COUNTRY_INFO!M43>=(COUNTRY_INFO!F43+COUNTRY_INFO!G43),COUNTRY_INFO!F43+COUNTRY_INFO!G43,COUNTRY_INFO!$M43), 0),0)","v":0},0,0,0,0,null,0]
[{"$f":"IF(INTRO!$E$39=\"Non-endemic\",\" \",IF(COUNTRY_INFO!A44=0,\" \",COUNTRY_INFO!A44))","v":" "},{"$f":"IF(INTRO!$E$39=\"Non-endemic\",\" \",IF(COUNTRY_INFO!B44=0,\" \",COUNTRY_INFO!B44))","v":" "},{"$f":"IF(INTRO!$E$39=\"Non-endemic\",\" \",IF(COUNTRY_INFO!C44=0,\" \",COUNTRY_INFO!C44))","v":" "},{"$f":"IF(INTRO!$E$39=\"Non-endemic\",0,IF(INTRO!$E$39=\"Endemic but PC is not required\",IF(COUNTRY_INFO!$H44=1,COUNTRY_INFO!F44+COUNTRY_INFO!G44,0),IF(COUNTRY_INFO!$H44=1,COUNTRY_INFO!F44+COUNTRY_INFO!G44,IF(COUNTRY_INFO!$I44=1,IF(COUNTRY_INFO!M44>=(COUNTRY_INFO!F44+COUNTRY_INFO!G44),COUNTRY_INFO!F44+COUNTRY_INFO!G44,COUNTRY_INFO!$M44),0))))","v":0},{"$f":"IF(AND(INTRO!$E$39=\"Non-endemic\",INTRO!$E$37=\"Non-endemic\"),\"Not required\",IF(INTRO!$E$39=\"Non-endemic\",\"Treat with DEC\",COUNTRY_INFO!V44))","v":"Not required"},{"$f":"IF(INTRO!$E$39<>\"Non-endemic\",COUNTRY_INFO!W44,\"Not required\")","v":"Not required"},{"$f":"IF(COUNTRY_INFO!H44=1, IF($E44=1,$D44, 0),0)","v":0},{"$f":"IF(COUNTRY_INFO!I44=1, IF(AND(COUNTRY_INFO!$I44=1,$F44<>0),IF(COUNTRY_INFO!M44>=(COUNTRY_INFO!F44+COUNTRY_INFO!G44),COUNTRY_INFO!F44+COUNTRY_INFO!G44,COUNTRY_INFO!$M44), 0),0)","v":0},0,0,0,0,null,0]
[{"$f":"IF(INTRO!$E$39=\"Non-endemic\",\" \",IF(COUNTRY_INFO!A45=0,\" \",COUNTRY_INFO!A45))","v":" "},{"$f":"IF(INTRO!$E$39=\"Non-endemic\",\" \",IF(COUNTRY_INFO!B45=0,\" \",COUNTRY_INFO!B45))","v":" "},{"$f":"IF(INTRO!$E$39=\"Non-endemic\",\" \",IF(COUNTRY_INFO!C45=0,\" \",COUNTRY_INFO!C45))","v":" "},{"$f":"IF(INTRO!$E$39=\"Non-endemic\",0,IF(INTRO!$E$39=\"Endemic but PC is not required\",IF(COUNTRY_INFO!$H45=1,COUNTRY_INFO!F45+COUNTRY_INFO!G45,0),IF(COUNTRY_INFO!$H45=1,COUNTRY_INFO!F45+COUNTRY_INFO!G45,IF(COUNTRY_INFO!$I45=1,IF(COUNTRY_INFO!M45>=(COUNTRY_INFO!F45+COUNTRY_INFO!G45),COUNTRY_INFO!F45+COUNTRY_INFO!G45,COUNTRY_INFO!$M45),0))))","v":0},{"$f":"IF(AND(INTRO!$E$39=\"Non-endemic\",INTRO!$E$37=\"Non-endemic\"),\"Not required\",IF(INTRO!$E$39=\"Non-endemic\",\"Treat with DEC\",COUNTRY_INFO!V45))","v":"Not required"},{"$f":"IF(INTRO!$E$39<>\"Non-endemic\",COUNTRY_INFO!W45,\"Not required\")","v":"Not required"},{"$f":"IF(COUNTRY_INFO!H45=1, IF($E45=1,$D45, 0),0)","v":0},{"$f":"IF(COUNTRY_INFO!I45=1, IF(AND(COUNTRY_INFO!$I45=1,$F45<>0),IF(COUNTRY_INFO!M45>=(COUNTRY_INFO!F45+COUNTRY_INFO!G45),COUNTRY_INFO!F45+COUNTRY_INFO!G45,COUNTRY_INFO!$M45), 0),0)","v":0},0,0,0,0,null,0]
[{"$f":"IF(INTRO!$E$39=\"Non-endemic\",\" \",IF(COUNTRY_INFO!A46=0,\" \",COUNTRY_INFO!A46))","v":" "},{"$f":"IF(INTRO!$E$39=\"Non-endemic\",\" \",IF(COUNTRY_INFO!B46=0,\" \",COUNTRY_INFO!B46))","v":" "},{"$f":"IF(INTRO!$E$39=\"Non-endemic\",\" \",IF(COUNTRY_INFO!C46=0,\" \",COUNTRY_INFO!C46))","v":" "},{"$f":"IF(INTRO!$E$39=\"Non-endemic\",0,IF(INTRO!$E$39=\"Endemic but PC is not required\",IF(COUNTRY_INFO!$H46=1,COUNTRY_INFO!F46+COUNTRY_INFO!G46,0),IF(COUNTRY_INFO!$H46=1,COUNTRY_INFO!F46+COUNTRY_INFO!G46,IF(COUNTRY_INFO!$I46=1,IF(COUNTRY_INFO!M46>=(COUNTRY_INFO!F46+COUNTRY_INFO!G46),COUNTRY_INFO!F46+COUNTRY_INFO!G46,COUNTRY_INFO!$M46),0))))","v":0},{"$f":"IF(AND(INTRO!$E$39=\"Non-endemic\",INTRO!$E$37=\"Non-endemic\"),\"Not required\",IF(INTRO!$E$39=\"Non-endemic\",\"Treat with DEC\",COUNTRY_INFO!V46))","v":"Not required"},{"$f":"IF(INTRO!$E$39<>\"Non-endemic\",COUNTRY_INFO!W46,\"Not required\")","v":"Not required"},{"$f":"IF(COUNTRY_INFO!H46=1, IF($E46=1,$D46, 0),0)","v":0},{"$f":"IF(COUNTRY_INFO!I46=1, IF(AND(COUNTRY_INFO!$I46=1,$F46<>0),IF(COUNTRY_INFO!M46>=(COUNTRY_INFO!F46+COUNTRY_INFO!G46),COUNTRY_INFO!F46+COUNTRY_INFO!G46,COUNTRY_INFO!$M46), 0),0)","v":0},0,0,0,0,null,0]
[{"$f":"IF(INTRO!$E$39=\"Non-endemic\",\" \",IF(COUNTRY_INFO!A47=0,\" \",COUNTRY_INFO!A47))","v":" "},{"$f":"IF(INTRO!$E$39=\"Non-endemic\",\" \",IF(COUNTRY_INFO!B47=0,\" \",COUNTRY_INFO!B47))","v":" "},{"$f":"IF(INTRO!$E$39=\"Non-endemic\",\" \",IF(COUNTRY_INFO!C47=0,\" \",COUNTRY_INFO!C47))","v":" "},{"$f":"IF(INTRO!$E$39=\"Non-endemic\",0,IF(INTRO!$E$39=\"Endemic but PC is not required\",IF(COUNTRY_INFO!$H47=1,COUNTRY_INFO!F47+COUNTRY_INFO!G47,0),IF(COUNTRY_INFO!$H47=1,COUNTRY_INFO!F47+COUNTRY_INFO!G47,IF(COUNTRY_INFO!$I47=1,IF(COUNTRY_INFO!M47>=(COUNTRY_INFO!F47+COUNTRY_INFO!G47),COUNTRY_INFO!F47+COUNTRY_INFO!G47,COUNTRY_INFO!$M47),0))))","v":0},{"$f":"IF(AND(INTRO!$E$39=\"Non-endemic\",INTRO!$E$37=\"Non-endemic\"),\"Not required\",IF(INTRO!$E$39=\"Non-endemic\",\"Treat with DEC\",COUNTRY_INFO!V47))","v":"Not required"},{"$f":"IF(INTRO!$E$39<>\"Non-endemic\",COUNTRY_INFO!W47,\"Not required\")","v":"Not required"},{"$f":"IF(COUNTRY_INFO!H47=1, IF($E47=1,$D47, 0),0)","v":0},{"$f":"IF(COUNTRY_INFO!I47=1, IF(AND(COUNTRY_INFO!$I47=1,$F47<>0),IF(COUNTRY_INFO!M47>=(COUNTRY_INFO!F47+COUNTRY_INFO!G47),COUNTRY_INFO!F47+COUNTRY_INFO!G47,COUNTRY_INFO!$M47), 0),0)","v":0},0,0,0,0,null,0]
[{"$f":"IF(INTRO!$E$39=\"Non-endemic\",\" \",IF(COUNTRY_INFO!A48=0,\" \",COUNTRY_INFO!A48))","v":" "},{"$f":"IF(INTRO!$E$39=\"Non-endemic\",\" \",IF(COUNTRY_INFO!B48=0,\" \",COUNTRY_INFO!B48))","v":" "},{"$f":"IF(INTRO!$E$39=\"Non-endemic\",\" \",IF(COUNTRY_INFO!C48=0,\" \",COUNTRY_INFO!C48))","v":" "},{"$f":"IF(INTRO!$E$39=\"Non-endemic\",0,IF(INTRO!$E$39=\"Endemic but PC is not required\",IF(COUNTRY_INFO!$H48=1,COUNTRY_INFO!F48+COUNTRY_INFO!G48,0),IF(COUNTRY_INFO!$H48=1,COUNTRY_INFO!F48+COUNTRY_INFO!G48,IF(COUNTRY_INFO!$I48=1,IF(COUNTRY_INFO!M48>=(COUNTRY_INFO!F48+COUNTRY_INFO!G48),COUNTRY_INFO!F48+COUNTRY_INFO!G48,COUNTRY_INFO!$M48),0))))","v":0},{"$f":"IF(AND(INTRO!$E$39=\"Non-endemic\",INTRO!$E$37=\"Non-endemic\"),\"Not required\",IF(INTRO!$E$39=\"Non-endemic\",\"Treat with DEC\",COUNTRY_INFO!V48))","v":"Not required"},{"$f":"IF(INTRO!$E$39<>\"Non-endemic\",COUNTRY_INFO!W48,\"Not required\")","v":"Not required"},{"$f":"IF(COUNTRY_INFO!H48=1, IF($E48=1,$D48, 0),0)","v":0},{"$f":"IF(COUNTRY_INFO!I48=1, IF(AND(COUNTRY_INFO!$I48=1,$F48<>0),IF(COUNTRY_INFO!M48>=(COUNTRY_INFO!F48+COUNTRY_INFO!G48),COUNTRY_INFO!F48+COUNTRY_INFO!G48,COUNTRY_INFO!$M48), 0),0)","v":0},0,0,0,0,null,0]
[{"$f":"IF(INTRO!$E$39=\"Non-endemic\",\" \",IF(COUNTRY_INFO!A49=0,\" \",COUNTRY_INFO!A49))","v":" "},{"$f":"IF(INTRO!$E$39=\"Non-endemic\",\" \",IF(COUNTRY_INFO!B49=0,\" \",COUNTRY_INFO!B49))","v":" "},{"$f":"IF(INTRO!$E$39=\"Non-endemic\",\" \",IF(COUNTRY_INFO!C49=0,\" \",COUNTRY_INFO!C49))","v":" "},{"$f":"IF(INTRO!$E$39=\"Non-endemic\",0,IF(INTRO!$E$39=\"Endemic but PC is not required\",IF(COUNTRY_INFO!$H49=1,COUNTRY_INFO!F49+COUNTRY_INFO!G49,0),IF(COUNTRY_INFO!$H49=1,COUNTRY_INFO!F49+COUNTRY_INFO!G49,IF(COUNTRY_INFO!$I49=1,IF(COUNTRY_INFO!M49>=(COUNTRY_INFO!F49+COUNTRY_INFO!G49),COUNTRY_INFO!F49+COUNTRY_INFO!G49,COUNTRY_INFO!$M49),0))))","v":0},{"$f":"IF(AND(INTRO!$E$39=\"Non-endemic\",INTRO!$E$37=\"Non-endemic\"),\"Not required\",IF(INTRO!$E$39=\"Non-endemic\",\"Treat with DEC\",COUNTRY_INFO!V49))","v":"Not required"},{"$f":"IF(INTRO!$E$39<>\"Non-endemic\",COUNTRY_INFO!W49,\"Not required\")","v":"Not required"},{"$f":"IF(COUNTRY_INFO!H49=1, IF($E49=1,$D49, 0),0)","v":0},{"$f":"IF(COUNTRY_INFO!I49=1, IF(AND(COUNTRY_INFO!$I49=1,$F49<>0),IF(COUNTRY_INFO!M49>=(COUNTRY_INFO!F49+COUNTRY_INFO!G49),COUNTRY_INFO!F49+COUNTRY_INFO!G49,COUNTRY_INFO!$M49), 0),0)","v":0},0,0,0,0,null,0]
[{"$f":"IF(INTRO!$E$39=\"Non-endemic\",\" \",IF(COUNTRY_INFO!A50=0,\" \",COUNTRY_INFO!A50))","v":" "},{"$f":"IF(INTRO!$E$39=\"Non-endemic\",\" \",IF(COUNTRY_INFO!B50=0,\" \",COUNTRY_INFO!B50))","v":" "},{"$f":"IF(INTRO!$E$39=\"Non-endemic\",\" \",IF(COUNTRY_INFO!C50=0,\" \",COUNTRY_INFO!C50))","v":" "},{"$f":"IF(INTRO!$E$39=\"Non-endemic\",0,IF(INTRO!$E$39=\"Endemic but PC is not required\",IF(COUNTRY_INFO!$H50=1,COUNTRY_INFO!F50+COUNTRY_INFO!G50,0),IF(COUNTRY_INFO!$H50=1,COUNTRY_INFO!F50+COUNTRY_INFO!G50,IF(COUNTRY_INFO!$I50=1,IF(COUNTRY_INFO!M50>=(COUNTRY_INFO!F50+COUNTRY_INFO!G50),COUNTRY_INFO!F50+COUNTRY_INFO!G50,COUNTRY_INFO!$M50),0))))","v":0},{"$f":"IF(AND(INTRO!$E$39=\"Non-endemic\",INTRO!$E$37=\"Non-endemic\"),\"Not required\",IF(INTRO!$E$39=\"Non-endemic\",\"Treat with DEC\",COUNTRY_INFO!V50))","v":"Not required"},{"$f":"IF(INTRO!$E$39<>\"Non-endemic\",COUNTRY_INFO!W50,\"Not required\")","v":"Not required"},{"$f":"IF(COUNTRY_INFO!H50=1, IF($E50=1,$D50, 0),0)","v":0},{"$f":"IF(COUNTRY_INFO!I50=1, IF(AND(COUNTRY_INFO!$I50=1,$F50<>0),IF(COUNTRY_INFO!M50>=(COUNTRY_INFO!F50+COUNTRY_INFO!G50),COUNTRY_INFO!F50+COUNTRY_INFO!G50,COUNTRY_INFO!$M50), 0),0)","v":0},0,0,0,0,null,0]
[{"$f":"IF(INTRO!$E$39=\"Non-endemic\",\" \",IF(COUNTRY_INFO!A51=0,\" \",COUNTRY_INFO!A51))","v":" "},{"$f":"IF(INTRO!$E$39=\"Non-endemic\",\" \",IF(COUNTRY_INFO!B51=0,\" \",COUNTRY_INFO!B51))","v":" "},{"$f":"IF(INTRO!$E$39=\"Non-endemic\",\" \",IF(COUNTRY_INFO!C51=0,\" \",COUNTRY_INFO!C51))","v":" "},{"$f":"IF(INTRO!$E$39=\"Non-endemic\",0,IF(INTRO!$E$39=\"Endemic but PC is not required\",IF(COUNTRY_INFO!$H51=1,COUNTRY_INFO!F51+COUNTRY_INFO!G51,0),IF(COUNTRY_INFO!$H51=1,COUNTRY_INFO!F51+COUNTRY_INFO!G51,IF(COUNTRY_INFO!$I51=1,IF(COUNTRY_INFO!M51>=(COUNTRY_INFO!F51+COUNTRY_INFO!G51),COUNTRY_INFO!F51+COUNTRY_INFO!G51,COUNTRY_INFO!$M51),0))))","v":0},{"$f":"IF(AND(INTRO!$E$39=\"Non-endemic\",INTRO!$E$37=\"Non-endemic\"),\"Not required\",IF(INTRO!$E$39=\"Non-endemic\",\"Treat with DEC\",COUNTRY_INFO!V51))","v":"Not required"},{"$f":"IF(INTRO!$E$39<>\"Non-endemic\",COUNTRY_INFO!W51,\"Not required\")","v":"Not required"},{"$f":"IF(COUNTRY_INFO!H51=1, IF($E51=1,$D51, 0),0)","v":0},{"$f":"IF(COUNTRY_INFO!I51=1, IF(AND(COUNTRY_INFO!$I51=1,$F51<>0),IF(COUNTRY_INFO!M51>=(COUNTRY_INFO!F51+COUNTRY_INFO!G51),COUNTRY_INFO!F51+COUNTRY_INFO!G51,COUNTRY_INFO!$M51), 0),0)","v":0},0,0,0,0,null,0]
[{"$f":"IF(INTRO!$E$39=\"Non-endemic\",\" \",IF(COUNTRY_INFO!A52=0,\" \",COUNTRY_INFO!A52))","v":" "},{"$f":"IF(INTRO!$E$39=\"Non-endemic\",\" \",IF(COUNTRY_INFO!B52=0,\" \",COUNTRY_INFO!B52))","v":" "},{"$f":"IF(INTRO!$E$39=\"Non-endemic\",\" \",IF(COUNTRY_INFO!C52=0,\" \",COUNTRY_INFO!C52))","v":" "},{"$f":"IF(INTRO!$E$39=\"Non-endemic\",0,IF(INTRO!$E$39=\"Endemic but PC is not required\",IF(COUNTRY_INFO!$H52=1,COUNTRY_INFO!F52+COUNTRY_INFO!G52,0),IF(COUNTRY_INFO!$H52=1,COUNTRY_INFO!F52+COUNTRY_INFO!G52,IF(COUNTRY_INFO!$I52=1,IF(COUNTRY_INFO!M52>=(COUNTRY_INFO!F52+COUNTRY_INFO!G52),COUNTRY_INFO!F52+COUNTRY_INFO!G52,COUNTRY_INFO!$M52),0))))","v":0},{"$f":"IF(AND(INTRO!$E$39=\"Non-endemic\",INTRO!$E$37=\"Non-endemic\"),\"Not required\",IF(INTRO!$E$39=\"Non-endemic\",\"Treat with DEC\",COUNTRY_INFO!V52))","v":"Not required"},{"$f":"IF(INTRO!$E$39<>\"Non-endemic\",COUNTRY_INFO!W52,\"Not required\")","v":"Not required"},{"$f":"IF(COUNTRY_INFO!H52=1, IF($E52=1,$D52, 0),0)","v":0},{"$f":"IF(COUNTRY_INFO!I52=1, IF(AND(COUNTRY_INFO!$I52=1,$F52<>0),IF(COUNTRY_INFO!M52>=(COUNTRY_INFO!F52+COUNTRY_INFO!G52),COUNTRY_INFO!F52+COUNTRY_INFO!G52,COUNTRY_INFO!$M52), 0),0)","v":0},0,0,0,0,null,0]
[{"$f":"IF(INTRO!$E$39=\"Non-endemic\",\" \",IF(COUNTRY_INFO!A53=0,\" \",COUNTRY_INFO!A53))","v":" "},{"$f":"IF(INTRO!$E$39=\"Non-endemic\",\" \",IF(COUNTRY_INFO!B53=0,\" \",COUNTRY_INFO!B53))","v":" "},{"$f":"IF(INTRO!$E$39=\"Non-endemic\",\" \",IF(COUNTRY_INFO!C53=0,\" \",COUNTRY_INFO!C53))","v":" "},{"$f":"IF(INTRO!$E$39=\"Non-endemic\",0,IF(INTRO!$E$39=\"Endemic but PC is not required\",IF(COUNTRY_INFO!$H53=1,COUNTRY_INFO!F53+COUNTRY_INFO!G53,0),IF(COUNTRY_INFO!$H53=1,COUNTRY_INFO!F53+COUNTRY_INFO!G53,IF(COUNTRY_INFO!$I53=1,IF(COUNTRY_INFO!M53>=(COUNTRY_INFO!F53+COUNTRY_INFO!G53),COUNTRY_INFO!F53+COUNTRY_INFO!G53,COUNTRY_INFO!$M53),0))))","v":0},{"$f":"IF(AND(INTRO!$E$39=\"Non-endemic\",INTRO!$E$37=\"Non-endemic\"),\"Not required\",IF(INTRO!$E$39=\"Non-endemic\",\"Treat with DEC\",COUNTRY_INFO!V53))","v":"Not required"},{"$f":"IF(INTRO!$E$39<>\"Non-endemic\",COUNTRY_INFO!W53,\"Not required\")","v":"Not required"},{"$f":"IF(COUNTRY_INFO!H53=1, IF($E53=1,$D53, 0),0)","v":0},{"$f":"IF(COUNTRY_INFO!I53=1, IF(AND(COUNTRY_INFO!$I53=1,$F53<>0),IF(COUNTRY_INFO!M53>=(COUNTRY_INFO!F53+COUNTRY_INFO!G53),COUNTRY_INFO!F53+COUNTRY_INFO!G53,COUNTRY_INFO!$M53), 0),0)","v":0},0,0,0,0,null,0]

{"sheet":"IVM+","index":6,"n_rows":53,"n_cols":8,"rows_kept":53,"cut":false,"hidden":true,"merged":[[6,0,7,0],[6,1,7,1],[6,2,7,2],[6,3,7,3],[3,0,3,2],[5,0,5,2],[6,5,7,5],[6,6,7,6],[6,7,7,7],[5,4,7,4],[5,5,5,7]]}
["Ivermectin (IVM) for IDA therapy"]
["Administrative structure, eligible population by age group, treatment plan and information about tablets"]
[]
["TOTAL",null,null,null,{"$f":"SUBTOTAL(9,E$10:E$1010)","v":0},0,0,0]
[]
["Country administrative structure",null,null,"Treatment plan","Population targeted for treatment with IVM \n(IDA therapy)","Ivermectin (IVM)"]
["Country","Province/State","District","LF",null,"Total required","Remaining in stock","Tablets to be procured"]
[]
[]
[{"$f":"IF(AND(INTRO!$E$37=\"Endemic\",INTRO!$E$39=\"Non-endemic\"),IF(COUNTRY_INFO!A10=0,\" \",COUNTRY_INFO!A10),\" \")","v":" "},{"$f":"IF(AND(INTRO!$E$37=\"Endemic\",INTRO!$E$39=\"Non-endemic\"),IF(COUNTRY_INFO!B10=0,\" \",COUNTRY_INFO!B10),\" \")","v":" "},{"$f":"IF(AND(INTRO!$E$37=\"Endemic\",INTRO!$E$39=\"Non-endemic\"),IF(COUNTRY_INFO!C10=0,\" \",COUNTRY_INFO!C10),\" \")","v":" "},{"$f":"IF(COUNTRY_INFO!Z10<>\"\",COUNTRY_INFO!V10,0)","v":0},{"$f":"IF(AND(COUNTRY_INFO!Z10<>\"\",COUNTRY_INFO!$H10=1),COUNTRY_INFO!F10+COUNTRY_INFO!G10,0)","v":0},{"$f":"E10*2.8","v":0},null,{"$f":"IF($F10>$G10,$F10-$G10,0)","v":0}]
[{"$f":"IF(AND(INTRO!$E$37=\"Endemic\",INTRO!$E$39=\"Non-endemic\"),IF(COUNTRY_INFO!A11=0,\" \",COUNTRY_INFO!A11),\" \")","v":" "},{"$f":"IF(AND(INTRO!$E$37=\"Endemic\",INTRO!$E$39=\"Non-endemic\"),IF(COUNTRY_INFO!B11=0,\" \",COUNTRY_INFO!B11),\" \")","v":" "},{"$f":"IF(AND(INTRO!$E$37=\"Endemic\",INTRO!$E$39=\"Non-endemic\"),IF(COUNTRY_INFO!C11=0,\" \",COUNTRY_INFO!C11),\" \")","v":" "},{"$f":"IF(COUNTRY_INFO!Z11<>\"\",COUNTRY_INFO!V11,0)","v":0},{"$f":"IF(AND(COUNTRY_INFO!Z11<>\"\",COUNTRY_INFO!$H11=1),COUNTRY_INFO!F11+COUNTRY_INFO!G11,0)","v":0},{"$f":"E11*2.8","v":0},null,0]
[{"$f":"IF(AND(INTRO!$E$37=\"Endemic\",INTRO!$E$39=\"Non-endemic\"),IF(COUNTRY_INFO!A12=0,\" \",COUNTRY_INFO!A12),\" \")","v":" "},{"$f":"IF(AND(INTRO!$E$37=\"Endemic\",INTRO!$E$39=\"Non-endemic\"),IF(COUNTRY_INFO!B12=0,\" \",COUNTRY_INFO!B12),\" \")","v":" "},{"$f":"IF(AND(INTRO!$E$37=\"Endemic\",INTRO!$E$39=\"Non-endemic\"),IF(COUNTRY_INFO!C12=0,\" \",COUNTRY_INFO!C12),\" \")","v":" "},{"$f":"IF(COUNTRY_INFO!Z12<>\"\",COUNTRY_INFO!V12,0)","v":0},{"$f":"IF(AND(COUNTRY_INFO!Z12<>\"\",COUNTRY_INFO!$H12=1),COUNTRY_INFO!F12+COUNTRY_INFO!G12,0)","v":0},0,null,0]
[{"$f":"IF(AND(INTRO!$E$37=\"Endemic\",INTRO!$E$39=\"Non-endemic\"),IF(COUNTRY_INFO!A13=0,\" \",COUNTRY_INFO!A13),\" \")","v":" "},{"$f":"IF(AND(INTRO!$E$37=\"Endemic\",INTRO!$E$39=\"Non-endemic\"),IF(COUNTRY_INFO!B13=0,\" \",COUNTRY_INFO!B13),\" \")","v":" "},{"$f":"IF(AND(INTRO!$E$37=\"Endemic\",INTRO!$E$39=\"Non-endemic\"),IF(COUNTRY_INFO!C13=0,\" \",COUNTRY_INFO!C13),\" \")","v":" "},{"$f":"IF(COUNTRY_INFO!Z13<>\"\",COUNTRY_INFO!V13,0)","v":0},{"$f":"IF(AND(COUNTRY_INFO!Z13<>\"\",COUNTRY_INFO!$H13=1),COUNTRY_INFO!F13+COUNTRY_INFO!G13,0)","v":0},0,null,0]
[{"$f":"IF(AND(INTRO!$E$37=\"Endemic\",INTRO!$E$39=\"Non-endemic\"),IF(COUNTRY_INFO!A14=0,\" \",COUNTRY_INFO!A14),\" \")","v":" "},{"$f":"IF(AND(INTRO!$E$37=\"Endemic\",INTRO!$E$39=\"Non-endemic\"),IF(COUNTRY_INFO!B14=0,\" \",COUNTRY_INFO!B14),\" \")","v":" "},{"$f":"IF(AND(INTRO!$E$37=\"Endemic\",INTRO!$E$39=\"Non-endemic\"),IF(COUNTRY_INFO!C14=0,\" \",COUNTRY_INFO!C14),\" \")","v":" "},{"$f":"IF(COUNTRY_INFO!Z14<>\"\",COUNTRY_INFO!V14,0)","v":0},{"$f":"IF(AND(COUNTRY_INFO!Z14<>\"\",COUNTRY_INFO!$H14=1),COUNTRY_INFO!F14+COUNTRY_INFO!G14,0)","v":0},0,null,0]
[{"$f":"IF(AND(INTRO!$E$37=\"Endemic\",INTRO!$E$39=\"Non-endemic\"),IF(COUNTRY_INFO!A15=0,\" \",COUNTRY_INFO!A15),\" \")","v":" "},{"$f":"IF(AND(INTRO!$E$37=\"Endemic\",INTRO!$E$39=\"Non-endemic\"),IF(COUNTRY_INFO!B15=0,\" \",COUNTRY_INFO!B15),\" \")","v":" "},{"$f":"IF(AND(INTRO!$E$37=\"Endemic\",INTRO!$E$39=\"Non-endemic\"),IF(COUNTRY_INFO!C15=0,\" \",COUNTRY_INFO!C15),\" \")","v":" "},{"$f":"IF(COUNTRY_INFO!Z15<>\"\",COUNTRY_INFO!V15,0)","v":0},{"$f":"IF(AND(COUNTRY_INFO!Z15<>\"\",COUNTRY_INFO!$H15=1),COUNTRY_INFO!F15+COUNTRY_INFO!G15,0)","v":0},0,null,0]
[{"$f":"IF(AND(INTRO!$E$37=\"Endemic\",INTRO!$E$39=\"Non-endemic\"),IF(COUNTRY_INFO!A16=0,\" \",COUNTRY_INFO!A16),\" \")","v":" "},{"$f":"IF(AND(INTRO!$E$37=\"Endemic\",INTRO!$E$39=\"Non-endemic\"),IF(COUNTRY_INFO!B16=0,\" \",COUNTRY_INFO!B16),\" \")","v":" "},{"$f":"IF(AND(INTRO!$E$37=\"Endemic\",INTRO!$E$39=\"Non-endemic\"),IF(COUNTRY_INFO!C16=0,\" \",COUNTRY_INFO!C16),\" \")","v":" "},{"$f":"IF(COUNTRY_INFO!Z16<>\"\",COUNTRY_INFO!V16,0)","v":0},{"$f":"IF(AND(COUNTRY_INFO!Z16<>\"\",COUNTRY_INFO!$H16=1),COUNTRY_INFO!F16+COUNTRY_INFO!G16,0)","v":0},0,null,0]
[{"$f":"IF(AND(INTRO!$E$37=\"Endemic\",INTRO!$E$39=\"Non-endemic\"),IF(COUNTRY_INFO!A17=0,\" \",COUNTRY_INFO!A17),\" \")","v":" "},{"$f":"IF(AND(INTRO!$E$37=\"Endemic\",INTRO!$E$39=\"Non-endemic\"),IF(COUNTRY_INFO!B17=0,\" \",COUNTRY_INFO!B17),\" \")","v":" "},{"$f":"IF(AND(INTRO!$E$37=\"Endemic\",INTRO!$E$39=\"Non-endemic\"),IF(COUNTRY_INFO!C17=0,\" \",COUNTRY_INFO!C17),\" \")","v":" "},{"$f":"IF(COUNTRY_INFO!Z17<>\"\",COUNTRY_INFO!V17,0)","v":0},{"$f":"IF(AND(COUNTRY_INFO!Z17<>\"\",COUNTRY_INFO!$H17=1),COUNTRY_INFO!F17+COUNTRY_INFO!G17,0)","v":0},0,null,0]
[{"$f":"IF(AND(INTRO!$E$37=\"Endemic\",INTRO!$E$39=\"Non-endemic\"),IF(COUNTRY_INFO!A18=0,\" \",COUNTRY_INFO!A18),\" \")","v":" "},{"$f":"IF(AND(INTRO!$E$37=\"Endemic\",INTRO!$E$39=\"Non-endemic\"),IF(COUNTRY_INFO!B18=0,\" \",COUNTRY_INFO!B18),\" \")","v":" "},{"$f":"IF(AND(INTRO!$E$37=\"Endemic\",INTRO!$E$39=\"Non-endemic\"),IF(COUNTRY_INFO!C18=0,\" \",COUNTRY_INFO!C18),\" \")","v":" "},{"$f":"IF(COUNTRY_INFO!Z18<>\"\",COUNTRY_INFO!V18,0)","v":0},{"$f":"IF(AND(COUNTRY_INFO!Z18<>\"\",COUNTRY_INFO!$H18=1),COUNTRY_INFO!F18+COUNTRY_INFO!G18,0)","v":0},0,null,0]
[{"$f":"IF(AND(INTRO!$E$37=\"Endemic\",INTRO!$E$39=\"Non-endemic\"),IF(COUNTRY_INFO!A19=0,\" \",COUNTRY_INFO!A19),\" \")","v":" "},{"$f":"IF(AND(INTRO!$E$37=\"Endemic\",INTRO!$E$39=\"Non-endemic\"),IF(COUNTRY_INFO!B19=0,\" \",COUNTRY_INFO!B19),\" \")","v":" "},{"$f":"IF(AND(INTRO!$E$37=\"Endemic\",INTRO!$E$39=\"Non-endemic\"),IF(COUNTRY_INFO!C19=0,\" \",COUNTRY_INFO!C19),\" \")","v":" "},{"$f":"IF(COUNTRY_INFO!Z19<>\"\",COUNTRY_INFO!V19,0)","v":0},{"$f":"IF(AND(COUNTRY_INFO!Z19<>\"\",COUNTRY_INFO!$H19=1),COUNTRY_INFO!F19+COUNTRY_INFO!G19,0)","v":0},0,null,0]
[{"$f":"IF(AND(INTRO!$E$37=\"Endemic\",INTRO!$E$39=\"Non-endemic\"),IF(COUNTRY_INFO!A20=0,\" \",COUNTRY_INFO!A20),\" \")","v":" "},{"$f":"IF(AND(INTRO!$E$37=\"Endemic\",INTRO!$E$39=\"Non-endemic\"),IF(COUNTRY_INFO!B20=0,\" \",COUNTRY_INFO!B20),\" \")","v":" "},{"$f":"IF(AND(INTRO!$E$37=\"Endemic\",INTRO!$E$39=\"Non-endemic\"),IF(COUNTRY_INFO!C20=0,\" \",COUNTRY_INFO!C20),\" \")","v":" "},{"$f":"IF(COUNTRY_INFO!Z20<>\"\",COUNTRY_INFO!V20,0)","v":0},{"$f":"IF(AND(COUNTRY_INFO!Z20<>\"\",COUNTRY_INFO!$H20=1),COUNTRY_INFO!F20+COUNTRY_INFO!G20,0)","v":0},0,null,0]
[{"$f":"IF(AND(INTRO!$E$37=\"Endemic\",INTRO!$E$39=\"Non-endemic\"),IF(COUNTRY_INFO!A21=0,\" \",COUNTRY_INFO!A21),\" \")","v":" "},{"$f":"IF(AND(INTRO!$E$37=\"Endemic\",INTRO!$E$39=\"Non-endemic\"),IF(COUNTRY_INFO!B21=0,\" \",COUNTRY_INFO!B21),\" \")","v":" "},{"$f":"IF(AND(INTRO!$E$37=\"Endemic\",INTRO!$E$39=\"Non-endemic\"),IF(COUNTRY_INFO!C21=0,\" \",COUNTRY_INFO!C21),\" \")","v":" "},{"$f":"IF(COUNTRY_INFO!Z21<>\"\",COUNTRY_INFO!V21,0)","v":0},{"$f":"IF(AND(COUNTRY_INFO!Z21<>\"\",COUNTRY_INFO!$H21=1),COUNTRY_INFO!F21+COUNTRY_INFO!G21,0)","v":0},0,null,0]
[{"$f":"IF(AND(INTRO!$E$37=\"Endemic\",INTRO!$E$39=\"Non-endemic\"),IF(COUNTRY_INFO!A22=0,\" \",COUNTRY_INFO!A22),\" \")","v":" "},{"$f":"IF(AND(INTRO!$E$37=\"Endemic\",INTRO!$E$39=\"Non-endemic\"),IF(COUNTRY_INFO!B22=0,\" \",COUNTRY_INFO!B22),\" \")","v":" "},{"$f":"IF(AND(INTRO!$E$37=\"Endemic\",INTRO!$E$39=\"Non-endemic\"),IF(COUNTRY_INFO!C22=0,\" \",COUNTRY_INFO!C22),\" \")","v":" "},{"$f":"IF(COUNTRY_INFO!Z22<>\"\",COUNTRY_INFO!V22,0)","v":0},{"$f":"IF(AND(COUNTRY_INFO!Z22<>\"\",COUNTRY_INFO!$H22=1),COUNTRY_INFO!F22+COUNTRY_INFO!G22,0)","v":0},0,null,0]
[{"$f":"IF(AND(INTRO!$E$37=\"Endemic\",INTRO!$E$39=\"Non-endemic\"),IF(COUNTRY_INFO!A23=0,\" \",COUNTRY_INFO!A23),\" \")","v":" "},{"$f":"IF(AND(INTRO!$E$37=\"Endemic\",INTRO!$E$39=\"Non-endemic\"),IF(COUNTRY_INFO!B23=0,\" \",COUNTRY_INFO!B23),\" \")","v":" "},{"$f":"IF(AND(INTRO!$E$37=\"Endemic\",INTRO!$E$39=\"Non-endemic\"),IF(COUNTRY_INFO!C23=0,\" \",COUNTRY_INFO!C23),\" \")","v":" "},{"$f":"IF(COUNTRY_INFO!Z23<>\"\",COUNTRY_INFO!V23,0)","v":0},{"$f":"IF(AND(COUNTRY_INFO!Z23<>\"\",COUNTRY_INFO!$H23=1),COUNTRY_INFO!F23+COUNTRY_INFO!G23,0)","v":0},0,null,0]
[{"$f":"IF(AND(INTRO!$E$37=\"Endemic\",INTRO!$E$39=\"Non-endemic\"),IF(COUNTRY_INFO!A24=0,\" \",COUNTRY_INFO!A24),\" \")","v":" "},{"$f":"IF(AND(INTRO!$E$37=\"Endemic\",INTRO!$E$39=\"Non-endemic\"),IF(COUNTRY_INFO!B24=0,\" \",COUNTRY_INFO!B24),\" \")","v":" "},{"$f":"IF(AND(INTRO!$E$37=\"Endemic\",INTRO!$E$39=\"Non-endemic\"),IF(COUNTRY_INFO!C24=0,\" \",COUNTRY_INFO!C24),\" \")","v":" "},{"$f":"IF(COUNTRY_INFO!Z24<>\"\",COUNTRY_INFO!V24,0)","v":0},{"$f":"IF(AND(COUNTRY_INFO!Z24<>\"\",COUNTRY_INFO!$H24=1),COUNTRY_INFO!F24+COUNTRY_INFO!G24,0)","v":0},0,null,0]
[{"$f":"IF(AND(INTRO!$E$37=\"Endemic\",INTRO!$E$39=\"Non-endemic\"),IF(COUNTRY_INFO!A25=0,\" \",COUNTRY_INFO!A25),\" \")","v":" "},{"$f":"IF(AND(INTRO!$E$37=\"Endemic\",INTRO!$E$39=\"Non-endemic\"),IF(COUNTRY_INFO!B25=0,\" \",COUNTRY_INFO!B25),\" \")","v":" "},{"$f":"IF(AND(INTRO!$E$37=\"Endemic\",INTRO!$E$39=\"Non-endemic\"),IF(COUNTRY_INFO!C25=0,\" \",COUNTRY_INFO!C25),\" \")","v":" "},{"$f":"IF(COUNTRY_INFO!Z25<>\"\",COUNTRY_INFO!V25,0)","v":0},{"$f":"IF(AND(COUNTRY_INFO!Z25<>\"\",COUNTRY_INFO!$H25=1),COUNTRY_INFO!F25+COUNTRY_INFO!G25,0)","v":0},0,null,0]
[{"$f":"IF(AND(INTRO!$E$37=\"Endemic\",INTRO!$E$39=\"Non-endemic\"),IF(COUNTRY_INFO!A26=0,\" \",COUNTRY_INFO!A26),\" \")","v":" "},{"$f":"IF(AND(INTRO!$E$37=\"Endemic\",INTRO!$E$39=\"Non-endemic\"),IF(COUNTRY_INFO!B26=0,\" \",COUNTRY_INFO!B26),\" \")","v":" "},{"$f":"IF(AND(INTRO!$E$37=\"Endemic\",INTRO!$E$39=\"Non-endemic\"),IF(COUNTRY_INFO!C26=0,\" \",COUNTRY_INFO!C26),\" \")","v":" "},{"$f":"IF(COUNTRY_INFO!Z26<>\"\",COUNTRY_INFO!V26,0)","v":0},{"$f":"IF(AND(COUNTRY_INFO!Z26<>\"\",COUNTRY_INFO!$H26=1),COUNTRY_INFO!F26+COUNTRY_INFO!G26,0)","v":0},0,null,0]
[{"$f":"IF(AND(INTRO!$E$37=\"Endemic\",INTRO!$E$39=\"Non-endemic\"),IF(COUNTRY_INFO!A27=0,\" \",COUNTRY_INFO!A27),\" \")","v":" "},{"$f":"IF(AND(INTRO!$E$37=\"Endemic\",INTRO!$E$39=\"Non-endemic\"),IF(COUNTRY_INFO!B27=0,\" \",COUNTRY_INFO!B27),\" \")","v":" "},{"$f":"IF(AND(INTRO!$E$37=\"Endemic\",INTRO!$E$39=\"Non-endemic\"),IF(COUNTRY_INFO!C27=0,\" \",COUNTRY_INFO!C27),\" \")","v":" "},{"$f":"IF(COUNTRY_INFO!Z27<>\"\",COUNTRY_INFO!V27,0)","v":0},{"$f":"IF(AND(COUNTRY_INFO!Z27<>\"\",COUNTRY_INFO!$H27=1),COUNTRY_INFO!F27+COUNTRY_INFO!G27,0)","v":0},0,null,0]
[{"$f":"IF(AND(INTRO!$E$37=\"Endemic\",INTRO!$E$39=\"Non-endemic\"),IF(COUNTRY_INFO!A28=0,\" \",COUNTRY_INFO!A28),\" \")","v":" "},{"$f":"IF(AND(INTRO!$E$37=\"Endemic\",INTRO!$E$39=\"Non-endemic\"),IF(COUNTRY_INFO!B28=0,\" \",COUNTRY_INFO!B28),\" \")","v":" "},{"$f":"IF(AND(INTRO!$E$37=\"Endemic\",INTRO!$E$39=\"Non-endemic\"),IF(COUNTRY_INFO!C28=0,\" \",COUNTRY_INFO!C28),\" \")","v":" "},{"$f":"IF(COUNTRY_INFO!Z28<>\"\",COUNTRY_INFO!V28,0)","v":0},{"$f":"IF(AND(COUNTRY_INFO!Z28<>\"\",COUNTRY_INFO!$H28=1),COUNTRY_INFO!F28+COUNTRY_INFO!G28,0)","v":0},0,null,0]
[{"$f":"IF(AND(INTRO!$E$37=\"Endemic\",INTRO!$E$39=\"Non-endemic\"),IF(COUNTRY_INFO!A29=0,\" \",COUNTRY_INFO!A29),\" \")","v":" "},{"$f":"IF(AND(INTRO!$E$37=\"Endemic\",INTRO!$E$39=\"Non-endemic\"),IF(COUNTRY_INFO!B29=0,\" \",COUNTRY_INFO!B29),\" \")","v":" "},{"$f":"IF(AND(INTRO!$E$37=\"Endemic\",INTRO!$E$39=\"Non-endemic\"),IF(COUNTRY_INFO!C29=0,\" \",COUNTRY_INFO!C29),\" \")","v":" "},{"$f":"IF(COUNTRY_INFO!Z29<>\"\",COUNTRY_INFO!V29,0)","v":0},{"$f":"IF(AND(COUNTRY_INFO!Z29<>\"\",COUNTRY_INFO!$H29=1),COUNTRY_INFO!F29+COUNTRY_INFO!G29,0)","v":0},0,null,0]
[{"$f":"IF(AND(INTRO!$E$37=\"Endemic\",INTRO!$E$39=\"Non-endemic\"),IF(COUNTRY_INFO!A30=0,\" \",COUNTRY_INFO!A30),\" \")","v":" "},{"$f":"IF(AND(INTRO!$E$37=\"Endemic\",INTRO!$E$39=\"Non-endemic\"),IF(COUNTRY_INFO!B30=0,\" \",COUNTRY_INFO!B30),\" \")","v":" "},{"$f":"IF(AND(INTRO!$E$37=\"Endemic\",INTRO!$E$39=\"Non-endemic\"),IF(COUNTRY_INFO!C30=0,\" \",COUNTRY_INFO!C30),\" \")","v":" "},{"$f":"IF(COUNTRY_INFO!Z30<>\"\",COUNTRY_INFO!V30,0)","v":0},{"$f":"IF(AND(COUNTRY_INFO!Z30<>\"\",COUNTRY_INFO!$H30=1),COUNTRY_INFO!F30+COUNTRY_INFO!G30,0)","v":0},0,null,0]
[{"$f":"IF(AND(INTRO!$E$37=\"Endemic\",INTRO!$E$39=\"Non-endemic\"),IF(COUNTRY_INFO!A31=0,\" \",COUNTRY_INFO!A31),\" \")","v":" "},{"$f":"IF(AND(INTRO!$E$37=\"Endemic\",INTRO!$E$39=\"Non-endemic\"),IF(COUNTRY_INFO!B31=0,\" \",COUNTRY_INFO!B31),\" \")","v":" "},{"$f":"IF(AND(INTRO!$E$37=\"Endemic\",INTRO!$E$39=\"Non-endemic\"),IF(COUNTRY_INFO!C31=0,\" \",COUNTRY_INFO!C31),\" \")","v":" "},{"$f":"IF(COUNTRY_INFO!Z31<>\"\",COUNTRY_INFO!V31,0)","v":0},{"$f":"IF(AND(COUNTRY_INFO!Z31<>\"\",COUNTRY_INFO!$H31=1),COUNTRY_INFO!F31+COUNTRY_INFO!G31,0)","v":0},0,null,0]
[{"$f":"IF(AND(INTRO!$E$37=\"Endemic\",INTRO!$E$39=\"Non-endemic\"),IF(COUNTRY_INFO!A32=0,\" \",COUNTRY_INFO!A32),\" \")","v":" "},{"$f":"IF(AND(INTRO!$E$37=\"Endemic\",INTRO!$E$39=\"Non-endemic\"),IF(COUNTRY_INFO!B32=0,\" \",COUNTRY_INFO!B32),\" \")","v":" "},{"$f":"IF(AND(INTRO!$E$37=\"Endemic\",INTRO!$E$39=\"Non-endemic\"),IF(COUNTRY_INFO!C32=0,\" \",COUNTRY_INFO!C32),\" \")","v":" "},{"$f":"IF(COUNTRY_INFO!Z32<>\"\",COUNTRY_INFO!V32,0)","v":0},{"$f":"IF(AND(COUNTRY_INFO!Z32<>\"\",COUNTRY_INFO!$H32=1),COUNTRY_INFO!F32+COUNTRY_INFO!G32,0)","v":0},0,null,0]
[{"$f":"IF(AND(INTRO!$E$37=\"Endemic\",INTRO!$E$39=\"Non-endemic\"),IF(COUNTRY_INFO!A33=0,\" \",COUNTRY_INFO!A33),\" \")","v":" "},{"$f":"IF(AND(INTRO!$E$37=\"Endemic\",INTRO!$E$39=\"Non-endemic\"),IF(COUNTRY_INFO!B33=0,\" \",COUNTRY_INFO!B33),\" \")","v":" "},{"$f":"IF(AND(INTRO!$E$37=\"Endemic\",INTRO!$E$39=\"Non-endemic\"),IF(COUNTRY_INFO!C33=0,\" \",COUNTRY_INFO!C33),\" \")","v":" "},{"$f":"IF(COUNTRY_INFO!Z33<>\"\",COUNTRY_INFO!V33,0)","v":0},{"$f":"IF(AND(COUNTRY_INFO!Z33<>\"\",COUNTRY_INFO!$H33=1),COUNTRY_INFO!F33+COUNTRY_INFO!G33,0)","v":0},0,null,0]
[{"$f":"IF(AND(INTRO!$E$37=\"Endemic\",INTRO!$E$39=\"Non-endemic\"),IF(COUNTRY_INFO!A34=0,\" \",COUNTRY_INFO!A34),\" \")","v":" "},{"$f":"IF(AND(INTRO!$E$37=\"Endemic\",INTRO!$E$39=\"Non-endemic\"),IF(COUNTRY_INFO!B34=0,\" \",COUNTRY_INFO!B34),\" \")","v":" "},{"$f":"IF(AND(INTRO!$E$37=\"Endemic\",INTRO!$E$39=\"Non-endemic\"),IF(COUNTRY_INFO!C34=0,\" \",COUNTRY_INFO!C34),\" \")","v":" "},{"$f":"IF(COUNTRY_INFO!Z34<>\"\",COUNTRY_INFO!V34,0)","v":0},{"$f":"IF(AND(COUNTRY_INFO!Z34<>\"\",COUNTRY_INFO!$H34=1),COUNTRY_INFO!F34+COUNTRY_INFO!G34,0)","v":0},0,null,0]
[{"$f":"IF(AND(INTRO!$E$37=\"Endemic\",INTRO!$E$39=\"Non-endemic\"),IF(COUNTRY_INFO!A35=0,\" \",COUNTRY_INFO!A35),\" \")","v":" "},{"$f":"IF(AND(INTRO!$E$37=\"Endemic\",INTRO!$E$39=\"Non-endemic\"),IF(COUNTRY_INFO!B35=0,\" \",COUNTRY_INFO!B35),\" \")","v":" "},{"$f":"IF(AND(INTRO!$E$37=\"Endemic\",INTRO!$E$39=\"Non-endemic\"),IF(COUNTRY_INFO!C35=0,\" \",COUNTRY_INFO!C35),\" \")","v":" "},{"$f":"IF(COUNTRY_INFO!Z35<>\"\",COUNTRY_INFO!V35,0)","v":0},{"$f":"IF(AND(COUNTRY_INFO!Z35<>\"\",COUNTRY_INFO!$H35=1),COUNTRY_INFO!F35+COUNTRY_INFO!G35,0)","v":0},0,null,0]
[{"$f":"IF(AND(INTRO!$E$37=\"Endemic\",INTRO!$E$39=\"Non-endemic\"),IF(COUNTRY_INFO!A36=0,\" \",COUNTRY_INFO!A36),\" \")","v":" "},{"$f":"IF(AND(INTRO!$E$37=\"Endemic\",INTRO!$E$39=\"Non-endemic\"),IF(COUNTRY_INFO!B36=0,\" \",COUNTRY_INFO!B36),\" \")","v":" "},{"$f":"IF(AND(INTRO!$E$37=\"Endemic\",INTRO!$E$39=\"Non-endemic\"),IF(COUNTRY_INFO!C36=0,\" \",COUNTRY_INFO!C36),\" \")","v":" "},{"$f":"IF(COUNTRY_INFO!Z36<>\"\",COUNTRY_INFO!V36,0)","v":0},{"$f":"IF(AND(COUNTRY_INFO!Z36<>\"\",COUNTRY_INFO!$H36=1),COUNTRY_INFO!F36+COUNTRY_INFO!G36,0)","v":0},0,null,0]
[{"$f":"IF(AND(INTRO!$E$37=\"Endemic\",INTRO!$E$39=\"Non-endemic\"),IF(COUNTRY_INFO!A37=0,\" \",COUNTRY_INFO!A37),\" \")","v":" "},{"$f":"IF(AND(INTRO!$E$37=\"Endemic\",INTRO!$E$39=\"Non-endemic\"),IF(COUNTRY_INFO!B37=0,\" \",COUNTRY_INFO!B37),\" \")","v":" "},{"$f":"IF(AND(INTRO!$E$37=\"Endemic\",INTRO!$E$39=\"Non-endemic\"),IF(COUNTRY_INFO!C37=0,\" \",COUNTRY_INFO!C37),\" \")","v":" "},{"$f":"IF(COUNTRY_INFO!Z37<>\"\",COUNTRY_INFO!V37,0)","v":0},{"$f":"IF(AND(COUNTRY_INFO!Z37<>\"\",COUNTRY_INFO!$H37=1),COUNTRY_INFO!F37+COUNTRY_INFO!G37,0)","v":0},0,null,0]
[{"$f":"IF(AND(INTRO!$E$37=\"Endemic\",INTRO!$E$39=\"Non-endemic\"),IF(COUNTRY_INFO!A38=0,\" \",COUNTRY_INFO!A38),\" \")","v":" "},{"$f":"IF(AND(INTRO!$E$37=\"Endemic\",INTRO!$E$39=\"Non-endemic\"),IF(COUNTRY_INFO!B38=0,\" \",COUNTRY_INFO!B38),\" \")","v":" "},{"$f":"IF(AND(INTRO!$E$37=\"Endemic\",INTRO!$E$39=\"Non-endemic\"),IF(COUNTRY_INFO!C38=0,\" \",COUNTRY_INFO!C38),\" \")","v":" "},{"$f":"IF(COUNTRY_INFO!Z38<>\"\",COUNTRY_INFO!V38,0)","v":0},{"$f":"IF(AND(COUNTRY_INFO!Z38<>\"\",COUNTRY_INFO!$H38=1),COUNTRY_INFO!F38+COUNTRY_INFO!G38,0)","v":0},0,null,0]
[{"$f":"IF(AND(INTRO!$E$37=\"Endemic\",INTRO!$E$39=\"Non-endemic\"),IF(COUNTRY_INFO!A39=0,\" \",COUNTRY_INFO!A39),\" \")","v":" "},{"$f":"IF(AND(INTRO!$E$37=\"Endemic\",INTRO!$E$39=\"Non-endemic\"),IF(COUNTRY_INFO!B39=0,\" \",COUNTRY_INFO!B39),\" \")","v":" "},{"$f":"IF(AND(INTRO!$E$37=\"Endemic\",INTRO!$E$39=\"Non-endemic\"),IF(COUNTRY_INFO!C39=0,\" \",COUNTRY_INFO!C39),\" \")","v":" "},{"$f":"IF(COUNTRY_INFO!Z39<>\"\",COUNTRY_INFO!V39,0)","v":0},{"$f":"IF(AND(COUNTRY_INFO!Z39<>\"\",COUNTRY_INFO!$H39=1),COUNTRY_INFO!F39+COUNTRY_INFO!G39,0)","v":0},0,null,0]
[{"$f":"IF(AND(INTRO!$E$37=\"Endemic\",INTRO!$E$39=\"Non-endemic\"),IF(COUNTRY_INFO!A40=0,\" \",COUNTRY_INFO!A40),\" \")","v":" "},{"$f":"IF(AND(INTRO!$E$37=\"Endemic\",INTRO!$E$39=\"Non-endemic\"),IF(COUNTRY_INFO!B40=0,\" \",COUNTRY_INFO!B40),\" \")","v":" "},{"$f":"IF(AND(INTRO!$E$37=\"Endemic\",INTRO!$E$39=\"Non-endemic\"),IF(COUNTRY_INFO!C40=0,\" \",COUNTRY_INFO!C40),\" \")","v":" "},{"$f":"IF(COUNTRY_INFO!Z40<>\"\",COUNTRY_INFO!V40,0)","v":0},{"$f":"IF(AND(COUNTRY_INFO!Z40<>\"\",COUNTRY_INFO!$H40=1),COUNTRY_INFO!F40+COUNTRY_INFO!G40,0)","v":0},0,null,0]
[{"$f":"IF(AND(INTRO!$E$37=\"Endemic\",INTRO!$E$39=\"Non-endemic\"),IF(COUNTRY_INFO!A41=0,\" \",COUNTRY_INFO!A41),\" \")","v":" "},{"$f":"IF(AND(INTRO!$E$37=\"Endemic\",INTRO!$E$39=\"Non-endemic\"),IF(COUNTRY_INFO!B41=0,\" \",COUNTRY_INFO!B41),\" \")","v":" "},{"$f":"IF(AND(INTRO!$E$37=\"Endemic\",INTRO!$E$39=\"Non-endemic\"),IF(COUNTRY_INFO!C41=0,\" \",COUNTRY_INFO!C41),\" \")","v":" "},{"$f":"IF(COUNTRY_INFO!Z41<>\"\",COUNTRY_INFO!V41,0)","v":0},{"$f":"IF(AND(COUNTRY_INFO!Z41<>\"\",COUNTRY_INFO!$H41=1),COUNTRY_INFO!F41+COUNTRY_INFO!G41,0)","v":0},0,null,0]
[{"$f":"IF(AND(INTRO!$E$37=\"Endemic\",INTRO!$E$39=\"Non-endemic\"),IF(COUNTRY_INFO!A42=0,\" \",COUNTRY_INFO!A42),\" \")","v":" "},{"$f":"IF(AND(INTRO!$E$37=\"Endemic\",INTRO!$E$39=\"Non-endemic\"),IF(COUNTRY_INFO!B42=0,\" \",COUNTRY_INFO!B42),\" \")","v":" "},{"$f":"IF(AND(INTRO!$E$37=\"Endemic\",INTRO!$E$39=\"Non-endemic\"),IF(COUNTRY_INFO!C42=0,\" \",COUNTRY_INFO!C42),\" \")","v":" "},{"$f":"IF(COUNTRY_INFO!Z42<>\"\",COUNTRY_INFO!V42,0)","v":0},{"$f":"IF(AND(COUNTRY_INFO!Z42<>\"\",COUNTRY_INFO!$H42=1),COUNTRY_INFO!F42+COUNTRY_INFO!G42,0)","v":0},0,null,0]
[{"$f":"IF(AND(INTRO!$E$37=\"Endemic\",INTRO!$E$39=\"Non-endemic\"),IF(COUNTRY_INFO!A43=0,\" \",COUNTRY_INFO!A43),\" \")","v":" "},{"$f":"IF(AND(INTRO!$E$37=\"Endemic\",INTRO!$E$39=\"Non-endemic\"),IF(COUNTRY_INFO!B43=0,\" \",COUNTRY_INFO!B43),\" \")","v":" "},{"$f":"IF(AND(INTRO!$E$37=\"Endemic\",INTRO!$E$39=\"Non-endemic\"),IF(COUNTRY_INFO!C43=0,\" \",COUNTRY_INFO!C43),\" \")","v":" "},{"$f":"IF(COUNTRY_INFO!Z43<>\"\",COUNTRY_INFO!V43,0)","v":0},{"$f":"IF(AND(COUNTRY_INFO!Z43<>\"\",COUNTRY_INFO!$H43=1),COUNTRY_INFO!F43+COUNTRY_INFO!G43,0)","v":0},0,null,0]
[{"$f":"IF(AND(INTRO!$E$37=\"Endemic\",INTRO!$E$39=\"Non-endemic\"),IF(COUNTRY_INFO!A44=0,\" \",COUNTRY_INFO!A44),\" \")","v":" "},{"$f":"IF(AND(INTRO!$E$37=\"Endemic\",INTRO!$E$39=\"Non-endemic\"),IF(COUNTRY_INFO!B44=0,\" \",COUNTRY_INFO!B44),\" \")","v":" "},{"$f":"IF(AND(INTRO!$E$37=\"Endemic\",INTRO!$E$39=\"Non-endemic\"),IF(COUNTRY_INFO!C44=0,\" \",COUNTRY_INFO!C44),\" \")","v":" "},{"$f":"IF(COUNTRY_INFO!Z44<>\"\",COUNTRY_INFO!V44,0)","v":0},{"$f":"IF(AND(COUNTRY_INFO!Z44<>\"\",COUNTRY_INFO!$H44=1),COUNTRY_INFO!F44+COUNTRY_INFO!G44,0)","v":0},0,null,0]
[{"$f":"IF(AND(INTRO!$E$37=\"Endemic\",INTRO!$E$39=\"Non-endemic\"),IF(COUNTRY_INFO!A45=0,\" \",COUNTRY_INFO!A45),\" \")","v":" "},{"$f":"IF(AND(INTRO!$E$37=\"Endemic\",INTRO!$E$39=\"Non-endemic\"),IF(COUNTRY_INFO!B45=0,\" \",COUNTRY_INFO!B45),\" \")","v":" "},{"$f":"IF(AND(INTRO!$E$37=\"Endemic\",INTRO!$E$39=\"Non-endemic\"),IF(COUNTRY_INFO!C45=0,\" \",COUNTRY_INFO!C45),\" \")","v":" "},{"$f":"IF(COUNTRY_INFO!Z45<>\"\",COUNTRY_INFO!V45,0)","v":0},{"$f":"IF(AND(COUNTRY_INFO!Z45<>\"\",COUNTRY_INFO!$H45=1),COUNTRY_INFO!F45+COUNTRY_INFO!G45,0)","v":0},0,null,0]
[{"$f":"IF(AND(INTRO!$E$37=\"Endemic\",INTRO!$E$39=\"Non-endemic\"),IF(COUNTRY_INFO!A46=0,\" \",COUNTRY_INFO!A46),\" \")","v":" "},{"$f":"IF(AND(INTRO!$E$37=\"Endemic\",INTRO!$E$39=\"Non-endemic\"),IF(COUNTRY_INFO!B46=0,\" \",COUNTRY_INFO!B46),\" \")","v":" "},{"$f":"IF(AND(INTRO!$E$37=\"Endemic\",INTRO!$E$39=\"Non-endemic\"),IF(COUNTRY_INFO!C46=0,\" \",COUNTRY_INFO!C46),\" \")","v":" "},{"$f":"IF(COUNTRY_INFO!Z46<>\"\",COUNTRY_INFO!V46,0)","v":0},{"$f":"IF(AND(COUNTRY_INFO!Z46<>\"\",COUNTRY_INFO!$H46=1),COUNTRY_INFO!F46+COUNTRY_INFO!G46,0)","v":0},0,null,0]
[{"$f":"IF(AND(INTRO!$E$37=\"Endemic\",INTRO!$E$39=\"Non-endemic\"),IF(COUNTRY_INFO!A47=0,\" \",COUNTRY_INFO!A47),\" \")","v":" "},{"$f":"IF(AND(INTRO!$E$37=\"Endemic\",INTRO!$E$39=\"Non-endemic\"),IF(COUNTRY_INFO!B47=0,\" \",COUNTRY_INFO!B47),\" \")","v":" "},{"$f":"IF(AND(INTRO!$E$37=\"Endemic\",INTRO!$E$39=\"Non-endemic\"),IF(COUNTRY_INFO!C47=0,\" \",COUNTRY_INFO!C47),\" \")","v":" "},{"$f":"IF(COUNTRY_INFO!Z47<>\"\",COUNTRY_INFO!V47,0)","v":0},{"$f":"IF(AND(COUNTRY_INFO!Z47<>\"\",COUNTRY_INFO!$H47=1),COUNTRY_INFO!F47+COUNTRY_INFO!G47,0)","v":0},0,null,0]
[{"$f":"IF(AND(INTRO!$E$37=\"Endemic\",INTRO!$E$39=\"Non-endemic\"),IF(COUNTRY_INFO!A48=0,\" \",COUNTRY_INFO!A48),\" \")","v":" "},{"$f":"IF(AND(INTRO!$E$37=\"Endemic\",INTRO!$E$39=\"Non-endemic\"),IF(COUNTRY_INFO!B48=0,\" \",COUNTRY_INFO!B48),\" \")","v":" "},{"$f":"IF(AND(INTRO!$E$37=\"Endemic\",INTRO!$E$39=\"Non-endemic\"),IF(COUNTRY_INFO!C48=0,\" \",COUNTRY_INFO!C48),\" \")","v":" "},{"$f":"IF(COUNTRY_INFO!Z48<>\"\",COUNTRY_INFO!V48,0)","v":0},{"$f":"IF(AND(COUNTRY_INFO!Z48<>\"\",COUNTRY_INFO!$H48=1),COUNTRY_INFO!F48+COUNTRY_INFO!G48,0)","v":0},0,null,0]
[{"$f":"IF(AND(INTRO!$E$37=\"Endemic\",INTRO!$E$39=\"Non-endemic\"),IF(COUNTRY_INFO!A49=0,\" \",COUNTRY_INFO!A49),\" \")","v":" "},{"$f":"IF(AND(INTRO!$E$37=\"Endemic\",INTRO!$E$39=\"Non-endemic\"),IF(COUNTRY_INFO!B49=0,\" \",COUNTRY_INFO!B49),\" \")","v":" "},{"$f":"IF(AND(INTRO!$E$37=\"Endemic\",INTRO!$E$39=\"Non-endemic\"),IF(COUNTRY_INFO!C49=0,\" \",COUNTRY_INFO!C49),\" \")","v":" "},{"$f":"IF(COUNTRY_INFO!Z49<>\"\",COUNTRY_INFO!V49,0)","v":0},{"$f":"IF(AND(COUNTRY_INFO!Z49<>\"\",COUNTRY_INFO!$H49=1),COUNTRY_INFO!F49+COUNTRY_INFO!G49,0)","v":0},0,null,0]
[{"$f":"IF(AND(INTRO!$E$37=\"Endemic\",INTRO!$E$39=\"Non-endemic\"),IF(COUNTRY_INFO!A50=0,\" \",COUNTRY_INFO!A50),\" \")","v":" "},{"$f":"IF(AND(INTRO!$E$37=\"Endemic\",INTRO!$E$39=\"Non-endemic\"),IF(COUNTRY_INFO!B50=0,\" \",COUNTRY_INFO!B50),\" \")","v":" "},{"$f":"IF(AND(INTRO!$E$37=\"Endemic\",INTRO!$E$39=\"Non-endemic\"),IF(COUNTRY_INFO!C50=0,\" \",COUNTRY_INFO!C50),\" \")","v":" "},{"$f":"IF(COUNTRY_INFO!Z50<>\"\",COUNTRY_INFO!V50,0)","v":0},{"$f":"IF(AND(COUNTRY_INFO!Z50<>\"\",COUNTRY_INFO!$H50=1),COUNTRY_INFO!F50+COUNTRY_INFO!G50,0)","v":0},0,null,0]
[{"$f":"IF(AND(INTRO!$E$37=\"Endemic\",INTRO!$E$39=\"Non-endemic\"),IF(COUNTRY_INFO!A51=0,\" \",COUNTRY_INFO!A51),\" \")","v":" "},{"$f":"IF(AND(INTRO!$E$37=\"Endemic\",INTRO!$E$39=\"Non-endemic\"),IF(COUNTRY_INFO!B51=0,\" \",COUNTRY_INFO!B51),\" \")","v":" "},{"$f":"IF(AND(INTRO!$E$37=\"Endemic\",INTRO!$E$39=\"Non-endemic\"),IF(COUNTRY_INFO!C51=0,\" \",COUNTRY_INFO!C51),\" \")","v":" "},{"$f":"IF(COUNTRY_INFO!Z51<>\"\",COUNTRY_INFO!V51,0)","v":0},{"$f":"IF(AND(COUNTRY_INFO!Z51<>\"\",COUNTRY_INFO!$H51=1),COUNTRY_INFO!F51+COUNTRY_INFO!G51,0)","v":0},0,null,0]
[{"$f":"IF(AND(INTRO!$E$37=\"Endemic\",INTRO!$E$39=\"Non-endemic\"),IF(COUNTRY_INFO!A52=0,\" \",COUNTRY_INFO!A52),\" \")","v":" "},{"$f":"IF(AND(INTRO!$E$37=\"Endemic\",INTRO!$E$39=\"Non-endemic\"),IF(COUNTRY_INFO!B52=0,\" \",COUNTRY_INFO!B52),\" \")","v":" "},{"$f":"IF(AND(INTRO!$E$37=\"Endemic\",INTRO!$E$39=\"Non-endemic\"),IF(COUNTRY_INFO!C52=0,\" \",COUNTRY_INFO!C52),\" \")","v":" "},{"$f":"IF(COUNTRY_INFO!Z52<>\"\",COUNTRY_INFO!V52,0)","v":0},{"$f":"IF(AND(COUNTRY_INFO!Z52<>\"\",COUNTRY_INFO!$H52=1),COUNTRY_INFO!F52+COUNTRY_INFO!G52,0)","v":0},0,null,0]
[{"$f":"IF(AND(INTRO!$E$37=\"Endemic\",INTRO!$E$39=\"Non-endemic\"),IF(COUNTRY_INFO!A53=0,\" \",COUNTRY_INFO!A53),\" \")","v":" "},{"$f":"IF(AND(INTRO!$E$37=\"Endemic\",INTRO!$E$39=\"Non-endemic\"),IF(COUNTRY_INFO!B53=0,\" \",COUNTRY_INFO!B53),\" \")","v":" "},{"$f":"IF(AND(INTRO!$E$37=\"Endemic\",INTRO!$E$39=\"Non-endemic\"),IF(COUNTRY_INFO!C53=0,\" \",COUNTRY_INFO!C53),\" \")","v":" "},{"$f":"IF(COUNTRY_INFO!Z53<>\"\",COUNTRY_INFO!V53,0)","v":0},{"$f":"IF(AND(COUNTRY_INFO!Z53<>\"\",COUNTRY_INFO!$H53=1),COUNTRY_INFO!F53+COUNTRY_INFO!G53,0)","v":0},0,null,0]

{"sheet":"SUMMARY","index":7,"n_rows":93,"n_cols":8,"rows_kept":93,"cut":false,"hidden":false,"merged":[[74,2,74,3],[74,4,74,5],[73,2,73,3],[73,4,73,5],[60,4,60,6],[61,4,61,6],[62,4,62,6],[72,2,72,3],[72,4,72,5],[25,1,27,1],[9,7,10,7],[32,2,35,4],[81,2,81,7],[83,3,83,7],[59,4,59,6],[50,1,50,7],[56,1,56,7],[51,1,51,7],[52,1,52,7],[80,1,80,7],[58,1,58,7],[78,1,78,7],[79,1,79,7],[66,1,66,7],[76,2,76,3],[9,1,10,1],[9,3,9,6],[9,2,10,2],[17,1,19,1],[21,1,23,1],[83,1,83,2],[0,1,0,7],[1,1,1,7],[2,1,2,5],[3,1,3,7],[4,1,4,7],[6,1,6,7],[5,2,5,5],[65,1,65,7],[54,1,54,7],[53,1,53,7],[36,1,36,7],[41,2,41,3],[41,4,41,5],[41,6,41,7],[55,1,55,7],[82,2,82,6],[63,4,63,6],[75,2,75,3],[97,1,97,7],[75,4,75,5],[70,4,70,5],[71,4,71,5],[70,2,70,3],[71,2,71,3],[92,1,92,7],[76,4,76,5],[87,1,87,7],[91,1,91,7],[86,1,86,7],[84,1,84,2],[84,3,84,7]]}
[]
[null,"Joint request for selected PC medicines v.4.1"]
[]
[null,"This form constitutes an official government request to WHO for the supply of the PC medicines. To ensure the medicines are delivered on time, the request for PC medicines should be submitted at least 9 months before the first date of MDA planned in the calendar year of the request. "]
[]
[null,"Country",{"$f":"IF(INTRO!$E$33<>0,INTRO!$E$33,\" \")","v":"The Gambia"},null,null,null,"Year",{"$f":"IF(INTRO!$E$35<>0,INTRO!$E$35,\" \")","v":2024}]
[]
[null,"Information on PC medicines requested to WHO"]
[]
[null,"PC medicine","Target group","Number of tablets",null,null,null,"Specify \nsource"]
[null,null,null,"Required","In stock","In pipeline","Requested"]
[null,"Diethylcarbamazine citrate","ALL",null,null,null,{"$f":"IF(D12>(E12+F12),D12-E12-F12, 0)","v":0}]
[null,null,null,null,null,null,0]
[null,"Ivermectin","ALL",null,null,null,0]
[]
[null,"Albendazole for LF","ALL",null,null,null,0]
[null,null,null,null,null,null,0]
[null,"Albendazole for STH","PreSAC",{"$f":"ALB_MBD!H4","v":26112},null,null,26112]
[null,null,"SAC",{"$f":"ALB_MBD!I4","v":58709},null,null,58709]
[null,null,"WRA",{"$f":"ALB_MBD!K4","v":50264},null,null,50264]
[]
[null,"Mebendazole","PreSAC",null,null,null,0]
[null,null,"SAC",null,null,null,0]
[null,null,"WRA",null,null,null,0]
[]
[null,"Praziquantel","PreSAC",{"$f":"PZQ!M4","v":0},null,null,0]
[null,null,"SAC",{"$f":"PZQ!N4","v":1199406},null,null,1199406]
[null,null,"Adults",{"$f":"PZQ!O4","v":3645972},null,null,{"$f":"IF(D28>(E28+F28),D28-E28-F28, 0)","v":3645972}]
[]
[null,"Number of people to be treated with donated medicine ( see User Guide for details )"]
[]
[null,"Disease",null,null,null,"Round 1","Round 2","Round 3"]
[null,"Lymphatic filariasis","These figures are estimated only \nfor targeted age groups to be treated \nwith donated medicines in areas \nwhere treatment for \na specific disease is planned"]
[null,"Onchocerciasis"]
[null,"Schistosomiasis"]
[null,"Soil-transmitted helminthiases"]
[]
[]
[]
[null,"Information on planned PC interventions"]
[]
[null,"PC medicine","Planned date of the \n1st round of PC",null,"Planned date of the \n2nd round of PC",null,"Date by which the medicine should arrive to the national warehouse"]
[null,"Diethylcarbamazine citrate"]
[null,"Ivermectin"]
[null,"Albendazole for LF"]
[null,"Albendazole for STH","April",2024,"November",2024]
[null,"Mebendazole"]
[null,"Praziquantel","April",2024]
[]
[null,"Checklist"]
[null,"Submission"]
[null,"What should be submitted?"]
[null,"The supply of the requested medicines should be based on up-to-date epidemiological data, specific usage plans, and capacity for implementation. The following checklist ensures that all necessary forms and information are provided to WHO (in electronic format). "]
[null,"Joint request for selected PC medicines"]
[null,"Joint reporting form"]
[null,"PC epidemiological data reporting form"]
[]
[null,"Availability of funding for implementation in the year for which the medicines are requested"]
[]
[null,"Diseases \ntargeted for implementation","Total treatments","Funding secured for","Source",null,null,"Amount"]
[null,{"$f":"B33","v":"Lymphatic filariasis"},{"$f":"SUM(F33:H33)","v":0}]
[null,{"$f":"B34","v":"Onchocerciasis"},{"$f":"SUM(F34:H34)","v":0}]
[null,{"$f":"B35","v":"Schistosomiasis"},{"$f":"SUM(F35:H35)","v":0},"No"]
[null,{"$f":"B36","v":"Soil-transmitted helminthiases"},{"$f":"SUM(F36:H36)","v":0},"No"]
[]
[null,"Who should fill in the form? "]
[null,"National NTD coordinator should compile all required information needed to complete the request form. In the absence of such a coordinator, specific programme managers should coordinate their respective part. The final single request must be approved by the Ministry of Health."]
[]
[null,"Information on person(s) who has filled in the form"]
[]
[null,"Title ","Name",null,"Phone",null,"Email","Date"]
[null,"NTD/PC Coordinator","Balla Jatta",null,2209854388,null,"ballajatta07@gmail.com","2023-04-17"]
[null,"SCH Programme Manager","Yaya Camara",null,2203734090,null,"yscamara79.yc@gmail.com","2023-04-17"]
[null,"Other","Amadou W. Jallow",null,2209921415,null,"amadou.jallow@gmail.com","2023-04-17"]
[]
[]
[]
[]
[null,"The WHO recommends that all serious adverse events suspected to be associated with use of PC medicines should be reported in accordance with national Pharmacovigilance guidelines. In the absence of a national Pharmacovigilance system, contact the WHO Neglected Tropical Disease department for guidance."]
[null,"The WHO is committed to facilitate PC medicines donation with a free-of-charge supply of a) albendazole, mebendazole and praziquantel to the MoH’s national warehouse; and b) diethylcarbamazine citrate to the entry port/airport of recipient countries."]
[null,"The institution submitting the present request is responsible for a) arranging the offloading of the medicines from the truck and storing it in the national warehouse and subsequent shipment to the final distribution centres; b) for registering the donated medicine, if required, by the relevant national regulatory authorities; and c) for informing about any changes of their PC campaigns (e.g. postpone of the planned MDA date, replacement of NTD coordinator, etc.)."]
[null,null,"I have read and accept WHO Data Sharing Policy"]
[null,null,"I confirm that all information provided in this form is complete and correct"]
[null,"Name and signature of NTD coordinator \nor Ministry of Health representative",null,"Balla Jatta "]
[null,"Date:",null,"2023-04-17"]
[]
[null,"Please complete information on shipment and consignee in the worksheet SHIPMENT. Any additional details related to this Request should be provided in the \"Additional information\" box in the worksheet SHIPMENT."]
[null,"Please send the national request (signed and in electronic format) to the concerned WR with copy to:"]
[null,"WHO headquarters","PC_JointForms@who.int"]
[null,"WHO Regional Office","Regional Advisor for NTD"]
[null,"Mectizan donation program","Dr Yao Sodahlon, email: ysodahlon@taskforce.org"]
[]
[null,"Please note that your request will be reviewed by an independent panel before approval. The information in this form, joint reporting form and PC epidemiological data reporting form are essential for WHO to ensure efficient usage of medicines. As part of its ongoing monitoring and evaluation activities, and to meet its contractual obligations to donors and other partners, WHO and its appointed agents reserve the right to periodically inspect stocks of the medicines at country level."]

{"sheet":"SHIPMENT","index":8,"n_rows":46,"n_cols":8,"rows_kept":46,"cut":false,"hidden":false,"merged":[[34,1,34,7],[36,1,36,7],[0,1,0,7],[1,1,1,7],[2,1,2,5],[17,5,17,7],[18,5,18,7],[19,2,19,4],[19,5,19,7],[21,2,21,4],[3,2,3,5],[4,1,4,7],[22,2,22,4],[22,5,22,7],[15,2,15,4],[20,5,20,7],[15,5,15,7],[20,2,20,4],[18,2,18,4],[16,2,16,4],[47,1,56,7],[45,1,45,7],[37,1,37,6],[38,1,38,5],[40,1,40,7],[41,1,41,6],[39,1,39,6],[42,1,42,6],[43,1,43,7],[25,2,25,4],[25,5,25,7],[24,1,24,7],[6,1,6,7],[7,2,7,4],[7,5,7,7],[8,2,8,4],[8,5,8,7],[9,2,9,4],[9,5,9,7],[10,2,10,4],[10,5,10,7],[11,2,11,4],[11,5,11,7],[12,2,12,4],[12,5,12,7],[13,2,13,4],[13,5,13,7],[14,2,14,4],[14,5,14,7],[23,2,23,4],[23,5,23,7],[21,5,21,7],[16,5,16,7],[17,2,17,4],[26,2,26,4],[26,5,26,7],[27,2,27,4],[27,5,27,7],[28,2,28,4],[28,5,28,7],[32,2,32,4],[32,5,32,7],[29,2,29,4],[29,5,29,7],[30,2,30,4],[30,5,30,7],[31,2,31,4],[31,5,31,7]]}
[]
[null,"Joint request for selected PC medicines v.4.1"]
[]
[null,"Country",{"$f":"IF(INTRO!$E$33<>0,INTRO!$E$33,\" \")","v":"The Gambia"},null,null,null,"Year",{"$f":"IF(INTRO!$E$35<>0,INTRO!$E$35,\" \")","v":2024}]
[]
[null,"Information on shipment and consignee "]
[]
[null,null,"Consignee",null,null,"Delivery point / Final recipient\nif different from the consignee"]
[null,"Name","Dr. Desta Tiruneh",null,null,"Balla Jatta"]
[null,"Department/Unit","WHO Country Representative",null,null,"NTD Program, Epidemiology Disease Control"]
[null,"Organization","World Halth Organisation The Gambia",null,null,"Ministry of Health and Social Welfare"]
[null,"Phone","00220 4462294 / 00220 7761668",null,null,"(+220)9854388, 7664343"]
[null,"Fax"]
[null,"E-mail","tirunehd@who.int",null,null,"ballajatta07@gmail.com"]
[null,"Mailing address","P.M.B 170 New Kotu Layout The Gambia",null,null,"C/o Ministry of Health, The Gambia"]
[]
[null,null,"Consignee",null,null,"Delivery point / Final recipient\nif different from the consignee"]
[null,"Name","Dr. Desta Tiruneh",null,null,"Balla Jatta"]
[null,"Department/Unit","WHO Country Representative",null,null,"NTD Program, Epidemiology Disease Control"]
[null,"Organization","World Halth Organisation The Gambia",null,null,"Ministry of Health and Social Welfare"]
[null,"Phone","00220 4462294 / 00220 7761668",null,null,"(+220)9854388, 7664343"]
[null,"Fax"]
[null,"E-mail","tirunehd@who.int",null,null,"ballajatta07@gmail.com"]
[null,"Mailing address","P.M.B 170 New Kotu Layout The Gambia",null,null,"C/o Ministry of Health, The Gambia"]
[]
[null,null,"Consignee",null,null,"Delivery point / Final recipient\nif different from the consignee"]
[null,"Name"]
[null,"Department/Unit"]
[null,"Organization"]
[null,"Phone"]
[null,"Fax"]
[null,"E-mail"]
[null,"Mailing address"]
[]
[]
[null,"Information on import requirements"]
[]
[null,"Is the Import Permit required?",null,null,null,null,null,"No"]
[null,"How long does it take to obtain the Import Permit?",null,null,null,null,null,"Days"]
[null,"Do you require any documents to be submitted together with the Import Permit application?",null,null,null,null,null,"No"]
[]
[null,"Does the consignee have to get customs clearance before the shipment can proceed?",null,null,null,null,null,"No"]
[null,"Is there any additional information may be helpful in ensuring timely clearance and delivery of medicines to your country? ",null,null,null,null,null,"No"]
[]
[]
[null,"Additional information"]

{"sheet":"DATA_POLICY","index":9,"n_rows":39,"n_cols":8,"rows_kept":39,"cut":false,"hidden":true,"merged":[[55,1,55,2],[0,1,0,5],[1,1,1,7],[3,3,3,5],[6,1,6,7],[8,1,12,7],[13,1,16,7],[17,1,21,7],[22,1,25,7],[26,2,36,7],[38,1,45,7]]}
[]
[null,"Joint request for selected PC medicines v.4.1"]
[]
[null,"Country",null,{"$f":"IF(INTRO!$E$33<>0,INTRO!$E$33,\" \")","v":"The Gambia"},null,null,"Year",{"$f":"IF(INTRO!$E$35<>0,INTRO!$E$35,\" \")","v":2024}]
[]
[]
[null,"WHO Data Sharing Policy statement"]
[]
[null,"Data are the basis for all sound public health actions and the benefits of data sharing are widely recognized, including scientific and public health benefits. Whenever possible, WHO wishes to promote the sharing of health data, including but not restricted to surveillance and epidemiological data.  "]
[]
[]
[]
[]
[null,{"$f":"\"In this connection, and without prejudice to information sharing and publication pursuant to legally binding instruments, by providing data to WHO, the Ministry of Health of \" & D4 & \":\"","v":"In this connection, and without prejudice to information sharing and publication pursuant to legally binding instruments, by providing data to WHO, the Ministry of Health of The Gambia:"}]
[]
[]
[]
[null,"Confirms that all data to be supplied to WHO hereunder have been collected in accordance with applicable national laws, including data protection laws aimed at protecting the confidentiality of identifiable persons;"]
[]
[]
[]
[]
[null,{"$f":"\"Agrees that WHO shall be entitled, subject always to measures to ensure the ethical and secure use of the data, and subject always to an appropriate acknowledgement of \"&D4&\":\"","v":"Agrees that WHO shall be entitled, subject always to measures to ensure the ethical and secure use of the data, and subject always to an appropriate acknowledgement of The Gambia:"}]
[]
[]
[]
[null,null,"to publish the data, stripped of any personal identifiers and make the Data available to any interested party on request (to the extent they have not, or not yet, been published by WHO) on terms that allow non-commercial, not-for-profit use of the Data for public health purposes (provided always that publication of the Data shall remain under the control of WHO); \nto use, compile, aggregate, evaluate and analyse the Data and publish and disseminate the results thereof in conjunction with WHO’s work and in accordance with the Organization’s policies and practices."]
[]
[]
[]
[]
[]
[]
[]
[]
[]
[]
[]
[null,{"$f":"CONCATENATE(\"Except where data sharing and publication is required under legally binding instruments (IHR, WHO Nomenclature Regulations 1967, etc.), the Ministry of Health of \", D4,\" may in respect of certain data opt out of (any part of) the above,\" & \" by notifying WHO thereof in writing at the following address, provided that any such notification shall clearly identify the data in question and clearly indicate the scope of the opt-out (in reference to the  above), \" & \"and provided that specific reasons shall be given for the opt out.\")","v":"Except where data sharing and publication is required under legally binding instruments (IHR, WHO Nomenclature Regulations 1967, etc.), the Ministry of Health of The Gambia may in respect of certain data opt out of (any part of) the above, by notifying WHO thereof in writing at the following address, provided that any such notification shall clearly identify the data in question and clearly indicate the scope of the opt-out (in reference to the  above), and provided that specific reasons shall be given for the opt out."}]